Workbook

Sheet Table of Contents

Sheet Mayor
A1: TOTAL | C1: =SUM(C4:C69) -> 66 | D1: 2 | E1: 288 | F1: 91 | G1: 128 | H1: 49 | I1: 3444295 | J1: 7453 | K1: 3451748 | L1: 3411955 | M1: 7344 | N1: 3419299 | O1: 1343666 | P1: =O1/L1 -> 0.3938111728 | Q1: =SUM(Q4:Q69) -> 6463 | R1: =Q1/M1 -> 0.8800381264 | S1: =SUM(S4:S69) -> 1350129 | T1: =S1/N1 -> 0.3948554952 | U1: =SUM(U4:U69) -> 42579 | V1: 1100 | W1: 43679 | X1: 30385 | Y1: 827 | Z1: 31212 | AA1: 2318 | AB1: 23292 | AC1: 25610 | AD1: 83 | AE1: 18 | AF1: 0 | AG1: 66
A3: Authority | B3: Electoral system | C3: Positions (N) | D3: Elected uncontested (N) | E3: Candidates (N) | F3: Candidates Council sitting members (N) | G3: Also candidates for Council (N) | H3: Sitting Mayor | I3: Residential electors (N) | J3: Ratepayer electors (N) | K3: Total electors (N) | L3: Residential electors (contested wards only) | M3: Ratepayer electors (contested wards only) | N3: Total electors (Contested wards only) | O3: Residential voters (N) | P3: Residential turnout (%) | Q3: Ratepayer voters (N) | R3: Ratepayer turnout (%) | S3: Total voters (N) | T3: Overall turnout (%) | U3: Residential special votes cast (N) | V3: Ratepayer special votes cast (N) | W3: Total special votes cast (N) | X3: Residential special votes allowed (N) | Y3: Ratepayer special votes allowed (N) | Z3: Total special votes allowed (N) | AA3: Informal votes (N) | AB3: Blank votes (N) | AC3: Blank and informal votes (N) | AD3: Female candidates (N) | AE3: Female mayors (N) | AF3: Unfilled positions | AG3: Total number elected
A4: Ashburton District Council | B4: FPP | C4: 1 | D4: 0 | E4: 4 | F4: 2 | G4: 2 | H4: 0 | I4: 22949 | J4: 25 | K4: =I4+J4 -> 22974 | L4: =IF(D4=0, I4, 0) -> 22949 | M4: =IF(D4=0, J4, 0) -> 25 | N4: =L4+M4 -> 22974 | O4: 10634 | P4: =O4/L4 -> 0.4633753105 | Q4: 24 | R4: =Q4/M4 -> 0.96 | S4: =O4+Q4 -> 10658 | T4: =S4/N4 -> 0.4639157308 | U4: 177 | V4: 3 | W4: =U4+V4 -> 180 | X4: 137 | Y4: 2 | Z4: =X4+Y4 -> 139 | AA4: 19 | AB4: 120 | AC4: =AA4+AB4 -> 139 | AD4: 1 | AE4: 1 | AG4: 1
A5: Auckland Council | B5: FPP | C5: 1 | D5: 0 | E5: 12 | F5: 1 | G5: 4 | H5: 1 | I5: 1194607 | J5: 346 | K5: 1194953 | L5: 1194607 | M5: 346 | N5: 1194953 | O5: 349813 | P5: 0.292826846 | Q5: 340 | R5: 0.9826589595 | S5: 350153 | T5: 0.2930265877 | U5: 5896 | V5: 37 | W5: 5933 | X5: 3410 | Y5: 35 | Z5: 3445 | AA5: 670 | AB5: 8049 | AC5: 8719 | AD5: 2 | AE5: 0 | AG5: 1
A6: Buller District Council | B6: FPP | C6: 1 | D6: 0 | E6: 4 | F6: 1 | G6: 1 | H6: 1 | I6: 7579 | J6: 49 | K6: 7628 | L6: 7579 | M6: 49 | N6: 7628 | O6: 4159 | P6: 0.5487531337 | Q6: 40 | R6: 0.8163265306 | S6: 4199 | T6: 0.5504719455 | U6: 156 | V6: 12 | W6: 168 | X6: 110 | Y6: 9 | Z6: 119 | AA6: 2 | AB6: 60 | AC6: 62 | AD6: 1 | AE6: 0 | AG6: 1
A7: Carterton District Council | B7: FPP | C7: 1 | D7: 0 | E7: 3 | F7: 1 | G7: 3 | H7: 0 | I7: 7678 | J7: 40 | K7: 7718 | L7: 7678 | M7: 40 | N7: 7718 | O7: 4127 | P7: 0.5375097682 | Q7: 32 | R7: 0.8 | S7: 4159 | T7: 0.5388701736 | U7: 104 | V7: 20 | W7: 124 | X7: 89 | Y7: 16 | Z7: 105 | AA7: 4 | AB7: 104 | AC7: 108 | AD7: 0 | AE7: 0 | AG7: 1
A8: Central Hawke's Bay District Council | B8: FPP | C8: 1 | D8: 0 | E8: 2 | F8: 0 | G8: 0 | H8: 1 | I8: 10855 | J8: 23 | K8: 10878 | L8: 10855 | M8: 23 | N8: 10878 | O8: 6114 | P8: 0.5632427453 | Q8: 20 | R8: 0.8695652174 | S8: 6134 | T8: 0.563890421 | U8: 148 | V8: 12 | W8: 160 | X8: 112 | Y8: 10 | Z8: 122 | AA8: 0 | AB8: 71 | AC8: 71 | AD8: 1 | AE8: 0 | AG8: 1
A9: Central Otago District Council | B9: FPP | C9: 1 | D9: 0 | E9: 3 | F9: 1 | G9: 2 | H9: 0 | I9: 17757 | J9: 155 | K9: 17912 | L9: 17757 | M9: 155 | N9: 17912 | O9: 9801 | P9: 0.5519513431 | Q9: 135 | R9: 0.8709677419 | S9: 9936 | T9: 0.554711925 | U9: 210 | V9: 25 | W9: 235 | X9: 179 | Y9: 18 | Z9: 197 | AA9: 15 | AB9: 164 | AC9: 179 | AD9: 1 | AE9: 1 | AG9: 1
A10: Chatham Islands Council | B10: FPP | C10: 1 | D10: 0 | E10: 2 | F10: 2 | G10: 0 | H10: 1 | I10: 439 | J10: 5 | K10: 444 | L10: 439 | M10: 5 | N10: 444 | O10: 313 | P10: 0.7129840547 | Q10: 3 | R10: 0.6 | S10: 316 | T10: 0.7117117117 | U10: 16 | V10: 0 | W10: 16 | X10: 13 | Y10: 0 | Z10: 13 | AA10: 0 | AB10: 6 | AC10: 6 | AD10: 1 | AE10: 0 | AF10: 0 | AG10: 1
A11: Christchurch City Council | B11: FPP | C11: 1 | D11: 0 | E11: 8 | F11: 1 | G11: 1 | H11: 1 | I11: 280263 | J11: 324 | K11: =I11+J11 -> 280587 | L11: =IF(D11=0, I11, 0) -> 280263 | M11: =IF(D11=0, J11, 0) -> 324 | N11: =L11+M11 -> 280587 | O11: 107189 | P11: =O11/L11 -> 0.3824586192 | Q11: 286 | R11: =Q11/M11 -> 0.8827160494 | S11: =O11+Q11 -> 107475 | T11: =S11/N11 -> 0.3830362775 | U11: 3022 | V11: 50 | W11: =U11+V11 -> 3072 | X11: 2506 | Y11: 36 | Z11: =X11+Y11 -> 2542 | AA11: 105 | AB11: 1008 | AC11: =AA11+AB11 -> 1113 | AD11: 1 | AE11: 0 | AG11: 1
A12: Clutha District Council | B12: FPP | C12: 1 | D12: 0 | E12: 2 | F12: 2 | G12: 0 | H12: 0 | I12: 12339 | J12: 36 | K12: 12375 | L12: 12339 | M12: 36 | N12: 12375 | O12: 6583 | P12: 0.5335116298 | Q12: 31 | R12: 0.8611111111 | S12: 6614 | T12: 0.5344646465 | U12: 99 | V12: 3 | W12: 102 | X12: 84 | Y12: 2 | Z12: 86 | AA12: 10 | AB12: 77 | AC12: 87 | AD12: 0 | AE12: 0 | AG12: 1
A13: Dunedin City Council | B13: STV | C13: 1 | D13: 0 | E13: 16 | F13: 5 | G13: 14 | H13: 1 | I13: 94566 | J13: 151 | K13: 94717 | L13: 94566 | M13: 151 | N13: 94717 | O13: 43171 | P13: 0.4565171415 | Q13: 129 | R13: 0.8543046358 | S13: 43300 | T13: 0.4571513034 | U13: 1323 | V13: 28 | W13: 1351 | X13: 1141 | Y13: 25 | Z13: 1166 | AA13: 106 | AB13: 727 | AC13: 833 | AD13: 6 | AE13: 1 | AG13: 1
A14: Far North District Council | B14: STV | C14: 1 | D14: 0 | E14: 3 | F14: 1 | G14: 2 | H14: 1 | I14: 48306 | J14: 145 | K14: 48451 | L14: 48306 | M14: 145 | N14: 48451 | O14: 24424 | P14: 0.5056100691 | Q14: 132 | R14: 0.9103448276 | S14: 24556 | T14: 0.5068213246 | U14: 1985 | V14: 10 | W14: 1995 | X14: 970 | Y14: 6 | Z14: 976 | AA14: 55 | AB14: 200 | AC14: 255 | AD14: 1 | AE14: 0 | AG14: 1
A15: Gisborne District Council | B15: STV | C15: 1 | D15: 0 | E15: 3 | F15: 1 | G15: 2 | H15: 1 | I15: 34022 | J15: 45 | K15: 34067 | L15: 34022 | M15: 45 | N15: 34067 | O15: 16338 | P15: 0.480218682 | Q15: 39 | R15: 0.8666666667 | S15: 16377 | T15: 0.4807291514 | U15: 936 | V15: 2 | W15: 938 | X15: 630 | Y15: 2 | Z15: 632 | AA15: 46 | AB15: 349 | AC15: 395 | AD15: 1 | AE15: 1 | AG15: 1
A16: Gore District Council | B16: FPP | C16: 1 | D16: 0 | E16: 2 | F16: 0 | G16: 0 | H16: 1 | I16: 9024 | J16: 25 | K16: 9049 | L16: 9024 | M16: 25 | N16: 9049 | O16: 4968 | P16: 0.5505319149 | Q16: 23 | R16: 0.92 | S16: 4991 | T16: 0.5515526578 | U16: 125 | V16: 8 | W16: 133 | X16: 109 | Y16: 7 | Z16: 116 | AA16: 1 | AB16: 90 | AC16: 91 | AD16: 1 | AE16: 0 | AG16: 1
A17: Grey District Council | B17: FPP | C17: 1 | D17: 0 | E17: 2 | F17: 0 | G17: 0 | H17: 1 | I17: 9874 | J17: 12 | K17: 9886 | L17: 9874 | M17: 12 | N17: 9886 | O17: 4673 | P17: 0.4732631153 | Q17: 10 | R17: 0.8333333333 | S17: 4683 | T17: 0.4737001821 | U17: 103 | V17: 6 | W17: 109 | X17: 80 | Y17: 5 | Z17: 85 | AA17: 9 | AB17: 475 | AC17: 484 | AD17: 1 | AE17: 1 | AG17: 1
A18: Hamilton City Council | B18: STV | C18: 1 | D18: 0 | E18: 12 | F18: 1 | G18: 9 | H18: 0 | I18: 115249 | J18: 184 | K18: 115433 | L18: 115249 | M18: 184 | N18: 115433 | O18: 37896 | P18: 0.3288184713 | Q18: 167 | R18: 0.9076086957 | S18: 38063 | T18: 0.3297410619 | U18: 2260 | V18: 1 | W18: 2261 | X18: 1307 | Y18: 1 | Z18: 1308 | AA18: 210 | AB18: 410 | AC18: 620 | AD18: 4 | AE18: 0 | AG18: 1
A19: Hastings District Council | B19: FPP | C19: 1 | D19: 0 | E19: 5 | F19: 3 | G19: 2 | H19: 0 | I19: 58314 | J19: 63 | K19: 58377 | L19: 58314 | M19: 63 | N19: 58377 | O19: 26699 | P19: 0.4578488871 | Q19: 60 | R19: 0.9523809524 | S19: 26759 | T19: 0.4583825822 | U19: 766 | V19: 17 | W19: 783 | X19: 661 | Y19: 9 | Z19: 670 | AA19: 42 | AB19: 406 | AC19: 448 | AD19: 1 | AE19: 1 | AG19: 1
A20: Hauraki District Council | B20: FPP | C20: 1 | D20: 0 | E20: 3 | F20: 0 | G20: 2 | H20: 1 | I20: 15181 | J20: 29 | K20: 15210 | L20: 15181 | M20: 29 | N20: 15210 | O20: 6096 | P20: 0.4015545748 | Q20: 24 | R20: 0.8275862069 | S20: 6120 | T20: 0.4023668639 | U20: 152 | V20: 0 | W20: 152 | X20: 104 | Y20: 0 | Z20: 104 | AA20: 18 | AB20: 210 | AC20: 228 | AD20: 0 | AE20: 0 | AG20: 1
A21: Horowhenua District Council | B21: FPP | C21: 1 | D21: 0 | E21: 2 | F21: 1 | G21: 1 | H21: 1 | I21: 25651 | J21: 94 | K21: 25745 | L21: 25651 | M21: 94 | N21: 25745 | O21: 12127 | P21: 0.4727690928 | Q21: 87 | R21: 0.9255319149 | S21: 12214 | T21: 0.4744222179 | U21: 484 | V21: 32 | W21: 516 | X21: 407 | Y21: 23 | Z21: 430 | AA21: 5 | AB21: 302 | AC21: 307 | AD21: 0 | AE21: 0 | AG21: 1
A22: Hurunui District Council | B22: FPP | C22: 1 | D22: 1 | E22: 1 | F22: 0 | G22: 0 | H22: 1 | I22: 9607 | J22: 80 | K22: 9687 | AD22: 1 | AE22: 1 | AG22: 1
A23: Hutt City Council | B23: FPP | C23: 1 | D23: 0 | E23: 4 | F23: 2 | G23: 2 | H23: 0 | I23: 78961 | J23: 65 | K23: 79026 | L23: 78961 | M23: 65 | N23: =L23+M23 -> 79026 | O23: 32984 | P23: =O23/L23 -> 0.4177252061 | Q23: 53 | R23: =Q23/M23 -> 0.8153846154 | S23: =O23+Q23 -> 33037 | T23: =S23/N23 -> 0.4180522866 | U23: 1210 | V23: 26 | W23: =U23+V23 -> 1236 | X23: 888 | Y23: 17 | Z23: =X23+Y23 -> 905 | AA23: 77 | AB23: 349 | AC23: =AA23+AB23 -> 426 | AD23: 2 | AE23: 0 | AG23: 1
A24: Invercargill City Council | B24: FPP | C24: 1 | D24: 0 | E24: 8 | F24: 4 | G24: 3 | H24: 0 | I24: 38755 | J24: 74 | K24: 38829 | L24: =IF(D24=0, I24, 0) -> 38755 | M24: =IF(D24=0, J24, 0) -> 74 | N24: =L24+M24 -> 38829 | O24: 17930 | P24: =O24/L24 -> 0.4626499806 | Q24: 66 | R24: =Q24/M24 -> 0.8918918919 | S24: =O24+Q24 -> 17996 | T24: =S24/N24 -> 0.4634680265 | U24: 781 | V24: 18 | W24: =U24+V24 -> 799 | X24: 602 | Y24: 13 | Z24: =X24+Y24 -> 615 | AA24: 75 | AB24: 349 | AC24: =AA24+AB24 -> 424 | AD24: 2 | AE24: 0 | AG24: 1
A25: Kaikōura District Council | B25: FPP | C25: 1 | D25: 0 | E25: 3 | F25: 1 | G25: 2 | H25: 1 | I25: 3037 | J25: 25 | K25: 3062 | L25: 3037 | M25: 25 | N25: 3062 | O25: 1859 | P25: 0.6121172209 | Q25: 22 | R25: 0.88 | S25: 1881 | T25: 0.6143043762 | U25: 73 | V25: 5 | W25: 78 | X25: 60 | Y25: 3 | Z25: 63 | AA25: 0 | AB25: 50 | AC25: 50 | AD25: 0 | AE25: 0 | AG25: 1
A26: Kaipara District Council | B26: FPP | C26: 1 | D26: 0 | E26: 4 | F26: 2 | G26: 2 | H26: 0 | I26: 18101 | J26: 226 | K26: 18327 | L26: 18101 | M26: 226 | N26: 18327 | O26: 10510 | P26: 0.5806309044 | Q26: 192 | R26: 0.8495575221 | S26: 10702 | T26: 0.5839471818 | U26: 494 | V26: 0 | W26: 494 | X26: 198 | Y26: 0 | Z26: 198 | AA26: 9 | AB26: 79 | AC26: 88 | AD26: 0 | AE26: 0 | AG26: 1
A27: Kāpiti Coast District Council | B27: STV | C27: 1 | D27: 0 | E27: 6 | F27: 2 | G27: 4 | H27: 1 | I27: 43313 | J27: 351 | K27: =I27+J27 -> 43664 | L27: 43313 | M27: 351 | N27: 43664 | O27: 20169 | P27: 0.4656569621 | Q27: 312 | R27: 0.8888888889 | S27: 20481 | T27: 0.4690591792 | U27: 787 | V27: 7 | W27: 794 | X27: 555 | Y27: 7 | Z27: 562 | AA27: 31 | AB27: 71 | AC27: 102 | AD27: 2 | AE27: 1 | AG27: 1
A28: Kawerau District Council | B28: FPP | C28: 1 | D28: 0 | E28: 2 | F28: 1 | G28: 1 | H28: 1 | I28: 5166 | J28: 9 | K28: 5175 | L28: 5166 | M28: 9 | N28: 5175 | O28: 2339 | P28: 0.4527680991 | Q28: 6 | R28: 0.6666666667 | S28: 2345 | T28: 0.4531400966 | U28: 109 | V28: 3 | W28: 112 | X28: 66 | Y28: 2 | Z28: 68 | AA28: 0 | AB28: 22 | AC28: 22 | AD28: 2 | AE28: 1 | AG28: 1
A29: Mackenzie District Council | B29: FPP | C29: 1 | D29: 0 | E29: 5 | F29: 2 | G29: 2 | H29: 0 | I29: 3359 | J29: 113 | K29: 3472 | L29: 3359 | M29: 113 | N29: 3472 | O29: 2029 | P29: 0.6040488241 | Q29: 101 | R29: 0.8938053097 | S29: 2130 | T29: 0.6134792627 | U29: 84 | V29: 40 | W29: 124 | X29: 53 | Y29: 24 | Z29: 77 | AA29: 1 | AB29: 17 | AC29: 18 | AD29: 3 | AE29: 0 | AG29: 1
A30: Manawatū District Council | B30: FPP | C30: 1 | D30: 1 | E30: 1 | F30: 1 | G30: 0 | H30: 0 | I30: 22733 | J30: 29 | K30: 22762 | AD30: 0 | AE30: 0 | AG30: 1
A31: Marlborough District Council | B31: STV | C31: 1 | D31: 0 | E31: 3 | F31: 0 | G31: 1 | H31: 1 | I31: 34720 | J31: 87 | K31: 34807 | L31: =IF(D31=0, I31, 0) -> 34720 | M31: =IF(D31=0, J31, 0) -> 87 | N31: =L31+M31 -> 34807 | O31: 15255 | P31: =O31/L31 -> 0.4393721198 | Q31: 78 | R31: =Q31/M31 -> 0.8965517241 | S31: =O31+Q31 -> 15333 | T31: =S31/N31 -> 0.440514839 | U31: 274 | V31: 17 | W31: =U31+V31 -> 291 | X31: 241 | Y31: 15 | Z31: =X31+Y31 -> 256 | AA31: 22 | AB31: 701 | AC31: =AA31+AB31 -> 723 | AD31: 2 | AE31: 1 | AG31: 1
A32: Masterton District Council | B32: FPP | C32: 1 | D32: 0 | E32: 4 | F32: 3 | G32: 4 | H32: 0 | I32: 20062 | J32: 46 | K32: 20108 | L32: 20062 | M32: 46 | N32: 20108 | O32: 9522 | P32: 0.4746286512 | Q32: 42 | R32: 0.9130434783 | S32: 9564 | T32: 0.4756315894 | U32: 271 | V32: 12 | W32: 283 | X32: 225 | Y32: 8 | Z32: 233 | AA32: 9 | AB32: 265 | AC32: 274 | AD32: 3 | AE32: 1 | AG32: 1
A33: Matamata-Piako District Council | B33: FPP | C33: 1 | D33: 0 | E33: 3 | F33: 0 | G33: 1 | H33: 1 | I33: 25218 | J33: 15 | K33: 25233 | L33: 25218 | M33: 15 | N33: 25233 | O33: 11556 | P33: 0.4582441113 | Q33: 14 | R33: 0.9333333333 | S33: 11570 | T33: 0.4585265327 | U33: 279 | V33: 6 | W33: 285 | X33: 206 | Y33: 4 | Z33: 210 | AA33: 8 | AB33: 157 | AC33: 165 | AD33: 1 | AE33: 0 | AG33: 1
A34: Napier City Council | B34: FPP | C34: 1 | D34: 0 | E34: 3 | F34: 2 | G34: 2 | H34: 1 | I34: 46217 | J34: 61 | K34: 46278 | L34: 46217 | M34: 61 | N34: 46278 | O34: 21270 | P34: 0.4602202653 | Q34: 55 | R34: 0.9016393443 | S34: 21325 | T34: 0.460802109 | U34: 693 | V34: 21 | W34: 714 | X34: 578 | Y34: 18 | Z34: 596 | AA34: 12 | AB34: 376 | AC34: 388 | AD34: 1 | AE34: 0 | AG34: 1
A35: Nelson City Council | B35: STV | C35: 1 | D35: 0 | E35: 4 | F35: 1 | G35: 1 | H35: 1 | I35: 38556 | J35: 109 | K35: 38665 | L35: 38556 | M35: 109 | N35: 38665 | O35: 18700 | P35: 0.4850088183 | Q35: 89 | R35: 0.8165137615 | S35: 18789 | T35: 0.4859433596 | U35: 661 | V35: 23 | W35: 684 | X35: 550 | Y35: 21 | Z35: 571 | AA35: 23 | AB35: 315 | AC35: 338 | AD35: 0 | AE35: 0 | AG35: 1
A36: New Plymouth District Council | B36: STV | C36: 1 | D36: 0 | E36: 9 | F36: 3 | G36: 2 | H36: 0 | I36: 61552 | J36: 55 | K36: 61607 | L36: 61552 | M36: 55 | N36: 61607 | O36: 28565 | P36: 0.4640791526 | Q36: 60 | R36: 1.090909091 | S36: 28625 | T36: 0.4646387586 | U36: 951 | V36: 4 | W36: 955 | X36: 618 | Y36: 2 | Z36: 620 | AA36: 61 | AB36: 348 | AC36: 409 | AD36: 1 | AE36: 0 | AG36: 1
A37: Ōpōtiki District Council | B37: FPP | C37: 1 | D37: 0 | E37: 2 | F37: 0 | G37: 1 | H37: 1 | I37: 6511 | J37: 32 | K37: 6543 | L37: 6511 | M37: 32 | N37: 6543 | O37: 3030 | P37: 0.4653663032 | Q37: 33 | R37: 1.03125 | S37: 3063 | T37: 0.4681338835 | U37: 139 | V37: 4 | W37: 143 | X37: 91 | Y37: 4 | Z37: 95 | AA37: 1 | AB37: 48 | AC37: 49 | AD37: 0 | AE37: 0 | AG37: 1
A38: Ōtorohanga District Council | B38: FPP | C38: 1 | D38: 0 | E38: 3 | F38: 3 | G38: 1 | H38: 0 | I38: 6302 | J38: 47 | K38: 6349 | L38: 6302 | M38: 47 | N38: 6349 | O38: 3126 | P38: 0.4960330054 | Q38: 42 | R38: 0.8936170213 | S38: 3168 | T38: 0.4989762167 | U38: 127 | V38: 3 | W38: 130 | X38: 71 | Y38: 1 | Z38: 72 | AA38: 1 | AB38: 28 | AC38: 29 | AD38: 2 | AE38: 0 | AG38: 1
A39: Palmerston North District Council | B39: STV | C39: 1 | D39: 0 | E39: 4 | F39: 1 | G39: 2 | H39: 1 | I39: 59408 | J39: 70 | K39: 59478 | L39: 59408 | M39: 70 | N39: 59478 | O39: 24995 | P39: 0.4207345812 | Q39: 65 | R39: 0.9285714286 | S39: 25060 | T39: 0.4213322573 | U39: 997 | V39: 2 | W39: 999 | X39: 589 | Y39: 2 | Z39: 591 | AA39: 101 | AB39: 977 | AC39: 1078 | AD39: 0 | AE39: 0 | AG39: 1
A40: Porirua City Council | B40: STV | C40: 1 | D40: 0 | E40: 3 | F40: 1 | G40: 2 | H40: 1 | I40: 42991 | J40: 41 | K40: 43032 | L40: 42991 | M40: 41 | N40: 43032 | O40: 17584 | P40: 0.4090158405 | Q40: 39 | R40: 0.9512195122 | S40: 17623 | T40: 0.409532441 | U40: 690 | V40: 12 | W40: 702 | X40: 545 | Y40: 10 | Z40: 555 | AA40: 39 | AB40: 277 | AC40: 316 | AD40: 3 | AE40: 1 | AG40: 1
A41: Queenstown-Lakes District Council | B41: FPP | C41: 1 | D41: 0 | E41: 6 | F41: 0 | G41: 0 | H41: 1 | I41: 30757 | J41: 361 | K41: 31118 | L41: 30757 | M41: 361 | N41: 31118 | O41: 12642 | P41: 0.4110283838 | Q41: 285 | R41: 0.7894736842 | S41: 12927 | T41: 0.4154187287 | U41: 536 | V41: 72 | W41: 608 | X41: 467 | Y41: 63 | Z41: 530 | AA41: 36 | AB41: 270 | AC41: 306 | AD41: 0 | AE41: 0 | AG41: 1
A42: Rangitīkei District Council | B42: FPP | C42: 1 | D42: 0 | E42: 4 | F42: 1 | G42: 2 | H42: 1 | I42: 10917 | J42: 18 | K42: 10935 | L42: 10917 | M42: 18 | N42: 10935 | O42: 5436 | P42: 0.4979389942 | Q42: 15 | R42: 0.8333333333 | S42: 5451 | T42: 0.4984910837 | U42: 101 | V42: 9 | W42: 110 | X42: 76 | Y42: 6 | Z42: 82 | AA42: 3 | AB42: 91 | AC42: 94 | AD42: 0 | AE42: 0 | AG42: 1
A43: Rotorua District Council | B43: FPP | C43: 1 | D43: 0 | E43: 5 | F43: 2 | G43: 3 | H43: 1 | I43: 49922 | J43: 160 | K43: 50082 | L43: 49922 | M43: 160 | N43: 50082 | O43: 21655 | P43: 0.4337766916 | Q43: 140 | R43: 0.875 | S43: 21795 | T43: 0.4351862945 | U43: 803 | V43: 21 | W43: 824 | X43: 682 | Y43: 20 | Z43: 702 | AA43: 35 | AB43: 386 | AC43: 421 | AD43: 3 | AE43: 1 | AG43: 1
A44: Ruapehu District Council | B44: STV | C44: 1 | D44: 0 | E44: 4 | F44: 2 | G44: 1 | H44: 1 | I44: 8208 | J44: 136 | K44: 8344 | L44: 8208 | M44: 136 | N44: 8344 | O44: 4189 | P44: 0.5103557505 | Q44: 113 | R44: 0.8308823529 | S44: 4302 | T44: 0.5155800575 | U44: 164 | V44: 26 | W44: 190 | X44: 111 | Y44: 21 | Z44: 132 | AA44: 9 | AB44: 48 | AC44: 57 | AD44: 2 | AE44: 0 | AG44: 1
A45: Selwyn District Council | B45: FPP | C45: 1 | D45: 0 | E45: 3 | F45: 1 | G45: 0 | H45: 1 | I45: 54660 | J45: 62 | K45: =I45+J45 -> 54722 | L45: =IF(D45=0, I45, 0) -> 54660 | M45: =IF(D45=0, J45, 0) -> 62 | N45: =L45+M45 -> 54722 | O45: 26381 | P45: =O45/L45 -> 0.4826381266 | Q45: 59 | R45: =Q45/M45 -> 0.9516129032 | S45: =O45+Q45 -> 26440 | T45: =S45/N45 -> 0.4831694748 | U45: 760 | V45: 11 | W45: =U45+V45 -> 771 | X45: 606 | Y45: 6 | Z45: =X45+Y45 -> 612 | AA45: 5 | AB45: 162 | AC45: =AA45+AB45 -> 167 | AD45: 1 | AE45: 1 | AG45: 1
A46: South Taranaki District Council | B46: FPP | C46: 1 | D46: 0 | E46: 2 | F46: 0 | G46: 0 | H46: 1 | I46: 18669 | J46: 27 | K46: 18696 | L46: 18669 | M46: 27 | N46: 18696 | O46: 8411 | P46: 0.4505329691 | Q46: 27 | R46: =Q46/M46 -> 1 | S46: =O46+Q46 -> 8438 | T46: =S46/N46 -> 0.4513264869 | U46: 234 | V46: 0 | W46: 234 | X46: 153 | Y46: 0 | Z46: 153 | AA46: 3 | AB46: 284 | AC46: 287 | AD46: 0 | AE46: 0 | AG46: 1
A47: South Waikato District Council | B47: FPP | C47: 1 | D47: 0 | E47: 7 | F47: 1 | G47: 4 | H47: 1 | I47: 16489 | J47: 6 | K47: 16495 | L47: =IF(D47=0, I47, 0) -> 16489 | M47: =IF(D47=0, J47, 0) -> 6 | N47: 16495 | O47: 7591 | P47: 0.4603675177 | Q47: 5 | R47: 0.8333333333 | S47: 7596 | T47: 0.4605031828 | U47: 250 | V47: 7 | W47: 257 | X47: 174 | Y47: 6 | Z47: 180 | AA47: 8 | AB47: 54 | AC47: 62 | AD47: 1 | AE47: 0 | AG47: 1
A48: South Waiararapa District Council | B48: FPP | C48: 1 | D48: 0 | E48: 2 | F48: 0 | G48: 0 | H48: 0 | I48: 9232 | J48: 114 | K48: 9346 | L48: 9232 | M48: 114 | N48: 9346 | O48: 5491 | P48: 0.5947790295 | Q48: 106 | R48: 0.9298245614 | S48: 5597 | T48: 0.598865825 | U48: 178 | V48: 47 | W48: 225 | X48: 129 | Y48: 32 | Z48: 161 | AA48: 2 | AB48: 63 | AC48: 65 | AD48: 2 | AE48: 1 | AG48: 1
A49: Southland District Council | B49: FPP | C49: 1 | D49: 0 | E49: 3 | F49: 0 | G49: 0 | H49: 1 | I49: 20523 | J49: 120 | K49: 20643 | L49: 20523 | M49: 120 | N49: 20643 | O49: 8632 | P49: 0.4206012766 | Q49: 112 | R49: 0.9333333333 | S49: 8744 | T49: 0.4235818437 | U49: 94 | V49: 19 | W49: 113 | X49: 76 | Y49: 16 | Z49: 92 | AA49: 2 | AB49: 123 | AC49: 125 | AD49: 1 | AE49: 0 | AG49: 1
A50: Stratford District Council | B50: FPP | C50: 1 | D50: 0 | E50: 2 | F50: 0 | G50: 1 | H50: 1 | I50: 6844 | J50: 11 | K50: 6855 | L50: 6844 | M50: 11 | N50: 6855 | O50: 3669 | P50: 0.5360900058 | Q50: 15 | R50: 1.363636364 | S50: 3684 | T50: 0.5374179431 | U50: 114 | V50: 3 | W50: 117 | X50: 75 | Y50: 1 | Z50: 76 | AA50: 2 | AB50: 40 | AC50: 42 | AD50: 0 | AE50: 0 | AG50: 1
A51: Tararua District Council | B51: FPP | C51: 1 | D51: 0 | E51: 5 | F51: 2 | G51: 4 | H51: 1 | I51: 12812 | J51: 23 | K51: 12835 | L51: 12812 | M51: 23 | N51: 12835 | O51: 7099 | P51: 0.5540899157 | Q51: 20 | R51: 0.8695652174 | S51: 7119 | T51: 0.5546552396 | U51: 187 | V51: 8 | W51: 195 | X51: 161 | Y51: 7 | Z51: 168 | AA51: 7 | AB51: 70 | AC51: 77 | AD51: 1 | AE51: 0 | AG51: 1
A52: Tasman District Council | B52: FPP | C52: 1 | D52: 0 | E52: 5 | F52: 1 | G52: 2 | H52: 1 | I52: 42084 | J52: 186 | K52: 42270 | L52: 42084 | M52: 186 | N52: 42270 | O52: 20006 | P52: 0.4753825682 | Q52: 177 | R52: 0.9516129032 | S52: 20183 | T52: 0.4774781169 | U52: 534 | V52: 7 | W52: 541 | X52: 339 | Y52: 5 | Z52: 344 | AA52: 32 | AB52: 337 | AC52: 369 | AD52: 0 | AE52: 0 | AF52: 0 | AG52: 1
A53: Taupō District Council | B53: FPP | C53: 1 | D53: 0 | E53: 4 | F53: 1 | G53: 1 | H53: 1 | I53: 27831 | J53: 438 | K53: 28269 | L53: =IF(D53=0, I53, 0) -> 27831 | M53: =IF(D53=0, J53, 0) -> 438 | N53: 28269 | O53: 15489 | P53: 0.5565376738 | Q53: 377 | R53: 0.8607305936 | S53: 15866 | T53: 0.5612508401 | U53: 720 | V53: 105 | W53: 825 | X53: 578 | Y53: 99 | Z53: 677 | AA53: 6 | AB53: 164 | AC53: 170 | AD53: 0 | AE53: 0 | AF53: 0 | AG53: 1
A54: Thames-Coromandel District Council | B54: FPP | C54: 1 | D54: 0 | E54: 6 | F54: 1 | G54: 0 | H54: 1 | I54: 24314 | J54: 1195 | K54: 25509 | L54: 24314 | M54: 1195 | N54: 25509 | O54: 11254 | P54: 0.4628609032 | Q54: 1018 | R54: 0.8518828452 | S54: 12272 | T54: 0.4810851072 | U54: 444 | V54: 2 | W54: 446 | X54: 237 | Y54: 2 | Z54: 239 | AA54: 20 | AB54: 234 | AC54: 254 | AD54: 1 | AE54: 0 | AG54: 1
A55: Timaru District Council | B55: FPP | C55: 1 | D55: 0 | E55: 3 | F55: 1 | G55: 2 | H55: 1 | I55: 33581 | J55: 21 | K55: 33602 | L55: =IF(D55=0, I55, 0) -> 33581 | M55: =IF(D55=0, J55, 0) -> 21 | N55: 33602 | O55: 16239 | P55: 0.4835770227 | Q55: 20 | R55: 0.9523809524 | S55: 16259 | T55: 0.4838700077 | U55: 309 | V55: 10 | W55: 319 | X55: 248 | Y55: 7 | Z55: 255 | AA55: 17 | AB55: 390 | AC55: 407 | AD55: 0 | AE55: 0 | AF55: 0 | AG55: 1
A56: Upper Hutt City Council | B56: FPP | C56: 1 | D56: 0 | E56: 6 | F56: 3 | G56: 3 | H56: 1 | I56: 33058 | J56: 42 | K56: 33100 | L56: 33058 | M56: 42 | N56: 33100 | O56: 16695 | P56: 0.5050214774 | Q56: 33 | R56: 0.7857142857 | S56: 16728 | T56: 0.5053776435 | U56: 515 | V56: 14 | W56: 529 | X56: 452 | Y56: 10 | Z56: 462 | AA56: 15 | AB56: 116 | AC56: 131 | AD56: 4 | AE56: 1 | AG56: 1
A57: Waikato District Council | B57: FPP | C57: 1 | D57: 0 | E57: 2 | F57: 1 | G57: 0 | H57: 1 | I57: 58067 | J57: 51 | K57: 58118 | L57: 58067 | M57: 51 | N57: 58118 | O57: 20303 | P57: 0.3496478206 | Q57: 57 | R57: 1.117647059 | S57: 20360 | T57: 0.3503217592 | U57: 636 | V57: 1 | W57: 637 | X57: 427 | Y57: 1 | Z57: 428 | AA57: 11 | AB57: 799 | AC57: 810 | AD57: 1 | AE57: 0 | AF57: 0 | AG57: 1
A58: Waimakariri District Council | B58: FPP | C58: 1 | D58: 0 | E58: 2 | F58: 1 | G58: 0 | H58: 1 | I58: 49120 | J58: 31 | K58: 49151 | L58: 49120 | M58: 31 | N58: 49151 | O58: 21140 | P58: 0.4303745928 | Q58: 30 | R58: 0.9677419355 | S58: 21170 | T58: 0.4307135155 | U58: 361 | V58: 5 | W58: 366 | X58: 267 | Y58: 4 | Z58: 271 | AA58: 2 | AB58: 270 | AC58: 272 | AD58: 0 | AE58: 0 | AF58: 0 | AG58: 1
A59: Waimate District Council | B59: FPP | C59: 1 | D59: 0 | E59: 3 | F59: 2 | G59: 1 | H59: 1 | I59: 5508 | J59: 11 | K59: 5519 | L59: 5508 | M59: 11 | N59: 5519 | O59: 2944 | P59: 0.5344952796 | Q59: 10 | R59: 0.9090909091 | S59: 2954 | T59: 0.5352418916 | U59: 66 | V59: 3 | W59: 69 | X59: 62 | Y59: 3 | Z59: 65 | AA59: 3 | AB59: 27 | AC59: 30 | AD59: 1 | AE59: 0 | AF59: 0 | AG59: 1
A60: Waipā District Council | B60: FPP | C60: 1 | D60: 0 | E60: 3 | F60: 2 | G60: 1 | H60: 1 | I60: 41153 | J60: 35 | K60: 41188 | L60: 41153 | M60: 35 | N60: 41188 | O60: 17381 | P60: 0.4223507399 | Q60: 30 | R60: 0.8571428571 | S60: 17411 | T60: 0.4227202098 | U60: 504 | V60: 17 | W60: 521 | X60: 410 | Y60: 11 | Z60: 421 | AA60: 9 | AB60: 380 | AC60: 389 | AD60: 2 | AE60: 0 | AF60: 0 | AG60: 1
A61: Wairoa District Council | B61: FPP | C61: 1 | D61: 0 | E61: 4 | F61: 0 | G61: 2 | H61: 1 | I61: 5665 | J61: 30 | K61: 5695 | L61: 5665 | M61: 30 | N61: 5695 | O61: 3166 | P61: 0.558870256 | Q61: 26 | R61: 0.8666666667 | S61: 3192 | T61: 0.5604916594 | U61: 172 | V61: 1 | W61: 173 | X61: 147 | Y61: 1 | Z61: 148 | AA61: 3 | AB61: 35 | AC61: 38 | AD61: 2 | AE61: 0 | AG61: 1
A62: Waitaki District Council | B62: FPP | C62: 1 | D62: 0 | E62: 4 | F62: 1 | G62: 0 | H62: 0 | I62: 16314 | J62: 47 | K62: 16361 | L62: 16314 | M62: 47 | N62: 16361 | O62: 8554 | P62: 0.5243349271 | Q62: 39 | R62: 0.829787234 | S62: 8593 | T62: 0.5252123953 | U62: 185 | V62: 15 | W62: 200 | X62: 138 | Y62: 12 | Z62: 150 | AA62: 16 | AB62: 59 | AC62: 75 | AD62: 2 | AE62: 1 | AG62: 1
A63: Waitomo District Council | B63: FPP | C63: 1 | D63: 0 | E63: 4 | F63: 1 | G63: 3 | H63: 1 | I63: 5964 | J63: 19 | K63: 5983 | L63: 5964 | M63: 19 | N63: 5983 | O63: 2743 | P63: 0.459926224 | Q63: 18 | R63: 0.9473684211 | S63: 2761 | T63: 0.4614741768 | U63: 91 | V63: 10 | W63: 101 | X63: 66 | Y63: 6 | Z63: 72 | AA63: 1 | AB63: 19 | AC63: 20 | AD63: 2 | AE63: 0 | AG63: 1
A64: Wellington City Council | B64: STV | C64: 1 | D64: 0 | E64: 12 | F64: 2 | G64: 7 | H64: 0 | I64: 160770 | J64: 548 | K64: 161318 | L64: 160770 | M64: 548 | N64: 161318 | O64: 81084 | P64: 0.5043478261 | Q64: 490 | R64: 0.8941605839 | S64: 81574 | T64: 0.5056720267 | U64: 4777 | V64: 135 | W64: 4912 | X64: 3998 | Y64: 88 | Z64: 4086 | AA64: 120 | AB64: 323 | AC64: 443 | AD64: 2 | AE64: 0 | AF64: 0 | AG64: 1
A65: Western Bay of Plenty District Council | B65: FPP | C65: 1 | D65: 0 | E65: 8 | F65: 4 | G65: 6 | H65: 1 | I65: 39871 | J65: 174 | K65: 40045 | L65: 39871 | M65: 174 | N65: 40045 | O65: 15163 | P65: 0.3803014722 | Q65: 136 | R65: 0.7816091954 | S65: 15299 | T65: 0.3820451992 | U65: 298 | V65: 43 | W65: 341 | X65: 219 | Y65: 29 | Z65: 248 | AA65: 57 | AB65: 414 | AC65: 471 | AD65: 3 | AE65: 0 | AG65: 1
A66: Westland District Council | B66: FPP | C66: 1 | D66: 0 | E66: 4 | F66: 0 | G66: 0 | H66: 1 | I66: 6405 | J66: 61 | K66: 6466 | L66: 6405 | M66: 61 | N66: 6466 | O66: 3629 | P66: 0.5665886027 | Q66: 48 | R66: 0.7868852459 | S66: 3677 | T66: 0.5686668729 | U66: 123 | V66: 16 | W66: 139 | X66: 85 | Y66: 3 | Z66: 88 | AA66: 4 | AB66: 36 | AC66: 40 | AD66: 2 | AE66: 1 | AG66: 1
A67: Whakatāne District Council | B67: FPP | C67: 1 | D67: 0 | E67: 6 | F67: 4 | G67: 1 | H67: 1 | I67: 26019 | J67: 47 | K67: 26066 | L67: 26019 | M67: 47 | N67: 26066 | O67: 12778 | P67: 0.4911026558 | Q67: 46 | R67: 0.9787234043 | S67: 12824 | T67: 0.4919818921 | U67: 674 | V67: 7 | W67: 681 | X67: 278 | Y67: 7 | Z67: 285 | AA67: 15 | AB67: 119 | AC67: 134 | AD67: 0 | AE67: 0 | AF67: 0 | AG67: 1
A68: Whanganui District Council | B68: FPP | C68: 1 | D68: 0 | E68: 4 | F68: 2 | G68: 3 | H68: 1 | I68: 33462 | J68: 43 | K68: 33505 | L68: 33462 | M68: 43 | N68: 33505 | O68: 16986 | P68: 0.5076205845 | Q68: 38 | R68: 0.8837209302 | S68: 17024 | T68: 0.5081032682 | U68: 791 | V68: 17 | W68: 808 | X68: 667 | Y68: 4 | Z68: 671 | AA68: 24 | AB68: 377 | AC68: 401 | AD68: 0 | AE68: 0 | AF68: 0 | AG68: 1
A69: Whangārei District Council | B69: STV | C69: 1 | D69: 0 | E69: 5 | F69: 3 | G69: 3 | H69: 1 | I69: 66854 | J69: 150 | K69: 67004 | L69: 66854 | M69: 150 | N69: 67004 | O69: 30368 | P69: 0.4542435756 | Q69: 122 | R69: 0.8133333333 | S69: 30490 | T69: 0.4550474599 | U69: 1376 | V69: 0 | W69: 1376 | X69: 872 | Y69: 0 | Z69: 872 | AA69: 64 | AB69: 345 | AC69: 409 | AD69: 2 | AE69: 0 | AF69: 0 | AG69: 1
AC70: 0

Sheet TA Wards
A1: TOTAL | D1: =SUM(D4:D277) -> 224 | E1: 50 | F1: 709 | G1: 67 | H1: 1639 | I1: 474 | J1: 393 | K1: 88 | L1: 33 | AE1: =SUM(AE4:AE277) -> 7972 | AF1: 30368 | AG1: 38340 | AH1: 587 | AI1: 283 | AJ1: 0 | AK1: 709
A3: Authority | B3: Ward | C3: Electoral system | D3: Contested Wards (N) | E3: Uncontested Wards (N) | F3: Positions (N) | G3: Elected uncontested (N) | H3: Candidates (N) | I3: Candidates - Council sitting members (N) | J3: Council members re-elected (N) | K3: Candidates - community board members (N) | L3: Community board members elected (N) | M3: Electors - Residential (N) | N3: Electors - Ratepayer (N) | O3: Electors - Total (N) | P3: Residential electors (contested wards only) | Q3: Ratepayer electors (contested wards only) | R3: Total electors (Contested wards only) | S3: Residential voters (N) | T3: Residential turnout (%) | U3: Ratepayer voters (N) | V3: Ratepayer turnout (%) | W3: Total voters (N) | X3: Overall turnout (%) | Y3: Residential special votes cast (N) | Z3: Ratepayer special votes cast (N) | AA3: Total special votes cast (N) | AB3: Residential special votes allowed (N) | AC3: Ratepayer special votes allowed (N) | AD3: Total special votes allowed (N) | AE3: Informal votes (N) | AF3: Blank votes (N) | AG3: Blank and informal votes (N) | AH3: Female candidates (N) | AI3: Female councillors (N) | AJ3: Unfilled positions | AK3: Total number elected
A4: Ashburton District Council | B4: Ashburton | C4: FPP | D4: 1 | F4: 5 | H4: 9 | I4: 4 | J4: 4 | K4: 0 | L4: 0 | M4: 14538 | N4: 11 | O4: =M4+N4 -> 14549 | P4: =IF(D4=1, M4, 0) -> 14538 | Q4: =IF(D4=1, N4, 0) -> 11 | R4: =P4+Q4 -> 14549 | S4: 6631 | T4: =S4/P4 -> 0.4561150089 | U4: 10 | V4: =U4/Q4 -> 0.9090909091 | W4: =S4+U4 -> 6641 | X4: =W4/R4 -> 0.4564574885 | Y4: 125 | Z4: 1 | AA4: =Y4+Z4 -> 126 | AB4: 91 | AC4: 1 | AD4: =AB4+AC4 -> 92 | AE4: 40 | AF4: 34 | AG4: =AE4+AF4 -> 74 | AH4: 3 | AI4: 2 | AJ4: 0 | AK4: 5
A5: Ashburton District Council | B5: Eastern | C5: FPP | E5: 1 | F5: 2 | G5: 2 | H5: 2 | I5: 1 | J5: 1 | K5: 0 | L5: 0 | M5: 4207 | N5: 4 | O5: 4211 | AH5: 0 | AI5: 0 | AJ5: 0 | AK5: 2
A6: Ashburton District Council | B6: Western | C6: FPP | D6: 1 | F6: 2 | H6: 3 | I6: 1 | J6: 0 | K6: 0 | L6: 0 | M6: 4204 | N6: 10 | O6: 4214 | P6: =IF(D6=1, M6, 0) -> 4204 | Q6: =IF(D6=1, N6, 0) -> 10 | R6: =P6+Q6 -> 4214 | S6: 2220 | T6: =S6/P6 -> 0.5280685062 | U6: 10 | V6: =U6/Q6 -> 1 | W6: =S6+U6 -> 2230 | X6: =W6/R6 -> 0.5291884196 | Y6: 32 | Z6: 2 | AA6: =Y6+Z6 -> 34 | AB6: 27 | AC6: 1 | AD6: =AB6+AC6 -> 28 | AE6: 0 | AF6: 16 | AG6: =AE6+AF6 -> 16 | AH6: 3 | AI6: 2 | AJ6: 0 | AK6: 2
A7: Auckland Council | B7: Albany | C7: FPP | D7: 1 | F7: 2 | H7: 9 | I7: 2 | J7: 1 | K7: 5 | L7: 1 | M7: 139834 | N7: 24 | O7: 139858 | P7: 139834 | Q7: 24 | R7: 139858 | S7: 43233 | T7: 0.3091737346 | U7: 26 | V7: 1.083333333 | W7: 43259 | X7: 0.3093065824 | Y7: 869 | Z7: 3 | AA7: 872 | AB7: 83 | AC7: 3 | AD7: 86 | AE7: 105 | AF7: 1267 | AG7: 1372 | AH7: 1 | AI7: 1 | AJ7: 0 | AK7: 2
A8: Auckland Council | B8: Albert-Eden-Puketāpapa | C8: FPP | D8: 1 | F8: 2 | H8: 8 | I8: 2 | J8: 2 | K8: 2 | L8: 0 | M8: 120557 | N8: 32 | O8: 120589 | P8: 120557 | Q8: 32 | R8: 120589 | S8: 34361 | T8: 0.2850187048 | U8: 36 | V8: 1.125 | W8: 34397 | X8: 0.2852416058 | Y8: 1199 | Z8: 26 | AA8: 1225 | AB8: 659 | AC8: 24 | AD8: 683 | AE8: 56 | AF8: 838 | AG8: 894 | AH8: 2 | AI8: 2 | AJ8: 0 | AK8: 2
A9: Auckland Council | B9: Franklin | C9: FPP | D9: 1 | F9: 1 | H9: 3 | I9: 1 | J9: 1 | K9: 0 | L9: 0 | M9: 59538 | N9: 21 | O9: 59559 | P9: 59538 | Q9: 21 | R9: 59559 | S9: 19182 | T9: 0.3221807921 | U9: 21 | V9: 1 | W9: 19203 | X9: 0.3224197854 | Y9: 248 | Z9: 1 | AA9: 249 | AB9: 199 | AC9: 1 | AD9: 200 | AE9: 21 | AF9: 534 | AG9: 555 | AH9: 0 | AI9: 0 | AJ9: 0 | AK9: 1
A10: Auckland Council | B10: Howick | C10: FPP | D10: 1 | F10: 2 | H10: 8 | I10: 1 | J10: 1 | K10: 2 | L10: 1 | M10: 112582 | N10: 12 | O10: 112594 | P10: 112582 | Q10: 12 | R10: 112594 | S10: 32461 | T10: 0.2883320602 | U10: 13 | V10: 1.083333333 | W10: 32474 | X10: 0.2884167895 | Y10: 588 | Z10: 1 | AA10: 589 | AB10: 373 | AC10: 1 | AD10: 374 | AE10: 108 | AF10: 642 | AG10: 750 | AH10: 2 | AI10: 1 | AJ10: 0 | AK10: 2
A11: Auckland Council | B11: Manukau | C11: FPP | D11: 1 | F11: 2 | H11: 9 | I11: 2 | J11: 2 | K11: 0 | L11: 0 | M11: 113068 | N11: 14 | O11: 113082 | P11: 113068 | Q11: 14 | R11: 113082 | S11: 28576 | T11: 0.2527328687 | U11: 10 | V11: 0.7142857143 | W11: 28586 | X11: 0.2527900108 | Y11: 874 | Z11: 1 | AA11: 875 | AB11: 421 | AC11: 1 | AD11: 422 | AE11: 74 | AF11: 784 | AG11: 858 | AH11: 5 | AI11: 1 | AJ11: 0 | AK11: 2
A12: Auckland Council | B12: Manurewa-Papakura | C12: FPP | D12: 1 | F12: 2 | H12: 7 | I12: 1 | J12: 1 | K12: 3 | L12: 1 | M12: 111623 | N12: 13 | O12: 111636 | P12: 111623 | Q12: 13 | R12: 111636 | S12: 27074 | T12: 0.2425485787 | U12: 13 | V12: 1 | W12: 27087 | X12: 0.2426367838 | Y12: 790 | Z12: 1 | AA12: 791 | AB12: 540 | AC12: 1 | AD12: 541 | AE12: 45 | AF12: 596 | AG12: 641 | AH12: 2 | AI12: 0 | AJ12: 0 | AK12: 2
A13: Auckland Council | B13: Maungakiekie-Tāmaki | C13: FPP | D13: 1 | F13: 1 | H13: 5 | I13: 1 | J13: 1 | K13: 0 | L13: 0 | M13: 55918 | N13: 21 | O13: 55939 | P13: 55918 | Q13: 21 | R13: 55939 | S13: 14749 | T13: 0.2637612218 | U13: 20 | V13: 0.9523809524 | W13: 14769 | X13: 0.2640197358 | Y13: 441 | Z13: 1 | AA13: 442 | AB13: 285 | AC13: 1 | AD13: 286 | AE13: 25 | AF13: 326 | AG13: 351 | AH13: 2 | AI13: 1 | AJ13: 0 | AK13: 1
A14: Auckland Council | B14: North Shore | C14: FPP | D14: 1 | F14: 2 | H14: 5 | I14: 1 | J14: 1 | K14: 2 | L14: 1 | M14: 109231 | N14: 34 | O14: 109265 | P14: 109231 | Q14: 34 | R14: 109265 | S14: 33875 | T14: 0.3101225842 | U14: 30 | V14: 0.8823529412 | W14: 33905 | X14: 0.3103006452 | Y14: 805 | Z14: 1 | AA14: 806 | AB14: 534 | AC14: 1 | AD14: 535 | AE14: 45 | AF14: 471 | AG14: 516 | AH14: 2 | AI14: 0 | AJ14: 0 | AK14: 2
A15: Auckland Council | B15: Ōrākei | C15: FPP | E15: 1 | F15: 1 | G15: 1 | H15: 1 | I15: 1 | J15: 1 | K15: 0 | L15: 0 | M15: 67751 | N15: 34 | O15: 67785 | AH15: 1 | AI15: 1 | AJ15: 0 | AK15: 1
A16: Auckland Council | B16: Rodney | C16: FPP | E16: 1 | F16: 1 | G16: 1 | H16: 1 | I16: 1 | J16: 1 | K16: 0 | L16: 0 | M16: 55923 | N16: 20 | O16: 55943 | AH16: 0 | AI16: 0 | AJ16: 0 | AK16: 1
A17: Auckland Council | B17: Waitākere | C17: FPP | D17: 1 | F17: 2 | H17: 12 | I17: 2 | J17: 2 | K17: 2 | L17: 0 | M17: 126197 | N17: 23 | O17: 126220 | P17: =IF(D17=1, M17, 0) -> 126197 | Q17: =IF(D17=1, N17, 0) -> 23 | R17: =P17+Q17 -> 126220 | S17: 35299 | T17: =S17/P17 -> 0.2797134639 | U17: 20 | V17: =U17/Q17 -> 0.8695652174 | W17: =S17+U17 -> 35319 | X17: =W17/R17 -> 0.2798209476 | Y17: 1055 | Z17: 0 | AA17: =Y17+Z17 -> 1055 | AB17: 709 | AC17: 0 | AD17: =AB17+AC17 -> 709 | AE17: 97 | AF17: 688 | AG17: =AE17+AF17 -> 785 | AH17: 4 | AI17: 0 | AJ17: 0 | AK17: 2
A18: Auckland Council | B18: Waitematā and Gulf | C18: FPP | D18: 1 | F18: 1 | H18: 7 | I18: 1 | J18: 1 | K18: 1 | L18: 0 | M18: 63456 | N18: 86 | O18: 63542 | P18: =IF(D18=1, M18, 0) -> 63456 | Q18: =IF(D18=1, N18, 0) -> 86 | R18: =P18+Q18 -> 63542 | S18: 21587 | T18: =S18/P18 -> 0.3401884771 | U18: 88 | V18: =U18/Q18 -> 1.023255814 | W18: =S18+U18 -> 21675 | X18: =W18/R18 -> 0.3411129647 | Y18: 1084 | Z18: 2 | AA18: =Y18+Z18 -> 1086 | AB18: 655 | AC18: 2 | AD18: =AB18+AC18 -> 657 | AE18: 37 | AF18: 918 | AG18: =AE18+AF18 -> 955 | AH18: 2 | AI18: 0 | AJ18: 0 | AK18: 1
A19: Auckland Council | B19: Whau | C19: FPP | D19: 1 | F19: 1 | H19: 6 | I19: 0 | J19: 0 | K19: 1 | L19: 1 | M19: 58929 | N19: 12 | O19: 58941 | P19: =IF(D19=1, M19, 0) -> 58929 | Q19: =IF(D19=1, N19, 0) -> 12 | R19: =P19+Q19 -> 58941 | S19: 15155 | T19: =S19/P19 -> 0.2571738872 | U19: 11 | V19: =U19/Q19 -> 0.9166666667 | W19: =S19+U19 -> 15166 | X19: =W19/R19 -> 0.2573081556 | Y19: 477 | Z19: 0 | AA19: =Y19+Z19 -> 477 | AB19: 320 | AC19: 0 | AD19: =AB19+AC19 -> 320 | AE19: 30 | AF19: 529 | AG19: =AE19+AF19 -> 559 | AH19: 2 | AI19: 1 | AJ19: 0 | AK19: 1
A20: Buller District Council | B20: Inangahua | C20: FPP | E20: 1 | F20: 2 | G20: 2 | H20: 2 | I20: 1 | J20: 1 | K20: 0 | L20: 0 | M20: 1241 | N20: 7 | O20: 1248 | AH20: 1 | AI20: 1 | AJ20: 0 | AK20: 2
A21: Buller District Council | B21: Seddon | C21: FPP | E21: 1 | F21: 2 | G21: 2 | H21: 2 | I21: 2 | J21: 2 | K21: 0 | L21: 0 | M21: 1438 | N21: 16 | O21: 1454 | AH21: 2 | AI21: 2 | AJ21: 0 | AK21: 2
A22: Buller District Council | B22: Westport | C22: FPP | D22: 1 | F22: 6 | H22: 17 | I22: 4 | J22: 1 | K22: 0 | L22: 0 | M22: 4900 | N22: 26 | O22: 4926 | P22: =IF(D22=1, M22, 0) -> 4900 | Q22: =IF(D22=1, N22, 0) -> 26 | R22: =P22+Q22 -> 4926 | S22: 2883 | T22: =S22/P22 -> 0.5883673469 | U22: 21 | V22: =U22/Q22 -> 0.8076923077 | W22: =S22+U22 -> 2904 | X22: =W22/R22 -> 0.5895249695 | Y22: 118 | Z22: 6 | AA22: =Y22+Z22 -> 124 | AB22: 81 | AC22: 4 | AD22: =AB22+AC22 -> 85 | AE22: 7 | AF22: 1 | AG22: =AE22+AF22 -> 8 | AH22: 4 | AI22: 1 | AJ22: 0 | AK22: 6
A23: Carterton District Council | B23: At Large | C23: FPP | D23: 1 | F23: 8 | H23: 18 | I23: 6 | J23: 5 | K23: 0 | L23: 0 | M23: 7678 | N23: 40 | O23: 7718 | P23: 7678 | Q23: 40 | R23: 7718 | S23: 4127 | T23: 0.5375097682 | U23: 32 | V23: 0.8 | W23: 4159 | X23: 0.5388701736 | Y23: 104 | Z23: 20 | AA23: 124 | AB23: 89 | AC23: 16 | AD23: 105 | AE23: 9 | AF23: 26 | AG23: 35 | AH23: 5 | AI23: 3 | AJ23: 0 | AK23: 8
A24: Central Hawke's Bay District Council | B24: Aramoana/Ruahine | C24: FPP | D24: 1 | F24: 3 | H24: 4 | I24: 3 | J24: 3 | K24: 0 | L24: 0 | M24: 4787 | N24: 15 | O24: 4802 | P24: 4787 | Q24: 15 | R24: 4802 | S24: 2823 | T24: 0.5897221642 | U24: 12 | V24: 0.8 | W24: 2835 | X24: 0.5903790087 | Y24: 64 | Z24: 8 | AA24: 72 | AB24: 49 | AC24: 7 | AD24: 56 | AE24: 0 | AF24: 89 | AG24: 89 | AH24: 1 | AI24: 1 | AJ24: 0 | AK24: 3
A25: Central Hawke's Bay District Council | B25: Ruataniwha | C25: FPP | D25: 1 | F25: 3 | H25: 8 | I25: 1 | J25: 1 | K25: 0 | L25: 0 | M25: 4796 | N25: 8 | O25: 4804 | P25: 4796 | Q25: 8 | R25: 4804 | S25: 2777 | T25: 0.5790241868 | U25: 8 | V25: 1 | W25: 2785 | X25: 0.579725229 | Y25: 65 | Z25: 3 | AA25: 68 | AB25: 49 | AC25: 2 | AD25: 51 | AE25: 1 | AF25: 52 | AG25: 53 | AH25: 3 | AI25: 2 | AJ25: 0 | AK25: 3
A26: Central Hawke's Bay District Council | B26: Rautahi Māori | C26: FPP | D26: 1 | F26: 1 | H26: 2 | I26: 0 | J26: 0 | K26: 0 | L26: 0 | M26: 1272 | N26: 0 | O26: 1272 | P26: 1272 | Q26: 0 | R26: 1272 | S26: 514 | T26: 0.4040880503 | U26: 0 | W26: 514 | X26: 0.4040880503 | Y26: 19 | Z26: 1 | AA26: 20 | AB26: 14 | AC26: 1 | AD26: 15 | AE26: 1 | AF26: 20 | AG26: 21 | AH26: 2 | AI26: 1 | AJ26: 0 | AK26: 1
A27: Central Hawke's Bay District Council | B27: At Large | C27: FPP | D27: 1 | F27: 2 | H27: 4 | I27: 2 | J27: 2 | K27: 0 | L27: 0 | M27: 10855 | N27: 23 | O27: 10878 | P27: 10855 | Q27: 23 | R27: 10878 | S27: 6114 | T27: 0.5632427453 | U27: 20 | V27: 0.8695652174 | W27: 6134 | X27: 0.563890421 | Y27: 148 | Z27: 12 | AA27: 160 | AB27: 112 | AC27: 10 | AD27: 122 | AE27: 10 | AF27: 209 | AG27: 219 | AH27: 3 | AI27: 1 | AJ27: 0 | AK27: 2
A28: Central Otago District Council | B28: Maniototo | C28: FPP | D28: 1 | F28: 1 | H28: 2 | I28: 1 | J28: 1 | K28: 0 | L28: 0 | M28: 1368 | N28: 22 | O28: 1390 | P28: 1368 | Q28: 22 | R28: 1390 | S28: 930 | T28: 0.6798245614 | U28: 19 | V28: 0.8636363636 | W28: 949 | X28: 0.6827338129 | Y28: 8 | Z28: 6 | AA28: 14 | AB28: 4 | AC28: 4 | AD28: 8 | AE28: 2 | AF28: 6 | AG28: 8 | AH28: 1 | AI28: 0 | AJ28: 0 | AK28: 1
A29: Central Otago District Council | B29: Cromwell | C29: FPP | D29: 1 | F29: 4 | H29: 9 | I29: 2 | J29: 2 | K29: 1 | L29: 1 | M29: 6934 | N29: 60 | O29: 6994 | P29: 6934 | Q29: 60 | R29: 6994 | S29: 3526 | T29: 0.5085087972 | U29: 57 | V29: 0.95 | W29: 3583 | X29: 0.5122962539 | Y29: 80 | Z29: 12 | AA29: 92 | AB29: 77 | AC29: 9 | AD29: 86 | AE29: 2 | AF29: 38 | AG29: 40 | AH29: 2 | AI29: 2 | AJ29: 0 | AK29: 4
A30: Central Otago District Council | B30: Teviot Valley | C30: FPP | D30: 1 | F30: 1 | H30: 2 | I30: 0 | J30: 0 | K30: 0 | L30: 0 | M30: 1274 | N30: 10 | O30: 1284 | P30: 1274 | Q30: 10 | R30: 1284 | S30: 806 | T30: 0.6326530612 | U30: 10 | V30: 1 | W30: 816 | X30: 0.6355140187 | Y30: 19 | Z30: 1 | AA30: 20 | AB30: 18 | AC30: 1 | AD30: 19 | AE30: 1 | AF30: 13 | AG30: 14 | AH30: 0 | AI30: 0 | AJ30: 0 | AK30: 1
A31: Central Otago District Council | B31: Vincent | C31: FPP | D31: 1 | F31: 4 | H31: 11 | I31: 4 | J31: 2 | K31: 2 | L31: 0 | M31: 8181 | N31: 63 | O31: 8244 | P31: 8181 | Q31: 63 | R31: 8244 | S31: 4539 | T31: 0.5548221489 | U31: 49 | V31: 0.7777777778 | W31: 4588 | X31: 0.5565259583 | Y31: 103 | Z31: 6 | AA31: 109 | AB31: 80 | AC31: 4 | AD31: 84 | AE31: 6 | AF31: 74 | AG31: 80 | AH31: 5 | AI31: 1 | AJ31: 0 | AK31: 4
A32: Chatham Islands Council | B32: At Large | C32: FPP | D32: 1 | E32: 0 | F32: 8 | G32: 0 | H32: 14 | I32: 5 | J32: 3 | K32: 0 | L32: 0 | M32: 439 | N32: 5 | O32: 444 | P32: 439 | Q32: 5 | R32: 444 | S32: 313 | T32: 0.7129840547 | U32: 3 | V32: 0.6 | W32: 316 | X32: 0.7117117117 | Y32: 16 | Z32: 0 | AA32: 16 | AB32: 13 | AC32: 0 | AD32: 13 | AE32: 3 | AF32: 1 | AG32: 4 | AH32: 10 | AI32: 5 | AJ32: 0 | AK32: 8
A33: Christchurch City Council | B33: Banks Peninsula | C33: FPP | D33: 1 | F33: 1 | H33: 2 | I33: 1 | J33: 1 | K33: 0 | L33: 0 | M33: 7479 | N33: 58 | O33: =M33+N33 -> 7537 | P33: =IF(D33=1, M33, 0) -> 7479 | Q33: =IF(D33=1, N33, 0) -> 58 | R33: =P33+Q33 -> 7537 | S33: 4057 | T33: =S33/P33 -> 0.5424521995 | U33: 52 | V33: =U33/Q33 -> 0.8965517241 | W33: =S33+U33 -> 4109 | X33: =W33/R33 -> 0.5451771262 | Y33: 111 | Z33: 8 | AA33: =Y33+Z33 -> 119 | AB33: 99 | AC33: 6 | AD33: =AB33+AC33 -> 105 | AE33: 0 | AF33: 93 | AG33: =AE33+AF33 -> 93 | AH33: 0 | AI33: 0 | AJ33: 0 | AK33: 1
A34: Christchurch City Council | B34: Burwood | C34: FPP | D34: 1 | F34: 1 | H34: 2 | I34: 1 | J34: 1 | K34: 0 | L34: 0 | M34: 18049 | N34: 8 | O34: 18057 | P34: 18049 | Q34: 8 | R34: 18057 | S34: 6987 | T34: 0.3871128594 | U34: 8 | V34: 1 | W34: 6995 | X34: 0.3873843939 | Y34: 147 | Z34: 1 | AA34: 148 | AB34: 120 | AC34: 1 | AD34: 121 | AE34: 1 | AF34: 149 | AG34: 150 | AH34: 1 | AI34: 0 | AJ34: 0 | AK34: 1
A35: Christchurch City Council | B35: Cashmere | C35: FPP | D35: 1 | F35: 1 | H35: 2 | I35: 1 | J35: 1 | K35: 0 | L35: 0 | M35: 20169 | N35: 11 | O35: 20180 | P35: 20169 | Q35: 11 | R35: 20180 | S35: 9440 | T35: 0.4680450196 | U35: 11 | V35: 1 | W35: 9451 | X35: 0.4683349851 | Y35: 257 | Z35: 1 | AA35: 258 | AB35: 224 | AC35: 1 | AD35: 225 | AE35: 5 | AF35: 469 | AG35: 474 | AH35: 1 | AI35: 0 | AJ35: 0 | AK35: 1
A36: Christchurch City Council | B36: Central | C36: FPP | D36: 1 | F36: 1 | H36: 5 | I36: 1 | J36: 1 | K36: 0 | L36: 0 | M36: 15856 | N36: 46 | O36: 15902 | P36: 15856 | Q36: 46 | R36: 15902 | S36: 4762 | T36: 0.3003279516 | U36: 40 | V36: 0.8695652174 | W36: 4802 | X36: 0.3019745944 | Y36: 273 | Z36: 9 | AA36: 282 | AB36: 244 | AC36: 5 | AD36: 249 | AE36: 42 | AF36: 103 | AG36: 145 | AH36: 1 | AI36: 0 | AJ36: 0 | AK36: 1
A37: Christchurch City Council | B37: Coastal | C37: FPP | D37: 1 | F37: 1 | H37: 3 | I37: 1 | J37: 1 | K37: 1 | L37: 0 | M37: 18986 | N37: 13 | O37: 18999 | P37: 18986 | Q37: 13 | R37: 18999 | S37: 7894 | T37: 0.4157800485 | U37: 13 | V37: 1 | W37: 7907 | X37: 0.4161797989 | Y37: 187 | Z37: 2 | AA37: 189 | AB37: 152 | AC37: 2 | AD37: 154 | AE37: 12 | AF37: 113 | AG37: 125 | AH37: 3 | AI37: 1 | AJ37: 0 | AK37: 1
A38: Christchurch City Council | B38: Fendalton | C38: FPP | D38: 1 | F38: 1 | H38: 3 | I38: 0 | J38: 0 | K38: 1 | L38: 1 | M38: 18778 | N38: 28 | O38: 18806 | P38: 18778 | Q38: 28 | R38: 18806 | S38: 7846 | T38: 0.4178293748 | U38: 24 | V38: 0.8571428571 | W38: 7870 | X38: 0.4184834627 | Y38: 257 | Z38: 4 | AA38: 261 | AB38: 200 | AC38: 3 | AD38: 203 | AE38: 11 | AF38: 308 | AG38: 319 | AH38: 1 | AI38: 0 | AJ38: 0 | AK38: 1
A39: Christchurch City Council | B39: Halswell | C39: FPP | D39: 1 | F39: 1 | H39: 2 | I39: 1 | J39: 1 | K39: 0 | L39: 0 | M39: 21149 | N39: 16 | O39: 21165 | P39: 21149 | Q39: 16 | R39: 21165 | S39: 8812 | T39: 0.4166627264 | U39: 14 | V39: 0.875 | W39: 8826 | X39: 0.4170092133 | Y39: 215 | Z39: 3 | AA39: 218 | AB39: 172 | AC39: 2 | AD39: 174 | AE39: 4 | AF39: 148 | AG39: 152 | AH39: 0 | AI39: 0 | AJ39: 0 | AK39: 1
A40: Christchurch City Council | B40: Harewood | C40: FPP | E40: 1 | F40: 1 | G40: 1 | H40: 1 | I40: 1 | J40: 1 | K40: 0 | L40: 0 | M40: 19872 | N40: 10 | O40: 19882 | AH40: 0 | AI40: 0 | AJ40: 0 | AK40: 1
A41: Christchurch City Council | B41: Heathcote | C41: FPP | D41: 1 | F41: 1 | H41: 2 | I41: 0 | J41: 0 | K41: 0 | L41: 0 | M41: 19859 | N41: 17 | O41: 19876 | P41: =IF(D41=1, M41, 0) -> 19859 | Q41: =IF(D41=1, N41, 0) -> 17 | R41: =P41+Q41 -> 19876 | S41: 9060 | T41: =S41/P41 -> 0.4562163251 | U41: 17 | V41: =U41/Q41 -> 1 | W41: =S41+U41 -> 9077 | X41: =W41/R41 -> 0.4566814248 | Y41: 305 | Z41: 6 | AA41: =Y41+Z41 -> 311 | AB41: 266 | AC41: 5 | AD41: =AB41+AC41 -> 271 | AE41: 7 | AF41: 270 | AG41: =AE41+AF41 -> 277 | AH41: 0 | AI41: 0 | AJ41: 0 | AK41: 1
A42: Christchurch City Council | B42: Hornby | C42: FPP | E42: 1 | F42: 1 | G42: 1 | H42: 1 | I42: 1 | J42: 1 | K42: 0 | L42: 0 | M42: 17431 | N42: 18 | O42: 17449 | AH42: 0 | AI42: 0 | AJ42: 0 | AK42: 1
A43: Christchurch City Council | B43: Innes | C43: FPP | D43: 1 | F43: 1 | H43: 2 | I43: 1 | J43: 1 | K43: 1 | L43: 0 | M43: 17921 | N43: 23 | O43: 17944 | P43: =IF(D43=1, M43, 0) -> 17921 | Q43: =IF(D43=1, N43, 0) -> 23 | R43: =P43+Q43 -> 17944 | S43: 6424 | T43: =S43/P43 -> 0.3584621394 | U43: 18 | V43: =U43/Q43 -> 0.7826086957 | W43: =S43+U43 -> 6442 | X43: =W43/R43 -> 0.3590057958 | Y43: 199 | Z43: 3 | AA43: =Y43+Z43 -> 202 | AB43: 165 | AC43: 3 | AD43: =AB43+AC43 -> 168 | AE43: 3 | AF43: 139 | AG43: =AE43+AF43 -> 142 | AH43: 2 | AI43: 1 | AJ43: 0 | AK43: 1
A44: Christchurch City Council | B44: Linwood | C44: FPP | D44: 1 | F44: 1 | H44: 3 | I44: 1 | J44: 1 | K44: 0 | L44: 0 | M44: 16400 | N44: 13 | O44: 16413 | P44: =IF(D44=1, M44, 0) -> 16400 | Q44: =IF(D44=1, N44, 0) -> 13 | R44: =P44+Q44 -> 16413 | S44: 5115 | T44: =S44/P44 -> 0.3118902439 | U44: 11 | V44: =U44/Q44 -> 0.8461538462 | W44: =S44+U44 -> 5126 | X44: =W44/R44 -> 0.3123134101 | Y44: 133 | Z44: 1 | AA44: =Y44+Z44 -> 134 | AB44: 111 | AC44: 1 | AD44: =AB44+AC44 -> 112 | AE44: 14 | AF44: 101 | AG44: =AE44+AF44 -> 115 | AH44: 0 | AI44: 0 | AJ44: 0 | AK44: 1
A45: Christchurch City Council | B45: Papanui | C45: FPP | D45: 1 | F45: 1 | H45: 2 | I45: 1 | J45: 1 | K45: 1 | L45: 0 | M45: 17937 | N45: 7 | O45: 17944 | P45: =IF(D45=1, M45, 0) -> 17937 | Q45: =IF(D45=1, N45, 0) -> 7 | R45: =P45+Q45 -> 17944 | S45: 6619 | T45: =S45/P45 -> 0.3690137704 | U45: 5 | V45: =U45/Q45 -> 0.7142857143 | W45: =S45+U45 -> 6624 | X45: =W45/R45 -> 0.3691484619 | Y45: 154 | Z45: 2 | AA45: =Y45+Z45 -> 156 | AB45: 108 | AC45: 0 | AD45: =AB45+AC45 -> 108 | AE45: 3 | AF45: 149 | AG45: =AE45+AF45 -> 152 | AH45: 1 | AI45: 1 | AJ45: 0 | AK45: 1
A46: Christchurch City Council | B46: Riccarton | C46: FPP | D46: 1 | F46: 1 | H46: 5 | I46: 1 | J46: 1 | K46: 1 | L46: 0 | M46: 15210 | N46: 24 | O46: 15234 | P46: =IF(D46=1, M46, 0) -> 15210 | Q46: =IF(D46=1, N46, 0) -> 24 | R46: =P46+Q46 -> 15234 | S46: 4106 | T46: =S46/P46 -> 0.2699539776 | U46: 20 | V46: =U46/Q46 -> 0.8333333333 | W46: =S46+U46 -> 4126 | X46: =W46/R46 -> 0.2708415387 | Y46: 196 | Z46: 4 | AA46: =Y46+Z46 -> 200 | AB46: 139 | AC46: 2 | AD46: =AB46+AC46 -> 141 | AE46: 16 | AF46: 75 | AG46: =AE46+AF46 -> 91 | AH46: 1 | AI46: 0 | AJ46: 0 | AK46: 1
A47: Christchurch City Council | B47: Spreydon | C47: FPP | D47: 1 | F47: 1 | H47: 4 | I47: 1 | J47: 1 | K47: 0 | L47: 0 | M47: 17805 | N47: 18 | O47: 17823 | P47: =IF(D47=1, M47, 0) -> 17805 | Q47: =IF(D47=1, N47, 0) -> 18 | R47: =P47+Q47 -> 17823 | S47: 5877 | T47: =S47/P47 -> 0.3300758214 | U47: 16 | V47: =U47/Q47 -> 0.8888888889 | W47: =S47+U47 -> 5893 | X47: =W47/R47 -> 0.330640184 | Y47: 213 | Z47: 2 | AA47: =Y47+Z47 -> 215 | AB47: 185 | AC47: 2 | AD47: =AB47+AC47 -> 187 | AE47: 20 | AF47: 166 | AG47: =AE47+AF47 -> 186 | AH47: 1 | AI47: 1 | AJ47: 0 | AK47: 1
A48: Christchurch City Council | B48: Waimairi | C48: FPP | E48: 1 | F48: 1 | G48: 1 | H48: 1 | I48: 1 | J48: 1 | K48: 0 | L48: 0 | M48: 17362 | N48: 14 | O48: 17376 | AH48: 0 | AI48: 0 | AJ48: 0 | AK48: 1
A49: Clutha District Council | B49: Balclutha | C49: FPP | D49: 1 | F49: 2 | H49: 5 | I49: 1 | J49: 0 | K49: 0 | L49: 0 | M49: 3019 | N49: 3 | O49: 3022 | P49: =IF(D49=1, M49, 0) -> 3019 | Q49: =IF(D49=1, N49, 0) -> 3 | R49: =P49+Q49 -> 3022 | S49: 1565 | T49: =S49/P49 -> 0.5183835707 | U49: 4 | V49: =U49/Q49 -> 1.333333333 | W49: =S49+U49 -> 1569 | X49: =W49/R49 -> 0.5191925877 | Y49: 22 | Z49: 1 | AA49: =Y49+Z49 -> 23 | AB49: 18 | AC49: 1 | AD49: =AB49+AC49 -> 19 | AE49: 7 | AF49: 17 | AG49: =AE49+AF49 -> 24 | AH49: 2 | AI49: 1 | AJ49: 0 | AK49: 2
A50: Clutha District Council | B50: Milton | C50: FPP | D50: 1 | F50: 1 | H50: 6 | I50: 0 | J50: 0 | K50: 0 | L50: 0 | M50: 1392 | N50: 2 | O50: 1394 | P50: =IF(D50=1, M50, 0) -> 1392 | Q50: =IF(D50=1, N50, 0) -> 2 | R50: =P50+Q50 -> 1394 | S50: 719 | T50: =S50/P50 -> 0.5165229885 | U50: 0 | V50: =U50/Q50 -> 0 | W50: =S50+U50 -> 719 | X50: =W50/R50 -> 0.5157819225 | Y50: 15 | Z50: 0 | AA50: =Y50+Z50 -> 15 | AB50: 12 | AC50: 0 | AD50: =AB50+AC50 -> 12 | AE50: 7 | AF50: 1 | AG50: =AE50+AF50 -> 8 | AH50: 1 | AI50: 0 | AJ50: 0 | AK50: 1
A51: Clutha District Council | B51: Catlins | C51: FPP | E51: 1 | F51: 1 | G51: 1 | H51: 1 | I51: 1 | J51: 1 | K51: 0 | L51: 0 | M51: 1274 | N51: 14 | O51: =M51+N51 -> 1288 | AH51: 1 | AI51: 1 | AJ51: 0 | AK51: 1
A52: Clutha District Council | B52: Clinton-Clydevale | C52: FPP | D52: 1 | F52: 1 | H52: 3 | I52: 1 | J52: 1 | K52: 0 | L52: 0 | M52: 1148 | N52: 3 | O52: =M52+N52 -> 1151 | P52: =IF(D52=1, M52, 0) -> 1148 | Q52: =IF(D52=1, N52, 0) -> 3 | R52: =P52+Q52 -> 1151 | S52: 650 | T52: =S52/P52 -> 0.5662020906 | U52: 2 | V52: =U52/Q52 -> 0.6666666667 | W52: =S52+U52 -> 652 | X52: =W52/R52 -> 0.5664639444 | Y52: 4 | Z52: 0 | AA52: =Y52+Z52 -> 4 | AB52: 3 | AC52: 0 | AD52: =AB52+AC52 -> 3 | AE52: 1 | AF52: 6 | AG52: =AE52+AF52 -> 7 | AH52: 1 | AI52: 0 | AJ52: 0 | AK52: 1
A53: Clutha District Council | B53: Bruce-Waihola | C53: FPP | D53: 1 | F53: 1 | H53: 2 | I53: 2 | J53: 1 | K53: 0 | L53: 0 | M53: 1297 | N53: 7 | O53: 1304 | P53: =IF(D53=1, M53, 0) -> 1297 | Q53: =IF(D53=1, N53, 0) -> 7 | R53: =P53+Q53 -> 1304 | S53: 612 | T53: =S53/P53 -> 0.4718581342 | U53: 5 | V53: =U53/Q53 -> 0.7142857143 | W53: =S53+U53 -> 617 | X53: =W53/R53 -> 0.4731595092 | Y53: 10 | Z53: 0 | AA53: =Y53+Z53 -> 10 | AB53: 9 | AC53: 0 | AD53: =AB53+AC53 -> 9 | AE53: 1 | AF53: 5 | AG53: =AE53+AF53 -> 6 | AH53: 1 | AI53: 0 | AJ53: 0 | AK53: 1
A54: Clutha District Council | B54: Kaitangata-Matau | C54: FPP | E54: 1 | F54: 1 | G54: 1 | H54: 1 | I54: 0 | J54: 0 | K54: 0 | L54: 0 | M54: 1420 | N54: 1 | O54: 1421 | AH54: 0 | AI54: 0 | AJ54: 0 | AK54: 1
A55: Clutha District Council | B55: Lawrence-Tuapeka | C55: FPP | D55: 1 | F55: 1 | H55: 2 | I55: 0 | J55: 0 | K55: 0 | L55: 0 | M55: 1369 | N55: 2 | O55: 1371 | P55: =IF(D55=1, M55, 0) -> 1369 | Q55: =IF(D55=1, N55, 0) -> 2 | R55: =P55+Q55 -> 1371 | S55: 908 | T55: =S55/P55 -> 0.6632578524 | U55: 3 | V55: =U55/Q55 -> 1.5 | W55: =S55+U55 -> 911 | X55: =W55/R55 -> 0.6644784829 | Y55: 16 | Z55: 1 | AA55: =Y55+Z55 -> 17 | AB55: 14 | AC55: 1 | AD55: =AB55+AC55 -> 15 | AE55: 0 | AF55: 13 | AG55: =AE55+AF55 -> 13 | AH55: 1 | AI55: 0 | AJ55: 0 | AK55: 1
A56: Clutha District Council | B56: West Otago | C56: FPP | E56: 1 | F56: 1 | G56: 1 | H56: 1 | I56: 1 | J56: 1 | K56: 0 | L56: 1 | M56: 1420 | N56: 4 | O56: 1424 | AH56: 1 | AI56: 1 | AJ56: 0 | AK56: 1
A57: Dunedin City Council | B57: At Large | C57: STV | D57: 1 | F57: 14 | H57: 54 | I57: 14 | J57: 8 | K57: 3 | L57: 1 | M57: 94566 | N57: 151 | O57: 94717 | P57: =IF(D57=1, M57, 0) -> 94566 | Q57: =IF(D57=1, N57, 0) -> 151 | R57: =P57+Q57 -> 94717 | S57: 43171 | T57: =S57/P57 -> 0.4565171415 | U57: 129 | V57: =U57/Q57 -> 0.8543046358 | W57: =S57+U57 -> 43300 | X57: =W57/R57 -> 0.4571513034 | Y57: 1323 | Z57: 27 | AA57: =Y57+Z57 -> 1350 | AB57: 1141 | AC57: 24 | AD57: =AB57+AC57 -> 1165 | AE57: 579 | AF57: 423 | AG57: =AE57+AF57 -> 1002 | AH57: 23 | AI57: 4 | AJ57: 0 | AK57: 14
A58: Far North District Council | B58: Bay Of Islands-Whangaroa General | C58: STV | D58: 1 | F58: 3 | H58: 12 | I58: 3 | J58: 2 | K58: 0 | L58: 0 | M58: 18747 | N58: 70 | O58: 18817 | P58: 18747 | Q58: 70 | R58: 18817 | S58: 9971 | T58: 0.5318717661 | U58: 63 | V58: 0.9 | W58: 10034 | X58: 0.533241218 | Y58: 112 | Z58: 1 | AA58: 113 | AB58: 50 | AC58: 1 | AD58: 51 | AE58: 86 | AF58: 131 | AG58: 217 | AH58: 4 | AI58: 3 | AJ58: 0 | AK58: 3
A59: Far North District Council | B59: Kaikohe-Hokianga General | C59: STV | D59: 1 | F59: 1 | H59: 2 | I59: 1 | J59: 1 | K59: 0 | L59: 0 | M59: 4979 | N59: 17 | O59: 4996 | P59: 4979 | Q59: 17 | R59: 4996 | S59: 2578 | T59: 0.5177746535 | U59: 16 | V59: 0.9411764706 | W59: 2594 | X59: 0.5192153723 | Y59: 184 | Z59: 0 | AA59: 184 | AB59: 97 | AC59: 0 | AD59: 97 | AE59: 9 | AF59: 87 | AG59: 96 | AH59: 0 | AI59: 0 | AJ59: 0 | AK59: 1
A60: Far North District Council | B60: Te Hiku General | C60: STV | D60: 1 | F60: 2 | H60: 9 | I60: 1 | J60: 1 | K60: 3 | L60: 1 | M60: 9963 | N60: 52 | O60: 10015 | P60: 9963 | Q60: 52 | R60: 10015 | S60: 5004 | T60: 0.5022583559 | U60: 45 | V60: 0.8653846154 | W60: 5049 | X60: 0.5041437843 | Y60: 239 | Z60: 1 | AA60: 240 | AB60: 111 | AC60: 1 | AD60: 112 | AE60: 81 | AF60: 43 | AG60: 124 | AH60: 3 | AI60: 2 | AJ60: 0 | AK60: 2
A61: Far North District Council | B61: Ngā Tai o Tokerau Māori | C61: STV | D61: 1 | F61: 4 | H61: 7 | I61: 4 | J61: 2 | K61: 1 | L61: 1 | M61: 14617 | N61: 6 | O61: 14623 | P61: 14617 | Q61: 6 | R61: 14623 | S61: 6871 | T61: 0.4700690976 | U61: 6 | V61: 1 | W61: 6877 | X61: 0.4702865349 | Y61: 1165 | Z61: 1 | AA61: 1166 | AB61: 537 | AC61: 1 | AD61: 538 | AE61: 66 | AF61: 107 | AG61: 173 | AH61: 4 | AI61: 3 | AJ61: 0 | AK61: 4
A62: Gisborne District Council | B62: Tairāwhiti General | C62: STV | D62: 1 | F62: 8 | H62: 19 | I62: 6 | J62: 5 | K62: 0 | L62: 0 | M62: 22301 | N62: 35 | O62: 22336 | P62: 22301 | Q62: 35 | R62: 22336 | S62: 11207 | T62: 0.5025335187 | U62: 31 | V62: 0.8857142857 | W62: 11238 | X62: 0.5031339542 | Y62: 491 | Z62: 2 | AA62: 493 | AB62: 353 | AC62: 2 | AD62: 355 | AE62: 248 | AF62: 97 | AG62: 345 | AH62: 2 | AI62: 2 | AJ62: 0 | AK62: 8
A63: Gisborne District Council | B63: Tairāwhiti Māori | C63: STV | D63: 1 | F63: 5 | H63: 11 | I63: 4 | J63: 4 | K63: 0 | L63: 0 | M63: 11721 | N63: 10 | O63: 11731 | P63: 11721 | Q63: 10 | R63: 11731 | S63: 5131 | T63: 0.4377612832 | U63: 8 | V63: 0.8 | W63: 5139 | X63: 0.4380700708 | Y63: 445 | Z63: 0 | AA63: 445 | AB63: 277 | AC63: 0 | AD63: 277 | AE63: 81 | AF63: 29 | AG63: 110 | AH63: 8 | AI63: 4 | AJ63: 0 | AK63: 5
A64: Gore District Council | B64: Gore | C64: FPP | D64: 1 | F64: 5 | H64: 6 | I64: 2 | J64: 2 | K64: 0 | L64: 0 | M64: 5664 | N64: 15 | O64: =M64+N64 -> 5679 | P64: =IF(D64=1, M64, 0) -> 5664 | Q64: =IF(D64=1, N64, 0) -> 15 | R64: =P64+Q64 -> 5679 | S64: 3175 | T64: =S64/P64 -> 0.5605579096 | U64: 15 | V64: =U64/Q64 -> 1 | W64: =S64+U64 -> 3190 | X64: =W64/R64 -> 0.5617186124 | Y64: 103 | Z64: 4 | AA64: =Y64+Z64 -> 107 | AB64: 90 | AC64: 3 | AD64: =AB64+AC64 -> 93 | AE64: 1 | AF64: 51 | AG64: =AE64+AF64 -> 52 | AH64: 3 | AI64: 2 | AJ64: 0 | AK64: 5
A65: Gore District Council | B65: Rural | C65: FPP | E65: 1 | F65: 2 | G65: 2 | H65: 2 | I65: 0 | J65: 0 | K65: 0 | L65: 0 | M65: 2267 | N65: 8 | O65: 2275 | AH65: 0 | AI65: 0 | AJ65: 0 | AK65: 2
A66: Gore District Council | B66: Mataura | C66: FPP | E66: 1 | F66: 1 | G66: 1 | H66: 1 | I66: 0 | J66: 0 | K66: 1 | L66: 1 | M66: 1093 | N66: 2 | O66: 1095 | AH66: 1 | AI66: 1 | AJ66: 0 | AK66: 1
A67: Gore District Council | B67: At Large | C67: FPP | D67: 1 | F67: 3 | H67: 5 | I67: 1 | J67: 1 | K67: 1 | L67: 0 | M67: 9024 | N67: 25 | O67: 9049 | P67: =IF(D67=1, M67, 0) -> 9024 | Q67: =IF(D67=1, N67, 0) -> 25 | R67: =P67+Q67 -> 9049 | S67: 4968 | T67: =S67/P67 -> 0.5505319149 | U67: 23 | V67: =U67/Q67 -> 0.92 | W67: =S67+U67 -> 4991 | X67: =W67/R67 -> 0.5515526578 | Y67: 125 | Z67: 8 | AA67: =Y67+Z67 -> 133 | AB67: 109 | AC67: 7 | AD67: =AB67+AC67 -> 116 | AE67: 12 | AF67: 152 | AG67: =AE67+AF67 -> 164 | AH67: 0 | AI67: 0 | AJ67: 0 | AK67: 3
A68: Grey District Council | B68: Central | C68: FPP | D68: 1 | F68: 3 | H68: 5 | I68: 2 | J68: 2 | K68: 0 | L68: 0 | M68: 3477 | N68: 8 | O68: 3485 | P68: =IF(D68=1, M68, 0) -> 3477 | Q68: =IF(D68=1, N68, 0) -> 8 | R68: =P68+Q68 -> 3485 | S68: 1531 | T68: =S68/P68 -> 0.4403221168 | U68: 6 | V68: =U68/Q68 -> 0.75 | W68: =S68+U68 -> 1537 | X68: =W68/R68 -> 0.4410329986 | Y68: 37 | Z68: 1 | AA68: =Y68+Z68 -> 38 | AB68: 26 | AC68: 1 | AD68: =AB68+AC68 -> 27 | AE68: 2 | AF68: 45 | AG68: =AE68+AF68 -> 47 | AH68: 1 | AI68: 0 | AJ68: 0 | AK68: 3
A69: Grey District Council | B69: Eastern | C69: FPP | E69: 1 | F69: 2 | G69: 2 | H69: 2 | I69: 2 | J69: 2 | K69: 0 | L69: 0 | M69: 2406 | N69: 2 | O69: 2408 | AH69: 0 | AI69: 0 | AJ69: 0 | AK69: 2
A70: Grey District Council | B70: Northern | C70: FPP | E70: 1 | F70: 1 | G70: 1 | H70: 1 | I70: 1 | J70: 1 | K70: 0 | L70: 0 | M70: 1188 | N70: 1 | O70: 1189 | AH70: 1 | AI70: 1 | AJ70: 0 | AK70: 1
A71: Grey District Council | B71: Southern | C71: FPP | D71: 1 | F71: 2 | H71: 4 | I71: 2 | J71: 1 | K71: 0 | L71: 0 | M71: 2803 | N71: 1 | O71: 2804 | P71: =IF(D71=1, M71, 0) -> 2803 | Q71: =IF(D71=1, N71, 0) -> 1 | R71: =P71+Q71 -> 2804 | S71: 1554 | T71: =S71/P71 -> 0.5544059936 | U71: 1 | V71: =U71/Q71 -> 1 | W71: =S71+U71 -> 1555 | X71: =W71/R71 -> 0.5545649073 | Y71: 44 | Z71: 2 | AA71: =Y71+Z71 -> 46 | AB71: 37 | AC71: 2 | AD71: =AB71+AC71 -> 39 | AE71: 1 | AF71: 36 | AG71: =AE71+AF71 -> 37 | AH71: 1 | AI71: 1 | AJ71: 0 | AK71: 2
A72: Hamilton City Council | B72: East | C72: STV | D72: 1 | F72: 6 | H72: 27 | I72: 3 | J72: 2 | K72: 0 | L72: 0 | M72: 54656 | N72: 92 | O72: 54748 | P72: 54656 | Q72: 92 | R72: 54748 | S72: 19048 | T72: 0.3485070258 | U72: 83 | V72: 0.902173913 | W72: 19131 | X72: 0.3494374224 | Y72: 1031 | Z72: 0 | AA72: 1031 | AB72: 593 | AC72: 0 | AD72: 593 | AE72: 386 | AF72: 183 | AG72: 569 | AH72: 11 | AI72: 3 | AJ72: 0 | AK72: 6
A73: Hamilton City Council | B73: West | C73: STV | D73: 1 | F73: 6 | H73: 15 | I73: 5 | J73: 4 | K73: 0 | L73: 0 | M73: 45249 | N73: 87 | O73: 45336 | P73: 45249 | Q73: 87 | R73: 45336 | S73: 14640 | T73: 0.3235430617 | U73: 79 | V73: 0.908045977 | W73: 14719 | X73: 0.3246647256 | Y73: 786 | Z73: 1 | AA73: 787 | AB73: 470 | AC73: 1 | AD73: 471 | AE73: 175 | AF73: 249 | AG73: 424 | AH73: 6 | AI73: 4 | AJ73: 0 | AK73: 6
A74: Hamilton City Council | B74: Kirikiriroa Maaori Ward | C74: STV | D74: 1 | F74: 2 | H74: 6 | I74: 0 | J74: 0 | K74: 0 | L74: 0 | M74: 15344 | N74: 5 | O74: 15349 | P74: 15344 | Q74: 5 | R74: 15349 | S74: 4208 | T74: 0.2742440042 | U74: 5 | V74: 1 | W74: 4213 | X74: 0.2744804222 | Y74: 443 | Z74: 0 | AA74: 443 | AB74: 244 | AC74: 0 | AD74: 244 | AE74: 71 | AF74: 69 | AG74: 140 | AH74: 2 | AI74: 1 | AJ74: 0 | AK74: 2
A75: Hastings District Council | B75: Flaxmere General | C75: FPP | D75: 1 | F75: 1 | H75: 2 | I75: 1 | J75: 0 | K75: 0 | L75: 0 | M75: 4071 | N75: 0 | O75: 4071 | P75: 4071 | Q75: 0 | R75: 4071 | S75: 1259 | T75: 0.3092606239 | U75: 0 | W75: 1259 | X75: 0.3092606239 | Y75: 41 | Z75: 1 | AA75: 42 | AB75: 27 | AC75: 1 | AD75: 28 | AE75: 2 | AF75: 31 | AG75: 33 | AH75: 0 | AI75: 0 | AJ75: 0 | AK75: 1
A76: Hastings District Council | B76: Hastings-Havelock North General | C76: FPP | D76: 1 | F76: 7 | H76: 16 | I76: 3 | J76: 3 | K76: 0 | L76: 0 | M76: 29896 | N76: 33 | O76: 29929 | P76: 29896 | Q76: 33 | R76: 29929 | S76: 14146 | T76: 0.4731736687 | U76: 31 | V76: 0.9393939394 | W76: 14177 | X76: 0.4736877276 | Y76: 384 | Z76: 6 | AA76: 390 | AB76: 343 | AC76: 3 | AD76: 346 | AE76: 27 | AF76: 224 | AG76: 251 | AH76: 5 | AI76: 1 | AJ76: 0 | AK76: 7
A77: Hastings District Council | B77: Heretaunga General | C77: FPP | E77: 1 | F77: 2 | G77: 2 | H77: 2 | I77: 1 | J77: 1 | K77: 0 | L77: 0 | M77: 7283 | N77: 11 | O77: 7294 | AH77: 1 | AI77: 1 | AJ77: 0 | AK77: 2
A78: Hastings District Council | B78: Kahurānaki General | C78: FPP | E78: 1 | F78: 1 | G78: 1 | H78: 1 | I78: 0 | J78: 0 | K78: 0 | L78: 0 | M78: 3892 | N78: 10 | O78: 3902 | AH78: 1 | AI78: 1 | AJ78: 0 | AK78: 1
A79: Hastings District Council | B79: Mohaka General | C79: FPP | D79: 1 | F79: 1 | H79: 3 | I79: 0 | J79: 0 | K79: 0 | L79: 0 | M79: 3966 | N79: 8 | O79: 3974 | P79: =IF(D79=1, M79, 0) -> 3966 | Q79: =IF(D79=1, N79, 0) -> 8 | R79: =P79+Q79 -> 3974 | S79: 1891 | T79: =S79/P79 -> 0.476802824 | U79: 8 | V79: =U79/Q79 -> 1 | W79: =S79+U79 -> 1899 | X79: =W79/R79 -> 0.4778560644 | Y79: 54 | Z79: 2 | AA79: =Y79+Z79 -> 56 | AB79: 39 | AC79: 1 | AD79: =AB79+AC79 -> 40 | AE79: 2 | AF79: 56 | AG79: =AE79+AF79 -> 58 | AH79: 2 | AI79: 0 | AJ79: 0 | AK79: 1
A80: Hastings District Council | B80: Takitimu Māori | C80: FPP | D80: 1 | F80: 3 | H80: 5 | I80: 1 | J80: 1 | K80: 0 | L80: 0 | M80: 9206 | N80: 1 | O80: 9207 | P80: =IF(D80=1, M80, 0) -> 9206 | Q80: =IF(D80=1, N80, 0) -> 1 | R80: =P80+Q80 -> 9207 | S80: 3499 | T80: =S80/P80 -> 0.3800782099 | U80: 1 | V80: =U80/Q80 -> 1 | W80: =S80+U80 -> 3500 | X80: =W80/R80 -> 0.3801455414 | Y80: 139 | Z80: 2 | AA80: =Y80+Z80 -> 141 | AB80: 118 | AC80: 2 | AD80: =AB80+AC80 -> 120 | AE80: 1 | AF80: 40 | AG80: =AE80+AF80 -> 41 | AH80: 3 | AI80: 2 | AJ80: 0 | AK80: 3
A81: Hauraki District Council | B81: Paeroa | C81: FPP | D81: 1 | F81: 3 | H81: 5 | I81: 3 | J81: 3 | K81: 0 | L81: 0 | M81: 4112 | N81: 3 | O81: 4115 | P81: =IF(D81=1, M81, 0) -> 4112 | Q81: =IF(D81=1, N81, 0) -> 3 | R81: =P81+Q81 -> 4115 | S81: 1876 | T81: =S81/P81 -> 0.4562256809 | U81: 2 | V81: =U81/Q81 -> 0.6666666667 | W81: =S81+U81 -> 1878 | X81: =W81/R81 -> 0.4563791009 | Y81: 42 | Z81: 0 | AA81: =Y81+Z81 -> 42 | AB81: 23 | AC81: 0 | AD81: =AB81+AC81 -> 23 | AE81: 4 | AF81: 28 | AG81: =AE81+AF81 -> 32 | AH81: 2 | AI81: 1 | AJ81: 0 | AK81: 3
A82: Hauraki District Council | B82: Plains | C82: FPP | D82: 1 | F82: 4 | H82: 5 | I82: 3 | J82: 3 | K82: 0 | L82: 0 | M82: 4080 | N82: 6 | O82: 4086 | P82: =IF(D82=1, M82, 0) -> 4080 | Q82: =IF(D82=1, N82, 0) -> 6 | R82: =P82+Q82 -> 4086 | S82: 1715 | T82: =S82/P82 -> 0.4203431373 | U82: 6 | V82: =U82/Q82 -> 1 | W82: =S82+U82 -> 1721 | X82: =W82/R82 -> 0.4211943221 | Y82: 32 | Z82: 0 | AA82: =Y82+Z82 -> 32 | AB82: 22 | AC82: 0 | AD82: =AB82+AC82 -> 22 | AE82: 2 | AF82: 16 | AG82: =AE82+AF82 -> 18 | AH82: 1 | AI82: 1 | AJ82: 0 | AK82: 4
A83: Hauraki District Council | B83: Waihi | C83: FPP | D83: 1 | F83: 4 | H83: 7 | I83: 2 | J83: 2 | K83: 0 | L83: 0 | M83: 5367 | N83: 20 | O83: 5387 | P83: =IF(D83=1, M83, 0) -> 5367 | Q83: =IF(D83=1, N83, 0) -> 20 | R83: =P83+Q83 -> 5387 | S83: 2078 | T83: =S83/P83 -> 0.3871809204 | U83: 16 | V83: =U83/Q83 -> 0.8 | W83: =S83+U83 -> 2094 | X83: =W83/R83 -> 0.3887135697 | Y83: 52 | Z83: 0 | AA83: =Y83+Z83 -> 52 | AB83: 41 | AC83: 0 | AD83: =AB83+AC83 -> 41 | AE83: 3 | AF83: 21 | AG83: =AE83+AF83 -> 24 | AH83: 3 | AI83: 3 | AJ83: 0 | AK83: 4
A84: Hauraki District Council | B84: Te Pakikau o Te Ika Māori | C84: FPP | E84: 1 | F84: 2 | G84: 2 | H84: 2 | I84: 0 | J84: 0 | K84: 0 | L84: 0 | M84: 1622 | N84: 0 | O84: 1622 | AH84: 0 | AI84: 0 | AJ84: 0 | AK84: 2
A85: Horowhenua District Council | B85: Kere Kere General | C85: FPP | D85: 1 | F85: 2 | H85: 5 | I85: 1 | J85: 1 | K85: 2 | L85: 1 | M85: 3872 | N85: 35 | O85: 3907 | P85: =IF(D85=1, M85, 0) -> 3872 | Q85: =IF(D85=1, N85, 0) -> 35 | R85: =P85+Q85 -> 3907 | S85: 1855 | T85: =S85/P85 -> 0.4790805785 | U85: 31 | V85: =U85/Q85 -> 0.8857142857 | W85: =S85+U85 -> 1886 | X85: =W85/R85 -> 0.4827233171 | Y85: 56 | Z85: 4 | AA85: =Y85+Z85 -> 60 | AB85: 39 | AC85: 2 | AD85: =AB85+AC85 -> 41 | AE85: 0 | AF85: 41 | AG85: =AE85+AF85 -> 41 | AH85: 1 | AI85: 1 | AJ85: 0 | AK85: 2
A86: Horowhenua District Council | B86: Levin General | C86: FPP | D86: 1 | F86: 5 | H86: 14 | I86: 3 | J86: 3 | K86: 0 | L86: 0 | M86: 11080 | N86: 18 | O86: 11098 | P86: =IF(D86=1, M86, 0) -> 11080 | Q86: =IF(D86=1, N86, 0) -> 18 | R86: =P86+Q86 -> 11098 | S86: 4829 | T86: =S86/P86 -> 0.4358303249 | U86: 17 | V86: =U86/Q86 -> 0.9444444444 | W86: =S86+U86 -> 4846 | X86: =W86/R86 -> 0.4366552532 | Y86: 207 | Z86: 6 | AA86: =Y86+Z86 -> 213 | AB86: 180 | AC86: 6 | AD86: =AB86+AC86 -> 186 | AE86: 9 | AF86: 70 | AG86: =AE86+AF86 -> 79 | AH86: 7 | AI86: 2 | AJ86: 0 | AK86: 5
A87: Horowhenua District Council | B87: Miranui General | C87: FPP | D87: 1 | F87: 1 | H87: 2 | I87: 1 | J87: 1 | K87: 0 | L87: 0 | M87: 1810 | N87: 1 | O87: 1811 | P87: =IF(D87=1, M87, 0) -> 1810 | Q87: =IF(D87=1, N87, 0) -> 1 | R87: =P87+Q87 -> 1811 | S87: 877 | T87: =S87/P87 -> 0.4845303867 | U87: 1 | V87: =U87/Q87 -> 1 | W87: =S87+U87 -> 878 | X87: =W87/R87 -> 0.4848150193 | Y87: 21 | Z87: 2 | AA87: =Y87+Z87 -> 23 | AB87: 18 | AC87: 1 | AD87: =AB87+AC87 -> 19 | AE87: 0 | AF87: 11 | AG87: =AE87+AF87 -> 11 | AH87: 1 | AI87: 0 | AJ87: 0 | AK87: 1
A88: Horowhenua District Council | B88: Waiopehu General | C88: FPP | D88: 1 | F88: 2 | H88: 6 | I88: 0 | J88: 0 | K88: 0 | L88: 0 | M88: 5841 | N88: 40 | O88: 5881 | P88: =IF(D88=1, M88, 0) -> 5841 | Q88: =IF(D88=1, N88, 0) -> 40 | R88: =P88+Q88 -> 5881 | S88: 3275 | T88: =S88/P88 -> 0.5606916624 | U88: 38 | V88: =U88/Q88 -> 0.95 | W88: =S88+U88 -> 3313 | X88: =W88/R88 -> 0.5633395681 | Y88: 113 | Z88: 15 | AA88: =Y88+Z88 -> 128 | AB88: 95 | AC88: 11 | AD88: =AB88+AC88 -> 106 | AE88: 2 | AF88: 76 | AG88: =AE88+AF88 -> 78 | AH88: 1 | AI88: 0 | AJ88: 0 | AK88: 2
A89: Horowhenua District Council | B89: Horowhenua Māori | C89: FPP | D89: 1 | F89: 2 | H89: 4 | I89: 1 | J89: 1 | K89: 0 | L89: 0 | M89: 3048 | N89: 0 | O89: 3048 | P89: =IF(D89=1, M89, 0) -> 3048 | Q89: =IF(D89=1, N89, 0) -> 0 | R89: =P89+Q89 -> 3048 | S89: 1291 | T89: =S89/P89 -> 0.4235564304 | U89: 0 | V89: =U89/Q89 ->  | W89: =S89+U89 -> 1291 | X89: =W89/R89 -> 0.4235564304 | Y89: 87 | Z89: 5 | AA89: =Y89+Z89 -> 92 | AB89: 75 | AC89: 3 | AD89: =AB89+AC89 -> 78 | AE89: 2 | AF89: 28 | AG89: =AE89+AF89 -> 30 | AH89: 3 | AI89: 2 | AJ89: 0 | AK89: 2
A90: Hurunui District Council | B90: East | C90: FPP | E90: 1 | F90: 2 | G90: 2 | H90: 2 | I90: 2 | J90: 2 | K90: 0 | L90: 0 | M90: 1861 | N90: 12 | O90: 1873 | AH90: 1 | AI90: 1 | AJ90: 0 | AK90: 2
A91: Hurunui District Council | B91: South | C91: FPP | D91: 1 | F91: 4 | H91: 9 | I91: 2 | J91: 2 | K91: 0 | L91: 0 | M91: 4507 | N91: 5 | O91: 4512 | P91: =IF(D91=1, M91, 0) -> 4507 | Q91: =IF(D91=1, N91, 0) -> 5 | R91: =P91+Q91 -> 4512 | S91: 1948 | T91: =S91/P91 -> 0.432216552 | U91: 5 | V91: =U91/Q91 -> 1 | W91: =S91+U91 -> 1953 | X91: =W91/R91 -> 0.4328457447 | Y91: 67 | Z91: 3 | AA91: =Y91+Z91 -> 70 | AB91: 34 | AC91: 1 | AD91: =AB91+AC91 -> 35 | AE91: 9 | AF91: 13 | AG91: =AE91+AF91 -> 22 | AH91: 2 | AI91: 1 | AJ91: 0 | AK91: 4
A92: Hurunui District Council | B92: West | C92: FPP | D92: 1 | F92: 4 | H92: 5 | I92: 2 | J92: 2 | K92: 0 | L92: 0 | M92: 3239 | N92: 63 | O92: 3302 | P92: =IF(D92=1, M92, 0) -> 3239 | Q92: =IF(D92=1, N92, 0) -> 63 | R92: =P92+Q92 -> 3302 | S92: 1330 | T92: =S92/P92 -> 0.4106205619 | U92: 54 | V92: =U92/Q92 -> 0.8571428571 | W92: =S92+U92 -> 1384 | X92: =W92/R92 -> 0.4191399152 | Y92: 19 | Z92: 3 | AA92: =Y92+Z92 -> 22 | AB92: 14 | AC92: 2 | AD92: =AB92+AC92 -> 16 | AE92: 1 | AF92: 12 | AG92: =AE92+AF92 -> 13 | AH92: 0 | AI92: 0 | AJ92: 0 | AK92: 4
A93: Hutt City Council | B93: At Large | C93: FPP | D93: 1 | F93: 5 | H93: 12 | I93: 2 | J93: 2 | K93: 2 | L93: 1 | M93: 78961 | N93: 65 | O93: 79026 | P93: =IF(D93=1, M93, 0) -> 78961 | Q93: =IF(D93=1, N93, 0) -> 65 | R93: =P93+Q93 -> 79026 | S93: 32984 | T93: =S93/P93 -> 0.4177252061 | U93: 53 | V93: =U93/Q93 -> 0.8153846154 | W93: =S93+U93 -> 33037 | X93: =W93/R93 -> 0.4180522866 | Y93: 1210 | Z93: 26 | AA93: =Y93+Z93 -> 1236 | AB93: 888 | AC93: 17 | AD93: =AB93+AC93 -> 905 | AE93: 127 | AF93: 732 | AG93: =AE93+AF93 -> 859 | AH93: 5 | AI93: 3 | AJ93: 0 | AK93: 5
A94: Hutt City Council | B94: Central | C94: FPP | D94: 1 | F94: 2 | H94: 6 | I94: 1 | J94: 1 | K94: 0 | L94: 0 | M94: 19388 | N94: 21 | O94: 19409 | P94: =IF(D94=1, M94, 0) -> 19388 | Q94: =IF(D94=1, N94, 0) -> 21 | R94: =P94+Q94 -> 19409 | S94: 8461 | T94: =S94/P94 -> 0.4364039612 | U94: 17 | V94: =U94/Q94 -> 0.8095238095 | W94: =S94+U94 -> 8478 | X94: =W94/R94 -> 0.4368076665 | Y94: 293 | Z94: 11 | AA94: =Y94+Z94 -> 304 | AB94: 216 | AC94: 7 | AD94: =AB94+AC94 -> 223 | AE94: 35 | AF94: 358 | AG94: =AE94+AF94 -> 393 | AH94: 2 | AI94: 1 | AJ94: 0 | AK94: 2
A95: Hutt City Council | B95: Harbour | C95: FPP | E95: 1 | F95: 1 | G95: 1 | H95: 1 | I95: 1 | J95: 1 | K95: 0 | L95: 0 | M95: 11371 | N95: 21 | O95: 11392 | AH95: 1 | AI95: 1 | AJ95: 0 | AK95: 1
A96: Hutt City Council | B96: Northern | C96: FPP | E96: 1 | F96: 2 | G96: 2 | H96: 2 | I96: 2 | J96: 2 | K96: 0 | L96: 0 | M96: 18895 | N96: 11 | O96: 18906 | AH96: 1 | AI96: 1 | AJ96: 0 | AK96: 2
A97: Hutt City Council | B97: Wainuiomata | C97: FPP | E97: 1 | F97: 1 | G97: 1 | H97: 1 | I97: 1 | J97: 1 | K97: 0 | L97: 0 | M97: 12026 | N97: 6 | O97: 12032 | AH97: 1 | AI97: 1 | AJ97: 0 | AK97: 1
A98: Hutt City Council | B98: Western | C98: FPP | D98: 1 | F98: 1 | H98: 2 | I98: 1 | J98: 1 | K98: 0 | L98: 0 | M98: 10040 | N98: 5 | O98: 10045 | P98: =IF(D98=1, M98, 0) -> 10040 | Q98: =IF(D98=1, N98, 0) -> 5 | R98: =P98+Q98 -> 10045 | S98: 4366 | T98: =S98/P98 -> 0.4348605578 | U98: 3 | V98: =U98/Q98 -> 0.6 | W98: =S98+U98 -> 4369 | X98: =W98/R98 -> 0.4349427576 | Y98: 140 | Z98: 0 | AA98: =Y98+Z98 -> 140 | AB98: 109 | AC98: 0 | AD98: =AB98+AC98 -> 109 | AE98: 1 | AF98: 172 | AG98: =AE98+AF98 -> 173 | AH98: 0 | AI98: 0 | AJ98: 0 | AK98: 1
A99: Hutt City Council | B99: Mana Kairangi Ki Tai Māori | C99: FPP | E99: 1 | F99: 1 | G99: 1 | H99: 1 | I99: 0 | J99: 0 | K99: 1 | L99: 1 | M99: 7241 | N99: 1 | O99: 7242 | AH99: 1 | AI99: 1 | AJ99: 0 | AK99: 1
A100: Invercargill City Council | B100: At Large | C100: FPP | D100: 1 | F100: 12 | H100: 27 | I100: 8 | J100: 8 | K100: 0 | L100: 0 | M100: 38755 | N100: 74 | O100: 38829 | P100: =IF(D100=1, M100, 0) -> 38755 | Q100: =IF(D100=1, N100, 0) -> 74 | R100: =P100+Q100 -> 38829 | S100: 17930 | T100: =S100/P100 -> 0.4626499806 | U100: 66 | V100: =U100/Q100 -> 0.8918918919 | W100: =S100+U100 -> 17996 | X100: =W100/R100 -> 0.4634680265 | Y100: 781 | Z100: 18 | AA100: =Y100+Z100 -> 799 | AB100: 606 | AC100: 13 | AD100: =AB100+AC100 -> 619 | AE100: 51 | AF100: 132 | AG100: =AE100+AF100 -> 183 | AH100: 8 | AI100: 5 | AJ100: 0 | AK100: 12
A101: Kaikōura District Council | B101: At Large | C101: FPP | D101: 1 | F101: 7 | H101: 16 | I101: 4 | J101: 4 | K101: 0 | L101: 0 | M101: 3037 | N101: 25 | O101: 3062 | P101: 3037 | Q101: 25 | R101: 3062 | S101: 1859 | T101: 0.6121172209 | U101: 22 | V101: 0.88 | W101: 1881 | X101: 0.6143043762 | Y101: 73 | Z101: 5 | AA101: 78 | AB101: 60 | AC101: 3 | AD101: 63 | AE101: 3 | AF101: 1 | AG101: 4 | AH101: 6 | AI101: 2 | AJ101: 0 | AK101: 7
A102: Kaipara District Council | B102: Wairoa General | C102: FPP | D102: 1 | F102: 3 | H102: 13 | I102: 3 | J102: 1 | K102: 0 | L102: 0 | M102: 7280 | N102: 26 | O102: 7306 | P102: 7280 | Q102: 26 | R102: 7306 | S102: 4477 | T102: 0.6149725275 | U102: 20 | V102: 0.7692307692 | W102: 4497 | X102: 0.6155214892 | Y102: 235 | Z102: 0 | AA102: 235 | AB102: 92 | AC102: 0 | AD102: 92 | AE102: 18 | AF102: 15 | AG102: 33 | AH102: 3 | AI102: 1 | AJ102: 0 | AK102: 3
A103: Kaipara District Council | B103: Otamatea General | C103: FPP | D103: 1 | F103: 2 | H103: 7 | I103: 1 | J103: 0 | K103: 0 | L103: 0 | M103: 3997 | N103: 36 | O103: 4033 | P103: 3997 | Q103: 36 | R103: 4033 | S103: 2239 | T103: 0.5601701276 | U103: 29 | V103: 0.8055555556 | W103: 2268 | X103: 0.5623605257 | Y103: 119 | Z103: 0 | AA103: 119 | AB103: 59 | AC103: 0 | AD103: 59 | AE103: 2 | AF103: 42 | AG103: 44 | AH103: 2 | AI103: 1 | AJ103: 0 | AK103: 2
A104: Kaipara District Council | B104: Kaiwaka-Mangawhai General | C104: FPP | D104: 1 | F104: 3 | H104: 8 | I104: 2 | J104: 2 | K104: 0 | L104: 0 | M104: 6824 | N104: 164 | O104: 6988 | P104: 6824 | Q104: 164 | R104: 6988 | S104: 3794 | T104: 0.555978898 | U104: 143 | V104: 0.8719512195 | W104: 3937 | X104: 0.5633943904 | Y104: 140 | Z104: 0 | AA104: 140 | AB104: 47 | AC104: 0 | AD104: 47 | AE104: 0 | AF104: 20 | AG104: 20 | AH104: 2 | AI104: 1 | AJ104: 0 | AK104: 3
A105: Kāpiti Coast District Council | B105: At Large | C105: STV | D105: 1 | F105: 2 | H105: 9 | I105: 2 | J105: 1 | K105: 1 | L105: 0 | M105: 43313 | N105: 351 | O105: =M105+N105 -> 43664 | P105: 43313 | Q105: 351 | R105: 43664 | S105: 20169 | T105: 0.4656569621 | U105: 312 | V105: 0.8888888889 | W105: 20481 | X105: 0.4690591792 | Y105: 787 | Z105: 7 | AA105: 794 | AB105: 555 | AC105: 7 | AD105: 562 | AE105: 147 | AF105: 742 | AG105: 889 | AH105: 4 | AI105: 1 | AJ105: 0 | AK105: 2
A106: Kāpiti Coast District Council | B106: Ōtaki | C106: STV | D106: 1 | F106: 1 | H106: 5 | I106: 2 | J106: 0 | K106: 1 | L106: 0 | M106: 5557 | N106: 58 | O106: 5615 | P106: 5557 | Q106: 58 | R106: 5615 | S106: 2763 | T106: 0.4972107252 | U106: 60 | V106: 1.034482759 | W106: 2823 | X106: 0.502760463 | Y106: 126 | Z106: 2 | AA106: 128 | AB106: 87 | AC106: 2 | AD106: 89 | AE106: 2 | AF106: 32 | AG106: 34 | AH106: 2 | AI106: 1 | AJ106: 0 | AK106: 1
A107: Kāpiti Coast District Council | B107: Paekākāriki-Raumati | C107: STV | D107: 1 | F107: 1 | H107: 3 | I107: 0 | J107: 0 | K107: 1 | L107: 1 | M107: 6033 | N107: 40 | O107: 6073 | P107: 6033 | Q107: 40 | R107: 6073 | S107: 2938 | T107: 0.4869882314 | U107: 32 | V107: 0.8 | W107: 2970 | X107: 0.489049893 | Y107: 151 | Z107: 2 | AA107: 153 | AB107: 118 | AC107: 2 | AD107: 120 | AE107: 2 | AF107: 118 | AG107: 120 | AH107: 1 | AI107: 0 | AJ107: 0 | AK107: 1
A108: Kāpiti Coast District Council | B108: Paraparaumu | C108: STV | D108: 1 | F108: 3 | H108: 11 | I108: 2 | J108: 2 | K108: 2 | L108: 1 | M108: 16840 | N108: 74 | O108: 16914 | P108: 16840 | Q108: 74 | R108: 16914 | S108: 7178 | T108: 0.4262470309 | U108: 65 | V108: 0.8783783784 | W108: 7243 | X108: 0.4282251389 | Y108: 215 | Z108: 2 | AA108: 217 | AB108: 142 | AC108: 2 | AD108: 144 | AE108: 45 | AF108: 306 | AG108: 351 | AH108: 2 | AI108: 0 | AJ108: 0 | AK108: 3
A109: Kāpiti Coast District Council | B109: Waikanae | C109: STV | D109: 1 | F109: 2 | H109: 9 | I109: 2 | J109: 1 | K109: 1 | L109: 0 | M109: 12149 | N109: 177 | O109: 12326 | P109: 12149 | Q109: 177 | R109: 12326 | S109: 6148 | T109: 0.5060498806 | U109: 153 | V109: 0.8644067797 | W109: 6301 | X109: 0.5111958462 | Y109: 178 | Z109: 1 | AA109: 179 | AB109: 132 | AC109: 1 | AD109: 133 | AE109: 55 | AF109: 202 | AG109: 257 | AH109: 1 | AI109: 1 | AJ109: 0 | AK109: 2
A110: Kāpiti Coast District Council | B110: Kāpiti Coast Māori | C110: STV | D110: 1 | F110: 1 | H110: 6 | I110: 0 | J110: 0 | K110: 0 | L110: 0 | M110: 2734 | N110: 2 | O110: 2736 | P110: 2734 | Q110: 2 | R110: 2736 | S110: 1142 | T110: 0.4177029993 | U110: 2 | V110: 1 | W110: 1144 | X110: 0.418128655 | Y110: 117 | Z110: 0 | AA110: 117 | AB110: 76 | AC110: 0 | AD110: 76 | AE110: 6 | AF110: 21 | AG110: 27 | AH110: 1 | AI110: 0 | AJ110: 0 | AK110: 1
A111: Kawerau District Council | B111: Kawerau General | C111: FPP | D111: 1 | F111: 3 | H111: 4 | I111: 1 | J111: 1 | K111: 0 | L111: 0 | M111: 3098 | N111: 8 | O111: 3106 | P111: 3098 | Q111: 8 | R111: 3106 | S111: 1488 | T111: 0.4803098773 | U111: 5 | V111: 0.625 | W111: 1493 | X111: 0.4806825499 | Y111: 55 | Z111: 2 | AA111: 57 | AB111: 32 | AC111: 2 | AD111: 34 | AE111: 2 | AF111: 24 | AG111: 26 | AH111: 2 | AI111: 1 | AJ111: 0 | AK111: 3
A112: Kawerau District Council | B112: Kawerau Māori | C112: FPP | D112: 1 | F112: 3 | H112: 4 | I112: 0 | J112: 0 | K112: 0 | L112: 0 | M112: 2068 | N112: 1 | O112: 2069 | P112: 2068 | Q112: 1 | R112: 2069 | S112: 851 | T112: 0.4115087041 | U112: 1 | V112: 1 | W112: 852 | X112: 0.4117931368 | Y112: 54 | Z112: 1 | AA112: 55 | AB112: 34 | AC112: 0 | AD112: 34 | AE112: 1 | AF112: 8 | AG112: 9 | AH112: 3 | AI112: 2 | AJ112: 0 | AK112: 3
A113: Kawerau District Council | B113: At Large | C113: FPP | D113: 1 | F113: 2 | H113: 4 | I113: 3 | J113: 2 | K113: 0 | L113: 0 | M113: 5166 | N113: 9 | O113: 5175 | P113: 5166 | Q113: 9 | R113: 5175 | S113: 2339 | T113: 0.4527680991 | U113: 6 | V113: 0.6666666667 | W113: 2345 | X113: 0.4531400966 | Y113: 109 | Z113: 3 | AA113: 112 | AB113: 66 | AC113: 2 | AD113: 68 | AE113: 11 | AF113: 31 | AG113: 42 | AH113: 3 | AI113: 2 | AJ113: 0 | AK113: 2
A114: Mackenzie District Council | B114: Opuha | C114: FPP | D114: 1 | F114: 3 | H114: 5 | I114: 2 | J114: 2 | K114: 0 | L114: 0 | M114: 1642 | N114: 10 | O114: 1652 | P114: =IF(D114=1, M114, 0) -> 1642 | Q114: 10 | R114: 1652 | S114: 1019 | T114: 0.6205846529 | U114: 9 | V114: 0.9 | W114: 1028 | X114: 0.6222760291 | Y114: 28 | Z114: 4 | AA114: 32 | AB114: 13 | AC114: 2 | AD114: 15 | AE114: 1 | AF114: 4 | AG114: 5 | AH114: 3 | AI114: 1 | AJ114: 0 | AK114: 3
A115: Mackenzie District Council | B115: Pukaki | C115: FPP | D115: 1 | F115: 3 | H115: 6 | I115: 1 | J115: 0 | K115: 1 | L115: 1 | M115: 1342 | N115: 59 | O115: 1401 | P115: 1342 | Q115: 59 | R115: 1401 | S115: 801 | T115: 0.5968703428 | U115: 55 | V115: 0.9322033898 | W115: 856 | X115: 0.6109921485 | Y115: 40 | Z115: 33 | AA115: 73 | AB115: 26 | AC115: 19 | AD115: 45 | AE115: 0 | AF115: 4 | AG115: 4 | AH115: 1 | AI115: 1 | AJ115: 0 | AK115: 3
A116: Mackenzie District Council | B116: Tekapo | C116: FPP | D116: 1 | F116: 1 | H116: 2 | I116: 0 | J116: 0 | K116: 0 | L116: 0 | M116: 375 | N116: 44 | O116: 419 | P116: 375 | Q116: 44 | R116: 419 | S116: 209 | T116: 0.5573333333 | U116: 37 | V116: 0.8409090909 | W116: 246 | X116: 0.5871121718 | Y116: 16 | Z116: 3 | AA116: 19 | AB116: 14 | AC116: 3 | AD116: 17 | AE116: 0 | AF116: 2 | AG116: 2 | AH116: 2 | AI116: 1 | AJ116: 0 | AK116: 1
A117: Manawatū District Council | B117: Feilding | C117: FPP | D117: 1 | F117: 5 | H117: 10 | I117: 1 | J117: 1 | K117: 0 | L117: 0 | M117: 10724 | N117: 11 | O117: 10735 | P117: 10724 | Q117: 11 | R117: 10735 | S117: 4684 | T117: 0.4367773219 | U117: 11 | V117: 1 | W117: 4695 | X117: 0.4373544481 | Y117: 129 | Z117: 1 | AA117: 130 | AB117: 99 | AC117: 0 | AD117: 99 | AE117: 8 | AF117: 52 | AG117: 60 | AH117: 1 | AI117: 1 | AJ117: 0 | AK117: 5
A118: Manawatū District Council | B118: Rural | C118: FPP | D118: 1 | F118: 5 | H118: 7 | I118: 3 | J118: 2 | K118: 0 | L118: 0 | M118: 10295 | N118: 18 | O118: 10313 | P118: 10295 | Q118: 18 | R118: 10313 | S118: 4461 | T118: 0.4333171442 | U118: 15 | V118: 0.8333333333 | W118: 4476 | X118: 0.4340153205 | Y118: 56 | Z118: 7 | AA118: 63 | AB118: 48 | AC118: 6 | AD118: 54 | AE118: 4 | AF118: 97 | AG118: 101 | AH118: 2 | AI118: 2 | AJ118: 0 | AK118: 5
A119: Manawatū District Council | B119: Ngā Tapuae o Matanagi Māori | C119: FPP | E119: 1 | F119: 1 | G119: 1 | H119: 1 | I119: 1 | J119: 1 | K119: 0 | L119: 0 | M119: 1714 | N119: 0 | O119: 1714 | AH119: 1 | AI119: 1 | AJ119: 0 | AK119: 1
A120: Marlborough District Council | B120: Blenheim General | C120: STV | D120: 1 | F120: 7 | H120: 16 | I120: 4 | J120: 4 | K120: 0 | L120: 0 | M120: 18479 | N120: 9 | O120: 18488 | P120: =IF(D120=1, M120, 0) -> 18479 | Q120: =IF(D120=1, N120, 0) -> 9 | R120: =P120+Q120 -> 18488 | S120: 8418 | T120: =S120/P120 -> 0.4555441312 | U120: 8 | V120: =U120/Q120 -> 0.8888888889 | W120: =S120+U120 -> 8426 | X120: =W120/R120 -> 0.4557550844 | Y120: 187 | Z120: 5 | AA120: =Y120+Z120 -> 192 | AB120: 160 | AC120: 5 | AD120: =AB120+AC120 -> 165 | AE120: 152 | AF120: 80 | AG120: =AE120+AF120 -> 232 | AH120: 8 | AI120: 2 | AJ120: 0 | AK120: 7
A121: Marlborough District Council | B121: Marlborough Sounds General | C121: STV | D121: 1 | F121: 3 | H121: 6 | I121: 2 | J121: 2 | K121: 0 | L121: 0 | M121: 6271 | N121: 72 | O121: 6343 | P121: =IF(D121=1, M121, 0) -> 6271 | Q121: =IF(D121=1, N121, 0) -> 72 | R121: =P121+Q121 -> 6343 | S121: 2868 | T121: =S121/P121 -> 0.4573433264 | U121: 65 | V121: =U121/Q121 -> 0.9027777778 | W121: =S121+U121 -> 2933 | X121: =W121/R121 -> 0.4623994955 | Y121: 39 | Z121: 12 | AA121: =Y121+Z121 -> 51 | AB121: 33 | AC121: 10 | AD121: =AB121+AC121 -> 43 | AE121: 46 | AF121: 38 | AG121: =AE121+AF121 -> 84 | AH121: 3 | AI121: 2 | AJ121: 0 | AK121: 3
A122: Marlborough District Council | B122: Wairau-Awatere General | C122: STV | E122: 1 | F122: 3 | G122: 3 | H122: 3 | I122: 3 | J122: 3 | K122: 0 | L122: 0 | M122: 8108 | N122: 6 | O122: 8114 | AH122: 1 | AI122: 1 | AJ122: 0 | AK122: 3
A123: Marlborough District Council | B123: Marlborough Māori | C123: STV | E123: 1 | F123: 1 | G123: 1 | H123: 1 | I123: 1 | J123: 1 | K123: 0 | L123: 0 | M123: 1862 | N123: 0 | O123: 1862 | AH123: 1 | AI123: 1 | AJ123: 0 | AK123: 1
A124: Masterton District Council | B124: Masterton/Whakaoriori General | C124: FPP | D124: 1 | F124: 4 | H124: 10 | I124: 4 | J124: 3 | K124: 0 | L124: 0 | M124: 18220 | N124: 46 | O124: 18266 | P124: =IF(D124=1, M124, 0) -> 18220 | Q124: =IF(D124=1, N124, 0) -> 46 | R124: =P124+Q124 -> 18266 | S124: 8795 | T124: =S124/P124 -> 0.4827113063 | U124: 42 | V124: =U124/Q124 -> 0.9130434783 | W124: =S124+U124 -> 8837 | X124: =W124/R124 -> 0.483795029 | Y124: 210 | Z124: 11 | AA124: =Y124+Z124 -> 221 | AB124: 171 | AC124: 7 | AD124: =AB124+AC124 -> 178 | AE124: 10 | AF124: 176 | AG124: =AE124+AF124 -> 186 | AH124: 5 | AI124: 0 | AJ124: 0 | AK124: 4
A125: Masterton District Council | B125: At Large | C125: FPP | D125: 1 | F125: 3 | H125: 8 | I125: 2 | J125: 2 | K125: 0 | L125: 0 | M125: 20062 | N125: 46 | O125: =M125+N125 -> 20108 | P125: 20062 | Q125: 46 | R125: 20108 | S125: 9522 | T125: 0.4746286512 | U125: 42 | V125: 0.9130434783 | W125: 9564 | X125: 0.4756315894 | Y125: 271 | Z125: 12 | AA125: 283 | AB125: 225 | AC125: 8 | AD125: 233 | AE125: 78 | AF125: 224 | AG125: 302 | AH125: 2 | AI125: 1 | AJ125: 0 | AK125: 3
A126: Masterton District Council | B126: Masterton/Whakaoriori Māori | C126: FPP | D126: 1 | F126: 1 | H126: 2 | I126: 1 | J126: 0 | K126: 0 | L126: 0 | M126: 1842 | N126: 0 | O126: 1842 | P126: 1842 | Q126: 0 | R126: 1842 | S126: 727 | T126: 0.394679696 | U126: 0 | W126: 727 | X126: 0.394679696 | Y126: 61 | Z126: 1 | AA126: 62 | AB126: 54 | AC126: 1 | AD126: 55 | AE126: 2 | AF126: 16 | AG126: 18 | AH126: 2 | AI126: 1 | AJ126: 0 | AK126: 1
A127: Matamata-Piako District Council | B127: Morrinsville General | C127: FPP | D127: 1 | F127: 4 | H127: 6 | I127: 4 | J127: 3 | K127: 0 | L127: 0 | M127: 8726 | N127: 5 | O127: 8731 | P127: 8726 | Q127: 5 | R127: 8731 | S127: 3908 | T127: 0.4478569791 | U127: 5 | V127: 1 | W127: 3913 | X127: 0.448173176 | Y127: 73 | Z127: 3 | AA127: 76 | AB127: 55 | AC127: 3 | AD127: 58 | AE127: 4 | AF127: 56 | AG127: 60 | AH127: 2 | AI127: 1 | AJ127: 0 | AK127: 4
A128: Matamata-Piako District Council | B128: Te Aroha General | C128: FPP | D128: 1 | F128: 3 | H128: 7 | I128: 0 | J128: 0 | K128: 0 | L128: 0 | M128: 5191 | N128: 3 | O128: 5194 | P128: 5191 | Q128: 3 | R128: 5194 | S128: 2688 | T128: 0.5178193026 | U128: 3 | V128: 1 | W128: 2691 | X128: 0.5180978052 | Y128: 45 | Z128: 1 | AA128: 46 | AB128: 41 | AC128: 0 | AD128: 41 | AE128: 4 | AF128: 53 | AG128: 57 | AH128: 2 | AI128: 0 | AJ128: 0 | AK128: 3
A129: Matamata-Piako District Council | B129: Matamata General | C129: FPP | D129: 1 | F129: 4 | H129: 7 | I129: 4 | J129: 2 | K129: 0 | L129: 0 | M129: 9326 | N129: 7 | O129: =M129+N129 -> 9333 | P129: 9326 | Q129: 7 | R129: 9333 | S129: 4439 | T129: 0.475981128 | U129: 6 | V129: 0.8571428571 | W129: 4445 | X129: 0.4762670095 | Y129: 129 | Z129: 2 | AA129: 131 | AB129: 93 | AC129: 1 | AD129: 94 | AE129: 3 | AF129: 67 | AG129: 70 | AH129: 1 | AI129: 1 | AJ129: 0 | AK129: 4
A130: Matamata-Piako District Council | B130: Te Toa Horopū ā Matamata-Piako Māori | C130: FPP | E130: 1 | F130: 1 | G130: 1 | H130: 1 | I130: 1 | J130: 1 | K130: 0 | L130: 0 | M130: 1975 | N130: 0 | O130: 1975 | AH130: 0 | AI130: 0 | AJ130: 0 | AK130: 1
A131: Napier City Council | B131: Ahuriri | C131: FPP | D131: 1 | F131: 3 | H131: 9 | I131: 2 | J131: 2 | K131: 0 | L131: 0 | M131: 14064 | N131: 40 | O131: 14104 | P131: =IF(D131=1, M131, 0) -> 14064 | Q131: =IF(D131=1, N131, 0) -> 40 | R131: =P131+Q131 -> 14104 | S131: 7514 | T131: =S131/P131 -> 0.5342718999 | U131: 35 | V131: =U131/Q131 -> 0.875 | W131: =S131+U131 -> 7549 | X131: =W131/R131 -> 0.5352382303 | Y131: 267 | Z131: 11 | AA131: =Y131+Z131 -> 278 | AB131: 237 | AC131: 10 | AD131: =AB131+AC131 -> 247 | AE131: 9 | AF131: 118 | AG131: =AE131+AF131 -> 127 | AH131: 4 | AI131: 1 | AJ131: 0 | AK131: 3
A132: Napier City Council | B132: Nelson Central | C132: FPP | D132: 1 | F132: 3 | H132: 5 | I132: 2 | J132: 1 | K132: 0 | L132: 0 | M132: 13396 | N132: 8 | O132: 13404 | P132: 13396 | Q132: 8 | R132: 13404 | S132: 5126 | T132: 0.3826515378 | U132: 8 | V132: 1 | W132: 5134 | X132: 0.383019994 | Y132: 142 | Z132: 2 | AA132: 144 | AB132: 115 | AC132: 1 | AD132: 116 | AE132: 2 | AF132: 85 | AG132: 87 | AH132: 2 | AI132: 1 | AJ132: 0 | AK132: 3
A133: Napier City Council | B133: Taradale | C133: FPP | D133: 1 | F133: 3 | H133: 4 | I133: 3 | J133: 3 | K133: 0 | L133: 0 | M133: 13839 | N133: 13 | O133: =M133+N133 -> 13852 | P133: 13839 | Q133: 13 | R133: 13852 | S133: 7089 | T133: 0.5122479948 | U133: 12 | V133: 0.9230769231 | W133: 7101 | X133: 0.5126335547 | Y133: 178 | Z133: 6 | AA133: 184 | AB133: 135 | AC133: 5 | AD133: 140 | AE133: 1 | AF133: 163 | AG133: 164 | AH133: 1 | AI133: 1 | AJ133: 0 | AK133: 3
A134: Napier City Council | B134: Te Whanga Māori | C134: FPP | D134: 1 | F134: 2 | H134: 3 | I134: 0 | J134: 0 | K134: 0 | L134: 0 | M134: 4918 | N134: 0 | O134: 4918 | P134: 4918 | Q134: 0 | R134: 4918 | S134: 1541 | T134: 0.3133387556 | U134: 0 | W134: 1541 | X134: 0.3133387556 | Y134: 106 | Z134: 2 | AA134: 108 | AB134: 91 | AC134: 2 | AD134: 93 | AE134: 0 | AF134: 45 | AG134: 45 | AH134: 2 | AI134: 2 | AJ134: 0 | AK134: 2
A135: Nelson City Council | B135: Central General | C135: STV | D135: 1 | F135: 4 | H135: 13 | I135: 3 | J135: 3 | K135: 0 | L135: 0 | M135: 18010 | N135: 53 | O135: 18063 | P135: 18010 | Q135: 53 | R135: 18063 | S135: 9222 | T135: 0.5120488617 | U135: 44 | V135: 0.8301886792 | W135: 9266 | X135: 0.5129823396 | Y135: 385 | Z135: 13 | AA135: 398 | AB135: 336 | AC135: 13 | AD135: 349 | AE135: 176 | AF135: 315 | AG135: 491 | AH135: 4 | AI135: 1 | AJ135: 0 | AK135: 4
A136: Nelson City Council | B136: Stoke-Tāhunanui General | C136: STV | D136: 1 | F136: 4 | H136: 9 | I136: 3 | J136: 3 | K136: 0 | L136: 0 | M136: 18852 | N136: 55 | O136: 18907 | P136: 18852 | Q136: 55 | R136: 18907 | S136: 9011 | T136: 0.4779864205 | U136: 44 | V136: 0.8 | W136: 9055 | X136: 0.4789231502 | Y136: 254 | Z136: 9 | AA136: 263 | AB136: 195 | AC136: 7 | AD136: 202 | AE136: 185 | AF136: 285 | AG136: 470 | AH136: 4 | AI136: 3 | AJ136: 0 | AK136: 4
A137: Nelson City Council | B137: At Large | C137: STV | D137: 1 | F137: 3 | H137: 9 | I137: 1 | J137: 1 | K137: 0 | L137: 0 | M137: 38556 | N137: 109 | O137: 38665 | P137: 38556 | Q137: 109 | R137: 38665 | S137: 18700 | T137: 0.4850088183 | U137: 89 | V137: 0.8165137615 | W137: 18789 | X137: 0.4859433596 | Y137: 661 | Z137: 23 | AA137: 684 | AB137: 550 | AC137: 21 | AD137: 571 | AE137: 331 | AF137: 706 | AG137: 1037 | AH137: 2 | AI137: 0 | AJ137: 0 | AK137: 3
A138: Nelson City Council | B138: Whakatū Māori | C138: STV | E138: 1 | F138: 1 | G138: 1 | H138: 1 | I138: 1 | J138: 1 | K138: 0 | L138: 0 | M138: 1694 | N138: 1 | O138: 1695 | AH138: 0 | AI138: 0 | AJ138: 0 | AK138: 1
A139: New Plymouth District Council | B139: North General | C139: STV | D139: 1 | F139: 1 | H139: 6 | I139: 0 | J139: 0 | K139: 2 | L139: 0 | M139: 6974 | N139: 11 | O139: 6985 | P139: =IF(D139=1, M139, 0) -> 6974 | Q139: =IF(D139=1, N139, 0) -> 11 | R139: =P139+Q139 -> 6985 | S139: 3063 | T139: =S139/P139 -> 0.4392027531 | U139: 10 | V139: =U139/Q139 -> 0.9090909091 | W139: =S139+U139 -> 3073 | X139: =W139/R139 -> 0.4399427344 | Y139: 63 | Z139: 0 | AA139: =Y139+Z139 -> 63 | AB139: 37 | AC139: 0 | AD139: =AB139+AC139 -> 37 | AE139: 16 | AF139: 190 | AG139: =AE139+AF139 -> 206 | AH139: 2 | AI139: 1 | AJ139: 0 | AK139: 1
A140: New Plymouth District Council | B140: Kōhanga Moa General | C140: STV | D140: 1 | F140: 1 | H140: 3 | I140: 0 | J140: 0 | K140: 2 | L140: 1 | M140: 7280 | N140: 4 | O140: 7284 | P140: 7280 | Q140: 4 | R140: 7284 | S140: 3530 | T140: 0.4848901099 | U140: 5 | V140: 1.25 | W140: 3535 | X140: 0.4853102691 | Y140: 87 | Z140: 1 | AA140: 88 | AB140: 57 | AC140: 1 | AD140: 58 | AE140: 19 | AF140: 327 | AG140: 346 | AH140: 2 | AI140: 1 | AJ140: 0 | AK140: 1
A141: New Plymouth District Council | B141: Kaitake-Ngāmotu General | C141: STV | D141: 1 | F141: 6 | H141: 19 | I141: 2 | J141: 1 | K141: 2 | L141: 1 | M141: 42531 | N141: 37 | O141: =M141+N141 -> 42568 | P141: 42531 | Q141: 37 | R141: 42568 | S141: 20244 | T141: 0.4759822247 | U141: 42 | V141: 1.135135135 | W141: 20286 | X141: 0.4765551588 | Y141: 689 | Z141: 3 | AA141: 692 | AB141: 455 | AC141: 1 | AD141: 456 | AE141: 1296 | AF141: 1247 | AG141: 2543 | AH141: 4 | AI141: 3 | AJ141: 0 | AK141: 6
A142: New Plymouth District Council | B142: At Large | C142: STV | D142: 1 | F142: 5 | H142: 17 | I142: 4 | J142: 3 | K142: 1 | L142: 0 | M142: 61552 | N142: 55 | O142: =M142+N142 -> 61607 | P142: 61552 | Q142: 55 | R142: 61607 | S142: 28565 | T142: 0.4640791526 | U142: 60 | V142: 1.090909091 | W142: 28625 | X142: 0.4646387586 | Y142: 951 | Z142: 4 | AA142: 955 | AB142: 618 | AC142: 2 | AD142: 620 | AE142: 329 | AF142: 533 | AG142: 862 | AH142: 5 | AI142: 0 | AJ142: 0 | AK142: 5
A143: New Plymouth District Council | B143: Te Purutanga Mauri Pūmanawa Māori | C143: STV | D143: 1 | F143: 1 | H143: 2 | I143: 1 | J143: 1 | K143: 0 | L143: 0 | M143: 4767 | N143: 3 | O143: 4770 | P143: 4767 | Q143: 3 | R143: 4770 | S143: 1728 | T143: 0.3624921334 | U143: 3 | V143: 1 | W143: 1731 | X143: 0.3628930818 | Y143: 112 | Z143: 0 | AA143: 112 | AB143: 69 | AC143: 0 | AD143: 69 | AE143: 8 | AF143: 62 | AG143: 70 | AH143: 1 | AI143: 1 | AJ143: 0 | AK143: 1
A144: Ōpōtiki District Council | B144: Rural | C144: FPP | D144: 1 | F144: 2 | H144: 5 | I144: 2 | J144: 2 | K144: 0 | L144: 0 | M144: 1988 | N144: 23 | O144: 2011 | P144: 1988 | Q144: 23 | R144: 2011 | S144: 1078 | T144: 0.5422535211 | U144: 21 | V144: 0.9130434783 | W144: 1099 | X144: 0.5464942815 | Y144: 39 | Z144: 0 | AA144: 39 | AB144: 29 | AC144: 0 | AD144: 29 | AE144: 1 | AF144: 12 | AG144: 13 | AH144: 2 | AI144: 0 | AJ144: 0 | AK144: 2
A145: Ōpōtiki District Council | B145: Urban | C145: FPP | D145: 1 | F145: 2 | H145: 5 | I145: 2 | J145: 2 | K145: 0 | L145: 0 | M145: 1617 | N145: 4 | O145: 1621 | P145: 1617 | Q145: 4 | R145: 1621 | S145: 763 | T145: 0.4718614719 | U145: 4 | V145: 1 | W145: 767 | X145: 0.4731647131 | Y145: 20 | Z145: 1 | AA145: 21 | AB145: 14 | AC145: 1 | AD145: 15 | AE145: 0 | AF145: 8 | AG145: 8 | AH145: 2 | AI145: 1 | AJ145: 0 | AK145: 2
A146: Ōpōtiki District Council | B146: Coast Māori | C146: FPP | D146: 1 | F146: 1 | H146: 2 | I146: 0 | J146: 0 | K146: 0 | L146: 0 | M146: 948 | N146: 2 | O146: 950 | P146: 948 | Q146: 2 | R146: 950 | S146: 381 | T146: 0.4018987342 | U146: 4 | V146: 2 | W146: 385 | X146: 0.4052631579 | Y146: 20 | Z146: 2 | AA146: 22 | AB146: 8 | AC146: 2 | AD146: 10 | AE146: 0 | AF146: 9 | AG146: 9 | AH146: 0 | AI146: 0 | AJ146: 0 | AK146: 1
A147: Ōpōtiki District Council | B147: Ōpōtiki Māori | C147: FPP | D147: 1 | F147: 2 | H147: 3 | I147: 0 | J147: 0 | K147: 0 | L147: 0 | M147: 1958 | N147: 3 | O147: 1961 | P147: 1958 | Q147: 3 | R147: 1961 | S147: 808 | T147: 0.4126659857 | U147: 4 | V147: 1.333333333 | W147: 812 | X147: 0.4140744518 | Y147: 60 | Z147: 1 | AA147: 61 | AB147: 40 | AC147: 1 | AD147: 41 | AE147: 1 | AF147: 8 | AG147: 9 | AH147: 3 | AI147: 2 | AJ147: 0 | AK147: 2
A148: Ōtorohanga District Council | B148: Kāwhia-Tihiroa General | C148: FPP | E148: 1 | F148: 2 | G148: 2 | H148: 2 | I148: 1 | J148: 1 | K148: 1 | L148: 1 | M148: 1685 | N148: 32 | O148: 1717 | AH148: 1 | AI148: 1 | AJ148: 0 | AK148: 2
A149: Ōtorohanga District Council | B149: Waipā General | C149: FPP | D149: 1 | F149: 1 | H149: 2 | I149: 1 | J149: 0 | K149: 0 | L149: 0 | M149: 733 | N149: 0 | O149: 733 | P149: =IF(D149=1, M149, 0) -> 733 | Q149: =IF(D149=1, N149, 0) -> 0 | R149: =P149+Q149 -> 733 | S149: 418 | T149: =S149/P149 -> 0.5702592087 | U149: 0 | V149: =U149/Q149 ->  | W149: =S149+U149 -> 418 | X149: =W149/R149 -> 0.5702592087 | Y149: 14 | Z149: 0 | AA149: =Y149+Z149 -> 14 | AB149: 12 | AC149: 0 | AD149: =AB149+AC149 -> 12 | AE149: 0 | AF149: 9 | AG149: =AE149+AF149 -> 9 | AH149: 0 | AI149: 0 | AJ149: 0 | AK149: 1
A150: Ōtorohanga District Council | B150: Kio Kio-Korakonui General | C150: FPP | E150: 1 | F150: 1 | G150: 1 | H150: 1 | I150: 0 | J150: 0 | K150: 0 | L150: 0 | M150: 55 | N150: 6 | O150: 61 | AH150: 0 | AI150: 0 | AJ150: 0 | AK150: 1
A151: Ōtorohanga District Council | B151: Ōtorohanga General | C151: FPP | D151: 1 | F151: 2 | H151: 3 | I151: 1 | J151: 1 | K151: 0 | L151: 0 | M151: 1509 | N151: 7 | O151: 1516 | P151: =IF(D151=1, M151, 0) -> 1509 | Q151: =IF(D151=1, N151, 0) -> 7 | R151: =P151+Q151 -> 1516 | S151: 767 | T151: =S151/P151 -> 0.5082836315 | U151: 6 | V151: =U151/Q151 -> 0.8571428571 | W151: =S151+U151 -> 773 | X151: =W151/R151 -> 0.5098944591 | Y151: 30 | Z151: 0 | AA151: =Y151+Z151 -> 30 | AB151: 10 | AC151: 0 | AD151: =AB151+AC151 -> 10 | AE151: 0 | AF151: 30 | AG151: =AE151+AF151 -> 30 | AH151: 2 | AI151: 2 | AJ151: 0 | AK151: 2
A152: Ōtorohanga District Council | B152: Wharepuhunga General | C152: FPP | E152: 1 | F152: 1 | G152: 1 | H152: 1 | I152: 0 | J152: 0 | K152: 0 | L152: 0 | M152: 542 | N152: 0 | O152: 542 | AH152: 0 | AI152: 0 | AJ152: 0 | AK152: 1
A153: Ōtorohanga District Council | B153: Rangiātea Māori | C153: FPP | D153: 1 | F153: 2 | H153: 5 | I153: 1 | J153: 1 | K153: 0 | L153: 0 | M153: 1078 | N153: 2 | O153: 1080 | P153: =IF(D153=1, M153, 0) -> 1078 | Q153: =IF(D153=1, N153, 0) -> 2 | R153: =P153+Q153 -> 1080 | S153: 557 | T153: =S153/P153 -> 0.5166975881 | U153: 2 | V153: =U153/Q153 -> 1 | W153: =S153+U153 -> 559 | X153: =W153/R153 -> 0.5175925926 | Y153: 56 | Z153: 2 | AA153: =Y153+Z153 -> 58 | AB153: 28 | AC153: 1 | AD153: =AB153+AC153 -> 29 | AE153: 1 | AF153: 8 | AG153: =AE153+AF153 -> 9 | AH153: 4 | AI153: 2 | AJ153: 0 | AK153: 2
A154: Palmerston North City Council | B154: Te Hirawanui General | C154: STV | D154: 1 | F154: 13 | H154: 37 | I154: 12 | J154: 12 | K154: 0 | L154: 0 | M154: 54159 | N154: 69 | O154: 54228 | P154: 54159 | Q154: 69 | R154: 54228 | S154: 23094 | T154: 0.4264111228 | U154: 64 | V154: 0.9275362319 | W154: 23158 | X154: 0.4270487571 | Y154: 830 | Z154: 2 | AA154: 832 | AB154: 496 | AC154: 2 | AD154: 498 | AE154: 477 | AF154: 222 | AG154: 699 | AH154: 8 | AI154: 5 | AJ154: 0 | AK154: 13
A155: Palmerston North City Council | B155: Te Pūao Māori | C155: STV | D155: 1 | F155: 2 | H155: 3 | I155: 2 | J155: 1 | K155: 0 | L155: 0 | M155: 5249 | N155: 1 | O155: 5250 | P155: 5249 | Q155: 1 | R155: 5250 | S155: 1901 | T155: 0.3621642218 | U155: 1 | V155: 1 | W155: 1902 | X155: 0.3622857143 | Y155: 167 | Z155: 0 | AA155: 167 | AB155: 93 | AC155: 0 | AD155: 93 | AE155: 27 | AF155: 32 | AG155: 59 | AH155: 2 | AI155: 2 | AJ155: 0 | AK155: 2
A156: Porirua City Council | B156: Pāuatahanui General | C156: STV | D156: 1 | F156: 4 | H156: 8 | I156: 3 | J156: 3 | K156: 0 | L156: 0 | M156: 16968 | N156: 18 | O156: 16986 | P156: 16968 | Q156: 18 | R156: 16986 | S156: 7935 | T156: 0.4676449788 | U156: 17 | V156: 0.9444444444 | W156: 7952 | X156: 0.4681502414 | Y156: 233 | Z156: 5 | AA156: 238 | AB156: 169 | AC156: 4 | AD156: 173 | AE156: 18 | AF156: 86 | AG156: 104 | AH156: 2 | AI156: 1 | AJ156: 0 | AK156: 4
A157: Porirua City Council | B157: Onepoto General | C157: STV | D157: 1 | F157: 5 | H157: 15 | I157: 5 | J157: 4 | K157: 0 | L157: 0 | M157: 20987 | N157: 22 | O157: 21009 | P157: 20987 | Q157: 22 | R157: 21009 | S157: 7669 | T157: 0.3654166865 | U157: 21 | V157: 0.9545454545 | W157: 7690 | X157: 0.3660336046 | Y157: 322 | Z157: 7 | AA157: 329 | AB157: 267 | AC157: 6 | AD157: 273 | AE157: 72 | AF157: 109 | AG157: 181 | AH157: 7 | AI157: 2 | AJ157: 0 | AK157: 5
A158: Porirua City Council | B158: Parirua Māori | C158: STV | D158: 1 | F158: 1 | H158: 4 | I158: 1 | J158: 1 | K158: 0 | L158: 0 | M158: 5036 | N158: 1 | O158: 5037 | P158: 5036 | Q158: 1 | R158: 5037 | S158: 1980 | T158: 0.3931691819 | U158: 1 | V158: 1 | W158: 1981 | X158: 0.3932896565 | Y158: 133 | Z158: 1 | AA158: 134 | AB158: 107 | AC158: 1 | AD158: 108 | AE158: 12 | AF158: 28 | AG158: 40 | AH158: 3 | AI158: 1 | AJ158: 0 | AK158: 1
A159: Queenstown-Lakes District Council | B159: Queenstown-Whakatipu | C159: FPP | D159: 1 | F159: 4 | H159: 7 | I159: 2 | J159: 2 | K159: 0 | L159: 0 | M159: 10319 | N159: 132 | O159: 10451 | P159: 10319 | Q159: 132 | R159: 10451 | S159: 3596 | T159: 0.3484833802 | U159: 99 | V159: 0.75 | W159: 3695 | X159: 0.3535546838 | Y159: 159 | Z159: 18 | AA159: 177 | AB159: 136 | AC159: 16 | AD159: 152 | AE159: 4 | AF159: 55 | AG159: 59 | AH159: 0 | AI159: 0 | AJ159: 0 | AK159: 4
A160: Queenstown-Lakes District Council | B160: Wānaka-Upper Clutha | C160: FPP | D160: 1 | F160: 4 | H160: 9 | I160: 5 | J160: 3 | K160: 0 | L160: 0 | M160: 12048 | N160: 175 | O160: 12223 | P160: 12048 | Q160: 175 | R160: 12223 | S160: 5573 | T160: 0.4625664011 | U160: 137 | V160: 0.7828571429 | W160: 5710 | X160: 0.4671520903 | Y160: 258 | Z160: 40 | AA160: 298 | AB160: 227 | AC160: 34 | AD160: 261 | AE160: 15 | AF160: 28 | AG160: 43 | AH160: 3 | AI160: 2 | AJ160: 0 | AK160: 4
A161: Queenstown-Lakes District Council | B161: Arrowtown-Kawarau | C161: FPP | D161: 1 | F161: 3 | H161: 5 | I161: 1 | J161: 0 | K161: 0 | L161: 0 | M161: 8390 | N161: 54 | O161: =M161+N161 -> 8444 | P161: 8390 | Q161: 54 | R161: 8444 | S161: 3473 | T161: 0.4139451728 | U161: 49 | V161: 0.9074074074 | W161: 3522 | X161: 0.4171009 | Y161: 119 | Z161: 14 | AA161: 133 | AB161: 104 | AC161: 13 | AD161: 117 | AE161: 7 | AF161: 117 | AG161: 124 | AH161: 2 | AI161: 1 | AJ161: 0 | AK161: 3
A162: Rangitīkei District Council | B162: Northern General | C162: FPP | D162: 1 | F162: 2 | H162: 3 | I162: 1 | J162: 1 | K162: 1 | L162: 0 | M162: 1914 | N162: 3 | O162: 1917 | P162: 1914 | Q162: 3 | R162: 1917 | S162: 997 | T162: 0.5208986416 | U162: 3 | V162: 1 | W162: 1000 | X162: 0.521648409 | Y162: 13 | Z162: 2 | AA162: 15 | AB162: 12 | AC162: 2 | AD162: 14 | AE162: 0 | AF162: 16 | AG162: 16 | AH162: 1 | AI162: 1 | AJ162: 0 | AK162: 2
A163: Rangitīkei District Council | B163: Central General | C163: FPP | D163: 1 | F163: 5 | H163: 8 | I163: 2 | J163: 2 | K163: 0 | L163: 0 | M163: 5043 | N163: 7 | O163: =M163+N163 -> 5050 | P163: 5043 | Q163: 7 | R163: 5050 | S163: 2727 | T163: 0.5407495538 | U163: 5 | V163: 0.7142857143 | W163: 2732 | X163: 0.540990099 | Y163: 42 | Z163: 3 | AA163: 45 | AB163: 28 | AC163: 1 | AD163: 29 | AE163: 7 | AF163: 23 | AG163: 30 | AH163: 2 | AI163: 2 | AJ163: 0 | AK163: 5
A164: Rangitīkei District Council | B164: Southern General | C164: FPP | D164: 1 | F164: 2 | H164: 4 | I164: 0 | J164: 0 | K164: 0 | L164: 0 | M164: 2283 | N164: 7 | O164: 2290 | P164: 2283 | Q164: 7 | R164: 2290 | S164: 952 | T164: 0.4169951818 | U164: 7 | V164: 1 | W164: 959 | X164: 0.4187772926 | Y164: 19 | Z164: 2 | AA164: 21 | AB164: 15 | AC164: 2 | AD164: 17 | AE164: 0 | AF164: 29 | AG164: 29 | AH164: 0 | AI164: 0 | AJ164: 0 | AK164: 2
A165: Rangitīkei District Council | B165: Tiikeitia ki Uta (Inland) Māori | C165: FPP | E165: 1 | F165: 1 | G165: 1 | H165: 1 | I165: 1 | J165: 1 | K165: 0 | L165: 0 | M165: 932 | N165: 1 | O165: 933 | AH165: 1 | AI165: 1 | AJ165: 0 | AK165: 1
A166: Rangitīkei District Council | B166: Tiikeitia ki Tai (Coastal) Māori | C166: FPP | D166: 1 | F166: 1 | H166: 2 | I166: 1 | J166: 1 | K166: 0 | L166: 0 | M166: 745 | N166: 0 | O166: 745 | P166: =IF(D166=1, M166, 0) -> 745 | Q166: =IF(D166=1, N166, 0) -> 0 | R166: =P166+Q166 -> 745 | S166: 324 | T166: =S166/P166 -> 0.4348993289 | U166: 0 | V166: =U166/Q166 ->  | W166: =S166+U166 -> 324 | X166: =W166/R166 -> 0.4348993289 | Y166: 14 | Z166: 2 | AA166: =Y166+Z166 -> 16 | AB166: 10 | AC166: 1 | AD166: =AB166+AC166 -> 11 | AE166: 0 | AF166: 11 | AG166: =AE166+AF166 -> 11 | AH166: 1 | AI166: 1 | AJ166: 0 | AK166: 1
A167: Rotorua District Council | B167: Rotorua Rural General | C167: FPP | E167: 1 | F167: 1 | G167: 1 | H167: 1 | I167: 1 | J167: 1 | K167: 0 | L167: 0 | M167: 4589 | N167: 11 | O167: 4600 | AH167: 1 | AI167: 1 | AJ167: 0 | AK167: 1
A168: Rotorua District Council | B168: Te Ipu Wai Auraki General | C168: FPP | D168: 1 | F168: 6 | H168: 22 | I168: 6 | J168: 5 | K168: 0 | L168: 0 | M168: 31930 | N168: 146 | O168: 32076 | P168: =IF(D168=1, M168, 0) -> 31930 | Q168: =IF(D168=1, N168, 0) -> 146 | R168: =P168+Q168 -> 32076 | S168: 14603 | T168: =S168/P168 -> 0.4573441904 | U168: 128 | V168: =U168/Q168 -> 0.8767123288 | W168: =S168+U168 -> 14731 | X168: =W168/R168 -> 0.4592530241 | Y168: 458 | Z168: 17 | AA168: =Y168+Z168 -> 475 | AB168: 394 | AC168: 16 | AD168: =AB168+AC168 -> 410 | AE168: 48 | AF168: 133 | AG168: =AE168+AF168 -> 181 | AH168: 6 | AI168: 1 | AJ168: 0 | AK168: 6
A169: Rotorua District Council | B169: Te Ipu Wai Taketake Māori | C169: FPP | D169: 1 | F169: 3 | H169: 6 | I169: 2 | J169: 1 | K169: 0 | L169: 0 | M169: 13403 | N169: 3 | O169: 13406 | P169: =IF(D169=1, M169, 0) -> 13403 | Q169: =IF(D169=1, N169, 0) -> 3 | R169: =P169+Q169 -> 13406 | S169: 5033 | T169: =S169/P169 -> 0.3755129449 | U169: 2 | V169: =U169/Q169 -> 0.6666666667 | W169: =S169+U169 -> 5035 | X169: =W169/R169 -> 0.3755780994 | Y169: 314 | Z169: 3 | AA169: =Y169+Z169 -> 317 | AB169: 264 | AC169: 3 | AD169: =AB169+AC169 -> 267 | AE169: 1 | AF169: 42 | AG169: =AE169+AF169 -> 43 | AH169: 2 | AI169: 1 | AJ169: 0 | AK169: 3
A170: Ruapehu District Council | B170: Ruapehu General | C170: STV | D170: 1 | F170: 6 | H170: 14 | I170: 4 | J170: 4 | K170: 3 | L170: 1 | M170: 6243 | N170: 134 | O170: 6377 | P170: =IF(D170=1, M170, 0) -> 6243 | Q170: =IF(D170=1, N170, 0) -> 134 | R170: =P170+Q170 -> 6377 | S170: 3336 | T170: =S170/P170 -> 0.5343584815 | U170: 111 | V170: =U170/Q170 -> 0.828358209 | W170: =S170+U170 -> 3447 | X170: =W170/R170 -> 0.5405363023 | Y170: 104 | Z170: 22 | AA170: =Y170+Z170 -> 126 | AB170: 73 | AC170: 17 | AD170: =AB170+AC170 -> 90 | AE170: 40 | AF170: 93 | AG170: =AE170+AF170 -> 133 | AH170: 8 | AI170: 3 | AJ170: 0 | AK170: 6
A171: Ruapehu District Council | B171: Ruapehu Māori | C171: STV | D171: 1 | F171: 3 | H171: 6 | I171: 3 | J171: 2 | K171: 0 | L171: 0 | M171: 1965 | N171: 2 | O171: 1967 | P171: 1965 | Q171: 2 | R171: 1967 | S171: 853 | T171: 0.4340966921 | U171: 2 | V171: 1 | W171: 855 | X171: 0.4346720895 | Y171: 60 | Z171: 4 | AA171: 64 | AB171: 38 | AC171: 4 | AD171: 42 | AE171: 12 | AF171: 16 | AG171: 28 | AH171: 3 | AI171: 1 | AJ171: 0 | AK171: 3
A172: Selwyn District Council | B172: Tawera Malvern | C172: FPP | D172: 1 | E172: 0 | F172: 1 | G172: 0 | H172: 2 | I172: 0 | J172: 0 | K172: 1 | M172: 6708 | N172: 28 | O172: 6736 | P172: 6708 | Q172: 28 | R172: 6736 | S172: 4050 | T172: 0.6037567084 | U172: 26 | V172: =U172/Q172 -> 0.9285714286 | W172: =S172+U172 -> 4076 | X172: =W172/R172 -> 0.6051068884 | Y172: 113 | Z172: 5 | AA172: 118 | AB172: 78 | AC172: 2 | AD172: 80 | AE172: 1 | AF172: 295 | AG172: 296 | AH172: 1 | AI172: 0 | AJ172: 0 | AK172: 1
A173: Selwyn District Council | B173: Kā Mānia Rolleston | C173: FPP | D173: 1 | E173: 0 | F173: 3 | G173: 0 | H173: 12 | I173: 1 | J173: 1 | K173: 0 | L173: 0 | M173: 19913 | N173: 9 | O173: 19922 | P173: 19913 | Q173: 9 | R173: 19922 | S173: 8482 | T173: 0.4259528951 | U173: 8 | V173: 0.8888888889 | W173: 8490 | X173: 0.4261620319 | Y173: 323 | Z173: 0 | AA173: 323 | AB173: 257 | AC173: 0 | AD173: 257 | AE173: 9 | AF173: 99 | AG173: 108 | AH173: 1 | AI173: 1 | AJ173: 0 | AK173: 3
A174: Selwyn District Council | B174: Te Waihora Ellesmere | C174: FPP | D174: 1 | E174: 0 | F174: 1 | G174: 0 | H174: 2 | I174: 1 | J174: 1 | K174: 0 | L174: 0 | M174: 6916 | N174: 16 | O174: 6932 | P174: 6916 | Q174: 16 | R174: 6932 | S174: 3597 | T174: 0.5200983227 | U174: 16 | V174: 1 | W174: 3613 | X174: 0.5212060012 | Y174: 75 | Z174: 2 | AA174: 77 | AB174: 57 | AC174: 1 | AD174: 58 | AE174: 6 | AF174: 73 | AG174: 79 | AH174: 1 | AI174: 1 | AK174: 1
A175: Selwyn District Council | B175: Kā Puna Springs | C175: FPP | D175: 1 | E175: 0 | F175: 3 | H175: 7 | I175: 0 | J175: 0 | K175: 0 | L175: 0 | M175: 21123 | N175: 9 | O175: 21132 | P175: 21123 | Q175: 9 | R175: 21132 | S175: 10252 | T175: =S175/P175 -> 0.4853477252 | U175: 9 | V175: 1 | W175: 10261 | X175: 0.4855669127 | Y175: 249 | Z175: 4 | AA175: 253 | AB175: 214 | AC175: 3 | AD175: 217 | AE175: 1 | AF175: 388 | AG175: 389 | AH175: 2 | AI175: 2 | AJ175: 0 | AK175: 3
A176: Selwyn District Council | B176: At Large | C176: FPP | D176: 1 | E176: 0 | F176: 2 | G176: 0 | H176: 6 | K176: 1 | M176: 54660 | N176: 62 | O176: 54722 | P176: 54660 | Q176: 62 | R176: 54722 | S176: 26381 | T176: 0.4826381266 | U176: 59 | V176: 0.9516129032 | W176: 26440 | X176: 0.4831694748 | Y176: 760 | Z176: 11 | AA176: 771 | AB176: 606 | AC176: 6 | AD176: 612 | AE176: 128 | AF176: 1156 | AG176: 1284 | AH176: 3 | AI176: 1 | AJ176: 0 | AK176: 2
A177: South Taranaki District Council | B177: Taranaki Coastal General | C177: FPP | D177: 1 | E177: 0 | F177: 2 | G177: 0 | H177: 3 | I177: 2 | J177: 2 | K177: 0 | L177: 0 | M177: 3275 | N177: 4 | O177: 3279 | P177: 3275 | Q177: 4 | R177: 3279 | S177: 1462 | T177: 0.4464122137 | U177: 4 | V177: 1 | W177: 1466 | X177: 0.4470875267 | Y177: 22 | Z177: 0 | AA177: 22 | AB177: 12 | AC177: 0 | AD177: 12 | AE177: 0 | AF177: 46 | AG177: 46 | AH177: 1 | AI177: 1 | AK177: 2
A178: South Taranaki District Council | B178: Eltham-Kaponga General | C178: FPP | D178: 1 | E178: 0 | F178: 2 | G178: 0 | H178: 4 | I178: 2 | J178: 1 | K178: 1 | L178: 1 | M178: 2725 | N178: 5 | O178: 2730 | P178: 2725 | Q178: 5 | R178: 2730 | S178: 1127 | T178: 0.4135779817 | U178: 5 | V178: 1 | W178: 1132 | X178: 0.4146520147 | Y178: 28 | Z178: 0 | AA178: 28 | AB178: 20 | AC178: 0 | AD178: 20 | AE178: 4 | AF178: 44 | AG178: 48 | AH178: 2 | AI178: 1 | AJ178: 0 | AK178: 2
A179: South Taranaki District Council | B179: Te Hāwera General | C179: FPP | D179: 1 | E179: 0 | F179: 5 | G179: 0 | H179: 7 | I179: 3 | J179: 2 | K179: 1 | L179: 1 | M179: 7888 | N179: 5 | O179: 7893 | P179: 7888 | Q179: 5 | R179: 7893 | S179: 3808 | T179: 0.4827586207 | U179: 4 | V179: 0.8 | W179: 3812 | X179: 0.4829595844 | Y179: 68 | Z179: 0 | AA179: 68 | AB179: 30 | AC179: 0 | AD179: 30 | AE179: 1 | AF179: 52 | AG179: 53 | AH179: 4 | AI179: 3 | AJ179: 0 | AK179: 5
A180: South Taranaki District Council | B180: Pātea General | C180: FPP | D180: 0 | E180: 1 | F180: 2 | G180: 0 | H180: 2 | I180: 2 | J180: 2 | K180: 0 | L180: 0 | M180: 2155 | N180: 13 | O180: 2168 | AH180: 0 | AI180: 0 | AJ180: 0 | AK180: 2
A181: South Taranaki District Council | B181: Te Tai Tonga Māori | C181: FPP | D181: 0 | E181: 1 | F181: 1 | M181: 1539 | N181: 0 | O181: 1539 | AH181: 1 | AI181: 1 | AJ181: 0 | AK181: 1
A182: South Taranaki District Council | B182: Te Kūrae Māori | C182: FPP | D182: 1 | E182: 0 | F182: 1 | G182: 0 | I182: 1 | J182: 2 | K182: 0 | L182: 0 | M182: 1087 | N182: 0 | O182: 1087 | P182: =IF(D182=1, M182, 0) -> 1087 | Q182: =IF(D182=1, N182, 0) -> 0 | R182: =P182+Q182 -> 1087 | S182: 451 | T182: =S182/P182 -> 0.4149034039 | U182: 2 | V182: =U182/Q182 ->  | W182: =S182+U182 -> 453 | X182: =W182/R182 -> 0.4167433303 | Y182: 25 | Z182: 0 | AA182: =Y182+Z182 -> 25 | AB182: 18 | AC182: 0 | AD182: =AB182+AC182 -> 18 | AE182: 0 | AF182: 18 | AG182: =AE182+AF182 -> 18 | AH182: 2 | AI182: 1 | AJ182: 0 | AK182: 1
A183: South Waikato District Council | B183: Putāruru | C183: FPP | D183: 1 | F183: 3 | H183: 7 | I183: 2 | J183: 1 | K183: 0 | L183: 0 | M183: 4682 | N183: 4 | O183: 4686 | P183: 4682 | Q183: 4 | R183: 4686 | S183: 2510 | T183: 0.5360956856 | U183: 4 | V183: 1 | W183: 2514 | X183: 0.5364916773 | Y183: 76 | Z183: 3 | AA183: 79 | AB183: 50 | AC183: 2 | AD183: 52 | AE183: 1 | AF183: 10 | AG183: 11 | AH183: 2 | AI183: 1 | AJ183: 0 | AK183: 3
A184: South Waikato District Council | B184: Tirau | C184: FPP | E184: 1 | F184: 1 | G184: 1 | H184: 1 | I184: 1 | J184: 1 | K184: 0 | L184: 0 | M184: 1646 | N184: 0 | O184: 1646 | AH184: 1 | AI184: 1 | AJ184: 0 | AK184: 1
A185: South Waikato District Council | B185: Tokoroa | C185: FPP | D185: 1 | E185: 0 | F185: 6 | G185: 0 | H185: 16 | I185: 5 | J185: 3 | M185: 10161 | N185: 2 | O185: 10163 | P185: =IF(D185=1, M185, 0) -> 10161 | Q185: =IF(D185=1, N185, 0) -> 2 | R185: =P185+Q185 -> 10163 | S185: 4337 | T185: =S185/P185 -> 0.4268280681 | U185: 1 | V185: =U185/Q185 -> 0.5 | W185: =S185+U185 -> 4338 | X185: =W185/R185 -> 0.4268424678 | Y185: 158 | Z185: 4 | AA185: =Y185+Z185 -> 162 | AB185: 114 | AC185: 4 | AD185: =AB185+AC185 -> 118 | AE185: 11 | AF185: 17 | AG185: =AE185+AF185 -> 28 | AH185: 3 | AI185: 3 | AJ185: 0 | AK185: 6
A186: South Wairarapa District Council | B186: Featherston | C186: FPP | D186: 1 | F186: 3 | G186: 0 | H186: 5 | I186: 1 | J186: 1 | M186: 2501 | N186: 16 | O186: 2517 | P186: 2501 | Q186: 16 | R186: 2517 | S186: 1346 | T186: 0.5381847261 | U186: 15 | V186: 0.9375 | W186: 1361 | X186: 0.540723083 | Y186: 37 | Z186: 4 | AA186: 41 | AB186: 30 | AC186: 3 | AD186: 33 | AE186: 4 | AF186: 23 | AG186: 27 | AH186: 2 | AI186: 1 | AJ186: 0 | AK186: 3
A187: South Wairarapa District Council | B187: Greytown | C187: FPP | D187: 1 | E187: 0 | F187: 3 | H187: 4 | I187: 1 | J187: 1 | M187: 3277 | N187: 23 | O187: 3300 | P187: 3277 | Q187: 23 | R187: 3300 | S187: 2027 | T187: 0.6185535551 | U187: 21 | V187: 0.9130434783 | W187: 2048 | X187: 0.6206060606 | Y187: 68 | Z187: 16 | AA187: 84 | AB187: 51 | AC187: 12 | AD187: 63 | AE187: 2 | AF187: 60 | AG187: 62 | AH187: 2 | AI187: 1 | AJ187: 0 | AK187: 3
A188: South Wairarapa District Council | B188: Martinborough | C188: FPP | D188: 1 | E188: 0 | F188: 3 | G188: 0 | H188: 5 | I188: 1 | J188: 1 | K188: 1 | M188: 2994 | N188: 75 | O188: 3069 | P188: 2994 | Q188: 75 | R188: 3069 | S188: 1940 | T188: 0.6479625919 | U188: 70 | V188: 0.9333333333 | W188: 2010 | X188: 0.6549364614 | Y188: 62 | Z188: 27 | AA188: 89 | AB188: 39 | AC188: 17 | AD188: 56 | AE188: 5 | AF188: 26 | AG188: 31 | AH188: 1 | AJ188: 0 | AK188: 3
A189: South Wairarapa District Council | B189: Te Karu O Te Ika a Maui Māori | C189: FPP | D189: 1 | E189: 0 | F189: 1 | G189: 0 | H189: 2 | I189: 0 | J189: 0 | K189: 0 | L189: 0 | M189: 460 | N189: 0 | O189: 460 | P189: 460 | Q189: 0 | R189: 460 | S189: 208 | T189: 0.452173913 | U189: 0 | W189: 208 | X189: 0.452173913 | Y189: 11 | Z189: 0 | AA189: 11 | AB189: 9 | AC189: 0 | AD189: 9 | AE189: 0 | AF189: 14 | AG189: 14 | AH189: 1 | AI189: 1 | AJ189: 0 | AK189: 1
A190: Southland District Council | B190: Maraora Waimea | C190: FPP | D190: 0 | E190: 1 | F190: 3 | G190: 3 | H190: 3 | I190: 3 | J190: 3 | K190: 0 | L190: 0 | M190: 5309 | N190: 55 | O190: 5364 | AH190: 1 | AI190: 1 | AJ190: 0 | AK190: 3
A191: Southland District Council | B191: Waiau Aparima | C191: FPP | D191: 1 | E191: 0 | F191: 3 | G191: 0 | H191: 4 | I191: 2 | J191: 2 | K191: 1 | L191: 1 | M191: 4913 | N191: 23 | O191: 4936 | P191: =IF(D191=1, M191, 0) -> 4913 | Q191: =IF(D191=1, N191, 0) -> 23 | R191: =P191+Q191 -> 4936 | S191: 1956 | T191: =S191/P191 -> 0.3981274171 | U191: 23 | V191: =U191/Q191 -> 1 | W191: =S191+U191 -> 1979 | X191: =W191/R191 -> 0.4009319287 | Y191: 21 | Z191: 3 | AA191: =Y191+Z191 -> 24 | AB191: 20 | AC191: 2 | AD191: =AB191+AC191 -> 22 | AE191: 0 | AF191: 97 | AG191: =AE191+AF191 -> 97 | AH191: 1 | AI191: 1 | AJ191: 0 | AK191: 3
A192: Southland District Council | B192: Oreti | C192: FPP | D192: 1 | E192: 0 | F192: 3 | G192: 0 | H192: 4 | I192: 1 | J192: 1 | K192: 2 | L192: 1 | M192: 5970 | N192: 3 | O192: 5973 | P192: 5970 | Q192: 3 | R192: 5973 | S192: 2632 | T192: 0.4408710218 | U192: 2 | V192: 0.6666666667 | W192: 2634 | X192: 0.4409844299 | Y192: 41 | Z192: 4 | AA192: 45 | AB192: 32 | AC192: 2 | AD192: 34 | AE192: 0 | AF192: 72 | AG192: 72 | AH192: 2 | AI192: 1 | AJ192: 0 | AK192: 3
A193: Southland District Council | B193: Waihopai Toetoe | C193: FPP | D193: 1 | E193: 0 | F193: 2 | G193: 0 | H193: 4 | I193: 2 | J193: 2 | K193: 1 | M193: 4013 | N193: 11 | O193: 4024 | P193: 4013 | Q193: 11 | R193: 4024 | S193: 1549 | T193: 0.3859955146 | U193: 10 | V193: 0.9090909091 | W193: 1559 | X193: 0.3874254473 | Y193: 13 | Z193: 2 | AA193: 15 | AB193: 10 | AC193: 2 | AD193: 12 | AE193: 2 | AF193: 23 | AG193: 25 | AH193: 2 | AI193: 1 | AJ193: 0 | AK193: 2
A194: Southland District Council | B194: Stewart Island/Rakiura | C194: FPP | D194: 0 | E194: 1 | F194: 1 | G194: 1 | H194: 1 | I194: 1 | J194: 1 | M194: 318 | N194: 28 | O194: 346 | AJ194: 0 | AK194: 1
A195: Stratford District Council | B195: Stratford Rural General | C195: FPP | D195: 0 | E195: 1 | F195: 4 | G195: 4 | H195: 4 | I195: 3 | J195: 3 | M195: 2424 | N195: 7 | O195: 2431 | AH195: 2 | AI195: 2 | AJ195: 0 | AK195: 4
A196: Stratford District Council | B196: Stratford Urban General | C196: FPP | D196: 1 | F196: 6 | H196: 12 | I196: 4 | J196: 4 | K196: 0 | L196: 0 | M196: 4074 | N196: 4 | O196: 4078 | P196: =IF(D196=1, M196, 0) -> 4074 | Q196: =IF(D196=1, N196, 0) -> 4 | R196: =P196+Q196 -> 4078 | S196: 2239 | T196: =S196/P196 -> 0.5495827197 | U196: 6 | V196: =U196/Q196 -> 1.5 | W196: =S196+U196 -> 2245 | X196: =W196/R196 -> 0.5505149583 | Y196: 80 | Z196: 2 | AA196: =Y196+Z196 -> 82 | AB196: 48 | AC196: 1 | AD196: =AB196+AC196 -> 49 | AE196: 8 | AF196: 29 | AG196: =AE196+AF196 -> 37 | AH196: 4 | AI196: 3 | AJ196: 0 | AK196: 6
A197: Stratford District Council | B197: Stratford Māori | C197: FPP | D197: 1 | E197: 0 | F197: 1 | H197: 3 | I197: 0 | J197: 0 | K197: 0 | L197: 0 | M197: 346 | N197: 0 | O197: 346 | P197: 346 | Q197: 0 | R197: 346 | S197: 131 | T197: 0.3786127168 | U197: 0 | W197: 131 | X197: 0.3786127168 | Y197: 6 | Z197: 0 | AA197: 6 | AB197: 5 | AC197: 0 | AD197: 5 | AE197: 0 | AF197: 3 | AG197: 3 | AH197: 1 | AJ197: 0 | AK197: 1
A198: Tararua District Council | B198: North Tararua General | C198: FPP | D198: 1 | E198: 0 | F198: 4 | G198: 0 | H198: 11 | I198: 3 | J198: 3 | K198: 1 | L198: 0 | M198: 6041 | N198: 13 | O198: 6054 | P198: 6041 | Q198: 13 | R198: 6054 | S198: 3704 | T198: 0.6131435193 | U198: 12 | V198: 0.9230769231 | W198: 3716 | X198: 0.6138090519 | Y198: 98 | Z198: 3 | AA198: 101 | AB198: 86 | AC198: 3 | AD198: 89 | AE198: 3 | AF198: 23 | AG198: 26 | AH198: 5 | AI198: 3 | AJ198: 0 | AK198: 4
A199: Tararua District Council | B199: South Tararua General | C199: FPP | D199: 1 | E199: 0 | F199: 4 | G199: 0 | H199: 11 | I199: 3 | J199: 1 | K199: 1 | L199: 0 | M199: 5374 | N199: 9 | O199: 5383 | P199: 5374 | Q199: 9 | R199: 5383 | S199: 2765 | T199: 0.5145143282 | U199: 7 | V199: 0.7777777778 | W199: 2772 | X199: 0.5149544863 | Y199: 42 | Z199: 5 | AA199: 47 | AB199: 34 | AC199: 4 | AD199: 38 | AE199: 5 | AF199: 66 | AG199: 71 | AH199: 1 | AI199: 1 | AJ199: 0 | AK199: 4
A200: Tararua District Council | B200: Tamaki nui-a-Rua Māori | C200: FPP | D200: 1 | E200: 0 | F200: 1 | H200: 2 | I200: 1 | J200: 0 | K200: 0 | L200: 0 | M200: 1397 | N200: 1 | O200: 1398 | P200: 1397 | Q200: 1 | R200: 1398 | S200: 630 | T200: 0.4509663565 | U200: 1 | V200: 1 | W200: 631 | X200: 0.4513590844 | Y200: 47 | Z200: 0 | AA200: 47 | AB200: 41 | AC200: 0 | AD200: 41 | AE200: 0 | AF200: 21 | AG200: 21 | AH200: 2 | AI200: 1 | AJ200: 0 | AK200: 1
A201: Tasman District Council | B201: Golden Bay | C201: FPP | D201: 1 | E201: 0 | F201: 2 | H201: 5 | I201: 2 | J201: 2 | K201: 0 | L201: 0 | M201: 4105 | N201: 74 | O201: 4179 | P201: 4105 | Q201: 74 | R201: 4179 | S201: 2379 | T201: 0.5795371498 | U201: 68 | V201: 0.9189189189 | W201: 2447 | X201: 0.5855467815 | Y201: 95 | Z201: 4 | AA201: 99 | AB201: 45 | AC201: 3 | AD201: 48 | AE201: 1 | AF201: 16 | AG201: 17 | AH201: 1 | AI201: 1 | AJ201: 0 | AK201: 2
... 76 more rows

Sheet TA Summary
A1: TOTAL | C1: =SUM(C4:C69) -> 224 | D1: =SUM(D4:D69) -> 50 | E1: 709 | F1: 67 | G1: 1639 | H1: 474 | I1: 393 | J1: 88 | K1: 33 | L1: 3443595 | M1: 7453 | N1: 3451048 | O1: 3174075 | P1: 7038 | Q1: 3181113 | R1: 1253005 | S1: =R1/O1 -> 0.3947622536 | T1: 6172 | U1: =T1/P1 -> 0.87695368 | V1: 1259177 | W1: =V1/Q1 -> 0.3958290699 | X1: 43743 | Y1: 1057 | Z1: 44800 | AA1: 30759 | AB1: 799 | AC1: 31558 | AD1: 7972 | AE1: 30368 | AF1: 38340 | AG1: 587 | AH1: 283 | AI1: 0 | AJ1: 709
A3: Authority | B3: Electoral system | C3: Contested Wards (N) | D3: Uncontested Wards (N) | E3: Positions (N) | F3: Elected uncontested (N) | G3: Candidates (N) | H3: Candidates - Council sitting members (N) | I3: Council members re-elected (N) | J3: Candidates - community board members (N) | K3: Community board members elected (N) | L3: Electors - Residential (N) | M3: Electors - Ratepayer (N) | N3: Electors - Total (N) | O3: Residential electors (contested wards only) | P3: Ratepayer electors (contested wards only) | Q3: Total electors (Contested wards only) | R3: Residential voters (N) | S3: Residential turnout (%) | T3: Ratepayer voters (N) | U3: Ratepayer turnout (%) | V3: Total voters (N) | W3: Overall turnout (%) | X3: Residential special votes cast (N) | Y3: Ratepayer special votes cast (N) | Z3: Total special votes cast (N) | AA3: Residential special votes allowed (N) | AB3: Ratepayer special votes allowed (N) | AC3: Total special votes allowed (N) | AD3: Informal votes (N) | AE3: Blank votes (N) | AF3: Blank and informal votes (N) | AG3: Female candidates (N) | AH3: Female councillors (N) | AI3: Unfilled positions | AJ3: Total number elected
A4: Ashburton District Council | B4: FPP | C4: 2 | D4: 1 | E4: 9 | F4: 2 | G4: 14 | H4: 6 | I4: 5 | J4: 0 | K4: 0 | L4: 22949 | M4: 25 | N4: 22974 | O4: 18742 | P4: 21 | Q4: 18763 | R4: 8851 | S4: 0.4722548287 | T4: 20 | U4: 0.9523809524 | V4: 8871 | W4: 0.4727921974 | X4: 157 | Y4: 3 | Z4: 160 | AA4: 118 | AB4: 2 | AC4: 120 | AD4: 40 | AE4: 50 | AF4: 90 | AG4: 6 | AH4: 4 | AI4: 0 | AJ4: 9
A5: Auckland Council | B5: FPP | C5: 11 | D5: 2 | E5: 20 | F5: 2 | G5: 81 | H5: 16 | I5: 15 | J5: 18 | K5: 5 | L5: 1194607 | M5: 346 | N5: 1194953 | O5: 1070933 | P5: 292 | Q5: 1071225 | R5: 305552 | S5: 0.2853138338 | T5: 288 | U5: 0.9863013699 | V5: 305840 | W5: 0.2855049126 | X5: 8430 | Y5: 37 | Z5: 8467 | AA5: 4778 | AB5: 35 | AC5: 4813 | AD5: 643 | AE5: 7593 | AF5: 8236 | AG5: 25 | AH5: 8 | AI5: 0 | AJ5: 20
A6: Buller District Council | B6: FPP | C6: 1 | D6: 2 | E6: 10 | F6: 4 | G6: 21 | H6: 7 | I6: 4 | J6: 0 | K6: 0 | L6: 7579 | M6: 49 | N6: 7628 | O6: 4900 | P6: 26 | Q6: 4926 | R6: 2883 | S6: 0.5883673469 | T6: 21 | U6: 0.8076923077 | V6: 2904 | W6: 0.5895249695 | X6: 118 | Y6: 6 | Z6: 124 | AA6: 81 | AB6: 4 | AC6: 85 | AD6: 7 | AE6: 1 | AF6: 8 | AG6: 7 | AH6: 4 | AI6: 0 | AJ6: 10
A7: Carterton District Council | B7: FPP | C7: 1 | D7: 0 | E7: 8 | F7: 0 | G7: 18 | H7: 6 | I7: 5 | J7: 0 | K7: 0 | L7: 7678 | M7: 40 | N7: 7718 | O7: 7678 | P7: 40 | Q7: 7718 | R7: 4127 | S7: 0.5375097682 | T7: 32 | U7: 0.8 | V7: 4159 | W7: 0.5388701736 | X7: 104 | Y7: 20 | Z7: 124 | AA7: 89 | AB7: 16 | AC7: 105 | AD7: 9 | AE7: 26 | AF7: 35 | AG7: 5 | AH7: 3 | AI7: 0 | AJ7: 8
A8: Central Hawke's Bay District Council | B8: FPP | C8: 4 | D8: 0 | E8: 9 | F8: 0 | G8: 18 | H8: 6 | I8: 6 | J8: 0 | K8: 0 | L8: 10855 | M8: 23 | N8: 10878 | O8: 10855 | P8: 23 | Q8: 10878 | R8: 6114 | S8: 0.5632427453 | T8: 20 | U8: 0.8695652174 | V8: 6134 | W8: 0.563890421 | X8: 148 | Y8: 12 | Z8: 160 | AA8: 112 | AB8: 10 | AC8: 122 | AD8: 12 | AE8: 370 | AF8: 382 | AG8: 9 | AH8: 5 | AI8: 0 | AJ8: 9
A9: Central Otago District Council | B9: FPP | C9: 4 | D9: 0 | E9: 10 | F9: 0 | G9: 24 | H9: 7 | I9: 5 | J9: 3 | K9: 1 | L9: 17757 | M9: 155 | N9: 17912 | O9: 17757 | P9: 155 | Q9: 17912 | R9: 9801 | S9: 0.5519513431 | T9: 135 | U9: 0.8709677419 | V9: 9936 | W9: 0.554711925 | X9: 210 | Y9: 25 | Z9: 235 | AA9: 179 | AB9: 18 | AC9: 197 | AD9: 11 | AE9: 131 | AF9: 142 | AG9: 8 | AH9: 3 | AI9: 0 | AJ9: 10
A10: Chatham Islands Council | B10: FPP | C10: 1 | D10: 0 | E10: 8 | F10: 0 | G10: 14 | H10: 5 | I10: 3 | J10: 0 | K10: 0 | L10: 439 | M10: 5 | N10: 444 | O10: 439 | P10: 5 | Q10: 444 | R10: 313 | S10: 0.7129840547 | T10: 3 | U10: 0.6 | V10: 316 | W10: 0.7117117117 | X10: 16 | Y10: 0 | Z10: 16 | AA10: 13 | AB10: 0 | AC10: 13 | AD10: 3 | AE10: 1 | AF10: 4 | AG10: 10 | AH10: 5 | AI10: 0 | AJ10: 8
A11: Christchurch City Council | B11: FPP | C11: 13 | D11: 3 | E11: 16 | F11: 3 | G11: 40 | H11: 14 | I11: 14 | J11: 5 | K11: 1 | L11: 280263 | M11: 324 | N11: 280587 | O11: 225598 | P11: 282 | Q11: 225880 | R11: 86999 | S11: 0.385637284 | T11: 249 | U11: 0.8829787234 | V11: 87248 | W11: 0.3862581902 | X11: 2647 | Y11: 46 | Z11: 2693 | AA11: 2185 | AB11: 33 | AC11: 2218 | AD11: 138 | AE11: 2283 | AF11: 2421 | AG11: 12 | AH11: 4 | AI11: 0 | AJ11: 16
A12: Clutha District Council | B12: FPP | C12: 5 | D12: 3 | E12: 9 | F12: 3 | G12: 21 | H12: 6 | I12: 4 | J12: 0 | K12: 1 | L12: 12339 | M12: 36 | N12: 12375 | O12: 8225 | P12: 17 | Q12: 8242 | R12: 4454 | S12: 0.5415197568 | T12: 14 | U12: 0.8235294118 | V12: 4468 | W12: 0.5421014317 | X12: 67 | Y12: 2 | Z12: 69 | AA12: 56 | AB12: 2 | AC12: 58 | AD12: 16 | AE12: 42 | AF12: 58 | AG12: 8 | AH12: 3 | AI12: 0 | AJ12: 9
A13: Dunedin City Council | B13: STV | C13: 1 | D13: 0 | E13: 14 | F13: 0 | G13: 54 | H13: 14 | I13: 8 | J13: 3 | K13: 1 | L13: 94566 | M13: 151 | N13: 94717 | O13: 94566 | P13: 151 | Q13: 94717 | R13: 43171 | S13: 0.4565171415 | T13: 129 | U13: 0.8543046358 | V13: 43300 | W13: 0.4571513034 | X13: 1323 | Y13: 27 | Z13: 1350 | AA13: 1141 | AB13: 24 | AC13: 1165 | AD13: 579 | AE13: 423 | AF13: 1002 | AG13: 23 | AH13: 4 | AI13: 0 | AJ13: 14
A14: Far North District Council | B14: STV | C14: 4 | D14: 0 | E14: 10 | F14: 0 | G14: 30 | H14: 9 | I14: 6 | J14: 4 | K14: 2 | L14: 48306 | M14: 145 | N14: 48451 | O14: 48306 | P14: 145 | Q14: 48451 | R14: 24424 | S14: 0.5056100691 | T14: 130 | U14: 0.8965517241 | V14: 24554 | W14: 0.5067800458 | X14: 1700 | Y14: 3 | Z14: 1703 | AA14: 795 | AB14: 3 | AC14: 798 | AD14: 242 | AE14: 368 | AF14: 610 | AG14: 11 | AH14: 8 | AI14: 0 | AJ14: 10
A15: Gisborne District Council | B15: STV | C15: 2 | D15: 0 | E15: 13 | F15: 0 | G15: 30 | H15: 10 | I15: 9 | J15: 0 | K15: 0 | L15: 34022 | M15: 45 | N15: 34067 | O15: 34022 | P15: 45 | Q15: 34067 | R15: 16338 | S15: 0.480218682 | T15: 39 | U15: 0.8666666667 | V15: 16377 | W15: 0.4807291514 | X15: 936 | Y15: 2 | Z15: 938 | AA15: 630 | AB15: 2 | AC15: 632 | AD15: 329 | AE15: 126 | AF15: 455 | AG15: 10 | AH15: 6 | AI15: 0 | AJ15: 13
A16: Gore District Council | B16: FPP | C16: 2 | D16: 2 | E16: 11 | F16: 3 | G16: 14 | H16: 3 | I16: 3 | J16: 2 | K16: 1 | L16: 9024 | M16: 25 | N16: 9049 | O16: 9024 | P16: 25 | Q16: 9049 | R16: 4968 | S16: 0.5505319149 | T16: 23 | U16: 0.92 | V16: 4991 | W16: 0.5515526578 | X16: 125 | Y16: 8 | Z16: 133 | AA16: 109 | AB16: 7 | AC16: 116 | AD16: 13 | AE16: 203 | AF16: 216 | AG16: 4 | AH16: 3 | AI16: 0 | AJ16: 11
A17: Grey District Council | B17: FPP | C17: 2 | D17: 2 | E17: 8 | F17: 3 | G17: 12 | H17: 7 | I17: 6 | J17: 0 | K17: 0 | L17: 9874 | M17: 12 | N17: 9886 | O17: 6280 | P17: 9 | Q17: 6289 | R17: 3085 | S17: 0.4912420382 | T17: 7 | U17: 0.7777777778 | V17: 3092 | W17: 0.491652091 | X17: 81 | Y17: 3 | Z17: 84 | AA17: 63 | AB17: 3 | AC17: 66 | AD17: 3 | AE17: 81 | AF17: 84 | AG17: 3 | AH17: 2 | AI17: 0 | AJ17: 8
A18: Hamilton City Council | B18: STV | C18: 3 | D18: 0 | E18: 14 | F18: 0 | G18: 48 | H18: 8 | I18: 6 | J18: 0 | K18: 0 | L18: 115249 | M18: 184 | N18: 115433 | O18: 115249 | P18: 184 | Q18: 115433 | R18: 37896 | S18: 0.3288184713 | T18: 167 | U18: 0.9076086957 | V18: 38063 | W18: 0.3297410619 | X18: 2260 | Y18: 1 | Z18: 2261 | AA18: 1307 | AB18: 1 | AC18: 1308 | AD18: 632 | AE18: 501 | AF18: 1133 | AG18: 19 | AH18: 8 | AI18: 0 | AJ18: 14
A19: Hastings District Council | B19: FPP | C19: 4 | D19: 2 | E19: 15 | F19: 3 | G19: 29 | H19: 6 | I19: 5 | J19: 0 | K19: 0 | L19: 58314 | M19: 63 | N19: 58377 | O19: 47139 | P19: 42 | Q19: 47181 | R19: 20795 | S19: 0.4411421541 | T19: 40 | U19: 0.9523809524 | V19: 20835 | W19: 0.4415972531 | X19: 618 | Y19: 11 | Z19: 629 | AA19: 527 | AB19: 7 | AC19: 534 | AD19: 32 | AE19: 351 | AF19: 383 | AG19: 12 | AH19: 5 | AI19: 0 | AJ19: 15
A20: Hauraki District Council | B20: FPP | C20: 3 | D20: 1 | E20: 13 | F20: 2 | G20: 19 | H20: 8 | I20: 8 | J20: 0 | K20: 0 | L20: 15181 | M20: 29 | N20: 15210 | O20: 13559 | P20: 29 | Q20: 13588 | R20: 5669 | S20: 0.4180986798 | T20: 24 | U20: 0.8275862069 | V20: 5693 | W20: 0.4189726229 | X20: 126 | Y20: 0 | Z20: 126 | AA20: 86 | AB20: 0 | AC20: 86 | AD20: 9 | AE20: 65 | AF20: 74 | AG20: 6 | AH20: 5 | AI20: 0 | AJ20: 13
A21: Horowhenua District Council | B21: FPP | C21: 5 | D21: 0 | E21: 12 | F21: 0 | G21: 31 | H21: 6 | I21: 6 | J21: 2 | K21: 1 | L21: 25651 | M21: 94 | N21: 25745 | O21: 25651 | P21: 94 | Q21: 25745 | R21: 12127 | S21: 0.4727690928 | T21: 87 | U21: 0.9255319149 | V21: 12214 | W21: 0.4744222179 | X21: 484 | Y21: 32 | Z21: 516 | AA21: 407 | AB21: 23 | AC21: 430 | AD21: 13 | AE21: 226 | AF21: 239 | AG21: 13 | AH21: 5 | AI21: 0 | AJ21: 12
A22: Hurunui District Council | B22: FPP | C22: 2 | D22: 1 | E22: 10 | F22: 2 | G22: 16 | H22: 6 | I22: 6 | J22: 0 | K22: 0 | L22: 9607 | M22: 80 | N22: 9687 | O22: 7746 | P22: 68 | Q22: 7814 | R22: 3278 | S22: 0.4231861606 | T22: 59 | U22: 0.8676470588 | V22: 3337 | W22: 0.4270540056 | X22: 86 | Y22: 6 | Z22: 92 | AA22: 48 | AB22: 3 | AC22: 51 | AD22: 10 | AE22: 25 | AF22: 35 | AG22: 3 | AH22: 2 | AI22: 0 | AJ22: 10
A23: Hutt City Council | B23: FPP | C23: 3 | D23: 4 | E23: 13 | F23: 5 | G23: 25 | H23: 8 | I23: 8 | J23: 3 | K23: 2 | L23: 78961 | M23: 65 | N23: 79026 | O23: 78961 | P23: 65 | Q23: 79026 | R23: 32984 | S23: 0.4177252061 | T23: 53 | U23: 0.8153846154 | V23: 33037 | W23: 0.4180522866 | X23: 1210 | Y23: 26 | Z23: 1236 | AA23: 888 | AB23: 17 | AC23: 905 | AD23: 163 | AE23: 1262 | AF23: 1425 | AG23: 11 | AH23: 8 | AI23: 0 | AJ23: 13
A24: Invercargill City Council | B24: FPP | C24: 1 | D24: 0 | E24: 12 | F24: 0 | G24: 27 | H24: 8 | I24: 8 | J24: 0 | K24: 0 | L24: 38755 | M24: 74 | N24: 38829 | O24: 38755 | P24: 74 | Q24: 38829 | R24: 17930 | S24: 0.4626499806 | T24: 66 | U24: 0.8918918919 | V24: 17996 | W24: 0.4634680265 | X24: 781 | Y24: 18 | Z24: 799 | AA24: 606 | AB24: 13 | AC24: 619 | AD24: 51 | AE24: 132 | AF24: 183 | AG24: 8 | AH24: 5 | AI24: 0 | AJ24: 12
A25: Kaikōura District Council | B25: FPP | C25: 1 | D25: 0 | E25: 7 | F25: 0 | G25: 16 | H25: 4 | I25: 4 | J25: 0 | K25: 0 | L25: 3037 | M25: 25 | N25: 3062 | O25: 3037 | P25: 25 | Q25: 3062 | R25: 1859 | S25: 0.6121172209 | T25: 22 | U25: 0.88 | V25: 1881 | W25: 0.6143043762 | X25: 73 | Y25: 5 | Z25: 78 | AA25: 60 | AB25: 3 | AC25: 63 | AD25: 3 | AE25: 1 | AF25: 4 | AG25: 6 | AH25: 2 | AI25: 0 | AJ25: 7
A26: Kaipara District Council | B26: FPP | C26: 3 | D26: 0 | E26: 8 | F26: 0 | G26: 28 | H26: 6 | I26: 3 | J26: 0 | K26: 0 | L26: 18101 | M26: 226 | N26: 18327 | O26: 18101 | P26: 226 | Q26: 18327 | R26: 10510 | S26: 0.5806309044 | T26: 192 | U26: 0.8495575221 | V26: 10702 | W26: 0.5839471818 | X26: 494 | Y26: 0 | Z26: 494 | AA26: 198 | AB26: 0 | AC26: 198 | AD26: 20 | AE26: 77 | AF26: 97 | AG26: 7 | AH26: 3 | AI26: 0 | AJ26: 8
A27: Kāpiti Coast District Council | B27: STV | C27: 6 | D27: 0 | E27: 10 | F27: 0 | G27: 43 | H27: 8 | I27: 4 | J27: 6 | K27: 2 | L27: 43313 | M27: 351 | N27: 43664 | O27: 43313 | P27: 351 | Q27: 43664 | R27: 20169 | S27: 0.4656569621 | T27: 312 | U27: 0.8888888889 | V27: 20481 | W27: 0.4690591792 | X27: 787 | Y27: 7 | Z27: 794 | AA27: 555 | AB27: 7 | AC27: 562 | AD27: 257 | AE27: 1421 | AF27: 1678 | AG27: 11 | AH27: 3 | AI27: 0 | AJ27: 10
A28: Kawerau District Council | B28: FPP | C28: 3 | D28: 0 | E28: 8 | F28: 0 | G28: 12 | H28: 4 | I28: 3 | J28: 0 | K28: 0 | L28: 5166 | M28: 9 | N28: 5175 | O28: 5166 | P28: 9 | Q28: 5175 | R28: 2339 | S28: 0.4527680991 | T28: 6 | U28: 0.6666666667 | V28: 2345 | W28: 0.4531400966 | X28: 109 | Y28: 3 | Z28: 112 | AA28: 66 | AB28: 2 | AC28: 68 | AD28: 14 | AE28: 63 | AF28: 77 | AG28: 8 | AH28: 5 | AI28: 0 | AJ28: 8
A29: Mackenzie District Council | B29: FPP | C29: 3 | D29: 0 | E29: 7 | F29: 0 | G29: 13 | H29: 3 | I29: 2 | J29: 1 | K29: 1 | L29: 3359 | M29: 113 | N29: 3472 | O29: 3359 | P29: 113 | Q29: 3472 | R29: 2029 | S29: 0.6040488241 | T29: 101 | U29: 0.8938053097 | V29: 2130 | W29: 0.6134792627 | X29: 84 | Y29: 40 | Z29: 124 | AA29: 53 | AB29: 24 | AC29: 77 | AD29: 1 | AE29: 10 | AF29: 11 | AG29: 6 | AH29: 3 | AI29: 0 | AJ29: 7
A30: Manawatū District Council | B30: FPP | C30: 2 | D30: 1 | E30: 11 | F30: 1 | G30: 18 | H30: 5 | I30: 4 | J30: 0 | K30: 0 | L30: 22733 | M30: 29 | N30: 22762 | O30: 21019 | P30: 29 | Q30: 21048 | R30: 9145 | S30: 0.4350825444 | T30: 26 | U30: 0.8965517241 | V30: 9171 | W30: 0.435718358 | X30: 185 | Y30: 8 | Z30: 193 | AA30: 147 | AB30: 6 | AC30: 153 | AD30: 12 | AE30: 149 | AF30: 161 | AG30: 4 | AH30: 4 | AI30: 0 | AJ30: 11
A31: Marlborough District Council | B31: STV | C31: 2 | D31: 2 | E31: 14 | F31: 4 | G31: 26 | H31: 10 | I31: 10 | J31: 0 | K31: 0 | L31: 34720 | M31: 87 | N31: 34807 | O31: 24750 | P31: 81 | Q31: 24831 | R31: 11286 | S31: 0.456 | T31: 73 | U31: 0.9012345679 | V31: 11359 | W31: 0.4574523781 | X31: 226 | Y31: 17 | Z31: 243 | AA31: 193 | AB31: 15 | AC31: 208 | AD31: 198 | AE31: 118 | AF31: 316 | AG31: 13 | AH31: 6 | AI31: 0 | AJ31: 14
A32: Masterton District Council | B32: FPP | C32: 3 | D32: 0 | E32: 8 | F32: 0 | G32: 20 | H32: 7 | I32: 5 | J32: 0 | K32: 0 | L32: 20062 | M32: 46 | N32: 20108 | O32: 20062 | P32: 46 | Q32: 20108 | R32: 9522 | S32: 0.4746286512 | T32: 42 | U32: 0.9130434783 | V32: 9564 | W32: 0.4756315894 | X32: 271 | Y32: 12 | Z32: 283 | AA32: 225 | AB32: 8 | AC32: 233 | AD32: 90 | AE32: 416 | AF32: 506 | AG32: 9 | AH32: 2 | AI32: 0 | AJ32: 8
A33: Matamata-Piako District Council | B33: FPP | C33: 3 | D33: 1 | E33: 12 | F33: 1 | G33: 21 | H33: 9 | I33: 6 | J33: 0 | K33: 0 | L33: 25218 | M33: 15 | N33: 25233 | O33: 23243 | P33: 15 | Q33: 23258 | R33: 11035 | S33: 0.4747665964 | T33: 14 | U33: 0.9333333333 | V33: 11049 | W33: 0.4750623441 | X33: 247 | Y33: 6 | Z33: 253 | AA33: 189 | AB33: 4 | AC33: 193 | AD33: 11 | AE33: 176 | AF33: 187 | AG33: 5 | AH33: 2 | AI33: 0 | AJ33: 12
A34: Napier City Council | B34: FPP | C34: 4 | D34: 0 | E34: 11 | F34: 0 | G34: 21 | H34: 7 | I34: 6 | J34: 0 | K34: 0 | L34: 46217 | M34: 61 | N34: 46278 | O34: 46217 | P34: 61 | Q34: 46278 | R34: 21270 | S34: 0.4602202653 | T34: 55 | U34: 0.9016393443 | V34: 21325 | W34: 0.460802109 | X34: 693 | Y34: 21 | Z34: 714 | AA34: 578 | AB34: 18 | AC34: 596 | AD34: 12 | AE34: 411 | AF34: 423 | AG34: 9 | AH34: 5 | AI34: 0 | AJ34: 11
A35: Nelson City Council | B35: STV | C35: 3 | D35: 1 | E35: 12 | F35: 1 | G35: 32 | H35: 8 | I35: 8 | J35: 0 | K35: 0 | L35: 38556 | M35: 109 | N35: 38665 | O35: 38556 | P35: 109 | Q35: 38665 | R35: 18700 | S35: 0.4850088183 | T35: 89 | U35: 0.8165137615 | V35: 18789 | W35: 0.4859433596 | X35: 661 | Y35: 23 | Z35: 684 | AA35: 550 | AB35: 21 | AC35: 571 | AD35: 692 | AE35: 1306 | AF35: 1998 | AG35: 10 | AH35: 4 | AI35: 0 | AJ35: 12
A36: New Plymouth District Council | B36: STV | C36: 5 | D36: 0 | E36: 14 | F36: 0 | G36: 47 | H36: 7 | I36: 5 | J36: 7 | K36: 2 | L36: 61552 | M36: 55 | N36: 61607 | O36: 61552 | P36: 55 | Q36: 61607 | R36: 28565 | S36: 0.4640791526 | T36: 60 | U36: 1.090909091 | V36: 28625 | W36: 0.4646387586 | X36: 951 | Y36: 4 | Z36: 955 | AA36: 618 | AB36: 2 | AC36: 620 | AD36: 1668 | AE36: 2359 | AF36: 4027 | AG36: 14 | AH36: 6 | AI36: 0 | AJ36: 14
A37: Ōpōtiki District Council | B37: FPP | C37: 4 | D37: 0 | E37: 7 | F37: 0 | G37: 15 | H37: 4 | I37: 4 | J37: 0 | K37: 0 | L37: 6511 | M37: 32 | N37: 6543 | O37: 6511 | P37: 32 | Q37: 6543 | R37: 3030 | S37: 0.4653663032 | T37: 33 | U37: 1.03125 | V37: 3063 | W37: 0.4681338835 | X37: 139 | Y37: 4 | Z37: 143 | AA37: 91 | AB37: 4 | AC37: 95 | AD37: 2 | AE37: 37 | AF37: 39 | AG37: 7 | AH37: 3 | AI37: 0 | AJ37: 7
A38: Ōtorohanga District Council | B38: FPP | C38: 3 | D38: 3 | E38: 9 | F38: 4 | G38: 14 | H38: 4 | I38: 3 | J38: 1 | K38: 1 | L38: 5602 | M38: 47 | N38: 5649 | O38: 3320 | P38: 9 | Q38: 3329 | R38: 1742 | S38: 0.5246987952 | T38: 8 | U38: 0.8888888889 | V38: 1750 | W38: 0.5256833884 | X38: 100 | Y38: 2 | Z38: 102 | AA38: 50 | AB38: 1 | AC38: 51 | AD38: 1 | AE38: 47 | AF38: 48 | AG38: 7 | AH38: 5 | AI38: 0 | AJ38: 9
A39: Palmerston North City Council | B39: STV | C39: 2 | D39: 0 | E39: 15 | F39: 0 | G39: 40 | H39: 14 | I39: 13 | J39: 0 | K39: 0 | L39: 59408 | M39: 70 | N39: 59478 | O39: 59408 | P39: 70 | Q39: 59478 | R39: 24995 | S39: 0.4207345812 | T39: 65 | U39: 0.9285714286 | V39: 25060 | W39: 0.4213322573 | X39: 997 | Y39: 2 | Z39: 999 | AA39: 589 | AB39: 2 | AC39: 591 | AD39: 504 | AE39: 254 | AF39: 758 | AG39: 10 | AH39: 7 | AI39: 0 | AJ39: 15
A40: Porirua City Council | B40: STV | C40: 3 | D40: 0 | E40: 10 | F40: 0 | G40: 27 | H40: 9 | I40: 8 | J40: 0 | K40: 0 | L40: 42991 | M40: 41 | N40: 43032 | O40: 42991 | P40: 41 | Q40: 43032 | R40: 17584 | S40: 0.4090158405 | T40: 39 | U40: 0.9512195122 | V40: 17623 | W40: 0.409532441 | X40: 688 | Y40: 13 | Z40: 701 | AA40: 543 | AB40: 11 | AC40: 554 | AD40: 102 | AE40: 223 | AF40: 325 | AG40: 12 | AH40: 4 | AI40: 0 | AJ40: 10
A41: Queenstown-Lakes District Council | B41: FPP | C41: 3 | D41: 0 | E41: 11 | F41: 0 | G41: 21 | H41: 8 | I41: 5 | J41: 0 | K41: 0 | L41: 30757 | M41: 361 | N41: 31118 | O41: 30757 | P41: 361 | Q41: 31118 | R41: 12642 | S41: 0.4110283838 | T41: 285 | U41: 0.7894736842 | V41: 12927 | W41: 0.4154187287 | X41: 536 | Y41: 72 | Z41: 608 | AA41: 467 | AB41: 63 | AC41: 530 | AD41: 26 | AE41: 200 | AF41: 226 | AG41: 5 | AH41: 3 | AI41: 0 | AJ41: 11
A42: Rangitīkei District Council | B42: FPP | C42: 4 | D42: 1 | E42: 11 | F42: 1 | G42: 18 | H42: 5 | I42: 5 | J42: 1 | K42: 0 | L42: 10917 | M42: 18 | N42: 10935 | O42: 9985 | P42: 17 | Q42: 10002 | R42: 5000 | S42: 0.5007511267 | T42: 15 | U42: 0.8823529412 | V42: 5015 | W42: 0.5013997201 | X42: 88 | Y42: 9 | Z42: 97 | AA42: 65 | AB42: 6 | AC42: 71 | AD42: 7 | AE42: 79 | AF42: 86 | AG42: 5 | AH42: 5 | AI42: 0 | AJ42: 11
A43: Rotorua District Council | B43: FPP | C43: 2 | D43: 1 | E43: 10 | F43: 1 | G43: 29 | H43: 9 | I43: 7 | J43: 0 | K43: 0 | L43: 49922 | M43: 160 | N43: 50082 | O43: 45333 | P43: 149 | Q43: 45482 | R43: 19636 | S43: 0.4331502438 | T43: 130 | U43: 0.8724832215 | V43: 19766 | W43: 0.4345895079 | X43: 772 | Y43: 20 | Z43: 792 | AA43: 658 | AB43: 19 | AC43: 677 | AD43: 49 | AE43: 175 | AF43: 224 | AG43: 9 | AH43: 3 | AI43: 0 | AJ43: 10
A44: Ruapehu District Council | B44: STV | C44: 2 | D44: 0 | E44: 9 | F44: 0 | G44: 20 | H44: 7 | I44: 6 | J44: 3 | K44: 1 | L44: 8208 | M44: 136 | N44: 8344 | O44: 8208 | P44: 136 | Q44: 8344 | R44: 4189 | S44: 0.5103557505 | T44: 113 | U44: 0.8308823529 | V44: 4302 | W44: 0.5155800575 | X44: 164 | Y44: 26 | Z44: 190 | AA44: 111 | AB44: 21 | AC44: 132 | AD44: 52 | AE44: 109 | AF44: 161 | AG44: 11 | AH44: 4 | AI44: 0 | AJ44: 9
A45: Selwyn District Council | B45: FPP | C45: 5 | D45: 0 | E45: 10 | F45: 0 | G45: 29 | H45: 2 | I45: 2 | J45: 2 | K45: 0 | L45: 54660 | M45: 62 | N45: 54722 | O45: 54660 | P45: 62 | Q45: 54722 | R45: 26381 | S45: 0.4826381266 | T45: 59 | U45: 0.9516129032 | V45: 26440 | W45: 0.4831694748 | X45: 760 | Y45: 11 | Z45: 771 | AA45: 606 | AB45: 6 | AC45: 612 | AD45: 145 | AE45: 2011 | AF45: 2156 | AG45: 8 | AH45: 5 | AI45: 0 | AJ45: 10
A46: South Taranaki District Council | B46: FPP | C46: 4 | D46: 2 | E46: 13 | F46: 0 | G46: 16 | H46: 10 | I46: 9 | J46: 2 | K46: 2 | L46: 18669 | M46: 27 | N46: 18696 | O46: 14975 | P46: 14 | Q46: 14989 | R46: 6848 | S46: 0.4572954925 | T46: 15 | U46: 1.071428571 | V46: 6863 | W46: 0.457869104 | X46: 143 | Y46: 0 | Z46: 143 | AA46: 80 | AB46: 0 | AC46: 80 | AD46: 5 | AE46: 160 | AF46: 165 | AG46: 10 | AH46: 7 | AI46: 0 | AJ46: 13
A47: South Waikato District Council | B47: FPP | C47: 2 | D47: 1 | E47: 10 | F47: 1 | G47: 24 | H47: 8 | I47: 5 | J47: 0 | K47: 0 | L47: 16489 | M47: 6 | N47: 16495 | O47: 14843 | P47: 6 | Q47: 14849 | R47: 6847 | S47: 0.4612948865 | T47: 5 | U47: 0.8333333333 | V47: 6852 | W47: 0.4614452152 | X47: 234 | Y47: 7 | Z47: 241 | AA47: 164 | AB47: 6 | AC47: 170 | AD47: 12 | AE47: 27 | AF47: 39 | AG47: 6 | AH47: 5 | AI47: 0 | AJ47: 10
A48: South Wairarapa District Council | B48: FPP | C48: 4 | D48: 0 | E48: 10 | F48: 0 | G48: 16 | H48: 3 | I48: 3 | J48: 1 | K48: 0 | L48: 9232 | M48: 114 | N48: 9346 | O48: 9232 | P48: 114 | Q48: 9346 | R48: 5521 | S48: 0.5980285962 | T48: 106 | U48: 0.9298245614 | V48: 5627 | W48: 0.6020757543 | X48: 178 | Y48: 47 | Z48: 225 | AA48: 129 | AB48: 32 | AC48: 161 | AD48: 11 | AE48: 123 | AF48: 134 | AG48: 6 | AH48: 3 | AI48: 0 | AJ48: 10
A49: Southland District Council | B49: FPP | C49: 3 | D49: 2 | E49: 12 | F49: 4 | G49: 16 | H49: 9 | I49: 9 | J49: 4 | K49: 2 | L49: 20523 | M49: 120 | N49: 20643 | O49: 14896 | P49: 37 | Q49: 14933 | R49: 6137 | S49: 0.4119897959 | T49: 35 | U49: 0.9459459459 | V49: 6172 | W49: 0.4133127972 | X49: 75 | Y49: 9 | Z49: 84 | AA49: 62 | AB49: 6 | AC49: 68 | AD49: 2 | AE49: 192 | AF49: 194 | AG49: 6 | AH49: 4 | AI49: 0 | AJ49: 12
A50: Stratford District Council | B50: FPP | C50: 2 | D50: 1 | E50: 11 | F50: 4 | G50: 19 | H50: 7 | I50: 7 | J50: 0 | K50: 0 | L50: 6844 | M50: 11 | N50: 6855 | O50: 4420 | P50: 4 | Q50: 4424 | R50: 2370 | S50: 0.536199095 | T50: 6 | U50: 1.5 | V50: 2376 | W50: 0.5370705244 | X50: 86 | Y50: 2 | Z50: 88 | AA50: 53 | AB50: 1 | AC50: 54 | AD50: 8 | AE50: 32 | AF50: 40 | AG50: 7 | AH50: 5 | AI50: 0 | AJ50: 11
A51: Tararua District Council | B51: FPP | C51: 3 | D51: 0 | E51: 9 | F51: 0 | G51: 24 | H51: 7 | I51: 4 | J51: 2 | K51: 0 | L51: 12812 | M51: 23 | N51: 12835 | O51: 12812 | P51: 23 | Q51: 12835 | R51: 7099 | S51: 0.5540899157 | T51: 20 | U51: 0.8695652174 | V51: 7119 | W51: 0.5546552396 | X51: 187 | Y51: 8 | Z51: 195 | AA51: 161 | AB51: 7 | AC51: 168 | AD51: 8 | AE51: 110 | AF51: 118 | AG51: 8 | AH51: 5 | AI51: 0 | AJ51: 9
A52: Tasman District Council | B52: FPP | C52: 5 | D52: 1 | E52: 14 | F52: 0 | G52: 23 | H52: 9 | I52: 8 | J52: 0 | K52: 0 | L52: 42084 | M52: 186 | N52: 42270 | O52: 40743 | P52: 185 | Q52: 40928 | R52: 19596 | S52: 0.4809660555 | T52: 176 | U52: 0.9513513514 | V52: 19772 | W52: 0.4830922596 | X52: 522 | Y52: 6 | Z52: 528 | AA52: 327 | AB52: 5 | AC52: 332 | AD52: 25 | AE52: 416 | AF52: 441 | AG52: 5 | AH52: 4 | AI52: 0 | AJ52: 14
A53: Taupō District Council | B53: FPP | C53: 5 | D53: 0 | E53: 12 | F53: 0 | G53: 26 | H53: 8 | I53: 5 | J53: 0 | K53: 0 | L53: 27831 | M53: 438 | N53: 28269 | O53: 27831 | P53: 438 | Q53: 28269 | R53: 15489 | S53: 0.5565376738 | T53: 377 | U53: 0.8607305936 | V53: 15866 | W53: 0.5612508401 | X53: 720 | Y53: 105 | Z53: 825 | AA53: 578 | AB53: 99 | AC53: 677 | AD53: 34 | AE53: 294 | AF53: 328 | AG53: 14 | AH53: 9 | AI53: 0 | AJ53: 12
A54: Thames-Coromandel District Council | B54: FPP | C54: 4 | D54: 1 | E54: 10 | F54: 1 | G54: 24 | H54: 4 | I54: 2 | J54: 5 | K54: 0 | L54: 24314 | M54: 1195 | N54: 25509 | O54: 22578 | P54: 1189 | Q54: 23767 | R54: 11254 | S54: 0.4984498184 | T54: 1018 | U54: 0.8561816653 | V54: 12272 | W54: 0.5163461943 | X54: 444 | Y54: 2 | Z54: 446 | AA54: 237 | AB54: 2 | AC54: 239 | AD54: 74 | AE54: 438 | AF54: 512 | AG54: 5 | AH54: 2 | AI54: 0 | AJ54: 10
A55: Timaru District Council | B55: FPP | C55: 3 | D55: 0 | E55: 9 | F55: 0 | G55: 20 | H55: 7 | I55: 6 | J55: 1 | K55: 0 | L55: 33581 | M55: 21 | N55: 33602 | O55: 33581 | P55: 21 | Q55: 33602 | R55: 16239 | S55: 0.4835770227 | T55: 20 | U55: 0.9523809524 | V55: 16259 | W55: 0.4838700077 | X55: 309 | Y55: 10 | Z55: 319 | AA55: 248 | AB55: 7 | AC55: 255 | AD55: 34 | AE55: 164 | AF55: 198 | AG55: 4 | AH55: 2 | AI55: 0 | AJ55: 9
A56: Upper Hutt City Council | B56: FPP | C56: 1 | D56: 0 | E56: 10 | F56: 0 | G56: 25 | H56: 7 | I56: 6 | J56: 0 | K56: 0 | L56: 33058 | M56: 42 | N56: 33100 | O56: 33058 | P56: 42 | Q56: 33100 | R56: 16695 | S56: 0.5050214774 | T56: 33 | U56: 0.7857142857 | V56: 16728 | W56: 0.5053776435 | X56: 515 | Y56: 14 | Z56: 529 | AA56: 452 | AB56: 10 | AC56: 462 | AD56: 51 | AE56: 172 | AF56: 223 | AG56: 10 | AH56: 4 | AI56: 0 | AJ56: 10
A57: Waikato District Council | B57: FPP | C57: 8 | D57: 2 | E57: 13 | F57: 2 | G57: 28 | H57: 10 | I57: 10 | J57: 1 | K57: 0 | L57: 58067 | M57: 51 | N57: 58118 | O57: 50364 | P57: 44 | Q57: 50408 | R57: 17501 | S57: 0.3474902708 | T57: 38 | U57: 0.8636363636 | V57: 17539 | W57: 0.347940803 | X57: 497 | Y57: 1 | Z57: 498 | AA57: 344 | AB57: 1 | AC57: 345 | AD57: 30 | AE57: 404 | AF57: 434 | AG57: 16 | AH57: 6 | AI57: 0 | AJ57: 13
A58: Waimakariri District Council | B58: FPP | C58: 3 | D58: 0 | E58: 10 | F58: 0 | G58: 24 | H58: 8 | I58: 6 | J58: 6 | K58: 4 | L58: 49120 | M58: 31 | N58: 49151 | O58: 49120 | P58: 31 | Q58: 49151 | R58: 21140 | S58: 0.4303745928 | T58: 30 | U58: 0.9677419355 | V58: 21170 | W58: 0.4307135155 | X58: 361 | Y58: 5 | Z58: 366 | AA58: 267 | AB58: 4 | AC58: 271 | AD58: 79 | AE58: 573 | AF58: 652 | AG58: 8 | AH58: 4 | AI58: 0 | AJ58: 10
A59: Waimate District Council | B59: FPP | C59: 3 | D59: 1 | E59: 8 | F59: 1 | G59: 12 | H59: 4 | I59: 4 | J59: 0 | K59: 0 | L59: 5508 | M59: 11 | N59: 5519 | O59: 4932 | P59: 9 | Q59: 4941 | R59: 2723 | S59: 0.552108678 | T59: 8 | U59: 0.8888888889 | V59: 2731 | W59: 0.552722121 | X59: 63 | Y59: 3 | Z59: 66 | AA59: 59 | AB59: 3 | AC59: 62 | AD59: 3 | AE59: 31 | AF59: 34 | AG59: 4 | AH59: 3 | AI59: 0 | AJ59: 8
A60: Waipā District Council | B60: FPP | C60: 4 | D60: 1 | E60: 11 | F60: 1 | G60: 27 | H60: 6 | I60: 4 | J60: 1 | K60: 1 | L60: 41153 | M60: 35 | N60: 41188 | O60: 37717 | P60: 34 | Q60: 37751 | R60: 15780 | S60: 0.4183789803 | T60: 29 | U60: 0.8529411765 | V60: 15809 | W60: 0.4187703637 | X60: 474 | Y60: 15 | Z60: 489 | AA60: 381 | AB60: 10 | AC60: 391 | AD60: 45 | AE60: 336 | AF60: 381 | AG60: 9 | AH60: 3 | AI60: 0 | AJ60: 11
A61: Wairoa District Council | B61: FPP | C61: 2 | D61: 0 | E61: 6 | F61: 0 | G61: 18 | H61: 3 | I61: 3 | J61: 0 | K61: 0 | L61: 5665 | M61: 30 | N61: 5695 | O61: 5665 | P61: 30 | Q61: 5695 | R61: 3166 | S61: 0.558870256 | T61: 26 | U61: 0.8666666667 | V61: 3192 | W61: 0.5604916594 | X61: 172 | Y61: 1 | Z61: 173 | AA61: 147 | AB61: 1 | AC61: 148 | AD61: 2 | AE61: 35 | AF61: 37 | AG61: 13 | AH61: 4 | AI61: 0 | AJ61: 6
A62: Waitaki District Council | B62: FPP | C62: 2 | D62: 2 | E62: 10 | F62: 3 | G62: 21 | H62: 7 | I62: 7 | J62: 0 | K62: 0 | L62: 16314 | M62: 47 | N62: 16361 | O62: 12093 | P62: 16 | Q62: 12109 | R62: 6399 | S62: 0.5291490945 | T62: 13 | U62: 0.8125 | V62: 6412 | W62: 0.5295234949 | X62: 152 | Y62: 6 | Z62: 158 | AA62: 115 | AB62: 5 | AC62: 120 | AD62: 13 | AE62: 133 | AF62: 146 | AG62: 5 | AH62: 3 | AI62: 0 | AJ62: 10
A63: Waitomo District Council | B63: FPP | C63: 2 | D63: 0 | E63: 6 | F63: 0 | G63: 13 | H63: 5 | I63: 4 | J63: 0 | K63: 0 | L63: 5964 | M63: 19 | N63: 5983 | O63: 5964 | P63: 19 | Q63: 5983 | R63: 2743 | S63: 0.459926224 | T63: 18 | U63: 0.9473684211 | V63: 2761 | W63: 0.4614741768 | X63: 91 | Y63: 10 | Z63: 101 | AA63: 66 | AB63: 6 | AC63: 72 | AD63: 2 | AE63: 37 | AF63: 39 | AG63: 6 | AH63: 2 | AI63: 0 | AJ63: 6
A64: Wellington City Council | B64: STV | C64: 6 | D64: 0 | E64: 15 | F64: 0 | G64: 46 | H64: 11 | I64: 9 | J64: 0 | K64: 0 | L64: 160770 | M64: 548 | N64: 161318 | O64: 160770 | P64: 548 | Q64: 161318 | R64: 81084 | S64: 0.5043478261 | T64: 490 | U64: 0.8941605839 | V64: 81574 | W64: 0.5056720267 | X64: 4777 | Y64: 135 | Z64: 4912 | AA64: 3998 | AB64: 88 | AC64: 4086 | AD64: 328 | AE64: 1475 | AF64: 1803 | AG64: 13 | AH64: 6 | AI64: 0 | AJ64: 15
A65: Western Bay Of Plenty District Council | B65: FPP | C65: 4 | D65: 0 | E65: 9 | F65: 0 | G65: 24 | H65: 7 | I65: 5 | J65: 3 | K65: 1 | L65: 39871 | M65: 174 | N65: 40045 | O65: 39871 | P65: 174 | Q65: 40045 | R65: 15163 | S65: 0.3803014722 | T65: 136 | U65: 0.7816091954 | V65: 15299 | W65: 0.3820451992 | X65: 298 | Y65: 42 | Z65: 340 | AA65: 219 | AB65: 28 | AC65: 247 | AD65: 22 | AE65: 291 | AF65: 313 | AG65: 8 | AH65: 4 | AI65: 0 | AJ65: 9
A66: Westland District Council | B66: FPP | C66: 2 | D66: 1 | E66: 8 | F66: 2 | G66: 14 | H66: 4 | I66: 3 | J66: 0 | K66: 0 | L66: 6405 | M66: 61 | N66: 6466 | O66: 5271 | P66: 37 | Q66: 5308 | R66: 3090 | S66: 0.5862265225 | T66: 29 | U66: 0.7837837838 | V66: 3119 | W66: 0.5876036172 | X66: 104 | Y66: 13 | Z66: 117 | AA66: 77 | AB66: 2 | AC66: 79 | AD66: 2 | AE66: 62 | AF66: 64 | AG66: 4 | AH66: 2 | AI66: 0 | AJ66: 8
A67: Whakatāne District Council | B67: FPP | C67: 4 | D67: 2 | E67: 10 | F67: 3 | G67: 16 | H67: 4 | I67: 4 | J67: 1 | K67: 1 | L67: 26019 | M67: 47 | N67: 26066 | O67: 19090 | P67: 41 | Q67: 19131 | R67: 9380 | S67: 0.4913567313 | T67: 39 | U67: 0.9512195122 | V67: 9419 | W67: 0.4923422717 | X67: 522 | Y67: 6 | Z67: 528 | AA67: 226 | AB67: 6 | AC67: 232 | AD67: 17 | AE67: 267 | AF67: 284 | AG67: 6 | AH67: 4 | AI67: 0 | AJ67: 10
A68: Whanganui District Council | B68: FPP | C68: 2 | D68: 0 | E68: 12 | F68: 0 | G68: 28 | H68: 9 | I68: 9 | J68: 0 | K68: 0 | L68: 33462 | M68: 43 | N68: 33505 | O68: 33462 | P68: 43 | Q68: 33505 | R68: 16986 | S68: 0.5076205845 | T68: 38 | U68: 0.8837209302 | V68: 17024 | W68: 0.5081032682 | X68: 791 | Y68: 17 | Z68: 808 | AA68: 667 | AB68: 4 | AC68: 671 | AD68: 46 | AE68: 128 | AF68: 174 | AG68: 10 | AH68: 5 | AI68: 0 | AJ68: 12
A69: Whangārei District Council | B69: STV | C69: 6 | D69: 0 | E69: 13 | F69: 0 | G69: 39 | H69: 11 | I69: 8 | J69: 0 | K69: 0 | L69: 66854 | M69: 150 | N69: 67004 | O69: 66854 | P69: 150 | Q69: 67004 | R69: 30368 | S69: 0.4542435756 | T69: 122 | U69: 0.8133333333 | V69: 30490 | W69: 0.4550474599 | X69: 1376 | Y69: 0 | Z69: 1376 | AA69: 872 | AB69: 0 | AC69: 872 | AD69: 298 | AE69: 566 | AF69: 864 | AG69: 15 | AH69: 3 | AI69: 0 | AJ69: 13

Sheet Community Boards
A1: TOTAL | E1: =SUM(E4:E157) -> 108 | F1: =SUM(F4:F157) -> 46 | G1: 546 | H1: 136 | I1: 803 | J1: 303 | K1: 255 | L1: 837068 | M1: 4053 | N1: 841121 | O1: 729520 | P1: 3332 | Q1: 732852 | R1: 318422 | S1: =R1/O1 -> 0.4364815221 | T1: 2907 | U1: =T1/P1 -> 0.8724489796 | V1: 321329 | W1: =V1/Q1 -> 0.4384637007 | X1: 10108 | Y1: 306 | Z1: 10414 | AA1: 7062 | AB1: 228 | AC1: 7290 | AD1: 651 | AE1: 14961 | AF1: 15612 | AG1: 364 | AH1: 249 | AI1: 6 | AJ1: 540
A3: Authority | B3: Community Board | C3: Subdivision | D3: Electoral system | E3: Contested Subdivisions (N) | F3: Uncontested Subdivisions (N) | G3: Positions (N) | H3: Elected uncontested (N) | I3: Candidates (N) | J3: Candidates (community) board members (N) | K3: (Community) board members elected (N) | L3: Residential electors (N) | M3: Ratepayer electors (N) | N3: Total electors (N) | O3: Residential electors (contested wards only) | P3: Ratepayer electors (contested wards only) | Q3: Total electors (Contested wards only) | R3: Residential voters | S3: Residential turnout (%) | T3: Ratepayer voters (N) | U3: Ratepayer turnout (%) | V3: Total voters (N) | W3: Overall turnout (%) | X3: Residential special votes cast (N) | Y3: Ratepayer special votes cast (N) | Z3: Total special votes cast (N) | AA3: Residential special votes allowed (N) | AB3: Ratepayer special votes allowed (N) | AC3: Total special votes allowed (N) | AD3: Informal votes (N) | AE3: Blank votes (N) | AF3: Blank and informal votes (N) | AG3: Female candidates (N) | AH3: Female CB members (N) | AI3: Unfilled positions | AJ3: Total number elected
A4: Ashburton District Council | B4: Methven Community | C4: At Large | D4: FPP | E4: 0 | F4: 1 | G4: 5 | H4: 5 | I4: 5 | J4: 3 | K4: 3 | L4: 1298 | M4: 4 | N4: =M4+L4 -> 1302 | AG4: 2 | AH4: 2 | AI4: 0 | AJ4: 5
A5: Buller District Council | B5: Inangahua Community | C5: At Large | D5: FPP | E5: 1 | F5: 0 | G5: 4 | H5: 0 | I5: 7 | J5: 1 | K5: 1 | L5: 1241 | M5: 7 | N5: =M5+L5 -> 1248 | O5: 1241 | P5: 7 | Q5: =O5+P5 -> 1248 | R5: 559 | S5: =R5/O5 -> 0.450443191 | T5: 5 | U5: =T5/P5 -> 0.7142857143 | V5: =T5+R5 -> 564 | W5: =V5/Q5 -> 0.4519230769 | X5: 20 | Y5: 4 | Z5: =X5+Y5 -> 24 | AA5: 13 | AB5: 3 | AC5: =AA5+AB5 -> 16 | AD5: 1 | AE5: 0 | AF5: =AD5+AE5 -> 1 | AG5: 3 | AH5: 1 | AI5: 0 | AJ5: 4
A6: Central Otago District Council | B6: Cromwell Community | C6: At Large | D6: FPP | E6: 1 | F6: 0 | G6: 4 | H6: 0 | I6: 10 | J6: 1 | K6: 1 | L6: 6934 | M6: 61 | N6: 6995 | O6: 6934 | P6: 61 | Q6: 6995 | R6: 3526 | S6: 0.5085087972 | T6: 58 | U6: 0.9508196721 | V6: 3584 | W6: 0.5123659757 | X6: 80 | Y6: 12 | Z6: 92 | AA6: 77 | AB6: 9 | AC6: 86 | AD6: 5 | AE6: 66 | AF6: 71 | AG6: 4 | AH6: 2 | AI6: 0 | AJ6: 4
A7: Central Otago District Council | B7: Maniototo Community | C7: At Large | D7: FPP | E7: 1 | F7: 0 | G7: 4 | H7: 0 | I7: 7 | J7: 4 | K7: 3 | L7: 1368 | M7: 23 | N7: 1391 | O7: 1368 | P7: 23 | Q7: 1391 | R7: 930 | S7: 0.6798245614 | T7: 20 | U7: 0.8695652174 | V7: 950 | W7: 0.6829618979 | X7: 8 | Y7: 6 | Z7: 14 | AA7: 4 | AB7: 4 | AC7: 8 | AD7: 3 | AE7: 1 | AF7: 4 | AG7: 3 | AH7: 1 | AI7: 0 | AJ7: 4
A8: Central Otago District Council | B8: Teviot Valley Community | C8: At Large | D8: FPP | E8: 1 | F8: 0 | G8: 5 | H8: 0 | I8: 7 | J8: 2 | K8: 2 | L8: 1274 | M8: 10 | N8: 1284 | O8: 1274 | P8: 10 | Q8: 1284 | R8: 806 | S8: 0.6326530612 | T8: 10 | U8: 1 | V8: 816 | W8: 0.6355140187 | X8: 19 | Y8: 1 | Z8: 20 | AA8: 18 | AB8: 1 | AC8: 19 | AD8: 0 | AE8: 0 | AF8: 0 | AG8: 3 | AH8: 2 | AI8: 0 | AJ8: 5
A9: Central Otago District Council | B9: Vincent Community | C9: At Large | D9: FPP | E9: 1 | F9: 0 | G9: 5 | H9: 0 | I9: 7 | J9: 4 | K9: 2 | L9: 8181 | M9: 64 | N9: 8245 | O9: 8181 | P9: 64 | Q9: 8245 | R9: 4539 | S9: 0.5548221489 | T9: 50 | U9: 0.78125 | V9: 4589 | W9: 0.5565797453 | X9: 103 | Y9: 6 | Z9: 109 | AA9: 80 | AB9: 4 | AC9: 84 | AD9: 6 | AE9: 191 | AF9: 197 | AG9: 1 | AH9: 1 | AI9: 0 | AJ9: 5
A10: Christchurch City Council | B10: Waipapa Papanui-Innes-Central Community | C10: Papanui Ward | D10: FPP | E10: 1 | F10: 0 | G10: 2 | H10: 0 | I10: 3 | J10: 1 | K10: 1 | L10: 17937 | M10: 10 | N10: 17947 | O10: 17937 | P10: 10 | Q10: 17947 | R10: 6619 | S10: 0.3690137704 | T10: 7 | U10: 0.7 | V10: 6626 | W10: 0.3691981947 | X10: 154 | Y10: 2 | Z10: 156 | AA10: 108 | AB10: 0 | AC10: 108 | AD10: 0 | AE10: 297 | AF10: 297 | AG10: 1 | AH10: 1 | AI10: 0 | AJ10: 2
A11: Christchurch City Council | B11: Waipapa Papanui-Innes-Central Community | C11: Innes Ward | D11: FPP | E11: 1 | F11: 0 | G11: 2 | H11: 0 | I11: 3 | J11: 1 | K11: 1 | L11: 17921 | M11: 30 | N11: 17951 | O11: 17921 | P11: 30 | Q11: 17951 | R11: 6424 | S11: 0.3584621394 | T11: 24 | U11: 0.8 | V11: 6448 | W11: 0.3592000446 | X11: 199 | Y11: 3 | Z11: 202 | AA11: 165 | AB11: 3 | AC11: 168 | AD11: 0 | AE11: 253 | AF11: 253 | AG11: 1 | AH11: 1 | AI11: 0 | AJ11: 2
A12: Christchurch City Council | B12: Waipapa Papanui-Innes-Central Community | C12: Central Ward | D12: FPP | E12: 1 | F12: 0 | G12: 2 | H12: 0 | I12: 5 | J12: 2 | K12: 2 | L12: 15856 | M12: 62 | N12: 15918 | O12: 15856 | P12: 62 | Q12: 15918 | R12: 4762 | S12: 0.3003279516 | T12: 54 | U12: 0.8709677419 | V12: 4816 | W12: 0.3025505717 | X12: 273 | Y12: 10 | Z12: 283 | AA12: 244 | AB12: 6 | AC12: 250 | AD12: 2 | AE12: 272 | AF12: 274 | AG12: 2 | AH12: 1 | AI12: 0 | AJ12: 2
A13: Christchurch City Council | B13: Waimāero Fendalton-Waimairi-Harewood Community | C13: Fendalton Ward | D13: FPP | E13: 1 | F13: 0 | G13: 2 | H13: 0 | I13: 4 | J13: 1 | K13: 1 | L13: 18778 | M13: 34 | N13: 18812 | O13: 18778 | P13: 34 | Q13: 18812 | R13: 7846 | S13: 0.4178293748 | T13: 29 | U13: 0.8529411765 | V13: 7875 | W13: 0.4186157772 | X13: 257 | Y13: 4 | Z13: 261 | AA13: 200 | AB13: 3 | AC13: 203 | AD13: 1 | AE13: 226 | AF13: 227 | AG13: 3 | AH13: 1 | AI13: 0 | AJ13: 2
A14: Christchurch City Council | B14: Waimāero Fendalton-Waimairi-Harewood Community | C14: Waimairi Ward | D14: FPP | E14: 1 | F14: 0 | G14: 2 | H14: 0 | I14: 3 | J14: 1 | K14: 1 | L14: 17362 | M14: 15 | N14: 17377 | O14: 17362 | P14: 15 | Q14: 17377 | R14: 6559 | S14: 0.3777790577 | T14: 13 | U14: 0.8666666667 | V14: 6572 | W14: 0.3782010704 | X14: 143 | Y14: 3 | Z14: 146 | AA14: 129 | AB14: 2 | AC14: 131 | AD14: 0 | AE14: 275 | AF14: 275 | AG14: 2 | AH14: 1 | AI14: 0 | AJ14: 2
A15: Christchurch City Council | B15: Waimāero Fendalton-Waimairi-Harewood Community | C15: Harewood Ward | D15: FPP | E15: 1 | F15: 0 | G15: 2 | H15: 0 | I15: 3 | J15: 1 | K15: 1 | L15: 19872 | M15: 14 | N15: 19886 | O15: 19872 | P15: 14 | Q15: 19886 | R15: 8238 | S15: 0.4145531401 | T15: 13 | U15: 0.9285714286 | V15: 8251 | W15: 0.4149150156 | X15: 140 | Y15: 1 | Z15: 141 | AA15: 114 | AB15: 1 | AC15: 115 | AD15: 0 | AE15: 307 | AF15: 307 | AG15: 1 | AH15: 1 | AI15: 0 | AJ15: 2
A16: Christchurch City Council | B16: Waipuna Hornby-Halswell-Riccarton Community | C16: Halswell Ward | D16: FPP | E16: 1 | F16: 0 | G16: 2 | H16: 0 | I16: 5 | J16: 2 | K16: 2 | L16: 21149 | M16: 19 | N16: 21168 | O16: 21149 | P16: 19 | Q16: 21168 | R16: 8812 | S16: 0.4166627264 | T16: 16 | U16: 0.8421052632 | V16: 8828 | W16: 0.4170445956 | X16: 215 | Y16: 3 | Z16: 218 | AA16: 172 | AB16: 2 | AC16: 174 | AD16: 2 | AE16: 451 | AF16: 453 | AG16: 2 | AH16: 2 | AI16: 0 | AJ16: 2
A17: Christchurch City Council | B17: Waipuna Hornby-Halswell-Riccarton Community | C17: Hornby Ward | D17: FPP | E17: 1 | F17: 0 | G17: 2 | H17: 0 | I17: 5 | J17: 2 | K17: 1 | L17: 17431 | M17: 24 | N17: 17455 | O17: 17431 | P17: 24 | Q17: 17455 | R17: 5393 | S17: 0.3093913143 | T17: 21 | U17: 0.875 | V17: 5414 | W17: 0.310169006 | X17: 92 | Y17: 0 | Z17: 92 | AA17: 78 | AB17: 0 | AC17: 78 | AD17: 2 | AE17: 122 | AF17: 124 | AG17: 3 | AH17: 1 | AI17: 0 | AJ17: 2
A18: Christchurch City Council | B18: Waipuna Hornby-Halswell-Riccarton Community | C18: Riccarton Ward | D18: FPP | E18: 1 | F18: 0 | G18: 2 | H18: 0 | I18: 7 | J18: 2 | K18: 1 | L18: 15210 | M18: 32 | N18: 15242 | O18: 15210 | P18: 32 | Q18: 15242 | R18: 4106 | S18: 0.2699539776 | T18: 27 | U18: 0.84375 | V18: 4133 | W18: 0.2711586406 | X18: 196 | Y18: 5 | Z18: 201 | AA18: 139 | AB18: 3 | AC18: 142 | AD18: 1 | AE18: 259 | AF18: 260 | AG18: 2 | AH18: 1 | AI18: 0 | AJ18: 2
A19: Christchurch City Council | B19: Waitai Coastal-Burwood-Linwood Community | C19: Coastal Ward | D19: FPP | E19: 0 | F19: 1 | G19: 2 | H19: 2 | I19: 2 | J19: 1 | K19: 1 | L19: 18986 | M19: 19 | N19: 19005 | AG19: 1 | AH19: 1 | AI19: 0 | AJ19: 2
A20: Christchurch City Council | B20: Waitai Coastal-Burwood-Linwood Community | C20: Burwood Ward | D20: FPP | E20: 1 | F20: 0 | G20: 2 | H20: 0 | I20: 5 | J20: 1 | K20: 1 | L20: 18049 | M20: 11 | N20: 18060 | O20: 18049 | P20: 11 | Q20: 18060 | R20: 6987 | S20: 0.3871128594 | T20: 11 | U20: 1 | V20: 6998 | W20: 0.3874861573 | X20: 147 | Y20: 1 | Z20: 148 | AA20: 120 | AB20: 1 | AC20: 121 | AD20: 0 | AE20: 259 | AF20: 259 | AG20: 2 | AH20: 1 | AI20: 0 | AJ20: 2
A21: Christchurch City Council | B21: Waitai Coastal-Burwood-Linwood Community | C21: Linwood Ward | D21: FPP | E21: 1 | F21: 0 | G21: 2 | H21: 0 | I21: 5 | J21: 2 | K21: 2 | L21: 16400 | M21: 18 | N21: 16418 | O21: 16400 | P21: 18 | Q21: 16418 | R21: 5115 | S21: 0.3118902439 | T21: 16 | U21: 0.8888888889 | V21: 5131 | W21: 0.3125228408 | X21: 132 | Y21: 2 | Z21: 134 | AA21: 110 | AB21: 1 | AC21: 111 | AD21: 2 | AE21: 167 | AF21: 169 | AG21: 1 | AH21: 1 | AI21: 0 | AJ21: 2
A22: Christchurch City Council | B22: Waihoro Spreydon-Cashmere-Heathcote Community | C22: Spreydon Ward | D22: FPP | E22: 1 | F22: 0 | G22: 2 | H22: 0 | I22: 4 | J22: 1 | K22: 1 | L22: 17805 | M22: 21 | N22: 17826 | O22: 17805 | P22: 21 | Q22: 17826 | R22: 5877 | S22: 0.3300758214 | T22: 19 | U22: 0.9047619048 | V22: 5896 | W22: 0.3307528329 | X22: 213 | Y22: 2 | Z22: 215 | AA22: 185 | AB22: 2 | AC22: 187 | AD22: 2 | AE22: 285 | AF22: 287 | AG22: 1 | AH22: 1 | AI22: 0 | AJ22: 2
A23: Christchurch City Council | B23: Waihoro Spreydon-Cashmere-Heathcote Community | C23: Heathcote Ward | D23: FPP | E23: 1 | F23: 0 | G23: 2 | H23: 0 | I23: 4 | J23: 2 | K23: 2 | L23: 19859 | M23: 27 | N23: 19886 | O23: 19859 | P23: 27 | Q23: 19886 | R23: 9060 | S23: 0.4562163251 | T23: 26 | U23: 0.962962963 | V23: 9086 | W23: 0.4569043548 | X23: 304 | Y23: 6 | Z23: 310 | AA23: 265 | AB23: 5 | AC23: 270 | AD23: 2 | AE23: 508 | AF23: 510 | AG23: 0 | AH23: 0 | AI23: 0 | AJ23: 2
A24: Christchurch City Council | B24: Waihoro Spreydon-Cashmere-Heathcote Community | C24: Cashmere Ward | D24: FPP | E24: 1 | F24: 0 | G24: 2 | H24: 0 | I24: 4 | J24: 2 | K24: 1 | L24: 20169 | M24: 13 | N24: 20182 | O24: 20169 | P24: 13 | Q24: 20182 | R24: 9440 | S24: 0.4680450196 | T24: 13 | U24: 1 | V24: 9453 | W24: 0.4683876722 | X24: 257 | Y24: 1 | Z24: 258 | AA24: 224 | AB24: 1 | AC24: 225 | AD24: 1 | AE24: 433 | AF24: 434 | AG24: 1 | AH24: 1 | AI24: 0 | AJ24: 2
A25: Christchurch City Council | B25: Te Pātaka o Rākaihautū Banks Peninsula Community | C25: Lyttelton Subdivision | D25: FPP | E25: 0 | F25: 1 | G25: 2 | H25: 2 | I25: 2 | J25: 2 | K25: 2 | L25: 2566 | M25: 6 | N25: 2572 | AG25: 2 | AH25: 2 | AI25: 0 | AJ25: 2
A26: Christchurch City Council | B26: Te Pātaka o Rākaihautū Banks Peninsula Community | C26: Mount Herbert Subdivision | D26: FPP | E26: 1 | F26: 0 | G26: 2 | H26: 0 | I26: 3 | J26: 0 | K26: 0 | L26: 2486 | M26: 23 | N26: 2509 | O26: 2486 | P26: 23 | Q26: 2509 | R26: 1427 | S26: 0.5740144811 | T26: 19 | U26: 0.8260869565 | V26: 1446 | W26: 0.5763252292 | X26: 32 | Y26: 1 | Z26: 33 | AA26: 29 | AB26: 1 | AC26: 30 | AD26: 0 | AE26: 56 | AF26: 56 | AG26: 1 | AH26: 1 | AI26: 0 | AJ26: 2
A27: Christchurch City Council | B27: Te Pātaka o Rākaihautū Banks Peninsula Community | C27: Wairewa Subdivision | D27: FPP | E27: 0 | F27: 1 | G27: 1 | H27: 1 | I27: 1 | J27: 1 | K27: 1 | L27: 1007 | M27: 6 | N27: 1013 | AG27: 1 | AH27: 1 | AI27: 0 | AJ27: 1
A28: Christchurch City Council | B28: Te Pātaka o Rākaihautū Banks Peninsula Community | C28: Akaroa Subdivision | D28: FPP | E28: 0 | F28: 1 | G28: 2 | H28: 2 | I28: 2 | J28: 2 | K28: 2 | L28: 1420 | M28: 99 | N28: 1519 | AG28: 0 | AH28: 0 | AI28: 0 | AJ28: 2
A29: Clutha District Council | B29: Lawrence-Tuapeka Community | C29: At Large | D29: FPP | E29: 1 | F29: 0 | G29: 6 | H29: 0 | I29: 7 | J29: 2 | K29: 2 | L29: 899 | M29: 1 | N29: 900 | O29: 899 | P29: 1 | Q29: 900 | R29: 627 | S29: 0.6974416018 | T29: 2 | U29: 2 | V29: 629 | W29: 0.6988888889 | X29: 10 | Y29: 1 | Z29: 11 | AA29: 8 | AB29: 1 | AC29: 9 | AD29: 0 | AE29: 3 | AF29: 3 | AG29: 3 | AH29: 3 | AI29: 0 | AJ29: 6
A30: Clutha District Council | B30: West Otago Community | C30: At Large | D30: FPP | E30: 1 | F30: 0 | G30: 6 | H30: 0 | I30: 7 | J30: 5 | K30: 4 | L30: 1501 | M30: 5 | N30: 1506 | O30: 1501 | P30: 5 | Q30: 1506 | R30: 730 | S30: 0.4863424384 | T30: 4 | U30: 0.8 | V30: 734 | W30: 0.4873837981 | X30: 6 | Y30: 0 | Z30: 6 | AA30: 0 | AB30: 0 | AC30: 0 | AD30: 0 | AE30: 3 | AF30: 3 | AG30: 3 | AH30: 3 | AI30: 0 | AJ30: 6
A31: Dunedin City Council | B31: West Harbour Community | C31: At Large | D31: STV | E31: 1 | F31: 0 | G31: 6 | H31: 0 | I31: 8 | J31: 4 | K31: 4 | L31: 4580 | M31: 12 | N31: 4592 | O31: 4580 | P31: 12 | Q31: 4592 | R31: 2527 | S31: 0.5517467249 | T31: 12 | U31: 1 | V31: 2539 | W31: 0.5529181185 | X31: 86 | Y31: 0 | Z31: 86 | AA31: 70 | AB31: 0 | AC31: 70 | AD31: 14 | AE31: 167 | AF31: 181 | AG31: 4 | AH31: 3 | AI31: 0 | AJ31: 6
A32: Dunedin City Council | B32: Mosgiel-Taieri Community | C32: At Large | D32: STV | E32: 1 | F32: 0 | G32: 6 | H32: 0 | I32: 9 | J32: 1 | K32: 1 | L32: 14435 | M32: 9 | N32: 14444 | O32: 14435 | P32: 9 | Q32: 14444 | R32: 7592 | S32: 0.5259438864 | T32: 8 | U32: 0.8888888889 | V32: 7600 | W32: 0.526170036 | X32: 127 | Y32: 1 | Z32: 128 | AA32: 96 | AB32: 1 | AC32: 97 | AD32: 72 | AE32: 726 | AF32: 798 | AG32: 4 | AH32: 2 | AI32: 0 | AJ32: 6
A33: Dunedin City Council | B33: Otago Peninsula Community | C33: At Large | D33: STV | E33: 1 | F33: 0 | G33: 6 | H33: 0 | I33: 11 | J33: 4 | K33: 4 | L33: 3716 | M33: 9 | N33: 3725 | O33: 3716 | P33: 9 | Q33: 3725 | R33: 2198 | S33: 0.5914962325 | T33: 7 | U33: 0.7777777778 | V33: 2205 | W33: 0.5919463087 | X33: 64 | Y33: 1 | Z33: 65 | AA33: 50 | AB33: 1 | AC33: 51 | AD33: 14 | AE33: 124 | AF33: 138 | AG33: 6 | AH33: 3 | AI33: 0 | AJ33: 6
A34: Dunedin City Council | B34: Saddle Hill Community | C34: At Large | D34: STV | E34: 1 | F34: 0 | G34: 6 | H34: 0 | I34: 11 | J34: 3 | K34: 2 | L34: 5049 | M34: 5 | N34: 5054 | O34: 5049 | P34: 5 | Q34: 5054 | R34: 2655 | S34: 0.5258467023 | T34: 4 | U34: 0.8 | V34: 2659 | W34: 0.5261179264 | X34: 52 | Y34: 1 | Z34: 53 | AA34: 44 | AB34: 1 | AC34: 45 | AD34: 13 | AE34: 275 | AF34: 288 | AG34: 5 | AH34: 3 | AI34: 0 | AJ34: 6
A35: Dunedin City Council | B35: Strath Taieri Community | C35: At Large | D35: STV | E35: 1 | F35: 0 | G35: 6 | H35: 0 | I35: 9 | J35: 4 | K35: 2 | L35: 458 | M35: 6 | N35: 464 | O35: 458 | P35: 6 | Q35: 464 | R35: 284 | S35: 0.6200873362 | T35: 6 | U35: 1 | V35: 290 | W35: 0.625 | X35: 3 | Y35: 1 | Z35: 4 | AA35: 2 | AB35: 2 | AC35: 4 | AD35: 1 | AE35: 2 | AF35: 3 | AG35: 3 | AH35: 2 | AI35: 0 | AJ35: 6
A36: Dunedin City Council | B36: Waikouaiti Coast Community | C36: At Large | D36: STV | E36: 1 | F36: 0 | G36: 6 | H36: 0 | I36: 11 | J36: 4 | K36: 4 | L36: 3208 | M36: 20 | N36: 3228 | O36: 3208 | P36: 20 | Q36: 3228 | R36: 1781 | S36: 0.5551745636 | T36: 20 | U36: 1 | V36: 1801 | W36: 0.5579306072 | X36: 46 | Y36: 5 | Z36: 51 | AA36: 40 | AB36: 5 | AC36: 45 | AD36: 9 | AE36: 160 | AF36: 169 | AG36: 4 | AH36: 3 | AI36: 0 | AJ36: 6
A37: Far North District Council | B37: Te Hiku Community | C37: North Cape Subdivision | D37: STV | E37: 1 | F37: 0 | G37: 1 | H37: 0 | I37: 2 | J37: 1 | K37: 0 | L37: 2329 | M37: 3 | N37: 2332 | O37: 2329 | P37: 3 | Q37: 2332 | R37: 1194 | S37: 0.5126663804 | T37: 3 | U37: 1 | V37: 1197 | W37: 0.5132933105 | X37: 85 | Y37: 0 | Z37: 85 | AA37: 43 | AB37: 0 | AC37: 43 | AD37: 7 | AE37: 43 | AF37: 50 | AG37: 1 | AH37: 1 | AI37: 0 | AJ37: 1
A38: Far North District Council | B38: Te Hiku Community | C38: Whatuwhiwhi Subdivision | D38: STV | E38: 0 | F38: 1 | G38: 1 | H38: 1 | I38: 1 | J38: 1 | K38: 1 | L38: 2721 | M38: 16 | N38: 2737 | AG38: 0 | AH38: 0 | AI38: 0 | AJ38: 1
A39: Far North District Council | B39: Te Hiku Community | C39: Doubtless Bay Subdivision | D39: STV | E39: 1 | F39: 0 | G39: 1 | H39: 0 | I39: 2 | J39: 0 | K39: 0 | L39: 3057 | M39: 28 | N39: 3085 | O39: 3057 | P39: 28 | Q39: 3085 | R39: 1635 | S39: 0.5348380765 | T39: 26 | U39: 0.9285714286 | V39: 1661 | W39: 0.5384116694 | X39: 106 | Y39: 1 | Z39: 107 | AA39: 37 | AB39: 0 | AC39: 37 | AD39: 2 | AE39: 112 | AF39: 114 | AG39: 1 | AH39: 0 | AI39: 0 | AJ39: 1
A40: Far North District Council | B40: Te Hiku Community | C40: Kaitāia Subdivision | D40: STV | E40: 1 | F40: 0 | G40: 3 | H40: 0 | I40: 7 | J40: 3 | K40: 1 | L40: 7179 | M40: 9 | N40: 7188 | O40: 7179 | P40: 9 | Q40: 7188 | R40: 3101 | S40: 0.4319543112 | T40: 8 | U40: 0.8888888889 | V40: 3109 | W40: 0.4325264329 | X40: 330 | Y40: 6 | Z40: 336 | AA40: 136 | AB40: 3 | AC40: 139 | AD40: 44 | AE40: 60 | AF40: 104 | AG40: 3 | AH40: 1 | AI40: 0 | AJ40: 3
A41: Far North District Council | B41: Bay of Islands-Whangaroa Community | C41: Whangaroa Subdivision | D41: STV | E41: 1 | F41: 0 | G41: 1 | H41: 0 | I41: 2 | J41: 1 | K41: 1 | L41: 2774 | M41: 14 | N41: 2788 | O41: 2774 | P41: 14 | Q41: 2788 | R41: 1388 | S41: 0.5003604903 | T41: 12 | U41: 0.8571428571 | V41: 1400 | W41: 0.5021520803 | X41: 112 | Y41: 0 | Z41: 112 | AA41: 50 | AB41: 0 | AC41: 50 | AD41: 5 | AE41: 96 | AF41: 101 | AG41: 1 | AH41: 0 | AI41: 0 | AJ41: 1
A42: Far North District Council | B42: Bay of Islands-Whangaroa Community | C42: Waipapa Subdivision | D42: STV | E42: 1 | F42: 0 | G42: 1 | H42: 0 | I42: 2 | J42: 0 | K42: 0 | L42: 3362 | M42: 2 | N42: 3364 | O42: 3362 | P42: 2 | Q42: 3364 | R42: 1900 | S42: 0.5651397977 | T42: 2 | U42: 1 | V42: 1902 | W42: 0.5653983353 | X42: 66 | Y42: 0 | Z42: 66 | AA42: 25 | AB42: 0 | AC42: 25 | AD42: 2 | AE42: 116 | AF42: 118 | AG42: 0 | AH42: 0 | AI42: 0 | AJ42: 1
A43: Far North District Council | B43: Bay of Islands-Whangaroa Community | C43: Kerikeri Subdivision | D43: STV | E43: 1 | F43: 0 | G43: 2 | H43: 0 | I43: 3 | J43: 0 | K43: 0 | L43: 7669 | M43: 7 | N43: 7676 | O43: 7669 | P43: 7 | Q43: 7676 | R43: 4199 | S43: 0.5475290129 | T43: 7 | U43: 1 | V43: 4206 | W43: 0.5479416363 | X43: 193 | Y43: 0 | Z43: 193 | AA43: 115 | AB43: 0 | AC43: 115 | AD43: 31 | AE43: 372 | AF43: 403 | AG43: 2 | AH43: 1 | AI43: 0 | AJ43: 2
A44: Far North District Council | B44: Bay of Islands-Whangaroa Community | C44: Paihia Subdivision | D44: STV | E44: 0 | F44: 1 | G44: 1 | H44: 1 | I44: 1 | J44: 1 | K44: 1 | L44: 3539 | M44: 7 | N44: 3546 | AG44: 1 | AH44: 1 | AI44: 0 | AJ44: 1
A45: Far North District Council | B45: Bay of Islands-Whangaroa Community | C45: Russell-Ōpua Subdivision | D45: STV | E45: 0 | F45: 1 | G45: 1 | H45: 1 | I45: 1 | J45: 0 | K45: 0 | L45: 3021 | M45: 41 | N45: 3062 | AG45: 1 | AH45: 1 | AI45: 0 | AJ45: 1
A46: Far North District Council | B46: Bay of Islands-Whangaroa Community | C46: Kawakawa-Moerewa Subdivision | D46: STV | E46: 0 | F46: 1 | G46: 1 | H46: 1 | I46: 1 | J46: 1 | K46: 1 | L46: 2784 | M46: 2 | N46: 2786 | AG46: 0 | AH46: 0 | AI46: 0 | AJ46: 1
A47: Far North District Council | B47: Kaikohe-Hokianga Community | C47: North Hokianga Subdivision | D47: STV | E47: 1 | F47: 0 | G47: 1 | H47: 0 | I47: 2 | J47: 0 | K47: 0 | L47: 1768 | M47: 2 | N47: 1770 | O47: 1768 | P47: 2 | Q47: 1770 | R47: 873 | S47: 0.4937782805 | T47: 2 | U47: 1 | V47: 875 | W47: 0.4943502825 | X47: 112 | Y47: 0 | Z47: 112 | AA47: 59 | AB47: 0 | AC47: 59 | AD47: 12 | AE47: 48 | AF47: 60 | AG47: 1 | AH47: 0 | AI47: 0 | AJ47: 1
A48: Far North District Council | B48: Kaikohe-Hokianga Community | C48: South Hokianga Subdivision | D48: STV | E48: 1 | F48: 0 | G48: 2 | H48: 0 | I48: 3 | J48: 1 | K48: 1 | L48: 3053 | M48: 18 | N48: 3071 | O48: 3053 | P48: 18 | Q48: 3071 | R48: 1623 | S48: 0.5316082542 | T48: 17 | U48: 0.9444444444 | V48: 1640 | W48: 0.5340280039 | X48: 51 | Y48: 0 | Z48: 51 | AA48: 26 | AB48: 0 | AC48: 26 | AD48: 9 | AE48: 35 | AF48: 44 | AG48: 2 | AH48: 1 | AI48: 0 | AJ48: 2
A49: Far North District Council | B49: Kaikohe-Hokianga Community | C49: Kaikohe Subdivision | D49: STV | E49: 1 | F49: 0 | G49: 3 | H49: 0 | I49: 6 | J49: 2 | K49: 0 | L49: 5050 | M49: 1 | N49: 5051 | O49: 5050 | P49: 1 | Q49: 5051 | R49: 2479 | S49: 0.4908910891 | T49: 1 | U49: 1 | V49: 2480 | W49: 0.4909918828 | X49: 352 | Y49: 0 | Z49: 352 | AA49: 171 | AB49: 0 | AC49: 171 | AD49: 24 | AE49: 48 | AF49: 72 | AG49: 4 | AH49: 2 | AI49: 0 | AJ49: 3
A50: Gore District Council | B50: Mataura Community | C50: At Large | D50: FPP | E50: 0 | F50: 1 | G50: 4 | H50: 4 | I50: 4 | J50: 2 | K50: 2 | L50: 1093 | M50: 2 | N50: 1095 | AG50: 3 | AH50: 3 | AI50: 0 | AJ50: 5
A51: Hastings District Council | B51: Hastings District Rural Community | C51: Tūtira Subdivision | D51: FPP | E51: 1 | F51: 0 | G51: 1 | H51: 0 | I51: 3 | J51: 1 | K51: 1 | L51: 2163 | M51: 5 | N51: 2168 | O51: 2163 | P51: 5 | Q51: 2168 | R51: 969 | S51: 0.4479889043 | T51: 5 | U51: 1 | V51: 974 | W51: 0.4492619926 | X51: 26 | Y51: 1 | Z51: 27 | AA51: 15 | AB51: 0 | AC51: 15 | AD51: 0 | AE51: 47 | AF51: 47 | AG51: 3 | AH51: 1 | AI51: 0 | AJ51: 1
A52: Hastings District Council | B52: Hastings District Rural Community | C52: Kaweka Subdivision | D52: FPP | E52: 0 | F52: 1 | G52: 1 | H52: 1 | I52: 1 | J52: 1 | K52: 1 | L52: 2078 | M52: 3 | N52: 2081 | AG52: 1 | AH52: 1 | AI52: 0 | AJ52: 1
A53: Hastings District Council | B53: Hastings District Rural Community | C53: Maraekākaho Subdivision | D53: FPP | E53: 0 | F53: 1 | G53: 1 | H53: 0 | I53: 0 | J53: 0 | K53: 0 | L53: 1874 | M53: 5 | N53: 1879 | AG53: 0 | AH53: 0 | AI53: 1 | AJ53: 0
A54: Hastings District Council | B54: Hastings District Rural Community | C54: Poukawa Subdivision | D54: FPP | E54: 0 | F54: 1 | G54: 1 | H54: 1 | I54: 1 | J54: 0 | K54: 0 | L54: 2609 | M54: 6 | N54: 2615 | AG54: 0 | AH54: 0 | AI54: 0 | AJ54: 1
A55: Horowhenua District Council | B55: Te Awahou Foxton Community | C55: At Large | D55: FPP | E55: 1 | F55: 0 | G55: 5 | H55: 0 | I55: 9 | J55: 3 | K55: 1 | L55: 4095 | M55: 34 | N55: 4129 | O55: 4095 | P55: 34 | Q55: 4129 | R55: 1921 | S55: 0.4691086691 | T55: 30 | U55: 0.8823529412 | V55: 1951 | W55: 0.472511504 | X55: 66 | Y55: 6 | Z55: 72 | AA55: 49 | AB55: 3 | AC55: 52 | AD55: 2 | AE55: 15 | AF55: 17 | AG55: 3 | AH55: 2 | AI55: 0 | AJ55: 5
A56: Hurunui District Council | B56: Hanmer Springs Community | C56: At Large | D56: FPP | E56: 0 | F56: 1 | G56: 4 | H56: 4 | I56: 4 | J56: 2 | K56: 2 | L56: 850 | M56: 53 | N56: 903 | AG56: 3 | AH56: 3 | AI56: 0 | AJ56: 4
A57: Hurunui District Council | B57: South Ward Community | C57: At Large | D57: FPP | E57: 1 | F57: 0 | G57: 5 | H57: 0 | I57: 7 | J57: 0 | K57: 0 | L57: 4507 | M57: 5 | N57: 4512 | O57: 4507 | P57: 5 | Q57: 4512 | R57: 1948 | S57: 0.432216552 | T57: 5 | U57: 1 | V57: 1953 | W57: 0.4328457447 | X57: 67 | Y57: 3 | Z57: 70 | AA57: 34 | AB57: 1 | AC57: 35 | AD57: 1 | AE57: 64 | AF57: 65 | AG57: 1 | AH57: 1 | AI57: 0 | AJ57: 5
A58: Hutt City Council | B58: Eastbourne Community | C58: At Large | D58: FPP | E58: 0 | F58: 1 | G58: 5 | H58: 5 | I58: 5 | J58: 3 | K58: 3 | L58: 4011 | M58: 11 | N58: 4022 | AG58: 1 | AH58: 1 | AI58: 0 | AJ58: 5
A59: Hutt City Council | B59: Wainuiomata Community | C59: At Large | D59: FPP | E59: 1 | F59: 0 | G59: 6 | H59: 0 | I59: 11 | J59: 2 | K59: 2 | L59: 14243 | M59: 7 | N59: 14250 | O59: 14243 | P59: 7 | Q59: 14250 | R59: 6033 | S59: 0.4235764937 | T59: 7 | U59: 1 | V59: 6040 | W59: 0.4238596491 | X59: 264 | Y59: 3 | Z59: 267 | AA59: 193 | AB59: 2 | AC59: 195 | AD59: 6 | AE59: 270 | AF59: 276 | AG59: 7 | AH59: 3 | AI59: 0 | AJ59: 6
A60: Invercargill City Council | B60: Bluff Community | C60: At Large | D60: FPP | E60: 1 | F60: 0 | G60: 5 | H60: 0 | I60: 7 | J60: 2 | K60: 2 | L60: 1518 | M60: 6 | N60: 1524 | O60: 1518 | P60: 6 | Q60: 1524 | R60: 749 | S60: 0.4934123847 | T60: 6 | U60: 1 | V60: 755 | W60: 0.4954068241 | X60: 36 | Y60: 1 | Z60: 37 | AA60: 31 | AB60: 0 | AC60: 31 | AD60: 2 | AE60: 18 | AF60: 20 | AG60: 3 | AH60: 2 | AI60: 0 | AJ60: 5
A61: Kāpiti Coast District Council | B61: Ōtaki Community | C61: At Large | D61: STV | E61: 1 | F61: 0 | G61: 4 | H61: 0 | I61: 7 | J61: 4 | K61: 3 | L61: 6761 | M61: 65 | N61: 6826 | O61: 6761 | P61: 65 | Q61: 6826 | R61: 3302 | S61: 0.4883892915 | T61: 66 | U61: 1.015384615 | V61: 3368 | W61: 0.4934075593 | X61: 140 | Y61: 2 | Z61: 142 | AA61: 79 | AB61: 2 | AC61: 81 | AD61: 18 | AE61: 97 | AF61: 115 | AG61: 5 | AH61: 2 | AI61: 0 | AJ61: 4
A62: Kāpiti Coast District Council | B62: Waikanae Community | C62: At Large | D62: STV | E62: 1 | F62: 0 | G62: 4 | H62: 0 | I62: 6 | J62: 3 | K62: 2 | L62: 12535 | M62: 184 | N62: 12719 | O62: 12535 | P62: 184 | Q62: 12719 | R62: 6326 | S62: 0.5046669326 | T62: 157 | U62: 0.8532608696 | V62: 6483 | W62: 0.5097098829 | X62: 254 | Y62: 3 | Z62: 257 | AA62: 186 | AB62: 3 | AC62: 189 | AD62: 42 | AE62: 443 | AF62: 485 | AG62: 1 | AH62: 0 | AI62: 0 | AJ62: 4
A63: Kāpiti Coast District Council | B63: Paraparaumu Community | C63: At Large | D63: STV | E63: 1 | F63: 0 | G63: 4 | H63: 0 | I63: 12 | J63: 4 | K63: 2 | L63: 16575 | M63: 65 | N63: 16640 | O63: 16575 | P63: 65 | Q63: 16640 | R63: 6910 | S63: 0.416892911 | T63: 57 | U63: 0.8769230769 | V63: 6967 | W63: 0.4186899038 | X63: 228 | Y63: 2 | Z63: 230 | AA63: 147 | AB63: 2 | AC63: 149 | AD63: 46 | AE63: 462 | AF63: 508 | AG63: 3 | AH63: 0 | AI63: 0 | AJ63: 4
A64: Kāpiti Coast District Council | B64: Raumati Community | C64: At Large | D64: STV | E64: 1 | F64: 0 | G64: 4 | H64: 0 | I64: 8 | J64: 3 | K64: 1 | L64: 5926 | M64: 41 | N64: 5967 | O64: 5926 | P64: 41 | Q64: 5967 | R64: 2758 | S64: 0.4654066824 | T64: 30 | U64: 0.7317073171 | V64: 2788 | W64: 0.4672364672 | X64: 104 | Y64: 0 | Z64: 104 | AA64: 74 | AB64: 0 | AC64: 74 | AD64: 7 | AE64: 148 | AF64: 155 | AG64: 5 | AH64: 3 | AI64: 0 | AJ64: 4
A65: Kāpiti Coast District Council | B65: Paekākāriki Community | C65: At Large | D65: STV | E65: 1 | F65: 0 | G65: 4 | H65: 0 | I65: 5 | J65: 1 | K65: 1 | L65: 1516 | M65: 13 | N65: 1529 | O65: 1516 | P65: 13 | Q65: 1529 | R65: 873 | S65: 0.5758575198 | T65: 12 | U65: 0.9230769231 | V65: 885 | W65: 0.5788096795 | X65: 64 | Y65: 0 | Z65: 64 | AA65: 53 | AB65: 0 | AC65: 53 | AD65: 5 | AE65: 47 | AF65: 52 | AG65: 4 | AH65: 3 | AI65: 0 | AJ65: 4
A66: Mackenzie District Council | B66: Fairlie Community | C66: At Large | D66: FPP | E66: 1 | F66: 0 | G66: 4 | H66: 0 | I66: 6 | J66: 1 | K66: 1 | L66: 1642 | M66: 10 | N66: 1652 | O66: 1642 | P66: 10 | Q66: 1652 | R66: 1019 | S66: 0.6205846529 | T66: 9 | U66: 0.9 | V66: 1028 | W66: 0.6222760291 | X66: 28 | Y66: 4 | Z66: 32 | AA66: 13 | AB66: 2 | AC66: 15 | AD66: 0 | AE66: 24 | AF66: 24 | AG66: 2 | AH66: 1 | AI66: 0 | AJ66: 4
A67: Mackenzie District Council | B67: Tekapo Community | C67: At Large | D67: FPP | E67: 0 | F67: 1 | G67: 4 | H67: 4 | I67: 4 | J67: 0 | K67: 0 | L67: 375 | M67: 44 | N67: 419 | AG67: 2 | AH67: 2 | AI67: 0 | AJ67: 4
A68: Mackenzie District Council | B68: Twizel Community | C68: At Large | D68: FPP | E68: 0 | F68: 1 | G68: 3 | H68: 3 | I68: 3 | J68: 2 | K68: 2 | L68: 1342 | M68: 59 | N68: 1401 | AG68: 2 | AH68: 2 | AI68: 0 | AJ68: 3
A69: New Plymouth District Council | B69: Kaitake Community | C69: At Large | D69: STV | E69: 0 | F69: 1 | G69: 4 | H69: 3 | I69: 3 | J69: 2 | K69: 2 | L69: 4093 | M69: 6 | N69: =M69+L69 -> 4099 | AG69: 1 | AH69: 1 | AI69: 1 | AJ69: 3
A70: New Plymouth District Council | B70: Waitara Community | C70: At Large | D70: STV | E70: 1 | F70: 0 | G70: 4 | H70: 0 | I70: 9 | J70: 4 | K70: 2 | L70: 6361 | M70: 8 | N70: 6369 | O70: 6361 | P70: 8 | Q70: =O70+P70 -> 6369 | R70: 2647 | S70: =R70/O70 -> 0.4161295394 | T70: 7 | U70: =T70/P70 -> 0.875 | V70: =T70+R70 -> 2654 | W70: =V70/Q70 -> 0.4167059193 | X70: 72 | Y70: 2 | Z70: =X70+Y70 -> 74 | AA70: 45 | AB70: 2 | AC70: =AA70+AB70 -> 47 | AD70: 23 | AE70: 72 | AF70: =AD70+AE70 -> 95 | AG70: 4 | AH70: 1 | AI70: 0 | AJ70: 4
A71: New Plymouth District Council | B71: Puketapu-Bell Block Community | C71: At Large | D71: STV | E71: 0 | F71: 1 | G71: 4 | H71: 4 | I71: 4 | J71: 2 | K71: 2 | L71: 6178 | M71: 1 | N71: 6179 | AG71: 1 | AH71: 1 | AI71: 0 | AJ71: 4
A72: New Plymouth District Council | B72: Clifton Community | C72: At Large | D72: STV | E72: 0 | F72: 1 | G72: 4 | H72: 3 | I72: 3 | J72: 1 | K72: 1 | L72: 2146 | M72: 18 | N72: 2164 | AG72: 1 | AH72: 1 | AI72: 1 | AJ72: 3
A73: New Plymouth District Council | B73: Inglewood Community | C73: At Large | D73: STV | E73: 1 | F73: 0 | G73: 4 | H73: 0 | I73: 7 | J73: 1 | K73: 0 | L73: 7587 | M73: 4 | N73: 7591 | O73: 7587 | P73: 4 | Q73: 7591 | R73: 3647 | S73: 0.4806906551 | T73: 5 | U73: 1.25 | V73: 3652 | W73: 0.4810960348 | X73: 91 | Y73: 1 | Z73: 92 | AA73: 58 | AB73: 1 | AC73: 59 | AD73: 19 | AE73: 306 | AF73: 325 | AG73: 3 | AH73: 1 | AI73: 0 | AJ73: 4
A74: Ōpōtiki District Council | B74: Coast Community | C74: At Large | D74: FPP | E74: 1 | F74: 0 | G74: 4 | H74: 0 | I74: 7 | J74: 2 | K74: 1 | L74: 1305 | M74: 17 | N74: 1322 | O74: 1305 | P74: 17 | Q74: 1322 | R74: 527 | S74: 0.4038314176 | T74: 19 | U74: 1.117647059 | V74: 546 | W74: 0.41301059 | X74: 27 | Y74: 2 | Z74: 29 | AA74: 14 | AB74: 2 | AC74: 16 | AD74: 1 | AE74: 21 | AF74: 22 | AG74: 6 | AH74: 3 | AI74: 0 | AJ74: 4
A75: Ōtorohanga District Council | B75: Kāwhia Community | C75: Aotea Subdivision | D75: FPP | E75: 0 | F75: 1 | G75: 1 | H75: 1 | I75: 1 | J75: 1 | K75: 1 | L75: 66 | M75: 10 | N75: 76 | AG75: 0 | AH75: 0 | AI75: 0 | AJ75: 1
A76: Ōtorohanga District Council | B76: Kāwhia Community | C76: Kāwhia Subdivision | D76: FPP | E76: 0 | F76: 1 | G76: 3 | H76: 3 | I76: 3 | J76: 1 | K76: 1 | L76: 265 | M76: 26 | N76: 291 | AG76: 2 | AH76: 2 | AI76: 0 | AJ76: 3
A77: Ōtorohanga District Council | B77: Ōtorohanga Community | C77: At Large | D77: FPP | E77: 0 | F77: 1 | G77: 4 | H77: 4 | I77: 4 | J77: 0 | K77: 0 | L77: 2061 | M77: 11 | N77: 2072 | AG77: 2 | AH77: 2 | AI77: 0 | AJ77: 4
A78: Queenstown-Lakes District Council | B78: Wānaka-Upper Clutha Community | C78: At Large | D78: FPP | E78: 1 | F78: 0 | G78: 4 | H78: 0 | I78: 6 | J78: 4 | K78: 3 | L78: 12048 | M78: 175 | N78: 12223 | O78: 12048 | P78: 175 | Q78: 12223 | R78: 5573 | S78: 0.4625664011 | T78: 137 | U78: 0.7828571429 | V78: 5710 | W78: 0.4671520903 | X78: 258 | Y78: 40 | Z78: 298 | AA78: 227 | AB78: 34 | AC78: 261 | AD78: 6 | AE78: 223 | AF78: 229 | AG78: 2 | AH78: 1 | AI78: 0 | AJ78: 4
A79: Rangitīkei District Council | B79: Rātana Community | C79: At Large | D79: FPP | E79: 0 | F79: 1 | G79: 4 | H79: 4 | I79: 4 | J79: 2 | K79: 2 | L79: 331 | M79: 0 | N79: 331 | AG79: 2 | AH79: 2 | AI79: 0 | AJ79: 4
A80: Rangitīkei District Council | B80: Taihape Community | C80: At Large | D80: FPP | E80: 1 | F80: 0 | G80: 4 | H80: 0 | I80: 6 | J80: 1 | K80: 1 | L80: 2377 | M80: 4 | N80: 2381 | O80: 2377 | P80: 4 | Q80: 2381 | R80: 1212 | S80: 0.5098864114 | T80: 3 | U80: =T80/P80 -> 0.75 | V80: =T80+R80 -> 1215 | W80: =V80/Q80 -> 0.5102897942 | X80: 15 | Y80: 2 | Z80: 17 | AA80: 13 | AB80: 2 | AC80: 15 | AD80: 1 | AE80: 24 | AF80: 25 | AG80: 5 | AH80: 3 | AI80: 0 | AJ80: 4
A81: Rotorua District Council | B81: Rotorua Lakes Community | C81: At Large | D81: FPP | E81: 0 | F81: 1 | G81: 4 | H81: 2 | I81: 2 | J81: 1 | K81: 1 | L81: 3285 | M81: 85 | N81: 3370 | AG81: 1 | AH81: 1 | AI81: 2 | AJ81: 2
A82: Rotorua District Council | B82: Rotorua Rural Community | C82: At Large | D82: FPP | E82: 1 | F82: 0 | G82: 4 | H82: 0 | I82: 6 | J82: 2 | K82: 1 | L82: 5477 | M82: 12 | N82: 5489 | O82: 5477 | P82: 12 | Q82: 5489 | R82: 2324 | S82: 0.4243198831 | T82: 11 | U82: =T82/P82 -> 0.9166666667 | V82: =T82+R82 -> 2335 | W82: =V82/Q82 -> 0.425396247 | X82: 41 | Y82: 1 | Z82: 42 | AA82: 30 | AB82: 1 | AC82: 31 | AD82: 0 | AE82: 128 | AF82: 128 | AG82: 5 | AH82: 3 | AI82: 0 | AJ82: 4
A83: Ruapehu District Council | B83: Taumaruniui-Ōhura Community | C83: At Large | D83: STV | E83: 1 | F83: 0 | G83: 5 | H83: 0 | I83: 8 | J83: 3 | K83: 3 | L83: 4524 | M83: 9 | N83: 4533 | O83: 4524 | P83: 9 | Q83: 4533 | R83: 2438 | S83: 0.5389036251 | T83: 8 | U83: 0.8888888889 | V83: 2446 | W83: 0.5395984999 | X83: 108 | Y83: 6 | Z83: 114 | AA83: 74 | AB83: 4 | AC83: 78 | AD83: 31 | AE83: 189 | AF83: 220 | AG83: 5 | AH83: 3 | AI83: 0 | AJ83: 5
A84: Ruapehu District Council | B84: Ōwhango-National Park Community | C84: At Large | D84: STV | E84: 1 | F84: 0 | G84: 5 | H84: 0 | I84: 7 | J84: 5 | K84: 4 | L84: 747 | M84: 16 | N84: 763 | O84: 747 | P84: 16 | Q84: 763 | R84: 438 | S84: 0.5863453815 | T84: 14 | U84: 0.875 | V84: 452 | W84: 0.5923984273 | X84: 23 | Y84: 2 | Z84: 25 | AA84: 14 | AB84: 1 | AC84: 15 | AD84: 1 | AE84: 25 | AF84: 26 | AG84: 2 | AH84: 1 | AI84: 0 | AJ84: 5
A85: Ruapehu District Council | B85: Waimarino-Waiouru Community | C85: At Large | D85: STV | E85: 1 | F85: 0 | G85: 5 | H85: 0 | I85: 10 | J85: 5 | K85: 4 | L85: 2937 | M85: 111 | N85: 3048 | O85: 2937 | P85: 111 | Q85: 3048 | R85: 1313 | S85: 0.4470548178 | T85: 91 | U85: 0.8198198198 | V85: 1404 | W85: 0.4606299213 | X85: 32 | Y85: 18 | Z85: 50 | AA85: 22 | AB85: 16 | AC85: 38 | AD85: 11 | AE85: 38 | AF85: 49 | AG85: 4 | AH85: 2 | AI85: 0 | AJ85: 5
A86: Selwyn District Council | B86: Malvern Area Community | C86: Tawera Subdivision | D86: FPP | E86: 1 | F86: 0 | G86: 2 | H86: 0 | I86: 3 | J86: 0 | K86: 0 | L86: 2438 | M86: 26 | N86: 2464 | O86: 2438 | P86: 26 | Q86: 2464 | R86: 1420 | S86: 0.5824446267 | T86: 24 | U86: 0.9230769231 | V86: 1444 | W86: 0.586038961 | X86: 38 | Y86: 5 | Z86: 43 | AA86: 23 | AB86: 2 | AC86: 25 | AD86: 0 | AE86: 124 | AF86: 124 | AG86: 1 | AH86: 1 | AI86: 0 | AJ86: 1
A87: Selwyn District Council | B87: Malvern Area Community | C87: Hawkins Subdivision | D87: FPP | E87: 1 | F87: 0 | G87: 3 | H87: 0 | I87: 6 | J87: 0 | K87: 0 | L87: 4270 | M87: 4 | N87: 4274 | O87: 4270 | P87: 4 | Q87: 4274 | R87: 2630 | S87: 0.6159250585 | T87: 4 | U87: 1 | V87: 2634 | W87: 0.616284511 | X87: 75 | Y87: 0 | Z87: 75 | AA87: 55 | AB87: 0 | AC87: 55 | AD87: 0 | AE87: 180 | AF87: 180 | AG87: 2 | AH87: 1 | AI87: 0 | AJ87: 3
A88: South Taranaki District Council | B88: Taranaki Coastal Community | C88: At Large | D88: FPP | E88: 1 | F88: 0 | G88: 4 | H88: 0 | I88: 7 | J88: 2 | K88: 2 | L88: 3892 | M88: 4 | N88: 3896 | O88: 3892 | P88: 4 | Q88: 3896 | R88: 1719 | S88: 0.4416752312 | T88: 5 | U88: 1.25 | V88: 1724 | W88: 0.4425051335 | X88: 34 | Y88: 0 | Z88: 34 | AA88: 22 | AB88: 0 | AC88: 22 | AD88: 2 | AE88: 43 | AF88: 45 | AG88: 5 | AH88: 3 | AI88: 0 | AJ88: 4
A89: South Taranaki District Council | B89: Eltham-Kaponga Community | C89: At Large | D89: FPP | E89: 1 | F89: 0 | G89: 4 | H89: 0 | I89: 7 | J89: 3 | K89: 1 | L89: 3012 | M89: 5 | N89: 3017 | O89: 3012 | P89: 5 | Q89: 3017 | R89: 1230 | S89: 0.4083665339 | T89: 5 | U89: 1 | V89: 1235 | W89: 0.4093470335 | X89: 38 | Y89: 0 | Z89: 38 | AA89: 29 | AB89: 0 | AC89: 29 | AD89: 1 | AE89: 29 | AF89: 30 | AG89: 2 | AH89: 2 | AI89: 0 | AJ89: 4
A90: South Taranaki District Council | B90: Te Hāwera Community | C90: At Large | D90: FPP | E90: 1 | F90: 0 | G90: 4 | H90: 0 | I90: 7 | J90: 3 | K90: 2 | L90: 9113 | M90: 5 | N90: 9118 | O90: 9113 | P90: 5 | Q90: 9118 | R90: 4287 | S90: 0.4704268627 | T90: 5 | U90: 1 | V90: 4292 | W90: 0.4707172626 | X90: 144 | Y90: 0 | Z90: 144 | AA90: 84 | AB90: 0 | AC90: 84 | AD90: 31 | AE90: 82 | AF90: 113 | AG90: 5 | AH90: 4 | AI90: 0 | AJ90: 4
A91: South Taranaki District Council | B91: Pātea Community | C91: At Large | D91: FPP | E91: 1 | F91: 0 | G91: 4 | H91: 0 | I91: 5 | J91: 2 | K91: 2 | L91: 2652 | M91: 13 | N91: 2665 | O91: 2652 | P91: 13 | Q91: 2665 | R91: 1175 | S91: 0.4430618401 | T91: 12 | U91: 0.9230769231 | V91: 1187 | W91: 0.4454033771 | X91: 18 | Y91: 0 | Z91: 18 | AA91: 18 | AB91: 0 | AC91: 18 | AD91: 3 | AE91: 15 | AF91: 18 | AG91: 5 | AH91: 4 | AI91: 0 | AJ91: 4
A92: South Waikato District Council | B92: Tirau Community | C92: At Large | D92: FPP | E92: 0 | F92: 1 | G92: 4 | H92: 4 | I92: 4 | J92: 1 | K92: 1 | L92: 1646 | M92: 0 | N92: 1646 | AG92: 1 | AH92: 1 | AI92: 0 | AJ92: 4
A93: South Wairarapa District Council | B93: Greytown Community | C93: At Large | D93: FPP | E93: 1 | F93: 0 | G93: 4 | H93: 0 | I93: 6 | J93: 3 | K93: 3 | L93: 3383 | M93: 24 | N93: 3407 | O93: 3383 | P93: 24 | Q93: 3407 | R93: 2078 | S93: 0.6142477091 | T93: 22 | U93: 0.9166666667 | V93: 2100 | W93: 0.6163780452 | X93: 71 | Y93: 16 | Z93: 87 | AA93: 54 | AB93: 12 | AC93: 66 | AD93: 5 | AE93: 121 | AF93: 126 | AG93: 5 | AH93: 3 | AI93: 0 | AJ93: 4
A94: South Wairarapa District Council | B94: Featherston Community | C94: At Large | D94: FPP | E94: 1 | F94: 0 | G94: 4 | H94: 0 | I94: 5 | J94: 2 | K94: 2 | L94: 2683 | M94: 16 | N94: 2699 | O94: 2683 | P94: 16 | Q94: 2699 | R94: 1418 | S94: 0.5285128587 | T94: 15 | U94: 0.9375 | V94: 1433 | W94: 0.5309373842 | X94: 37 | Y94: 5 | Z94: 42 | AA94: 30 | AB94: 4 | AC94: 34 | AD94: 0 | AE94: 52 | AF94: 52 | AG94: 2 | AH94: 2 | AI94: 0 | AJ94: 4
A95: South Wairarapa District Council | B95: Martinborough Community | C95: At Large | D95: FPP | E95: 0 | F95: 1 | G95: 4 | H95: 4 | I95: 4 | J95: 1 | K95: 1 | L95: 3166 | M95: 77 | N95: 3243 | AG95: 2 | AH95: 2 | AI95: 0 | AJ95: 4
A96: Southland District Council | B96: Wallace Takitimu Community | C96: At Large | D96: FPP | E96: 0 | F96: 1 | G96: 6 | H96: 6 | I96: 6 | J96: 5 | K96: 5 | L96: 1791 | M96: 5 | N96: 1796 | AG96: 2 | AH96: 2 | AI96: 0 | AJ96: 6
A97: Southland District Council | B97: Ōreti Community | C97: Hokonui Subdivision | D97: FPP | E97: 0 | F97: 1 | G97: 1 | H97: 1 | I97: 1 | J97: 0 | K97: 0 | L97: 705 | M97: 0 | N97: 705 | AG97: 1 | AH97: 1 | AI97: 0 | AJ97: 1
A98: Southland District Council | B98: Ōreti Community | C98: Midlands Subdivision | D98: FPP | E98: 1 | F98: 0 | G98: 4 | H98: 4 | I98: 5 | J98: 0 | K98: 0 | L98: 3660 | M98: 2 | N98: 3662 | O98: 3660 | P98: 2 | Q98: 3662 | R98: 1783 | S98: 0.4871584699 | T98: 1 | U98: 0.5 | V98: 1784 | W98: 0.4871654833 | X98: 27 | Y98: 3 | Z98: 30 | AA98: 24 | AB98: 2 | AC98: 26 | AD98: 1 | AE98: 20 | AF98: 21 | AG98: 1 | AH98: 1 | AI98: 0 | AJ98: 4
A99: Southland District Council | B99: Ōreti Community | C99: Makarewa Subdivision | D99: FPP | E99: 0 | F99: 1 | G99: 2 | H99: 2 | I99: 2 | J99: 0 | K99: 0 | L99: 1605 | M99: 1 | N99: 1606 | AG99: 1 | AH99: 1 | AI99: 0 | AJ99: 2
A100: Southland District Council | B100: Ōraka Aparima Community | C100: At Large | D100: FPP | E100: 0 | F100: 1 | G100: 6 | H100: 5 | I100: 6 | J100: 4 | K100: 3 | L100: 2079 | M100: 17 | N100: 2096 | AG100: 2 | AH100: 2 | AI100: 1 | AJ100: 5
A101: Southland District Council | B101: Northern Community | C101: Parawa-Fairlight Subdivision | D101: FPP | E101: 1 | F101: 0 | G101: 1 | H101: 0 | I101: 2 | J101: 0 | K101: 0 | L101: 215 | M101: 2 | N101: 217 | O101: 215 | P101: 2 | Q101: 217 | R101: 81 | S101: 0.376744186 | T101: 2 | U101: 1 | V101: 83 | W101: 0.3824884793 | X101: 1 | Y101: 0 | Z101: 1 | AA101: 1 | AB101: 0 | AC101: 1 | AD101: 0 | AE101: 2 | AF101: 2 | AG101: 0 | AH101: 0 | AI101: 0 | AJ101: 1
A102: Southland District Council | B102: Northern Community | C102: West Dome Subdivision | D102: FPP | E102: 0 | F102: 1 | G102: 2 | H102: 2 | I102: 2 | J102: 1 | K102: 1 | L102: 403 | M102: 0 | N102: 403 | AG102: 1 | AH102: 1 | AI102: 0 | AJ102: 2
A103: Southland District Council | B103: Northern Community | C103: Mid Dome Subdivision | D103: FPP | E103: 0 | F103: 1 | G103: 3 | H103: 3 | I103: 3 | J103: 3 | K103: 3 | L103: 546 | M103: 4 | N103: 550 | AG103: 2 | AH103: 2 | AI103: 0 | AJ103: 3
A104: Southland District Council | B104: Waihōpai Toetoe Community | C104: At Large | D104: FPP | E104: 1 | F104: 0 | G104: 7 | H104: 0 | I104: 9 | J104: 6 | K104: 6 | L104: 4013 | M104: 11 | N104: 4024 | O104: 4013 | P104: 11 | Q104: 4024 | R104: 1549 | S104: 0.3859955146 | T104: 10 | U104: 0.9090909091 | V104: 1559 | W104: 0.3874254473 | X104: 13 | Y104: 2 | Z104: 15 | AA104: 10 | AB104: 2 | AC104: 12 | AD104: 1 | AE104: 35 | AF104: 36 | AG104: 6 | AH104: 6 | AI104: 0 | AJ104: 7
A105: Southland District Council | B105: Stewart Island/Rakiura Community | C105: At Large | D105: FPP | E105: 1 | F105: 0 | G105: 6 | H105: 0 | I105: 7 | J105: 5 | K105: 5 | L105: 318 | M105: 31 | N105: 349 | O105: 318 | P105: 31 | Q105: 349 | R105: 201 | S105: 0.6320754717 | T105: 29 | U105: 0.935483871 | V105: 230 | W105: 0.659025788 | X105: 7 | Y105: 4 | Z105: 11 | AA105: 5 | AB105: 4 | AC105: 9 | AD105: 0 | AE105: 1 | AF105: 1 | AG105: 2 | AH105: 2 | AI105: 0 | AJ105: 6
A106: Southland District Council | B106: Fiordland Community | C106: At Large | D106: FPP | E106: 1 | F106: 0 | G106: 6 | H106: 0 | I106: 7 | J106: 5 | K106: 5 | L106: 2884 | M106: 53 | N106: 2937 | O106: 2884 | P106: 53 | Q106: 2937 | R106: 1286 | S106: 0.4459084605 | T106: 49 | U106: 0.9245283019 | V106: 1335 | W106: 0.4545454545 | X106: 9 | Y106: 4 | Z106: 13 | AA106: 6 | AB106: 4 | AC106: 10 | AD106: 0 | AE106: 14 | AF106: 14 | AG106: 5 | AH106: 4 | AI106: 0 | AJ106: 6
A107: Southland District Council | B107: Tuatapere Te Waewae Community | C107: At Large | D107: FPP | E107: 1 | F107: 0 | G107: 6 | H107: 0 | I107: 7 | J107: 4 | K107: 4 | L107: 1043 | M107: 4 | N107: 1047 | O107: 1043 | P107: 4 | Q107: 1047 | R107: 496 | S107: 0.4755512943 | T107: 4 | U107: 1 | V107: 500 | W107: 0.4775549188 | X107: 6 | Y107: 0 | Z107: 6 | AA107: 6 | AB107: 0 | AC107: 6 | AD107: 0 | AE107: 6 | AF107: 6 | AG107: 4 | AH107: 3 | AI107: 0 | AJ107: 6
A108: Southland District Council | B108: Ardlussa Community | C108: At Large | D108: FPP | E108: 0 | F108: 1 | G108: 6 | H108: 6 | I108: 6 | J108: 5 | K108: 5 | L108: 1261 | M108: 5 | N108: 1266 | AG108: 1 | AH108: 1 | AI108: 0 | AJ108: 5
A109: Tararua District Council | B109: Dannevirke Community | C109: At Large | D109: FPP | E109: 1 | F109: 0 | G109: 4 | H109: 0 | I109: 8 | J109: 3 | K109: 3 | L109: 6984 | M109: 14 | N109: 6998 | O109: 6984 | P109: 14 | Q109: 6998 | R109: 4141 | S109: 0.5929266896 | T109: 13 | U109: 0.9285714286 | V109: 4154 | W109: 0.5935981709 | X109: 133 | Y109: 4 | Z109: 137 | AA109: 118 | AB109: 4 | AC109: 122 | AD109: 0 | AE109: 77 | AF109: 77 | AG109: 3 | AH109: 1 | AI109: 0 | AJ109: 4
A110: Tararua District Council | B110: Eketahuna Community | C110: At Large | D110: FPP | E110: 1 | F110: 0 | G110: 4 | H110: 0 | I110: 6 | J110: 2 | K110: 2 | L110: 1053 | M110: 3 | N110: 1056 | O110: 1053 | P110: 3 | Q110: 1056 | R110: 513 | S110: 0.4871794872 | T110: 1 | U110: 0.3333333333 | V110: 514 | W110: 0.4867424242 | X110: 17 | Y110: 3 | Z110: 20 | AA110: 14 | AB110: 2 | AC110: 16 | AD110: 0 | AE110: 14 | AF110: 14 | AG110: 2 | AH110: 1 | AI110: 0 | AJ110: 4
A111: Tasman District Council | B111: Golden Bay Community | C111: At Large | D111: FPP | E111: 1 | F111: 0 | G111: 4 | H111: 0 | I111: 7 | J111: 2 | K111: 2 | L111: 4239 | M111: 76 | N111: 4315 | O111: 4239 | P111: 76 | Q111: 4315 | R111: 2434 | S111: 0.5741920264 | T111: 72 | U111: 0.9473684211 | V111: 2506 | W111: 0.580764774 | X111: 95 | Y111: 2 | Z111: 97 | AA111: 45 | AB111: 2 | AC111: 47 | AD111: 1 | AE111: 39 | AF111: 40 | AG111: 2 | AH111: 1 | AI111: 0 | AJ111: 4
A112: Tasman District Council | B112: Motueka Community | C112: At Large | D112: FPP | E112: 1 | F112: 0 | G112: 4 | H112: 0 | I112: 5 | J112: 1 | K112: 1 | L112: 9343 | M112: 36 | N112: 9379 | O112: 9343 | P112: 36 | Q112: 9379 | R112: 4281 | S112: 0.458204003 | T112: 34 | U112: 0.9444444444 | V112: 4315 | W112: 0.46007037 | X112: 109 | Y112: 1 | Z112: 110 | AA112: 72 | AB112: 1 | AC112: 73 | AD112: 4 | AE112: 204 | AF112: 208 | AG112: 2 | AH112: 2 | AI112: 0 | AJ112: 4
A113: Thames-Coromandel District Council | B113: Coromandel-Colville Community | C113: At Large | D113: FPP | E113: 1 | F113: 0 | G113: 4 | H113: 0 | I113: 8 | J113: 4 | K113: 3 | L113: 2559 | M113: 74 | N113: 2633 | O113: 2559 | P113: 74 | Q113: 2633 | R113: 1366 | S113: 0.5338022665 | T113: 67 | U113: 0.9054054054 | V113: 1433 | W113: 0.5442461071 | X113: 73 | Y113: 0 | Z113: 73 | AA113: 43 | AB113: 0 | AC113: 43 | AD113: 2 | AE113: 18 | AF113: 20 | AG113: 4 | AH113: 2 | AI113: 0 | AJ113: 4
A114: Thames-Coromandel District Council | B114: Mercury Bay Community | C114: At Large | D114: FPP | E114: 1 | F114: 0 | G114: 4 | H114: 0 | I114: 7 | J114: 2 | K114: 1 | L114: 7713 | M114: 505 | N114: 8218 | O114: 7713 | P114: 505 | Q114: 8218 | R114: 3620 | S114: 0.4693374822 | T114: 425 | U114: 0.8415841584 | V114: 4045 | W114: 0.4922122171 | X114: 102 | Y114: 1 | Z114: 103 | AA114: 45 | AB114: 1 | AC114: 46 | AD114: 3 | AE114: 140 | AF114: 143 | AG114: 4 | AH114: 1 | AI114: 0 | AJ114: 4
A115: Thames-Coromandel District Council | B115: Thames Community | C115: At Large | D115: FPP | E115: 1 | F115: 0 | G115: 4 | H115: 0 | I115: 8 | J115: 3 | K115: 3 | L115: 7948 | M115: 49 | N115: 7997 | O115: 7948 | P115: 49 | Q115: 7997 | R115: 3992 | S115: 0.5022647207 | T115: 40 | U115: 0.8163265306 | V115: 4032 | W115: 0.5041890709 | X115: 147 | Y115: 0 | Z115: 147 | AA115: 95 | AB115: 0 | AC115: 95 | AD115: 7 | AE115: 113 | AF115: 120 | AG115: 1 | AH115: 1 | AI115: 0 | AJ115: 4
A116: Thames-Coromandel District Council | B116: Tairua-Pāuanui Community | C116: At Large | D116: FPP | E116: 1 | F116: 0 | G116: 4 | H116: 0 | I116: 5 | J116: 3 | K116: 2 | L116: 2305 | M116: 292 | N116: 2597 | O116: 2305 | P116: 292 | Q116: 2597 | R116: 1281 | S116: 0.5557483731 | T116: 254 | U116: 0.8698630137 | V116: 1535 | W116: 0.5910666153 | X116: 46 | Y116: 0 | Z116: 46 | AA116: 19 | AB116: 0 | AC116: 19 | AD116: 1 | AE116: 23 | AF116: 24 | AG116: 1 | AH116: 1 | AI116: 0 | AJ116: 4
A117: Thames-Coromandel District Council | B117: Whangamatā Community | C117: At Large | D117: FPP | E117: 1 | F117: 0 | G117: 4 | H117: 0 | I117: 6 | J117: 2 | K117: 2 | L117: 3789 | M117: 289 | N117: 4078 | O117: 3789 | P117: 289 | Q117: 4078 | R117: 1681 | S117: 0.4436526788 | T117: 248 | U117: 0.8581314879 | V117: 1929 | W117: 0.4730259931 | X117: 58 | Y117: 0 | Z117: 58 | AA117: 24 | AB117: 0 | AC117: 24 | AD117: 1 | AE117: 37 | AF117: 38 | AG117: 2 | AH117: 1 | AI117: 0 | AJ117: 4
A118: Timaru District Council | B118: Geraldine Community | C118: At Large | D118: FPP | E118: 1 | F118: 0 | G118: 6 | H118: 0 | I118: 8 | J118: 3 | K118: 3 | L118: 4506 | M118: 6 | N118: 4512 | O118: 4506 | P118: 6 | Q118: 4512 | R118: 2383 | S118: 0.5288504217 | T118: 6 | U118: 1 | V118: 2389 | W118: 0.5294769504 | X118: 16 | Y118: 1 | Z118: 17 | AA118: 13 | AB118: 0 | AC118: 13 | AD118: 3 | AE118: 53 | AF118: 56 | AG118: 6 | AH118: 4 | AI118: 0 | AJ118: 6
A119: Timaru District Council | B119: Pleasant Point Community | C119: At Large | D119: FPP | E119: 1 | F119: 0 | G119: 5 | H119: 0 | I119: 6 | J119: 2 | K119: 2 | L119: 2158 | M119: 2 | N119: 2160 | O119: 2158 | P119: 2 | Q119: 2160 | R119: 1052 | S119: 0.4874884152 | T119: 2 | U119: 1 | V119: 1054 | W119: 0.487962963 | X119: 15 | Y119: 1 | Z119: 16 | AA119: 14 | AB119: 1 | AC119: 15 | AD119: 0 | AE119: 25 | AF119: 25 | AG119: 5 | AH119: 4 | AI119: 0 | AJ119: 5
A120: Timaru District Council | B120: Temuka Community | C120: At Large | D120: FPP | E120: 1 | F120: 0 | G120: 5 | H120: 0 | I120: 7 | J120: 3 | K120: 3 | L120: 4589 | M120: 2 | N120: 4591 | O120: 4589 | P120: 2 | Q120: 4591 | R120: 1966 | S120: 0.4284157769 | T120: 2 | U120: 1 | V120: 1968 | W120: 0.4286647789 | X120: 33 | Y120: 1 | Z120: 34 | AA120: 28 | AB120: 0 | AC120: 28 | AD120: 3 | AE120: 43 | AF120: 46 | AG120: 5 | AH120: 3 | AI120: 0 | AJ120: 5
A121: Waikato District Council | B121: Tuakau Community | C121: At Large | D121: FPP | E121: 1 | F121: 0 | G121: 6 | H121: 0 | I121: 8 | J121: 4 | K121: 3 | L121: 5423 | M121: 8 | N121: 5431 | O121: 5423 | P121: 8 | Q121: 5431 | R121: 1560 | S121: 0.2876636548 | T121: 8 | U121: 1 | V121: 1568 | W121: 0.2887129442 | X121: 34 | Y121: 0 | Z121: 34 | AA121: 20 | AB121: 0 | AC121: 20 | AD121: 2 | AE121: 55 | AF121: 57 | AG121: 1 | AH121: 1 | AI121: 0 | AJ121: 6
A122: Waikato District Council | B122: Taupiri Community | C122: At Large | D122: FPP | E122: 1 | F122: 0 | G122: 4 | H122: 0 | I122: 6 | J122: 0 | K122: 0 | L122: 457 | M122: 1 | N122: 458 | O122: 457 | P122: 1 | Q122: 458 | R122: 181 | S122: 0.3960612691 | T122: 0 | U122: 0 | V122: 181 | W122: 0.3951965066 | X122: 6 | Y122: 0 | Z122: 6 | AA122: 3 | AB122: 0 | AC122: 3 | AD122: 0 | AE122: 7 | AF122: 7 | AG122: 3 | AH122: 3 | AI122: 0 | AJ122: 4
A123: Waikato District Council | B123: Huntly Community | C123: At Large | D123: FPP | E123: 1 | F123: 0 | G123: 6 | H123: 0 | I123: 10 | J123: 2 | K123: 1 | L123: 5560 | M123: 2 | N123: 5562 | O123: 5560 | P123: 2 | Q123: 5562 | R123: 1815 | S123: 0.3264388489 | T123: 1 | U123: 0.5 | V123: 1816 | W123: 0.3265012585 | X123: 27 | Y123: 0 | Z123: 27 | AA123: 20 | AB123: 0 | AC123: 20 | AD123: 2 | AE123: 34 | AF123: 36 | AG123: 6 | AH123: 5 | AI123: 0 | AJ123: 6
A124: Waikato District Council | B124: Ngāruawāhia Community | C124: At Large | D124: FPP | E124: 1 | F124: 0 | G124: 6 | H124: 0 | I124: 10 | J124: 5 | K124: 3 | L124: 6195 | M124: 1 | N124: 6196 | O124: 6195 | P124: 1 | Q124: 6196 | R124: 2067 | S124: 0.3336561743 | T124: 14 | U124: =T124/P124 -> 14 | V124: 2081 | W124: 0.3358618464 | X124: 43 | Y124: 0 | Z124: 43 | AA124: 33 | AB124: 0 | AC124: 33 | AD124: 6 | AE124: 63 | AF124: 69 | AG124: 7 | AH124: 5 | AI124: 0 | AJ124: 6
A125: Waikato District Council | B125: Raglan Community | C125: At Large | D125: FPP | E125: 1 | F125: 0 | G125: 6 | H125: 0 | I125: 9 | J125: 4 | K125: 4 | L125: 4155 | M125: 18 | N125: 4173 | O125: 4155 | P125: 18 | Q125: 4173 | R125: 1702 | S125: 0.4096269555 | T125: 14 | U125: 0.7777777778 | V125: 1716 | W125: 0.4112149533 | X125: 100 | Y125: 1 | Z125: 101 | AA125: 66 | AB125: 1 | AC125: 67 | AD125: 5 | AE125: 21 | AF125: 26 | AG125: 3 | AH125: 2 | AI125: 0 | AJ125: 6
A126: Waikato District Council | B126: Rural-Port Waikato Community | C126: North Subdivision | D126: FPP | E126: 0 | F126: 1 | G126: 2 | H126: 2 | I126: 2 | J126: 1 | K126: 1 | L126: 1564 | M126: 5 | N126: 1569 | AG126: 2 | AH126: 2 | AI126: 0 | AJ126: 2
A127: Waikato District Council | B127: Rural-Port Waikato Community | C127: South Subdivision | D127: FPP | E127: 0 | F127: 1 | G127: 2 | H127: 2 | I127: 2 | J127: 1 | K127: 1 | L127: 1702 | M127: 2 | N127: 1704 | AG127: 2 | AH127: 2 | AI127: 0 | AJ127: 2
A128: Waimakariri District Council | B128: Oxford-Ohoka Community | C128: Oxford Subdivision | D128: FPP | E128: 1 | F128: 0 | G128: 3 | H128: 0 | I128: 5 | J128: 3 | K128: 3 | L128: 4560 | M128: 3 | N128: 4563 | O128: 4560 | P128: 3 | Q128: =O128+P128 -> 4563 | R128: 1929 | S128: =R128/O128 -> 0.4230263158 | T128: 3 | U128: =T128/P128 -> 1 | V128: =T128+R128 -> 1932 | W128: =V128/Q128 -> 0.4234056542 | X128: 30 | Y128: 0 | Z128: =X128+Y128 -> 30 | AA128: 27 | AB128: 0 | AC128: =AA128+AB128 -> 27 | AD128: 0 | AE128: 81 | AF128: =AD128+AE128 -> 81 | AG128: 0 | AH128: 0 | AI128: 0 | AJ128: 3
A129: Waimakariri District Council | B129: Oxford-Ohoka Community | C129: Ohoka-Swannanoa Subdivision | D129: FPP | E129: 1 | F129: 0 | G129: 3 | H129: 0 | I129: 5 | J129: 2 | K129: 2 | L129: 4822 | M129: 3 | N129: 4825 | O129: 4822 | P129: 3 | Q129: =O129+P129 -> 4825 | R129: 2126 | S129: 0.4408958938 | T129: 3 | U129: 1 | V129: 2129 | W129: 0.4412435233 | X129: 28 | Y129: 0 | Z129: 28 | AA129: 24 | AB129: 0 | AC129: =AA129+AB129 -> 24 | AD129: 0 | AE129: 168 | AF129: 168 | AG129: 1 | AH129: 1 | AI129: 0 | AJ129: 3
A130: Waimakariri District Council | B130: Woodend-Sefton Community | C130: At Large | D130: FPP | E130: 1 | F130: 0 | G130: 5 | H130: 0 | I130: 7 | J130: 3 | K130: 2 | L130: 8270 | M130: 3 | N130: 8273 | O130: 8270 | P130: 3 | Q130: =O130+P130 -> 8273 | R130: 3115 | S130: =R130/O130 -> 0.376662636 | T130: 2 | U130: =T130/P130 -> 0.6666666667 | V130: =T130+R130 -> 3117 | W130: =V130/Q130 -> 0.3767677989 | X130: 73 | Y130: 1 | Z130: =X130+Y130 -> 74 | AA130: 54 | AB130: 1 | AC130: =AA130+AB130 -> 55 | AD130: 3 | AE130: 225 | AF130: =AD130+AE130 -> 228 | AG130: 2 | AH130: 1 | AI130: 0 | AJ130: 5
A131: Waimakariri District Council | B131: Kaiapoi-Tuahiwi Community | C131: At Large | D131: FPP | E131: 1 | F131: 0 | G131: 5 | H131: 0 | I131: 7 | J131: 4 | K131: 3 | L131: 11765 | M131: 10 | N131: 11775 | O131: 11765 | P131: 10 | Q131: =O131+P131 -> 11775 | R131: 4443 | S131: =R131/O131 -> 0.3776455589 | T131: 10 | U131: =T131/P131 -> 1 | V131: =T131+R131 -> 4453 | W131: =V131/Q131 -> 0.3781740977 | X131: 49 | Y131: 2 | Z131: =X131+Y131 -> 51 | AA131: 37 | AB131: 2 | AC131: =AA131+AB131 -> 39 | AD131: 2 | AE131: 254 | AF131: =AD131+AE131 -> 256 | AG131: 5 | AH131: 4 | AI131: 0 | AJ131: 5
A132: Waimakariri District Council | B132: Rangiora-Ashley Community | C132: Rangiora Subdivision | D132: FPP | E132: 1 | F132: 0 | G132: 6 | H132: 6 | I132: 8 | J132: 3 | K132: 2 | L132: 14182 | M132: 8 | N132: 14190 | O132: 14182 | P132: 8 | Q132: =O132+P132 -> 14190 | R132: 6911 | S132: =R132/O132 -> 0.487307855 | T132: 8 | U132: =T132/P132 -> 1 | V132: =T132+R132 -> 6919 | W132: =V132/Q132 -> 0.4875968992 | X132: 133 | Y132: 2 | Z132: =X132+Y132 -> 135 | AA132: 95 | AB132: 1 | AC132: =AA132+AB132 -> 96 | AD132: 5 | AE132: 385 | AF132: =AD132+AE132 -> 390 | AG132: 2 | AH132: 2 | AI132: 0 | AJ132: 6
A133: Waimakariri District Council | B133: Rangiora-Ashley Community | C133: Ashley Subdivision | D133: FPP | E133: 1 | F133: 0 | G133: 2 | H133: 0 | I133: 4 | J133: 0 | K133: 0 | L133: 5521 | M133: 5 | N133: =M133+L133 -> 5526 | O133: 5521 | P133: 5 | Q133: =O133+P133 -> 5526 | R133: 2616 | S133: =R133/O133 -> 0.4738272052 | T133: 5 | U133: 1 | V133: 2621 | W133: 0.4743032935 | X133: 48 | Y133: 0 | Z133: =X133+Y133 -> 48 | AA133: 30 | AB133: 0 | AC133: =AA133+AB133 -> 30 | AD133: 0 | AE133: 172 | AF133: =AD133+AE133 -> 172 | AG133: 1 | AH133: 1 | AI133: 0 | AJ133: 2
A134: Waipā District Council | B134: Cambridge Community | C134: Cambridge Subdivision | D134: FPP | E134: 1 | F134: 0 | G134: 4 | H134: 0 | I134: 13 | J134: 0 | K134: 0 | L134: 16792 | M134: 17 | N134: 16809 | O134: 16792 | P134: 17 | Q134: 16809 | R134: 7611 | S134: 0.4532515484 | T134: 13 | U134: 0.7647058824 | V134: 7624 | W134: 0.4535665417 | X134: 276 | Y134: 7 | Z134: 283 | AA134: 224 | AB134: 4 | AC134: 228 | AD134: 10 | AE134: 483 | AF134: 493 | AG134: 7 | AH134: 3 | AI134: 0 | AJ134: 4
A135: Waipā District Council | B135: Cambridge Community | C135: Maungatautari Subdivision | D135: FPP | E135: 1 | F135: 0 | G135: 1 | H135: 1 | I135: 2 | J135: 1 | K135: 1 | L135: 3548 | M135: 1 | N135: 3549 | O135: 3548 | P135: 1 | Q135: 3549 | R135: 1649 | S135: 0.4647688839 | T135: 1 | U135: 1 | V135: 1650 | W135: 0.4649196957 | X135: 31 | Y135: 2 | Z135: 33 | AA135: 29 | AB135: 1 | AC135: 30 | AD135: 0 | AE135: 98 | AF135: 98 | AG135: 0 | AH135: 0 | AI135: 0 | AJ135: 1
A136: Waipā District Council | B136: Te Awamutu-Kihikihi Community | C136: Te Awamutu-Kihikihi Subdivision | D136: FPP | E136: 1 | F136: 0 | G136: 1 | H136: 0 | I136: 6 | J136: 3 | K136: 3 | L136: 12225 | M136: 9 | N136: 12234 | O136: 12225 | P136: 9 | Q136: 12234 | R136: 4760 | S136: 0.3893660532 | T136: 8 | U136: 0.8888888889 | V136: 4768 | W136: 0.3897335295 | X136: 132 | Y136: 4 | Z136: 136 | AA136: 111 | AB136: 2 | AC136: 113 | AD136: 0 | AE136: 225 | AF136: 225 | AG136: 3 | AH136: 2 | AI136: 0 | AJ136: 4
A137: Waipā District Council | B137: Te Awamutu-Kihikihi Community | C137: Kakepuku Subdivision | D137: FPP | E137: 0 | F137: 1 | G137: 1 | H137: 1 | I137: 1 | J137: 1 | K137: 1 | L137: 2676 | M137: 3 | N137: 2679 | AG137: 0 | AH137: 0 | AI137: 0 | AJ137: 1
A138: Waitaki District Council | B138: Ahuriri Community | C138: At Large | D138: FPP | E138: 0 | F138: 1 | G138: 5 | H138: 5 | I138: 5 | J138: 5 | K138: 5 | L138: 1206 | M138: 25 | N138: 1231 | AG138: 1 | AH138: 1 | AI138: 0 | AJ138: 5
A139: Waitaki District Council | B139: Waihemo Community | C139: At Large | D139: FPP | E139: 1 | F139: 0 | G139: 5 | H139: 0 | I139: 6 | J139: 4 | K139: 4 | L139: 1784 | M139: 6 | N139: 1790 | O139: 1784 | P139: 6 | Q139: 1790 | R139: 893 | S139: 0.5005605381 | T139: 4 | U139: 0.6666666667 | V139: 897 | W139: 0.5011173184 | X139: 17 | Y139: 1 | Z139: 18 | AA139: 14 | AB139: 1 | AC139: 15 | AD139: 1 | AE139: 27 | AF139: 28 | AG139: 2 | AH139: 2 | AI139: 0 | AJ139: 5
A140: Wellington City Council | B140: Mākara-Ōhariu Community | C140: At Large | D140: STV | E140: 0 | F140: 1 | G140: 4 | H140: 4 | I140: 4 | J140: 4 | K140: 4 | L140: 720 | M140: 2 | N140: 722 | AG140: 0 | AH140: 0 | AI140: 0 | AJ140: 4
A141: Wellington City Council | B141: Tawa Community | C141: At Large | D141: STV | E141: 1 | F141: 0 | G141: 6 | H141: 0 | I141: 8 | J141: 3 | K141: 3 | L141: 10879 | M141: 30 | N141: 10909 | O141: 10879 | P141: 30 | Q141: 10909 | R141: 5044 | S141: 0.4636455557 | T141: 27 | U141: 0.9 | V141: 5071 | W141: 0.4648455404 | X141: 139 | Y141: 4 | Z141: 143 | AA141: 124 | AB141: 2 | AC141: 126 | AD141: 21 | AE141: 251 | AF141: 272 | AG141: 4 | AH141: 3 | AI141: 0 | AJ141: 6
A142: Western Bay Of Plenty District Council | B142: Waihī Beach Community | C142: At Large | D142: FPP | E142: 1 | F142: 0 | G142: 4 | H142: 0 | I142: 6 | J142: 2 | K142: 2 | L142: 3059 | M142: 117 | N142: 3176 | O142: 3059 | P142: 117 | Q142: 3176 | R142: 1332 | S142: 0.4354364171 | T142: 91 | U142: 0.7777777778 | V142: 1423 | W142: 0.4480478589 | X142: 32 | Y142: 18 | Z142: 50 | AA142: 23 | AB142: 10 | AC142: 33 | AD142: 0 | AE142: 51 | AF142: 51 | AG142: 4 | AH142: 2 | AI142: 0 | AJ142: 4
A143: Western Bay Of Plenty District Council | B143: Katikati Community | C143: At Large | D143: FPP | E143: 1 | F143: 0 | G143: 6 | H143: 0 | I143: 8 | J143: 2 | K143: 2 | L143: 8265 | M143: 6 | N143: 8271 | O143: 8265 | P143: 6 | Q143: 8271 | R143: 3403 | S143: 0.4117362371 | T143: 4 | U143: 0.6666666667 | V143: 3407 | W143: 0.4119211704 | X143: 60 | Y143: 3 | Z143: 63 | AA143: 43 | AB143: 3 | AC143: 46 | AD143: 0 | AE143: 92 | AF143: 92 | AG143: 3 | AH143: 1 | AI143: 0 | AJ143: 4
A144: Western Bay Of Plenty District Council | B144: Ōmokoroa-Kaimai Community | C144: Ōmokoroa | D144: FPP | E144: 1 | F144: 0 | G144: 2 | H144: 0 | I144: 3 | J144: 1 | K144: 0 | L144: 5750 | M144: 7 | N144: 5757 | O144: 5750 | P144: 7 | Q144: 5757 | R144: 2374 | S144: 0.4128695652 | T144: 5 | U144: 0.7142857143 | V144: 2379 | W144: 0.4132360604 | X144: 47 | Y144: 1 | Z144: 48 | AA144: 33 | AB144: 1 | AC144: 34 | AD144: 0 | AE144: 120 | AF144: 120 | AG144: 0 | AH144: 0 | AI144: 0 | AJ144: 2
A145: Western Bay Of Plenty District Council | B145: Ōmokoroa-Kaimai Community | C145: Kaimai West | D145: FPP | E145: 1 | F145: 0 | G145: 2 | H145: 0 | I145: 3 | J145: 0 | K145: 0 | L145: 4856 | M145: 3 | N145: 4859 | O145: 4856 | P145: 3 | Q145: 4859 | R145: 1853 | S145: 0.3815897858 | T145: 2 | U145: =T145/P145 -> 0.6666666667 | V145: =T145+R145 -> 1855 | W145: =V145/Q145 -> 0.3817657954 | X145: 27 | Y145: 2 | Z145: 29 | AA145: 21 | AB145: 2 | AC145: 23 | AD145: 0 | AE145: 427 | AF145: 427 | AG145: 3 | AH145: 2 | AI145: 0 | AJ145: 2
A146: Western Bay Of Plenty District Council | B146: Ōmokoroa-Kaimai Community | C146: Kaimai East | D146: FPP | E146: 0 | F146: 1 | G146: 2 | H146: 2 | I146: 2 | J146: 0 | K146: 0 | L146: 4816 | M146: 3 | N146: 4819 | AG146: 0 | AH146: 0 | AI146: 0 | AJ146: 2
A147: Western Bay Of Plenty District Council | B147: Te Puke-Eastern Community | C147: Te Puke | D147: FPP | E147: 1 | F147: 0 | G147: 3 | H147: 0 | I147: 4 | J147: 2 | K147: 1 | L147: 7482 | M147: 9 | N147: 7491 | O147: 7482 | P147: 9 | Q147: 7491 | R147: 2595 | S147: 0.3468323978 | T147: 6 | U147: 0.6666666667 | V147: 2601 | W147: 0.34721666 | X147: 65 | Y147: 7 | Z147: 72 | AA147: 51 | AB147: 5 | AC147: 56 | AD147: 1 | AE147: 170 | AF147: 171 | AG147: 4 | AH147: 3 | AI147: 0 | AJ147: 3
A148: Western Bay Of Plenty District Council | B148: Te Puke-Eastern Community | C148: Eastern | D148: FPP | E148: 0 | F148: 1 | G148: 2 | H148: 2 | I148: 2 | J148: 0 | K148: 0 | L148: 4262 | M148: 26 | N148: 4288 | AG148: 1 | AH148: 1 | AI148: 0 | AJ148: 2
A149: Western Bay Of Plenty District Council | B149: Maketu Community | C149: At Large | D149: FPP | E149: 1 | F149: 0 | G149: 4 | H149: 0 | I149: 6 | J149: 0 | K149: 0 | L149: 1190 | M149: 5 | N149: 1195 | O149: 1190 | P149: 5 | Q149: 1195 | R149: 527 | S149: 0.4428571429 | T149: 5 | U149: 1 | V149: 532 | W149: 0.4451882845 | X149: 18 | Y149: 5 | Z149: 23 | AA149: 11 | AB149: 4 | AC149: 15 | AD149: 0 | AE149: 24 | AF149: 24 | AG149: 3 | AH149: 3 | AI149: 0 | AJ149: 4
A150: Whakatāne District Council | B150: Rangitāiki Community | C150: At Large | D150: FPP | E150: 1 | F150: 0 | G150: 6 | H150: 0 | I150: 7 | J150: 2 | K150: 1 | L150: 6731 | M150: 3 | N150: 6734 | O150: 6731 | P150: 3 | Q150: 6734 | R150: 3325 | S150: 0.4939830634 | T150: 4 | U150: 1.333333333 | V150: 3329 | W150: 0.4943569944 | X150: 161 | Y150: 0 | Z150: 161 | AA150: 76 | AB150: 0 | AC150: 76 | AD150: 2 | AE150: 100 | AF150: 102 | AG150: 2 | AH150: 2 | AI150: 0 | AJ150: 6
A151: Whakatāne District Council | B151: Tāneatua Community | C151: At Large | D151: FPP | E151: 0 | F151: 1 | G151: 3 | H151: 3 | I151: 3 | J151: 0 | K151: 0 | L151: 2987 | M151: 4 | N151: 2991 | AG151: 1 | AH151: 1 | AI151: 0 | AJ151: 3
A152: Whakatāne District Council | B152: Whakatāne-Ōhope Community | C152: At Large | D152: FPP | E152: 1 | F152: 0 | G152: 6 | H152: 0 | I152: 8 | J152: 3 | K152: 3 | L152: 14149 | M152: 40 | N152: 14189 | O152: 14149 | P152: 40 | Q152: 14189 | R152: 7310 | S152: 0.5166442858 | T152: 39 | U152: 0.975 | V152: 7349 | W152: 0.5179364296 | X152: 412 | Y152: 3 | Z152: 415 | AA152: 155 | AB152: 3 | AC152: 158 | AD152: 11 | AE152: 403 | AF152: 414 | AG152: 4 | AH152: 4 | AI152: 0 | AJ152: 6
A153: Whakatāne District Council | B153: Murupara Community | C153: Galatea-Waiōhua Subdivision | D153: FPP | E153: 0 | F153: 1 | G153: 2 | H153: 2 | I153: 2 | J153: 1 | K153: 1 | L153: 657 | M153: 1 | N153: 658 | AG153: 1 | AH153: 1 | AI153: 0 | AJ153: 2
A154: Whakatāne District Council | B154: Murupara Community | C154: Murupara Subdivision | D154: FPP | E154: 0 | F154: 1 | G154: 3 | H154: 3 | I154: 3 | J154: 0 | K154: 0 | L154: 1169 | M154: 0 | N154: 1169 | AG154: 1 | AH154: 1 | AI154: 0 | AJ154: 3
A155: Whakatāne District Council | B155: Murupara Community | C155: Te Urewera Subdivision | D155: FPP | E155: 0 | F155: 1 | G155: 1 | H155: 1 | I155: 1 | J155: 0 | K155: 0 | L155: 326 | M155: 1 | N155: 327 | AG155: 1 | AH155: 1 | AI155: 0 | AJ155: 1
A156: Whanganui District Council | B156: Wanganui Rural Community | C156: Whanganui Subdivision | D156: FPP | E156: 1 | F156: 0 | G156: 2 | H156: 0 | I156: 4 | J156: 1 | K156: 1 | L156: 925 | M156: 9 | N156: 934 | O156: 925 | P156: 9 | Q156: 934 | R156: 480 | S156: 0.5189189189 | T156: 8 | U156: 0.8888888889 | V156: 488 | W156: 0.52248394 | X156: 29 | Y156: 1 | Z156: 30 | AA156: 24 | AB156: 0 | AC156: 24 | AD156: 0 | AE156: 36 | AF156: 36 | AG156: 2 | AH156: 0 | AI156: 0 | AJ156: 2
A157: Whanganui District Council | B157: Wanganui Rural Community | C157: Kai Iwi Subdivision | D157: FPP | E157: 0 | F157: 1 | G157: 3 | H157: 3 | I157: 3 | J157: 0 | K157: 0 | L157: 2262 | M157: 0 | N157: 2262 | AG157: 0 | AH157: 0 | AI157: 0 | AJ157: 3
A158: Whanganui District Council | B158: Wanganui Rural Community | C158: Kaitoke Subdivision | D158: FPP | E158: 0 | F158: 1 | G158: 2 | H158: 2 | I158: 2 | J158: 1 | K158: 1 | L158: 1181 | M158: 1 | N158: 1182 | AG158: 0 | AH158: 0 | AI158: 0 | AJ158: 2

Sheet Local Boards
A1: Total | E1: =SUM(E4:E35) -> 32 | F1: 0 | G1: 137 | H1: 0 | I1: 349 | J1: 104 | K1: 87 | L1: 1078648 | M1: 1078648 | N1: 317290 | O1: =N1/M1 -> 0.2941552759 | P1: =SUM(P4:P35) -> 7971 | Q1: 5051 | R1: 958 | S1: 6853 | T1: 7811 | U1: 123 | V1: 56 | W1: 0 | X1: 137
A3: Authority | B3: Local Board | C3: Subdivision | D3: Electoral system | E3: Contested Local Boards (N) | F3: Uncontested Local Boards (N) | G3: Positions (N) | H3: Elected uncontested (N) | I3: Candidates (N) | J3: Candidates - LB sitting members (N) | K3: LB members re-elected (N) | L3: Electors (N) | M3: Total electors (Contested wards only) | N3: Total voters (N) | O3: Overall turnout (%) | P3: Total special votes cast (N) | Q3: Total special votes allowed (N) | R3: Informal votes (N) | S3: Blank votes (N) | T3: Blank and informal votes (N) | U3: Women candidates (N) | V3: Women members (N) | W3: Unfilled positions | X3: Total number elected
A4: Auckland Council | B4: Albert-Eden | C4: Maungawhau | D4: FPP | E4: 1 | F4: 0 | G4: 4 | H4: 0 | I4: 10 | J4: 4 | K4: 3 | L4: 38249 | M4: =L4 -> 38249 | N4: 11080 | O4: =N4/M4 -> 0.289680776 | P4: 351 | Q4: 220 | R4: 28 | S4: 425 | T4: =S4+R4 -> 453 | U4: 2 | V4: 2 | W4: 0 | X4: 4
A5: Auckland Council | B5: Albert-Eden | C5: Owairaka | D5: FPP | E5: 1 | F5: 0 | G5: 4 | H5: 0 | I5: 9 | J5: 2 | K5: 2 | L5: 35803 | M5: =L5 -> 35803 | N5: 11144 | O5: =N5/M5 -> 0.3112588331 | P5: 490 | Q5: 248 | R5: 25 | S5: 308 | T5: =S5+R5 -> 333 | U5: 4 | V5: 4 | W5: 0 | X5: 4
A6: Auckland Council | B6: Aotea/Great Barrier Island | C6: At Large | D6: FPP | E6: 1 | F6: 0 | G6: 5 | H6: 0 | I6: 8 | J6: 3 | K6: 3 | L6: 968 | M6: 968 | N6: 544 | O6: 0.5619834711 | P6: 42 | Q6: 25 | R6: 0 | S6: 2 | T6: 2 | U6: 3 | V6: 2 | W6: 0 | X6: 5
A7: Auckland Council | B7: Devonport-Takapuna | C7: At Large | D7: FPP | E7: 1 | F7: 0 | G7: 6 | H7: 0 | I7: 20 | J7: 3 | K7: 3 | L7: 44318 | M7: 44318 | N7: 15454 | O7: 0.3487070716 | P7: 361 | Q7: 233 | R7: 82 | S7: 425 | T7: 507 | U7: 8 | V7: 1 | W7: 0 | X7: 6
A8: Auckland Council | B8: Franklin | C8: Pukekohe | D8: FPP | E8: 1 | F8: 0 | G8: 4 | H8: 0 | I8: 6 | J8: 2 | K8: 2 | L8: 28225 | M8: 28225 | N8: 8451 | O8: 0.2994154119 | P8: 109 | Q8: 86 | R8: 12 | S8: 171 | T8: 183 | U8: 2 | V8: 1 | W8: 0 | X8: 4
A9: Auckland Council | B9: Franklin | C9: Wairoa | D9: FPP | E9: 1 | F9: 0 | G9: 3 | H9: 0 | I9: 7 | J9: 2 | K9: 2 | L9: 19929 | M9: 19929 | N9: 6851 | O9: 0.3437703849 | P9: 92 | Q9: 68 | R9: 12 | S9: 172 | T9: 184 | U9: 2 | V9: 2 | W9: 0 | X9: 3
A10: Auckland Council | B10: Franklin | C10: Waiuku | D10: FPP | E10: 1 | F10: 0 | G10: 2 | H10: 0 | I10: 7 | J10: 1 | K10: 1 | L10: 11421 | M10: 11421 | N10: 3920 | O10: 0.3432273881 | P10: 48 | Q10: 46 | R10: 4 | S10: 44 | T10: 48 | U10: 1 | V10: 0 | W10: 0 | X10: 2
A11: Auckland Council | B11: Henderson-Massey | C11: At Large | D11: FPP | E11: 1 | F11: 0 | G11: 8 | H11: 0 | I11: 29 | J11: 7 | K11: 6 | L11: 86419 | M11: 86419 | N11: 21965 | O11: 0.2541686435 | P11: 632 | Q11: 413 | R11: 153 | S11: 334 | T11: 487 | U11: 10 | V11: 3 | W11: 0 | X11: 8
A12: Auckland Council | B12: Hibiscus and Bays | C12: East Coast Bays | D12: FPP | E12: 1 | F12: 0 | G12: 4 | H12: 0 | I12: 7 | J12: 3 | K12: 3 | L12: 37679 | M12: 37679 | N12: 11680 | O12: 0.3099869954 | P12: 201 | Q12: 130 | R12: 17 | S12: 314 | T12: 331 | U12: 3 | V12: 2 | W12: 0 | X12: 4
A13: Auckland Council | B13: Hibiscus and Bays | C13: Hibiscus Coast | D13: FPP | E13: 1 | F13: 0 | G13: 4 | H13: 0 | I13: 17 | J13: 3 | K13: 3 | L13: 47559 | M13: 47559 | N13: 17194 | O13: 0.3615298892 | P13: 363 | Q13: 253 | R13: 81 | S13: 300 | T13: 381 | U13: 4 | V13: 2 | W13: 0 | X13: 4
A14: Auckland Council | B14: Howick | C14: Botany | D14: FPP | E14: 1 | F14: 0 | G14: 2 | H14: 0 | I14: 4 | J14: 2 | K14: 2 | L14: 21931 | M14: 21931 | N14: 5951 | O14: 0.2713510556 | P14: 84 | Q14: 58 | R14: 9 | S14: 225 | T14: 234 | U14: 1 | V14: 0 | W14: 0 | X14: 2
A15: Auckland Council | B15: Howick | C15: Howick | D15: FPP | E15: 1 | F15: 0 | G15: 3 | H15: 0 | I15: 7 | J15: 3 | K15: 2 | L15: 32440 | M15: 32440 | N15: 10770 | O15: 0.3319975339 | P15: 169 | Q15: 117 | R15: 15 | S15: 274 | T15: 289 | U15: 2 | V15: 1 | W15: 0 | X15: 3
A16: Auckland Council | B16: Howick | C16: Pakuranga | D16: FPP | E16: 1 | F16: 0 | G16: 3 | H16: 0 | I16: 8 | J16: 2 | K16: 2 | L16: 30586 | M16: 30586 | N16: 9372 | O16: 0.3064146995 | P16: 155 | Q16: 103 | R16: 6 | S16: 162 | T16: 168 | U16: 2 | V16: 1 | W16: 0 | X16: 3
A17: Auckland Council | B17: Howick | C17: Flat Bush | D17: FPP | E17: 1 | F17: 0 | G17: 3 | H17: 0 | I17: 10 | J17: 2 | K17: 1 | L17: 27647 | M17: 27647 | N17: 6390 | O17: 0.2311281513 | P17: 181 | Q17: 96 | R17: 24 | S17: 113 | T17: 137 | U17: 3 | V17: 0 | W17: 0 | X17: 3
A18: Auckland Council | B18: Kaipātiki | C18: At Large | D18: FPP | E18: 1 | F18: 0 | G18: 8 | H18: 0 | I18: 15 | J18: 6 | K18: 5 | L18: 64978 | M18: 64978 | N18: 18479 | O18: 0.2843885623 | P18: 445 | Q18: 302 | R18: 38 | S18: 391 | T18: 429 | U18: 5 | V18: 4 | W18: 0 | X18: 8
A19: Auckland Council | B19: Māngaere-Ōtahuhu | C19: At Large | D19: FPP | E19: 1 | F19: 0 | G19: 7 | H19: 0 | I19: 12 | J19: 6 | K19: 6 | L19: 54429 | M19: 54429 | N19: 12910 | O19: 0.2371897334 | P19: 432 | Q19: 219 | R19: 29 | S19: 138 | T19: 167 | U19: 5 | V19: 3 | W19: 0 | X19: 7
A20: Auckland Council | B20: Manurewa | C20: At Large | D20: FPP | E20: 1 | F20: 0 | G20: 8 | H20: 0 | I20: 19 | J20: 5 | K20: 4 | L20: 65243 | M20: 65243 | N20: 16201 | O20: 0.2483178272 | P20: 444 | Q20: 295 | R20: 51 | S20: 182 | T20: 233 | U20: 9 | V20: 4 | W20: 0 | X20: 8
A21: Auckland Council | B21: Maungakiekie-Tāmaki | C21: Maungakiekie | D21: FPP | E21: 1 | F21: 0 | G21: 3 | H21: 0 | I21: 6 | J21: 3 | K21: 3 | L21: 22046 | M21: 22046 | N21: 6204 | O21: 0.2814115939 | P21: 212 | Q21: 144 | R21: 13 | S21: 142 | T21: 155 | U21: 3 | V21: 1 | W21: 0 | X21: 3
A22: Auckland Council | B22: Maungakiekie-Tāmaki | C22: Tāmaki | D22: FPP | E22: 1 | F22: 0 | G22: 4 | H22: 0 | I22: 17 | J22: 3 | K22: 2 | L22: 33918 | M22: 33918 | N22: 8586 | O22: 0.2531399257 | P22: 230 | Q22: 142 | R22: 64 | S22: 186 | T22: 250 | U22: 10 | V22: 4 | W22: 0 | X22: 4
A23: Auckland Council | B23: Orākei | C23: At Large | D23: FPP | E23: 1 | F23: 0 | G23: 7 | H23: 0 | I23: 12 | J23: 6 | K23: 6 | L23: 67812 | M23: 67812 | N23: 23645 | O23: 0.3486845986 | P23: 468 | Q23: 326 | R23: 45 | S23: 691 | T23: 736 | U23: 4 | V23: 3 | W23: 0 | X23: 7
A24: Auckland Council | B24: Ōtara-Papatoetoe | C24: Ōtara | D24: FPP | E24: 1 | F24: 0 | G24: 3 | H24: 0 | I24: 9 | J24: 3 | K24: 3 | L24: 23420 | M24: 23420 | N24: 4955 | O24: 0.2115713066 | P24: 87 | Q24: 47 | R24: 20 | S24: 59 | T24: 79 | U24: 2 | V24: 0 | W24: 0 | X24: 3
A25: Auckland Council | B25: Ōtara-Papatoetoe | C25: Papatoetoe | D25: FPP | E25: 1 | F25: 0 | G25: 4 | H25: 0 | I25: 13 | J25: 3 | K25: 0 | L25: 35253 | M25: 35253 | N25: 11145 | O25: 0.316143307 | P25: 356 | Q25: 156 | R25: 30 | S25: 85 | T25: 115 | U25: 2 | V25: 0 | W25: 0 | X25: 4
A26: Auckland Council | B26: Papakura | C26: At Large | D26: FPP | E26: 1 | F26: 0 | G26: 6 | H26: 0 | I26: 16 | J26: 6 | K26: 6 | L26: 46406 | M26: 46406 | N26: 10896 | O26: 0.2347972245 | P26: 347 | Q26: 246 | R26: 44 | S26: 160 | T26: 204 | U26: 7 | V26: 2 | W26: 0 | X26: 6
A27: Auckland Council | B27: Puketāpapa | C27: At Large | D27: FPP | E27: 1 | F27: 0 | G27: 6 | H27: 0 | I27: 15 | J27: 5 | K27: 4 | L27: 44111 | M27: 44111 | N27: 11583 | O27: 0.2625875632 | P27: 342 | Q27: 193 | R27: 35 | S27: 235 | T27: 270 | U27: 7 | V27: 3 | W27: 0 | X27: 6
A28: Auckland Council | B28: Rodney | C28: Dairy Flat | D28: FPP | E28: 1 | F28: 0 | G28: 1 | H28: 0 | I28: 3 | J28: 0 | K28: 0 | L28: 7381 | M28: 7381 | N28: 2342 | O28: 0.3173011787 | P28: 34 | Q28: 24 | R28: 3 | S28: 51 | T28: 54 | U28: 1 | V28: 1 | W28: 0 | X28: 1
A29: Auckland Council | B29: Rodney | C29: Kumeū | D29: FPP | E29: 1 | F29: 0 | G29: 2 | H29: 0 | I29: 6 | J29: 2 | K29: 1 | L29: 13007 | M29: 13007 | N29: 4243 | O29: 0.3262089644 | P29: 79 | Q29: 57 | R29: 6 | S29: 75 | T29: 81 | U29: 2 | V29: 0 | W29: 0 | X29: 2
A30: Auckland Council | B30: Rodney | C30: Warkworth | D30: FPP | E30: 1 | F30: 0 | G30: 2 | H30: 0 | I30: 4 | J30: 2 | K30: 2 | L30: 13357 | M30: 13357 | N30: 5719 | O30: 0.4281650071 | P30: 109 | Q30: 75 | R30: 3 | S30: 102 | T30: 105 | U30: 1 | V30: 0 | W30: 0 | X30: 2
A31: Auckland Council | B31: Rodney | C31: Southern Kaipara | D31: FPP | E31: 1 | F31: 0 | G31: 2 | H31: 0 | I31: 3 | J31: 2 | K31: 2 | L31: 11433 | M31: 11433 | N31: 4064 | O31: 0.3554622584 | P31: 86 | Q31: 67 | R31: 3 | S31: 66 | T31: 69 | U31: 0 | V31: 0 | W31: 0 | X31: 2
A32: Auckland Council | B32: Rodney | C32: Northern Rodney | D32: FPP | E32: 1 | F32: 0 | G32: 2 | H32: 0 | I32: 5 | J32: 0 | K32: 0 | L32: 10871 | M32: 10871 | N32: 4012 | O32: 0.3690552847 | P32: 64 | Q32: 33 | R32: 4 | S32: 85 | T32: 89 | U32: 0 | V32: 0 | W32: 0 | X32: 2
A33: Auckland Council | B33: Upper Harbour | C33: At Large | D33: FPP | E33: 1 | F33: 0 | G33: 6 | H33: 0 | I33: 13 | J33: 6 | K33: 4 | L33: 54657 | M33: 54657 | N33: 14418 | O33: 0.2637905483 | P33: 308 | Q33: 203 | R33: 42 | S33: 545 | T33: 587 | U33: 5 | V33: 5 | W33: 0 | X33: 6
A34: Auckland Council | B34: Waiheke | C34: At Large | D34: FPP | E34: 1 | F34: 0 | G34: 5 | H34: 0 | I34: 12 | J34: 3 | K34: 2 | L34: 7308 | M34: 7308 | N34: 3726 | O34: 0.5098522167 | P34: 227 | Q34: 130 | R34: 11 | S34: 39 | T34: 50 | U34: 4 | V34: 2 | W34: 0 | X34: 5
A35: Auckland Council | B35: Waitākere Ranges | C35: At Large | D35: FPP | E35: 1 | F35: 0 | G35: 6 | H35: 0 | I35: 20 | J35: 4 | K35: 2 | L35: 39844 | M35: 39844 | N35: 13396 | O35: 0.3362112238 | P35: 423 | Q35: 296 | R35: 49 | S35: 352 | T35: 401 | U35: 9 | V35: 3 | W35: 0 | X35: 6
A36: Auckland Council | B36: Waitematā | C36: At Large | D36: FPP | E36: 1 | F36: 0 | G36: 7 | H36: 0 | I36: 20 | J36: 5 | K36: 4 | L36: 57928 | M36: 57928 | N36: 18198 | O36: 0.3141485983 | P36: 858 | Q36: 525 | R36: 63 | S36: 645 | T36: 708 | U36: 9 | V36: 5 | W36: 0 | X36: 7
A37: Auckland Council | B37: Whau | C37: At Large | D37: FPP | E37: 1 | F37: 0 | G37: 7 | H37: 0 | I37: 16 | J37: 6 | K37: 6 | L37: 58957 | M37: 58957 | N37: 15180 | O37: 0.2574757874 | P37: 477 | Q37: 320 | R37: 33 | S37: 309 | T37: 342 | U37: 7 | V37: 4 | W37: 0 | X37: 7

Sheet Regional Council
A1: TOTAL | D1: =SUM(D4:D73) -> 57 | E1: 13 | F1: 132 | G1: 14 | H1: 293 | I1: 96 | J1: 77 | K1: 2201235 | L1: 4615 | M1: 2205850 | N1: 2034038 | O1: 4409 | P1: 2038447 | Q1: 892037 | R1: =Q1/N1 -> 0.4385547369 | S1: 3724 | T1: =S1/O1 -> 0.8446359719 | U1: 895761 | V1: =U1/P1 -> 0.4394330586 | W1: =SUM(W4:W73) -> 31009 | X1: =SUM(X4:X73) -> 576 | Y1: 31585 | Z1: 23358 | AA1: 406 | AB1: 23764 | AC1: 6592 | AD1: 66433 | AE1: 73025 | AF1: 90 | AG1: 42 | AH1: 0 | AI1: 132
A3: Authority | B3: Constituency | C3: Electoral system | D3: Number of Contested Constituencies | E3: Number of Uncontested Constituencies | F3: Positions (N) | G3: Elected uncontested (N) | H3: Candidates (N) | I3: Candidates Council sitting members (N) | J3: Council members re-elected (N) | K3: Residential electors (N) | L3: Ratepayer electors (N) | M3: Total electors (N) | N3: Residential electors (contested wards only) | O3: Ratepayer electors (contested wards only) | P3: Total electors (Contested wards only) | Q3: Residential voters (N) | R3: Residential turnout (%) | S3: Ratepayer voters (N) | T3: Ratepayer turnout (%) | U3: Total voters (N) | V3: Overall turnout (%) | W3: Residential special votes cast (N) | X3: Ratepayer special votes cast (N) | Y3: Total special votes cast (N) | Z3: Residential special votes allowed (N) | AA3: Ratepayer special votes allowed (N) | AB3: Total special votes allowed (N) | AC3: Informal votes (N) | AD3: Blank votes (N) | AE3: Blank and informal votes (N) | AF3: Female candidates (N) | AG3: Female councillors (N) | AH3: Unfilled positions | AI3: Total number elected
A4: Bay of Plenty Regional Council | B4: Eastern Bay of Plenty General Constituency | C4: FPP | D4: 1 | E4: 0 | F4: 2 | G4: 0 | H4: 4 | I4: 1 | J4: 1 | K4: 24729 | L4: 38 | M4: =K4+L4 -> 24767 | N4: 24729 | O4: 38 | P4: =O4+N4 -> 24767 | Q4: 12685 | R4: =Q4/N4 -> 0.5129604917 | S4: 36 | T4: =S4/O4 -> 0.9473684211 | U4: =S4+Q4 -> 12721 | V4: =U4/P4 -> 0.5136270037 | W4: 471 | X4: 6 | Y4: =X4+W4 -> 477 | Z4: 226 | AA4: 6 | AB4: =AA4+Z4 -> 232 | AC4: 17 | AD4: 621 | AE4: =AD4+AC4 -> 638 | AF4: 2 | AG4: 1 | AH4: 0 | AI4: 2
A5: Bay of Plenty Regional Council | B5: Rotorua General Constituency | C5: FPP | D5: 1 | E5: 0 | F5: 2 | G5: 0 | H5: 11 | I5: 1 | J5: 0 | K5: 34563 | L5: 120 | M5: =K5+L5 -> 34683 | N5: 34563 | O5: 120 | P5: =O5+N5 -> 34683 | Q5: 15848 | R5: =Q5/N5 -> 0.4585250123 | S5: 105 | T5: =S5/O5 -> 0.875 | U5: =S5+Q5 -> 15953 | V5: =U5/P5 -> 0.4599659776 | W5: 480 | X5: 13 | Y5: =X5+W5 -> 493 | Z5: 411 | AA5: 12 | AB5: =AA5+Z5 -> 423 | AC5: 54 | AD5: 669 | AE5: =AD5+AC5 -> 723 | AF5: 4 | AG5: 1 | AH5: 0 | AI5: 2
A6: Bay of Plenty Regional Council | B6: Tauranga General Constituency | C6: FPP | D6: 1 | E6: 0 | F6: 5 | G6: 0 | H6: 18 | I6: 4 | J6: 2 | K6: 97767 | L6: 230 | M6: 97997 | N6: 97767 | O6: 230 | P6: 97997 | Q6: 24366 | R6: 0.2492251987 | S6: 165 | T6: 0.7173913043 | U6: 24531 | V6: 0.2503239895 | W6: 227 | X6: 5 | Y6: 232 | Z6: 192 | AA6: 4 | AB6: 196 | AC6: 72 | AD6: 36 | AE6: 108 | AF6: 5 | AG6: 2 | AH6: 0 | AI6: 5
A7: Bay of Plenty Regional Council | B7: Western Bay of Plenty General Constituency | C7: FPP | D7: 1 | E7: 0 | F7: 2 | G7: 0 | H7: 4 | I7: 1 | J7: 1 | K7: 35803 | L7: 122 | M7: 35925 | N7: 35803 | O7: 122 | P7: 35925 | Q7: 13754 | R7: 0.3841577521 | S7: 91 | T7: 0.7459016393 | U7: 13845 | V7: 0.3853862213 | W7: 259 | X7: 19 | Y7: 278 | Z7: 189 | AA7: 10 | AB7: 199 | AC7: 36 | AD7: 1730 | AE7: 1766 | AF7: 1 | AG7: 0 | AH7: 0 | AI7: 2
A8: Bay of Plenty Regional Council | B8: Mauao Māori Constituency | C8: FPP | D8: 1 | E8: 0 | F8: 1 | G8: 0 | H8: 3 | I8: 1 | J8: 1 | K8: 13612 | L8: 7 | M8: 13619 | N8: 13612 | O8: 7 | P8: 13619 | Q8: 3461 | R8: 0.2542609462 | S8: 2 | T8: 0.2857142857 | U8: 3463 | V8: 0.2542771129 | W8: 85 | X8: 0 | Y8: 85 | Z8: 66 | AA8: 0 | AB8: 66 | AC8: 2 | AD8: 125 | AE8: 127 | AF8: 2 | AG8: 1 | AH8: 0 | AI8: 1
A9: Bay of Plenty Regional Council | B9: Kōhi Māori Constituency | C9: FPP | D9: 1 | E9: 0 | F9: 1 | G9: 0 | H9: 4 | I9: 0 | J9: 0 | K9: 12398 | L9: 9 | M9: 12407 | N9: 12398 | O9: 9 | P9: 12407 | Q9: 5282 | R9: 0.4260364575 | S9: 6 | T9: 0.6666666667 | U9: 5288 | V9: 0.4262110099 | W9: 442 | X9: 1 | Y9: 443 | Z9: 202 | AA9: 1 | AB9: 203 | AC9: 39 | AD9: 173 | AE9: 212 | AF9: 1 | AG9: 1 | AH9: 0 | AI9: 1
A10: Bay of Plenty Regional Council | B10: Okurei Māori Constituency | C10: FPP | D10: 1 | E10: 0 | F10: 1 | G10: 0 | H10: 3 | I10: 1 | J10: 0 | K10: 13151 | L10: 2 | M10: 13153 | N10: 13151 | O10: 2 | P10: 13153 | Q10: 4964 | R10: 0.37746179 | S10: 2 | T10: 1 | U10: 4966 | V10: 0.377556451 | W10: 308 | X10: 1 | Y10: 309 | Z10: 261 | AA10: 1 | AB10: 262 | AC10: 5 | AD10: 106 | AE10: 111 | AF10: 0 | AG10: 0 | AH10: 0 | AI10: 1
A11: Canterbury Regional Council | B11: North Canterbury/Ōpukepuke Constituency | C11: FPP | D11: 1 | E11: 0 | F11: 2 | G11: 0 | H11: 5 | I11: 2 | J11: 1 | K11: 61764 | L11: 22 | M11: 61786 | N11: 61764 | O11: 22 | P11: 61786 | Q11: 26782 | R11: 0.433618289 | S11: 18 | T11: 0.8181818182 | U11: 26800 | V11: 0.4337552196 | W11: 523 | X11: 7 | Y11: 530 | Z11: 375 | AA11: 2 | AB11: 377 | AC11: 74 | AD11: 3314 | AE11: 3388 | AF11: 1 | AG11: 1 | AH11: 0 | AI11: 2
A12: Canterbury Regional Council | B12: Christchurch West/Ōpuna Constituency | C12: FPP | D12: 1 | E12: 0 | F12: 2 | G12: 0 | H12: 4 | I12: 1 | J12: 1 | K12: 75814 | L12: 30 | M12: 75844 | N12: 75814 | O12: 30 | P12: 75844 | Q12: 29002 | R12: 0.3825414831 | S12: 26 | T12: 0.8666666667 | U12: 29028 | V12: 0.3827329782 | W12: 590 | X12: 5 | Y12: 595 | Z12: 493 | AA12: 3 | AB12: 496 | AC12: 5 | AD12: 2148 | AE12: 2153 | AF12: 1 | AG12: 1 | AH12: 0 | AI12: 2
A13: Canterbury Regional Council | B13: Mid-Canterbury/Ōpakihi Constituency | C13: FPP | D13: 1 | E13: 0 | F13: 2 | G13: 0 | H13: 4 | I13: 2 | J13: 2 | K13: 77609 | L13: 24 | M13: 77633 | N13: 77609 | O13: 24 | P13: 77633 | Q13: 37015 | R13: 0.4769421072 | S13: 22 | T13: 0.9166666667 | U13: 37037 | V13: 0.4770780467 | W13: 936 | X13: 5 | Y13: 941 | Z13: 743 | AA13: 2 | AB13: 745 | AC13: 54 | AD13: 2549 | AE13: 2603 | AF13: 1 | AG13: 0 | AH13: 0 | AI13: 2
A14: Canterbury Regional Council | B14: South Canterbury/Ōtuhituhi Constituency | C14: FPP | D14: 1 | E14: 0 | F14: 2 | G14: 0 | H14: 3 | I14: 2 | J14: 2 | K14: 43654 | L14: 53 | M14: 43707 | N14: 43654 | O14: 53 | P14: 43707 | Q14: 21736 | R14: 0.4979154258 | S14: 47 | T14: 0.8867924528 | U14: 21783 | V14: 0.4983869861 | W14: 461 | X14: 28 | Y14: 489 | Z14: 364 | AA14: 10 | AB14: 374 | AC14: 25 | AD14: 2364 | AE14: 2389 | AF14: 1 | AG14: 0 | AH14: 0 | AI14: 2
A15: Canterbury Regional Council | B15: Christchurch North East/Ōrei Constituency | C15: FPP | D15: 1 | E15: 0 | F15: 2 | G15: 0 | H15: 4 | I15: 2 | J15: 1 | K15: 71356 | L15: 28 | M15: 71384 | N15: 71356 | O15: 28 | P15: 71384 | Q15: 26420 | R15: 0.3702561803 | S15: 22 | T15: 0.7857142857 | U15: 26442 | V15: 0.3704191415 | W15: 666 | X15: 3 | Y15: 669 | Z15: 548 | AA15: 3 | AB15: 551 | AC15: 6 | AD15: 1202 | AE15: 1208 | AF15: 1 | AG15: 1 | AH15: 0 | AI15: 2
A16: Canterbury Regional Council | B16: Christchurch Central/Ōhoko Consituency | C16: FPP | D16: 1 | E16: 0 | F16: 2 | G16: 0 | H16: 7 | I16: 1 | J16: 1 | K16: 67781 | L16: 48 | M16: 67829 | N16: 67781 | O16: 48 | P16: 67829 | Q16: 23333 | R16: 0.3442410115 | S16: 37 | T16: 0.7708333333 | U16: 23370 | V16: 0.3445428946 | W16: 877 | X16: 10 | Y16: 887 | Z16: 688 | AA16: 5 | AB16: 693 | AC16: 16 | AD16: 1602 | AE16: 1618 | AF16: 3 | AG16: 2 | AH16: 0 | AI16: 2
A17: Canterbury Regional Council | B17: Christchurch South/Ōwhangai Constituency | C17: FPP | D17: 1 | E17: 0 | F17: 2 | G17: 0 | H17: 7 | I17: 0 | J17: 0 | K17: 65312 | L17: 30 | M17: 65342 | N17: 65312 | O17: 30 | P17: 65342 | Q17: 28434 | R17: 0.4353564429 | S17: 26 | T17: 0.8666666667 | U17: 28460 | V17: 0.4355544673 | W17: 886 | X17: 10 | Y17: 896 | Z17: 774 | AA17: 8 | AB17: 782 | AC17: 17 | AD17: 1465 | AE17: 1482 | AF17: 1 | AG17: 1 | AH17: 0 | AI17: 2
A18: Hawke's Bay Regional Council | B18: Wairoa General Constituency | C18: FPP | D18: 1 | E18: 0 | F18: 1 | G18: 0 | H18: 2 | I18: 1 | J18: 1 | K18: 3077 | L18: 27 | M18: 3104 | N18: 3077 | O18: 27 | P18: 3104 | Q18: 1819 | R18: 0.591160221 | S18: 23 | T18: 0.8518518519 | U18: 1842 | V18: 0.5934278351 | W18: 73 | X18: 1 | Y18: 74 | Z18: 66 | AA18: 1 | AB18: 67 | AC18: 2 | AD18: 72 | AE18: 74 | AF18: 2 | AG18: 1 | AH18: 0 | AI18: 1
A19: Hawke's Bay Regional Council | B19: Ahuriri/Napier General Constituency | C19: FPP | D19: 1 | E19: 0 | F19: 3 | G19: 0 | H19: 6 | I19: 2 | J19: 2 | K19: 41299 | L19: 27 | M19: 41326 | N19: 41299 | O19: 27 | P19: 41326 | Q19: 19729 | R19: 0.4777113247 | S19: 23 | T19: 0.8518518519 | U19: 19752 | V19: 0.4779557663 | W19: 587 | X19: 7 | Y19: 594 | Z19: 487 | AA19: 6 | AB19: 493 | AC19: 17 | AD19: 617 | AE19: 634 | AF19: 3 | AG19: 2 | AH19: 0 | AI19: 3
A20: Hawke's Bay Regional Council | B20: Ngaruroro General Constituency | C20: FPP | D20: 1 | E20: 0 | F20: 1 | G20: 0 | H20: 2 | I20: 1 | J20: 1 | K20: 14170 | L20: 10 | M20: 14180 | N20: 14170 | O20: 10 | P20: 14180 | Q20: 7352 | R20: 0.5188426253 | S20: 9 | T20: 0.9 | U20: 7361 | V20: 0.5191114245 | W20: 188 | X20: 4 | Y20: 192 | Z20: 161 | AA20: 2 | AB20: 163 | AC20: 0 | AD20: 411 | AE20: 411 | AF20: 0 | AG20: 0 | AH20: 0 | AI20: 1
A21: Hawke's Bay Regional Council | B21: Tamatea/Central Hawke's Bay General Constituency | C21: FPP | D21: 1 | E21: 0 | F21: 1 | G21: 0 | H21: 3 | I21: 0 | J21: 0 | K21: 9583 | L21: 10 | M21: 9593 | N21: 9583 | O21: 10 | P21: 9593 | Q21: 5600 | R21: 0.5843681519 | S21: 8 | T21: 0.8 | U21: 5608 | V21: 0.5845929323 | W21: 129 | X21: 10 | Y21: 139 | Z21: 98 | AA21: 8 | AB21: 106 | AC21: 26 | AD21: 304 | AE21: 330 | AF21: 1 | AG21: 0 | AH21: 0 | AI21: 1
A22: Hawke's Bay Regional Council | B22: Heretaunga/Hastings General Constituency | C22: FPP | D22: 1 | E22: 0 | F22: 3 | G22: 0 | H22: 4 | I22: 2 | J22: 2 | K22: 34966 | L22: 17 | M22: 34983 | N22: 34966 | O22: 17 | P22: 34983 | Q22: 15853 | R22: 0.4533832866 | S22: 16 | T22: 0.9411764706 | U22: 15869 | V22: 0.4536203299 | W22: 439 | X22: 5 | Y22: 444 | Z22: 382 | AA22: 4 | AB22: 386 | AC22: 3 | AD22: 1376 | AE22: 1379 | AF22: 1 | AG22: 1 | AH22: 0 | AI22: 3
A23: Hawke's Bay Regional Council | B23: Māui ki te Raki Māori Constituency | C23: FPP | D23: 1 | E23: 0 | F23: 1 | G23: 0 | H23: 2 | I23: 0 | J23: 0 | K23: 6102 | L23: 3 | M23: 6105 | N23: 6102 | O23: 3 | P23: 6105 | Q23: 3126 | R23: 0.5122910521 | S23: 3 | T23: 1 | U23: 3129 | V23: 0.5125307125 | W23: 211 | X23: 2 | Y23: 213 | Z23: 178 | AA23: 2 | AB23: 180 | AC23: 0 | AD23: 276 | AE23: 276 | AF23: 1 | AG23: 1 | AH23: 0 | AI23: 1
A24: Hawke's Bay Regional Council | B24: Māui ki te Tonga Māori Constituency | C24: FPP | D24: 0 | E24: 1 | F24: 1 | G24: 1 | H24: 1 | I24: 1 | J24: 1 | K24: 9928 | L24: 0 | M24: 9928 | P24: 0 | Y24: 0 | AB24: 0 | AE24: 0 | AF24: 0 | AG24: 0 | AH24: 0 | AI24: 1
A25: Manawatū-Whanganui Regional Council | B25: Ruapehu General Constituency | C25: FPP | D25: 0 | E25: 1 | F25: 1 | G25: 1 | H25: 1 | I25: 1 | J25: 1 | K25: 6345 | L25: 125 | M25: 6470 | P25: 0 | Y25: 0 | AB25: 0 | AE25: 0 | AF25: 1 | AG25: 1 | AH25: 0 | AI25: 1
A26: Manawatū-Whanganui Regional Council | B26: Whanganui General Constituency | C26: FPP | D26: 1 | E26: 0 | F26: 2 | G26: 0 | H26: 4 | I26: 1 | J26: 1 | K26: 28652 | L26: 30 | M26: 28682 | N26: 28652 | O26: 30 | P26: 28682 | Q26: 14896 | R26: 0.5198938992 | S26: 26 | T26: 0.8666666667 | U26: 14922 | V26: 0.5202566069 | W26: 627 | X26: 13 | Y26: 640 | Z26: 524 | AA26: 4 | AB26: 528 | AC26: 7 | AD26: 2037 | AE26: 2044 | AF26: 0 | AG26: 0 | AH26: 0 | AI26: 2
A27: Manawatū-Whanganui Regional Council | B27: Manawatū-Rangitikei General Constituency | C27: FPP | D27: 1 | E27: 0 | F27: 2 | G27: 0 | H27: 4 | I27: 2 | J27: 2 | K27: 30251 | L27: 24 | M27: 30275 | N27: 30251 | O27: 24 | P27: 30275 | Q27: 13818 | R27: 0.4567782883 | S27: 19 | T27: 0.7916666667 | U27: 13837 | V27: 0.4570437655 | W27: 258 | X27: 8 | Y27: 266 | Z27: 201 | AA27: 5 | AB27: 206 | AC27: 19 | AD27: 1025 | AE27: 1044 | AF27: 0 | AG27: 0 | AH27: 0 | AI27: 2
A28: Manawatū-Whanganui Regional Council | B28: Palmerston North General Constituency | C28: FPP | D28: 1 | E28: 0 | F28: 4 | G28: 0 | H28: 10 | I28: 3 | J28: 3 | K28: 54159 | L28: 69 | M28: 54228 | N28: 54159 | O28: 69 | P28: 54228 | Q28: 23094 | R28: 0.4264111228 | S28: 64 | T28: 0.9275362319 | U28: 23158 | V28: 0.4270487571 | W28: 830 | X28: 2 | Y28: 832 | Z28: 496 | AA28: 2 | AB28: 498 | AC28: 249 | AD28: 1415 | AE28: 1664 | AF28: 5 | AG28: 1 | AH28: 0 | AI28: 4
A29: Manawatū-Whanganui Regional Council | B29: Horowhenua General Constituency | C29: FPP | D29: 1 | E29: 0 | F29: 2 | G29: 0 | H29: 6 | I29: 0 | J29: 0 | K29: 22603 | L29: 63 | M29: 22666 | N29: 22603 | O29: 63 | P29: 22666 | Q29: 10836 | R29: 0.4794053887 | S29: 60 | T29: 0.9523809524 | U29: 10896 | V29: 0.4807200212 | W29: 397 | X29: 26 | Y29: 423 | Z29: 332 | AA29: 19 | AB29: 351 | AC29: 12 | AD29: 756 | AE29: 768 | AF29: 2 | AG29: 1 | AH29: 0 | AI29: 2
A30: Manawatū-Whanganui Regional Council | B30: Tararua General Constituency | C30: FPP | D30: 1 | E30: 0 | F30: 1 | G30: 0 | H30: 2 | I30: 0 | J30: 0 | K30: 11412 | L30: 16 | M30: 11428 | N30: 11412 | O30: 16 | P30: 11428 | Q30: 6467 | R30: 0.5666841921 | S30: 13 | T30: 0.8125 | U30: 6480 | V30: 0.5670283514 | W30: 140 | X30: 6 | Y30: 146 | Z30: 120 | AA30: 5 | AB30: 125 | AC30: 2 | AD30: 1048 | AE30: 1050 | AF30: 2 | AG30: 1 | AH30: 0 | AI30: 1
A31: Manawatū-Whanganui Regional Council | B31: Raki Māori Constituency | C31: FPP | D31: 1 | E31: 0 | F31: 1 | G31: 0 | H31: 4 | I31: 1 | J31: 0 | K31: 10168 | L31: 1 | M31: 10169 | N31: 10168 | O31: 1 | P31: 10169 | Q31: 4419 | R31: 0.4345987411 | S31: 1 | T31: 1 | U31: 4420 | V31: 0.4346543416 | W31: 305 | X31: 6 | Y31: 311 | Z31: 240 | AA31: 4 | AB31: 244 | AC31: 124 | AD31: 149 | AE31: 273 | AF31: 1 | AG31: 0 | AH31: 0 | AI31: 1
A32: Manawatū-Whanganui Regional Council | B32: Tonga Māori Constituency | C32: FPP | D32: 0 | E32: 1 | F32: 1 | G32: 1 | H32: 1 | I32: 1 | J32: 1 | K32: 9694 | L32: 2 | M32: 9696 | P32: 0 | Y32: 0 | AB32: 0 | AE32: 0 | AF32: 0 | AG32: 0 | AH32: 0 | AI32: 1
A33: Northland Regional Council | B33: Far North General Constituency | C33: FPP | D33: 1 | E33: 0 | F33: 1 | G33: 0 | H33: 3 | I33: 1 | J33: 1 | K33: 15543 | L33: 57 | M33: 15600 | N33: 15543 | O33: 57 | P33: 15600 | Q33: 7935 | R33: 0.5105192048 | S33: 50 | T33: 0.8771929825 | U33: 7985 | V33: 0.5118589744 | W33: 425 | X33: 9 | Y33: 434 | Z33: 211 | AA33: 5 | AB33: 216 | AC33: 627 | AD33: 407 | AE33: 1034 | AF33: 1 | AG33: 0 | AH33: 0 | AI33: 1
A34: Northland Regional Council | B34: Bay of Islands-Whangaroa General Constituency | C34: FPP | D34: 1 | E34: 0 | F34: 1 | G34: 0 | H34: 6 | I34: 0 | J34: 0 | K34: 16026 | L34: 48 | M34: 16074 | N34: 16026 | O34: 48 | P34: 16074 | Q34: 8667 | R34: 0.5408086859 | S34: 43 | T34: 0.8958333333 | U34: 8710 | V34: 0.5418688565 | W34: 323 | X34: 0 | Y34: 323 | Z34: 179 | AA34: 0 | AB34: 179 | AC34: 489 | AD34: 713 | AE34: 1202 | AF34: 2 | AG34: 0 | AH34: 0 | AI34: 1
A35: Northland Regional Council | B35: Kaipara General Constituency | C35: FPP | D35: 1 | E35: 0 | F35: 1 | G35: 0 | H35: 2 | I35: 1 | J35: 1 | K35: 13957 | L35: 59 | M35: 14016 | N35: 13957 | O35: 59 | P35: 14016 | Q35: 7896 | R35: 0.5657376227 | S35: 43 | T35: 0.7288135593 | U35: 7939 | V35: 0.5664240868 | W35: 309 | X35: 0 | Y35: 309 | Z35: 128 | AA35: 0 | AB35: 128 | AC35: 44 | AD35: 537 | AE35: 581 | AF35: 1 | AG35: 0 | AH35: 0 | AI35: 1
A36: Northland Regional Council | B36: Mid North General Constituency | C36: FPP | D36: 0 | E36: 1 | F36: 1 | G36: 1 | H36: 1 | I36: 1 | J36: 1 | K36: 14074 | L36: 5 | M36: 14079 | P36: 0 | Y36: 0 | AB36: 0 | AE36: 0 | AF36: 0 | AG36: 0 | AH36: 0 | AI36: 1
A37: Northland Regional Council | B37: Coastal Central General | C37: FPP | D37: 1 | E37: 0 | F37: 1 | G37: 0 | H37: 2 | I37: 1 | J37: 1 | K37: 15017 | L37: 59 | M37: 15076 | N37: 15017 | O37: 59 | P37: 15076 | Q37: 7946 | R37: 0.5291336485 | S37: 50 | T37: 0.8474576271 | U37: 7996 | V37: 0.530379411 | W37: 308 | X37: 0 | Y37: 308 | Z37: 228 | AA37: 0 | AB37: 228 | AC37: 118 | AD37: 492 | AE37: 610 | AF37: 1 | AG37: 1 | AH37: 0 | AI37: 1
A38: Northland Regional Council | B38: Whangārei Central General Constituency | C38: FPP | D38: 1 | E38: 0 | F38: 1 | G38: 0 | H38: 2 | I38: 1 | J38: 1 | K38: 15185 | L38: 8 | M38: 15193 | N38: 15185 | O38: 8 | P38: 15193 | Q38: 6313 | R38: 0.4157392163 | S38: 6 | T38: 0.75 | U38: 6319 | V38: 0.4159152241 | W38: 242 | X38: 0 | Y38: 242 | Z38: 68 | AA38: 0 | AB38: 68 | AC38: 78 | AD38: 504 | AE38: 582 | AF38: 1 | AG38: 0 | AH38: 0 | AI38: 1
A39: Northland Regional Council | B39: Coastal South General Constituency | C39: FPP | D39: 1 | E39: 0 | F39: 1 | G39: 0 | H39: 3 | I39: 0 | J39: 0 | K39: 16341 | L39: 194 | M39: 16535 | N39: 16341 | O39: 194 | P39: 16535 | Q39: 8132 | R39: 0.497643963 | S39: 168 | T39: 0.8659793814 | U39: 8300 | V39: 0.5019655277 | W39: 156 | X39: 0 | Y39: 156 | Z39: 98 | AA39: 0 | AB39: 98 | AC39: 185 | AD39: 607 | AE39: 792 | AF39: 0 | AG39: 0 | AH39: 0 | AI39: 1
A40: Northland Regional Council | B40: Te Raki Māori Constituency | C40: FPP | D40: 1 | E40: 0 | F40: 2 | G40: 0 | H40: 4 | I40: 2 | J40: 0 | K40: 27126 | L40: 14 | M40: 27140 | N40: 27126 | O40: 14 | P40: 27140 | Q40: 11718 | R40: 0.4319840743 | S40: 11 | T40: 0.7857142857 | U40: 11729 | V40: 0.4321665438 | W40: 1694 | X40: 1 | Y40: 1695 | Z40: 832 | AA40: 1 | AB40: 833 | AC40: 582 | AD40: 315 | AE40: 897 | AF40: 1 | AG40: 0 | AH40: 0 | AI40: 2
A41: Otago Regional Council | B41: Dunstan Constituency | C41: STV | D41: 1 | E41: 0 | F41: 4 | G41: 0 | H41: 7 | I41: 2 | J41: 2 | K41: 48514 | L41: 326 | M41: 48840 | N41: 48514 | O41: 326 | P41: 48840 | Q41: 22443 | R41: 0.4626087315 | S41: 257 | T41: 0.7883435583 | U41: 22700 | V41: 0.4647829648 | W41: 746 | X41: 70 | Y41: 816 | Z41: 646 | AA41: 59 | AB41: 705 | AC41: 741 | AD41: 1368 | AE41: 2109 | AF41: 2 | AG41: 0 | AH41: 0 | AI41: 4
A42: Otago Regional Council | B42: Moeraki Constituency | C42: STV | D42: 1 | E42: 0 | F42: 1 | G42: 0 | H42: 2 | I42: 1 | J42: 1 | K42: 15108 | L42: 13 | M42: 15121 | N42: 15108 | O42: 13 | P42: 15121 | Q42: 8081 | R42: 0.5348821816 | S42: 11 | T42: 0.8461538462 | U42: 8092 | V42: 0.5351497917 | W42: 183 | X42: 7 | Y42: 190 | Z42: 137 | AA42: 5 | AB42: 142 | AC42: 9 | AD42: 719 | AE42: 728 | AF42: 1 | AG42: 0 | AH42: 0 | AI42: 1
A43: Otago Regional Council | B43: Molyneux Constituency | C43: STV | D43: 1 | E43: 0 | F43: 2 | G43: 0 | H43: 4 | I43: 2 | J43: 1 | K43: 27176 | L43: 76 | M43: 27252 | N43: 27176 | O43: 76 | P43: 27252 | Q43: 14430 | R43: 0.5309832205 | S43: 47 | T43: 0.6184210526 | U43: 14477 | V43: 0.5312270659 | W43: 130 | X43: 1 | Y43: 131 | Z43: 97 | AA43: 1 | AB43: 98 | AC43: 220 | AD43: 1972 | AE43: 2192 | AF43: 2 | AG43: 1 | AH43: 0 | AI43: 2
A44: Otago Regional Council | B44: Dunedin Constituency | C44: STV | D44: 1 | E44: 0 | F44: 5 | G44: 0 | H44: 10 | I44: 5 | J44: 3 | K44: 79673 | L44: 80 | M44: 79753 | N44: 79673 | O44: 80 | P44: 79753 | Q44: 35295 | R44: 0.4429982554 | S44: 64 | T44: 0.8 | U44: 35359 | V44: 0.4433563628 | W44: 1193 | X44: 8 | Y44: 1201 | Z44: 1044 | AA44: 8 | AB44: 1052 | AC44: 353 | AD44: 4725 | AE44: 5078 | AF44: 3 | AG44: 3 | AH44: 0 | AI44: 5
A45: Southland Regional Council | B45: Fiordland Constituency | C45: FPP | D45: 0 | E45: 1 | F45: 1 | G45: 1 | H45: 1 | I45: 1 | J45: 1 | K45: 2884 | L45: 16 | M45: 2900 | P45: 0 | Y45: 0 | AB45: 0 | AE45: 0 | AF45: 0 | AG45: 0 | AH45: 0 | AI45: 1
A46: Southland Regional Council | B46: Eastern-Dome Constituency | C46: FPP | D46: 0 | E46: 1 | F46: 2 | G46: 2 | H46: 2 | I46: 2 | J46: 2 | K46: 11449 | L46: 18 | M46: 11467 | P46: 0 | Y46: 0 | AB46: 0 | AE46: 0 | AF46: 0 | AG46: 0 | AH46: 0 | AI46: 2
A47: Southland Regional Council | B47: Western Constituency | C47: FPP | D47: 0 | E47: 1 | F47: 1 | G47: 1 | H47: 1 | I47: 0 | J47: 0 | K47: 4913 | L47: 8 | M47: 4921 | P47: 0 | Y47: 0 | AB47: 0 | AE47: 0 | AF47: 0 | AG47: 0 | AH47: 0 | AI47: 1
A48: Southland Regional Council | B48: Hokonui Constituency | C48: FPP | D48: 1 | E48: 0 | F48: 1 | G48: 0 | H48: 2 | I48: 1 | J48: 0 | K48: 5970 | L48: 2 | M48: 5972 | N48: 5970 | O48: 2 | P48: 5972 | Q48: 2632 | R48: 0.4408710218 | S48: 2 | T48: 1 | U48: 2634 | V48: 0.4410582719 | W48: 41 | X48: 2 | Y48: 43 | Z48: 32 | AA48: 0 | AB48: 32 | AC48: 2 | AD48: 109 | AE48: 111 | AF48: 0 | AG48: 0 | AH48: 0 | AI48: 1
A49: Southland Regional Council | B49: Southern Constituency | C49: FPP | D49: 0 | E49: 1 | F49: 1 | G49: 1 | H49: 1 | I49: 1 | J49: 1 | K49: 4013 | L49: 3 | M49: 4016 | P49: 0 | Y49: 0 | AB49: 0 | AE49: 0 | AF49: 0 | AG49: 0 | AH49: 0 | AI49: 1
A50: Southland Regional Council | B50: Invercargill-Rakiura Constituency | C50: FPP | D50: 1 | E50: 0 | F50: 6 | G50: 0 | H50: 11 | I50: 4 | J50: 4 | K50: 39074 | L50: 50 | M50: 39124 | N50: 39074 | O50: 50 | P50: 39124 | Q50: 18131 | R50: 0.4640169934 | S50: 43 | T50: 0.86 | U50: 18174 | V50: 0.4645230549 | W50: 788 | X50: 8 | Y50: 796 | Z50: 607 | AA50: 6 | AB50: 613 | AC50: 9 | AD50: 1953 | AE50: 1962 | AF50: 2 | AG50: 1 | AH50: 0 | AI50: 6
A51: Taranaki Regional Council | B51: North Taranaki General Constituency | C51: FPP | D51: 1 | E51: 0 | F51: 2 | G51: 0 | H51: 5 | I51: 2 | J51: 1 | K51: 14254 | L51: 7 | M51: 14261 | N51: 14254 | O51: 7 | P51: 14261 | Q51: 6593 | R51: 0.4625368318 | S51: 8 | T51: 1.142857143 | U51: 6601 | V51: 0.4628707664 | W51: 63 | X51: 0 | Y51: 63 | Z51: 37 | AA51: 0 | AB51: 37 | AC51: 183 | AD51: 556 | AE51: 739 | AF51: 1 | AG51: 0 | AH51: 0 | AI51: 2
A52: Taranaki Regional Council | B52: New Plymouth General Constituency | C52: FPP | D52: 1 | E52: 0 | F52: 5 | G52: 0 | H52: 9 | I52: 3 | J52: 3 | K52: 42531 | L52: 16 | M52: 42547 | N52: 42531 | O52: 16 | P52: 42547 | Q52: 20244 | R52: 0.4759822247 | S52: 18 | T52: 1.125 | U52: 20262 | V52: 0.4762262909 | W52: 689 | X52: 4 | Y52: 693 | Z52: 455 | AA52: 2 | AB52: 457 | AC52: 185 | AD52: 1941 | AE52: 2126 | AF52: 3 | AG52: 1 | AH52: 0 | AI52: 5
A53: Taranaki Regional Council | B53: Stratford General Constituency | C53: FPP | D53: 1 | E53: 0 | F53: 1 | G53: 0 | H53: 2 | I53: 1 | J53: 1 | K53: 6408 | L53: 3 | M53: 6411 | N53: 6408 | O53: 3 | P53: 6411 | Q53: 3500 | R53: 0.5461922597 | S53: 3 | T53: 1 | U53: 3503 | V53: 0.5464046171 | W53: 108 | X53: 3 | Y53: 111 | Z53: 70 | AA53: 1 | AB53: 71 | AC53: 4 | AD53: 174 | AE53: 178 | AF53: 0 | AG53: 0 | AH53: 0 | AI53: 1
A54: Taranaki Regional Council | B54: South Taranaki General Constituency | C54: FPP | D54: 1 | E54: 0 | F54: 2 | G54: 0 | H54: 3 | I54: 2 | J54: 2 | K54: 16043 | L54: 12 | M54: 16055 | N54: 16043 | O54: 12 | P54: 16055 | Q54: 7380 | R54: 0.4600137131 | S54: 13 | T54: 1.083333333 | U54: 7393 | V54: 0.4604796014 | W54: 159 | X54: 0 | Y54: 159 | Z54: 103 | AA54: 0 | AB54: 103 | AC54: 4 | AD54: 505 | AE54: 509 | AF54: 1 | AG54: 1 | AH54: 0 | AI54: 2
A55: Taranaki Regional Council | B55: Taranaki Māori Constituency | C55: FPP | D55: 0 | E55: 1 | F55: 1 | G55: 1 | H55: 1 | I55: 1 | J55: 1 | K55: 7736 | L55: 3 | M55: 7739 | P55: 0 | Y55: 0 | AB55: 0 | AE55: 0 | AF55: 1 | AG55: 1 | AH55: 0 | AI55: 1
A56: Waikato Regional Council | B56: Thames-Coromandel General Consituency | C56: FPP | D56: 1 | E56: 0 | F56: 1 | G56: 0 | H56: 2 | I56: 1 | J56: 1 | K56: 27155 | L56: 1204 | M56: 28359 | N56: 27155 | O56: 1204 | P56: 28359 | Q56: 13016 | R56: 0.4793224084 | S56: 1029 | T56: 0.8546511628 | U56: 14045 | V56: 0.4952572376 | W56: 446 | X56: 7 | Y56: 453 | Z56: 241 | AA56: 7 | AB56: 248 | AC56: 19 | AD56: 1270 | AE56: 1289 | AF56: 0 | AG56: 0 | AH56: 0 | AI56: 1
A57: Waikato Regional Council | B57: Waikato General Constituency | C57: FPP | D57: 1 | E57: 0 | F57: 2 | G57: 0 | H57: 4 | I57: 2 | J57: 1 | K57: 49626 | L57: 23 | M57: 49649 | N57: 49626 | O57: 23 | P57: 49649 | Q57: 17399 | R57: 0.3506025068 | S57: 22 | T57: 0.9565217391 | U57: 17421 | V57: 0.3508832001 | W57: 460 | X57: 0 | Y57: 460 | Z57: 329 | AA57: 0 | AB57: 329 | AC57: 21 | AD57: 807 | AE57: 828 | AF57: 1 | AG57: 0 | AH57: 0 | AI57: 2
A58: Waikato Regional Council | B58: Waihou General Constituency | C58: FPP | D58: 1 | E58: 0 | F58: 2 | G58: 0 | H58: 5 | I58: 1 | J58: 1 | K58: 45547 | L58: 19 | M58: 45566 | N58: 45547 | O58: 19 | P58: 45566 | Q58: 21334 | R58: 0.468395284 | S58: 16 | T58: 0.8421052632 | U58: 21350 | V58: 0.4685511127 | W58: 534 | X58: 8 | Y58: 542 | Z58: 373 | AA58: 5 | AB58: 378 | AC58: 112 | AD58: 2110 | AE58: 2222 | AF58: 1 | AG58: 0 | AH58: 0 | AI58: 2
A59: Waikato Regional Council | B59: Taupō-Rotorua General Constituency | C59: FPP | D59: 1 | E59: 0 | F59: 1 | G59: 0 | H59: 3 | I59: 1 | J59: 1 | K59: 25448 | L59: 406 | M59: 25854 | N59: 25448 | O59: 406 | P59: 25854 | Q59: 14520 | R59: 0.5705752908 | S59: 349 | T59: 0.8596059113 | U59: 14869 | V59: 0.5751141023 | W59: 603 | X59: 95 | Y59: 698 | Z59: 484 | AA59: 89 | AB59: 573 | AC59: 17 | AD59: 1710 | AE59: 1727 | AF59: 2 | AG59: 0 | AH59: 0 | AI59: 1
A60: Waikato Regional Council | B60: Hamilton General Constituency | C60: FPP | D60: 1 | E60: 0 | F60: 4 | G60: 0 | H60: 10 | I60: 4 | J60: 4 | K60: 99905 | L60: 179 | M60: 100084 | N60: 99905 | O60: 179 | P60: 100084 | Q60: 33688 | R60: 0.3372003403 | S60: 162 | T60: 0.905027933 | U60: 33850 | V60: 0.3382158986 | W60: 1817 | X60: 1 | Y60: 1818 | Z60: 1603 | AA60: 1 | AB60: 1604 | AC60: 267 | AD60: 2838 | AE60: 3105 | AF60: 2 | AG60: 2 | AH60: 0 | AI60: 4
A61: Waikato Regional Council | B61: Waipā-King County General Constituency | C61: FPP | D61: 1 | E61: 0 | F61: 2 | G61: 0 | H61: 4 | I61: 2 | J61: 0 | K61: 47930 | L61: 33 | M61: 47963 | N61: 47930 | O61: 33 | P61: 47963 | Q61: 20991 | R61: 0.4379511788 | S61: 31 | T61: 0.9393939394 | U61: 21022 | V61: 0.4382961866 | W61: 583 | X61: 10 | Y61: 593 | Z61: 455 | AA61: 8 | AB61: 463 | AC61: 31 | AD61: 1164 | AE61: 1195 | AF61: 1 | AG61: 1 | AH61: 0 | AI61: 2
A62: Waikato Regional Council | B62: Ngā Tai ki Uta Māori Constituency | C62: FPP | D62: 0 | E62: 1 | F62: 1 | G62: 1 | H62: 1 | I62: 1 | J62: 1 | K62: 15176 | L62: 5 | M62: 15181 | P62: 0 | Y62: 0 | AB62: 0 | AE62: 0 | AF62: 1 | AG62: 1 | AH62: 0 | AI62: 1
A63: Waikato Regional Council | B63: Ngā Hau e Wha Māori Constituency | C63: FPP | D63: 0 | E63: 1 | F63: 1 | G63: 1 | H63: 1 | I63: 1 | J63: 1 | K63: 23785 | L63: 4 | M63: 23789 | P63: 0 | Y63: 0 | AB63: 0 | AE63: 0 | AF63: 1 | AG63: 1 | AH63: 0 | AI63: 1
A64: West Coast Regional Council | B64: Buller Constituecy | C64: FPP | D64: 1 | E64: 0 | F64: 2 | G64: 0 | H64: 3 | I64: 1 | J64: 1 | K64: 7579 | L64: 46 | M64: 7625 | N64: 7579 | O64: 46 | P64: 7625 | Q64: 4159 | R64: 0.5487531337 | S64: 38 | T64: 0.8260869565 | U64: 4197 | V64: 0.5504262295 | W64: 156 | X64: 10 | Y64: 166 | Z64: 110 | AA64: 8 | AB64: 118 | AC64: 1 | AD64: 136 | AE64: 137 | AF64: 0 | AG64: 0 | AH64: 0 | AI64: 2
A65: West Coast Regional Council | B65: Grey Constituency | C65: FPP | D65: 1 | E65: 0 | F65: 3 | G65: 0 | H65: 7 | I65: 3 | J65: 2 | K65: 9874 | L65: 9 | M65: 9883 | N65: 9874 | O65: 9 | P65: 9883 | Q65: 4673 | R65: 0.4732631153 | S65: 7 | T65: 0.7777777778 | U65: 4680 | V65: 0.4735404229 | W65: 104 | X65: 5 | Y65: 109 | Z65: 81 | AA65: 4 | AB65: 85 | AC65: 6 | AD65: 80 | AE65: 86 | AF65: 1 | AG65: 0 | AH65: 0 | AI65: 3
A66: West Coast Regional Council | B66: Westland Constituency | C66: FPP | D66: 1 | E66: 0 | F66: 2 | G66: 0 | H66: 6 | I66: 1 | J66: 1 | K66: 6405 | L66: 54 | M66: 6459 | N66: 6405 | O66: 54 | P66: 6459 | Q66: 3629 | R66: 0.5665886027 | S66: 42 | T66: 0.7777777778 | U66: 3671 | V66: 0.5683542344 | W66: 123 | X66: 16 | Y66: 139 | Z66: 85 | AA66: 3 | AB66: 88 | AC66: 16 | AD66: 170 | AE66: 186 | AF66: 3 | AG66: 0 | AH66: 0 | AI66: 2
A67: Wellington Regional Council | B67: Kāpiti Coast Constituency | C67: STV | D67: 1 | E67: 0 | F67: 1 | G67: 0 | H67: 2 | I67: 1 | J67: 1 | K67: 40579 | L67: 79 | M67: 40658 | N67: 40579 | O67: 79 | P67: 40658 | Q67: 19027 | R67: 0.4688878484 | S67: 77 | T67: 0.9746835443 | U67: 19104 | V67: 0.4698706282 | W67: 664 | X67: 6 | Y67: 670 | Z67: 474 | AA67: 5 | AB67: 479 | AC67: 1 | AD67: 1680 | AE67: 1681 | AF67: 1 | AG67: 1 | AH67: 0 | AI67: 1
A68: Wellington Regional Council | B68: Porirua-Tawa Constituency | C68: STV | D68: 1 | E68: 0 | F68: 2 | G68: 0 | H68: 5 | I68: 1 | J68: 0 | K68: 48271 | L68: 15 | M68: 48286 | N68: 48271 | O68: 15 | P68: 48286 | Q68: 20461 | R68: 0.4238776905 | S68: 13 | T68: 0.8666666667 | U68: 20474 | V68: 0.4240152425 | W68: 688 | X68: 6 | Y68: 694 | Z68: 555 | AA68: 4 | AB68: 559 | AC68: 100 | AD68: 1839 | AE68: 1939 | AF68: 2 | AG68: 1 | AH68: 0 | AI68: 2
A69: Wellington Regional Council | B69: Te Awa Kairangi ki Uta/Upper Hutt Constituency | C69: STV | D69: 0 | E69: 1 | F69: 1 | G69: 1 | H69: 1 | I69: 1 | J69: 1 | K69: 31015 | L69: 8 | M69: =K69+L69 -> 31023 | P69: =O69+N69 -> 0 | Y69: =X69+W69 -> 0 | AB69: =AA69+Z69 -> 0 | AE69: =AD69+AC69 -> 0 | AF69: 1 | AG69: 1 | AH69: 0 | AI69: 1
A70: Wellington Regional Council | B70: Te Awa Kairangi ki Tai/Lower Hutt Constituency | C70: STV | D70: 1 | E70: 0 | F70: 3 | G70: 0 | H70: 8 | I70: 1 | J70: 1 | K70: 71720 | L70: 16 | M70: 71736 | N70: 71720 | O70: 16 | P70: 71736 | Q70: 30216 | R70: =Q70/N70 -> 0.4213050753 | S70: 14 | T70: =S70/O70 -> 0.875 | U70: =S70+Q70 -> 30230 | V70: =U70/P70 -> 0.4214062674 | W70: 1062 | X70: 5 | Y70: 1067 | Z70: 784 | AA70: 3 | AB70: 787 | AC70: 880 | AD70: 2377 | AE70: 3257 | AF70: 0 | AG70: 0 | AH70: 0 | AI70: 3
A71: Wellington Regional Council | B71: Pōneke/Wellington Constituency | C71: STV | D71: 1 | E71: 0 | F71: 5 | G71: 0 | H71: 11 | I71: 3 | J71: 3 | K71: 143972 | L71: 219 | M71: 144191 | N71: 143972 | O71: 219 | P71: 144191 | Q71: 73402 | R71: 0.5098352457 | S71: 194 | T71: 0.8858447489 | U71: 73596 | V71: =U71/P71 -> 0.510406336 | W71: 4342 | X71: 77 | Y71: 4419 | Z71: 3621 | AA71: 45 | AB71: 3666 | AC71: 387 | AD71: 3368 | AE71: 3755 | AF71: 5 | AG71: 2 | AH71: 0 | AI71: 5
A72: Wellington Regional Council | B72: Wairarapa Constituency | C72: STV | D72: 1 | E72: 0 | F72: 1 | G72: 0 | H72: 2 | I72: 1 | J72: 1 | K72: 34326 | L72: 23 | M72: 34349 | N72: 34326 | O72: 23 | P72: 34349 | Q72: 18095 | R72: 0.5271514304 | S72: 23 | T72: 1 | U72: 18118 | V72: 0.5274680486 | W72: 475 | X72: 14 | Y72: 489 | Z72: 374 | AA72: 7 | AB72: 381 | AC72: 18 | AD72: 1697 | AE72: 1715 | AF72: 1 | AG72: 1 | AH72: 0 | AI72: 1
A73: Wellington Regional Council | B73: Te Upoko o te ika a Māui Constituency | C73: STV | D73: 0 | E73: 1 | F73: 1 | G73: 1 | H73: 1 | I73: 0 | J73: 0 | K73: 26185 | L73: 9 | M73: 26194 | P73: 0 | Y73: 0 | AB73: 0 | AE73: 0 | AF73: 1 | AG73: 1 | AH73: 0 | AI73: 1

Sheet Regional Councils Summary
A1: TOTAL | D1: =SUM(D4:D14) -> 57 | E1: =SUM(E4:E14) -> 13 | F1: 132 | G1: 14 | H1: 293 | I1: 96 | J1: 77 | K1: 2201235 | L1: 4615 | M1: 2205850 | N1: 2034038 | O1: 4409 | P1: 2038447 | Q1: 892037 | R1: =Q1/N1 -> 0.4385547369 | S1: 3724 | T1: =S1/O1 -> 0.8446359719 | U1: 895761 | V1: =U1/P1 -> 0.4394330586 | W1: 31009 | X1: 576 | Y1: 31585 | Z1: 23358 | AA1: 406 | AB1: 23764 | AC1: 6592 | AD1: 66433 | AE1: 73025 | AF1: 90 | AG1: 42 | AH1: 0 | AI1: 132
A3: Authority | B3: Constituency | C3: Electoral system | D3: Number of Contested Constituencies | E3: Number of Uncontested Constituencies | F3: Positions (N) | G3: Elected uncontested (N) | H3: Candidates (N) | I3: Candidates Council sitting members (N) | J3: Council members re-elected (N) | K3: Residential electors (N) | L3: Ratepayer electors (N) | M3: Total electors (N) | N3: Residential electors (contested wards only) | O3: Ratepayer electors (contested wards only) | P3: Total electors (Contested wards only) | Q3: Residential voters (N) | R3: Residential turnout (%) | S3: Ratepayer voters (N) | T3: Ratepayer turnout (%) | U3: Total voters (N) | V3: Overall turnout (%) | W3: Residential special votes cast (N) | X3: Ratepayer special votes cast (N) | Y3: Total special votes cast (N) | Z3: Residential special votes allowed (N) | AA3: Ratepayer special votes allowed (N) | AB3: Total special votes allowed (N) | AC3: Informal votes (N) | AD3: Blank votes (N) | AE3: Blank and informal votes (N) | AF3: Female candidates (N) | AG3: Female councillors (N) | AH3: Unfilled positions | AI3: Total number elected
A4: Bay of Plenty Regional Council | C4: FPP | D4: 7 | E4: 0 | F4: 14 | G4: 0 | H4: 47 | I4: 9 | J4: 5 | K4: 232023 | L4: 528 | M4: 232551 | N4: 232023 | O4: 528 | P4: 232551 | Q4: 80360 | R4: 0.3463449744 | S4: 407 | T4: 0.7708333333 | U4: 80767 | V4: 0.3473087624 | W4: 2272 | X4: 45 | Y4: 2317 | Z4: 1547 | AA4: 34 | AB4: 1581 | AC4: 225 | AD4: 3460 | AE4: 3685 | AF4: 15 | AG4: 6 | AH4: 0 | AI4: 14
A5: Canterbury Regional Council | C5: FPP | D5: 7 | E5: 0 | F5: 14 | G5: 0 | H5: 34 | I5: 10 | J5: 8 | K5: 463290 | L5: 235 | M5: 463525 | N5: 463290 | O5: 235 | P5: 463525 | Q5: 192722 | R5: 0.4159856677 | S5: 198 | T5: 0.8425531915 | U5: 192920 | V5: 0.4162019309 | W5: 4939 | X5: 68 | Y5: 5007 | Z5: 3985 | AA5: 33 | AB5: 4018 | AC5: 197 | AD5: 14644 | AE5: 14841 | AF5: 9 | AG5: 6 | AH5: 0 | AI5: 14
A6: Hawke's Bay Regional Council | C6: FPP | D6: 6 | E6: 1 | F6: 11 | G6: 1 | H6: 20 | I6: 7 | J6: 7 | K6: 119125 | L6: 94 | M6: 119219 | N6: 109197 | O6: 94 | P6: 109291 | Q6: 53479 | R6: 0.4897478868 | S6: 82 | T6: 0.8723404255 | U6: 53561 | V6: 0.4900769505 | W6: 1627 | X6: 29 | Y6: 1656 | Z6: 1372 | AA6: 23 | AB6: 1395 | AC6: 48 | AD6: 3056 | AE6: 3104 | AF6: 8 | AG6: 5 | AH6: 0 | AI6: 11
A7: Manawatū-Whanganui Regional Council | C7: FPP | D7: 6 | E7: 2 | F7: 14 | G7: 2 | H7: 32 | I7: 9 | J7: 8 | K7: 173284 | L7: 330 | M7: 173614 | N7: 157245 | O7: 203 | P7: 157448 | Q7: 73530 | R7: 0.4676142326 | S7: 183 | T7: 0.9014778325 | U7: 73713 | V7: 0.4681736192 | W7: 2557 | X7: 61 | Y7: 2618 | Z7: 1913 | AA7: 39 | AB7: 1952 | AC7: 413 | AD7: 6430 | AE7: 6843 | AF7: 11 | AG7: 4 | AH7: 0 | AI7: 14
A8: Northland Regional Council | C8: FPP | D8: 7 | E8: 1 | F8: 9 | G8: 1 | H8: 23 | I8: 7 | J8: 5 | K8: 133269 | L8: 444 | M8: 133713 | N8: 119195 | O8: 439 | P8: 119634 | Q8: 58607 | R8: 0.4916900877 | S8: 371 | T8: 0.8451025057 | U8: 58978 | V8: 0.4929869435 | W8: 3457 | X8: 10 | Y8: 3467 | Z8: 1744 | AA8: 6 | AB8: 1750 | AC8: 2123 | AD8: 3575 | AE8: 5698 | AF8: 7 | AG8: 1 | AH8: 0 | AI8: 9
A9: Otago Regional Council | C9: STV | D9: 4 | E9: 0 | F9: 12 | G9: 0 | H9: 23 | I9: 10 | J9: 7 | K9: 170471 | L9: 495 | M9: 170966 | N9: 170471 | O9: 495 | P9: 170966 | Q9: 80249 | R9: 0.4707486904 | S9: 379 | T9: 0.7656565657 | U9: 80628 | V9: 0.4716025409 | W9: 2252 | X9: 86 | Y9: 2338 | Z9: 1924 | AA9: 73 | AB9: 1997 | AC9: 1323 | AD9: 8784 | AE9: 10107 | AF9: 8 | AG9: 4 | AH9: 0 | AI9: 12
A10: Southland Regional Council | C10: FPP | D10: 2 | E10: 4 | F10: 12 | G10: 5 | H10: 18 | I10: 9 | J10: 8 | K10: 68303 | L10: 97 | M10: 68400 | N10: 45044 | O10: 52 | P10: 45096 | Q10: 20763 | R10: 0.460949294 | S10: 45 | T10: 0.8653846154 | U10: 20808 | V10: 0.4614156466 | W10: 829 | X10: 10 | Y10: 839 | Z10: 639 | AA10: 6 | AB10: 645 | AC10: 11 | AD10: 2062 | AE10: 2073 | AF10: 2 | AG10: 1 | AH10: 0 | AI10: 12
A11: Taranaki Regional Council | C11: FPP | D11: 4 | E11: 1 | F11: 11 | G11: 1 | H11: 20 | I11: 9 | J11: 8 | K11: 86972 | L11: 41 | M11: 87013 | N11: 79236 | O11: 38 | P11: 79274 | Q11: 37717 | R11: 0.47600838 | S11: 42 | T11: 1.105263158 | U11: 37759 | V11: 0.4763100134 | W11: 1019 | X11: 7 | Y11: 1026 | Z11: 665 | AA11: 3 | AB11: 668 | AC11: 376 | AD11: 3176 | AE11: 3552 | AF11: 6 | AG11: 3 | AH11: 0 | AI11: 11
A12: Waikato Regional Council | C12: FPP | D12: 6 | E12: 2 | F12: 14 | G12: 2 | H12: 30 | I12: 13 | J12: 10 | K12: 334572 | L12: 1873 | M12: 336445 | N12: 295611 | O12: 1864 | P12: 297475 | Q12: 120948 | R12: 0.4091458031 | S12: 1609 | T12: 0.8631974249 | U12: 122557 | V12: 0.4119909236 | W12: 4443 | X12: 121 | Y12: 4564 | Z12: 3485 | AA12: 110 | AB12: 3595 | AC12: 467 | AD12: 9899 | AE12: 10366 | AF12: 9 | AG12: 5 | AH12: 0 | AI12: 14
A13: West Coast Regional Council | C13: FPP | D13: 3 | E13: 0 | F13: 7 | G13: 0 | H13: 16 | I13: 5 | J13: 4 | K13: 23858 | L13: 109 | M13: 23967 | N13: 23858 | O13: 109 | P13: 23967 | Q13: 12461 | R13: 0.5222986001 | S13: 87 | T13: 0.7981651376 | U13: 12548 | V13: 0.523553219 | W13: 383 | X13: 31 | Y13: 414 | Z13: 276 | AA13: 15 | AB13: 291 | AC13: 23 | AD13: 386 | AE13: 409 | AF13: 4 | AG13: 0 | AH13: 0 | AI13: 7
A14: Wellington Regional Council | C14: STV | D14: 5 | E14: 2 | F14: 14 | G14: 2 | H14: 30 | I14: 8 | J14: 7 | K14: 396068 | L14: 369 | M14: 396437 | N14: 338868 | O14: 352 | P14: 339220 | Q14: 161201 | R14: 0.4757044041 | S14: 321 | T14: 0.9119318182 | U14: 161522 | V14: 0.4761570662 | W14: 7231 | X14: 108 | Y14: 7339 | Z14: 5808 | AA14: 64 | AB14: 5872 | AC14: 1386 | AD14: 10961 | AE14: 12347 | AF14: 11 | AG14: 7 | AH14: 0 | AI14: 14

Sheet Glossary
A2: Glossary of statistical terms
A4: Blank votes (%) = the number of blank votes cast (including special votes) divided by the total number of voters
A5: Candidates community board members (%) = the number of community board members from previous term who stood for council in current election, divided by the total number of candidates in current election (city and district council elections only)
A6: Candidates sitting members (%) = the number of sitting members in previous term who stood for re-election in current election divided by the total number of candidates in current election
A7: Community board members elected (%) = the number of community board members in previous term who stood for council in current term and were elected, divided by the total number of positions in current term (city and district council elections only)
A8: Elected unopposed = number of elected members, where the number of candidates is equal to, or less than, the number of positions
A9: Electors per position = the number of electors (residential and ratepayer, where applicable) divided by the total number of positions
A10: Resident population = the estimated population usually resident of the area, based on estimated or Census data (provided by Statistics New Zealand)
A11: Informal votes (%) = the number of informal votes cast (including special votes) divided by the total number of voters
A12: Members elected (%) = the number of sitting members in previous term who stood for re-election in current term and were re-elected, divided by the total number of elected members in current term
A13: Ratepayer electors (contested areas only) = the total number of ratepayer electors on the roll in contested areas (used for calculating ratepayer turnout)
A14: Ratepayer electors (%) = the total number of ratepayer electors on the roll, divided by the total number of electors on the roll
A15: Ratepayer turnout = number of ratepayer voters (including those who cast special votes and these were allowed in respect of their ratepayer qualification) divided by the number of ratepayer electors on the roll in contested areas
A16: Residential electors (contested areas only) = the total number of residential electors on the roll in contested areas (used for calculating residential turnout)
A17: Residential turnout = number of residential voters (including those who cast special votes and these were allowed in respect of their residential qualification) divided by the number of residential electors on the roll in contested areas
A18: Sitting mayor (R/S/U/D) = whether the sitting mayor in previous term was: re-elected (R); stood down (S); re-elected unopposed (U); or defeated (D) in the current elections
A19: Sitting members re-elected (%) = the number of sitting members in previous term that were re-elected in current term, divided by the total number of positions in current term
A20: Special votes allowed (%) = the number of allowed special votes (residential and ratepayer) divided by the total number of special votes cast
A21: Special votes cast (%) = the number of voters who cast special votes divided by the total number of voters
A22: Total electors (contested areas only) = the number of residential and ratepayer electors for all contested areas (used for calculating total turnout)
A23: Turnout = number of voters (including those who cast special votes and these were allowed) divided by the number of electors on the roll in contested areas
A24: Female candidates (%) = the number of female candidates divided by the total number of candidates
A25: Female members/councillors (%) = the number of women elected divided by the number of positions
A26: Voters per position = the number of voters (residential and ratepayer) divided by the number of positions
A27: Voting document order (A/R/P) = the order candidates were listed on the voting document: alphabetical order (A); random (R); or pseudo-random (P)

Sheet Graphs
A5: Voter Turnout by Council Type (Mayors & Councillors) | B5: 1989 | C5: 1992 | D5: 1995 | E5: 1998 | F5: 2001 | G5: 2004 | H5: 2007 | I5: 2010 | J5: 2013 | K5: 2016 | L5: 2019 | M5: 2022 | N5: 2025
A6: District Councils | B6: 0.65 | C6: 0.61 | D6: 0.59 | E6: 0.61 | F6: 0.57 | G6: 0.51 | H6: 0.49 | I6: 0.5 | J6: 0.48 | K6: 0.47 | L6: 0.4800322226 | M6: 0.45 | N6: 0.4706404391
A7: City Councils | B7: 0.52 | C7: 0.48 | D7: 0.49 | E7: 0.51 | F7: 0.45 | G7: 0.43 | H7: 0.41 | I7: 0.46 | J7: 0.39 | K7: 0.4 | L7: 0.3922571388 | M7: 0.39 | N7: 0.3520626254
A8: Regional Councils | B8: 0.56 | C8: 0.52 | D8: 0.48 | E8: 0.53 | F8: 0.49 | G8: 0.45 | H8: 0.43 | I8: 0.47 | J8: 0.43 | K8: 0.44 | L8: 0.4514540165 | M8: 0.43 | N8: 0.4394330586
A12: Voter Turnout - all councils | B12: 1989 | C12: 1992 | D12: 1995 | E12: 1998 | F12: 2001 | G12: 2004 | H12: 2007 | I12: 2010 | J12: 2013 | K12: 2016 | L12: 2019 | M12: 2022 | N12: 2025
A13: Mayoral turnout | B13: 0.57 | C13: 0.53 | D13: 0.53 | E13: 0.55 | F13: 0.5 | G13: 0.46 | H13: 0.44 | I13: 0.49 | J13: 0.41 | K13: 0.42 | L13: 0.4218454054 | M13: 0.41 | N13: 0.3948554952
A14: Council turnout | B14: 0.56 | C14: 0.51 | D14: 0.51 | E14: 0.53 | F14: 0.47 | G14: 0.46 | H14: 0.44 | I14: 0.49 | J14: 0.42 | K14: 0.43 | L14: 0.4329178559 | M14: 0.41 | N14: 0.3958290699
A18: Female candidates & women elected (councils, mayors, local boards and community boards) | B18: 2010 | C18: 2013 | D18: 2016 | E18: 2019 | F18: 2022 | G18: 2025
A19: Female Candidates | B19: 0.2846825158 | C19: 0.302105435 | D19: 0.3333333333 | E19: 0.3575626353 | F19: 0.3770876062 | G19: 0.3704898797
A20: Women Elected | B20: 0.3048327138 | C20: 0.3188865398 | D20: 0.365202109 | E20: 0.3987538941 | F20: 0.3870566273 | G20: 0.4093457944
A23: Proportion of women (2025) | B23: Regional Councils | C23: District Councils | D23: City Councils | E23: Mayors | F23: Local Boards | G23: Community boards
A24: Candidates | B24: 0.3071672355 | C24: 0.3620102215 | D24: 0.347639485 | E24: 0.2881944444 | F24: 0.361038961 | G24: 0.4533001245
A25: Elected | B25: 0.3181818182 | C25: 0.3941605839 | D25: 0.4135802469 | E25: 0.2727272727 | F25: 0.4304635762 | G25: 0.456043956
A30: Proportion of female elected members | B30: Regional Councils | C30: District Councils | D30: City Councils | E30: Mayors | F30: Local Boards | G30: Community boards
A31: 2010 | B31: 0.241 | C31: 0.276 | D31: 0.349 | E31: 0.179 | F31: 0.389 | G31: 0.33
A32: 2013 | B32: 0.212 | C32: 0.297 | D32: 0.325 | E32: 0.197 | F32: 0.402 | G32: 0.374
A33: 2016 | B33: 0.24 | C33: 0.34 | D33: 0.34 | E33: 0.194 | F33: 0.5102040816 | G33: 0.38
A34: 2019 | B34: 0.3149606299 | C34: 0.3844731978 | D34: 0.4319526627 | E34: 0.2686567164 | F34: 0.5100671141 | G34: 0.4076086957
A35: 2022 | B35: 0.26 | C35: 0.37 | D35: 0.4 | E35: 0.32 | F35: 0.45 | G35: 0.43
A36: 2025 | B36: 0.3181818182 | C36: 0.3941605839 | D36: 0.4135802469 | E36: 0.2727272727 | F36: 0.4304635762 | G36: 0.456043956
